Workbook

Sheet Controls
B1: Movement and Places Calculator
C3: Sheet Controls | G3: Criteria Type
G5: Green Star Buildings | I5: (Default)

Sheet Disclaimer
B1: Movement and Places Calculator
B3: DISCLAIMER, AUTHORISATION AND ACKNOWLEDGEMENT

Sheet Transport
B1: Movement and Places Calculator
A2: Please refer to calculator guide before using this sheet.
B3: Reference | C3: Proposed | D3: Altered | G3: Address* | H3: 205 Queen Street, Auckland | L3: Emissions Intensity | M3: Reference | N3: Proposed | O3: Unit
A4: Train | B4: =VLOOKUP(sa2_found,commute,3,FALSE) -> 0.09 | C4: 0.09 | D4: 0.09 | E4: =IF(AND(EXACT(B4:B10, "?")), "This data is unavailable.", IF(SUM(BG4:BG10)=0,"","Proposed mode share has been changed, other mode shares need to be updated. Please press 'Update Mode Shares' button.")) ->  | G4: Street Address | H4: 205 Queen Street | L4: Train | M4: ='Emission Factors'!C6 -> 19 | N4: 19 | O4: g CO2-e / passenger km
A5: Bus | B5: =VLOOKUP(sa2_found,commute,4,FALSE) -> 0.32 | C5: 0.32 | D5: 0.32 | G5: Suburb | H5: Auckland CBD | L5: Bus | M5: ='Emission Factors'!C4 -> 155 | N5: 155 | O5: g CO2-e / passenger km
A6: Ferry | B6: =VLOOKUP(sa2_found,commute,5,FALSE) -> 0.04 | C6: 0.04 | D6: 0.04 | G6: City/Town | H6: Auckland | I6: =SUM(C4:C10) -> 0.99 | L6: Ferry | M6: ='Emission Factors'!C7 -> 19 | N6: 19 | O6: g CO2-e / passenger km
A7: Car Driver | B7: =VLOOKUP(sa2_found,commute,7,FALSE) -> 0.41 | C7: 0.41 | D7: 0.41 | G7: Post Code | H7: 1010 | L7: Car Driver | M7: ='Emission Factors'!C2 -> 265 | N7: 265 | O7: g CO2-e / vehicle km
A8: Car Passenger | B8: =VLOOKUP(sa2_found,commute,8,FALSE) -> 0 | C8: 0 | D8: 0 | G8: Latitude | H8: -36.8492303 | L8: Car Passenger | M8: ='Emission Factors'!C2 -> 265 | N8: 265 | O8: g CO2-e / passenger km
A9: Bicycle | B9: =VLOOKUP(sa2_found,commute,10,FALSE) -> 0 | C9: 0 | D9: 0 | G9: Longitude | H9: 174.7649892 | L9: Bicycle | M9: 0 | N9: 0 | O9: g CO2-e / passenger km
A10: Walk | B10: =VLOOKUP(sa2_found,commute,11,FALSE) -> 0.13 | C10: 0.13 | D10: 0.13 | L10: Walk | M10: 0 | N10: 0 | O10: g CO2-e / passenger km
A11: Motorcycle | B11: =VLOOKUP(sa2_found,commute,9,FALSE) -> 0.01 | C11: 0.01 | D11: 0.01 | G11: Building Type* | H11: Office | I11: 50 | J11: % Residential | L11: Motorcycle | M11: ='Emission Factors'!C3 -> 115 | N11: 115 | O11: g CO2-e / passenger km
A12: Total Mode Share | B12: =SUM(B4:B11) -> 1 | C12: =SUM(C4:C11) -> 1 | D12: =SUM(D4:D11) -> 1 | L12: Total | M12: =SUMPRODUCT(B4:B10,M4:M10) -> 160.72 | N12: 160.72 | O12: g CO2-e / passenger km
A13: Avoided trips | B13: =VLOOKUP(sa2_found,commute,12,FALSE) -> 0.02 | C13: 0.02 | D13: =AvoidedTrips -> 0.02 | E13: %
A14: Ave Trip Length | B14: =VLOOKUP(sa2_found,commute,13,FALSE) -> 8.53 | C14: 8.53 | D14: =AveTripLength -> 8.53 | E14: km | G14: SA2 | H14: Queen Street
A15: Work weeks | B15: 48 | C15: 48 | D15: =WorkWeeks -> 48 | E15: weeks / annum | I15: =IF(I14="","","The closest SA2 is currently registered as having no commute data for "&H11&" purposes. The closest SA2 with commute data ("&sa2_found&") has been used") -> 
A16: trips per annum | B16: =(1-B13)*2*B15*5 -> 470.4 | D16: =(1-$D$13)*2*D15*5 -> 470.4 | E16: trips / annum
A17: Emissions per trip | B17: =SUMPRODUCT(B4:B11,M4:M11)*B14 -> 1380.7511 | D17: =SUMPRODUCT(D4:D11,N4:N11)*D14 -> 1380.7511 | E17: g CO2-e / trip | G17: =IF(ISNUMBER((D18/B18-1)*-1),(D18/B18-1)*-1,0) -> 0 | H17: ="reduction in carbon emissions (Target "&TEXT('Working Values'!M2,"00%")&")" -> reduction in carbon emissions (Target 40%) | I17: Criterion 1
A18: Total emissions | B18: =B16*B17/1000000 -> 0.6495053174 | D18: =D16*D17/1000000 -> 0.6495053174 | E18: tonnes / person / annum | H18: ='Working Values'!J3 -> Not Achieved
A19: Total vkt | B19: =SUM(B7:B8*B14*B16) -> 1645.12992 | D19: =SUM(D16*D7:D8*D14) -> 1645.12992 | E19: vkt / person / annum | G19: =IF(ISNUMBER(D20/B20-1),(D20/B20-1),IF(AND(B20=0, ISNUMBER(D20), D20>0), 1, 0)) -> 0 | H19: ="increase in active mode use (Target "&TEXT('Working Values'!M4, "00%")&")" -> increase in active mode use (Target 90%) | I19: Criterion 2
A20: Active modes | B20: =SUM(B9:B10) -> 0.13 | D20: =SUM(D9:D10) -> 0.13 | E20: Mode Share % for Active Modes | H20: ='Working Values'!J5 -> Not Achieved
G21: =IF(ISNUMBER((D19/B19-1)*-1),(D19/B19-1)*-1, 0) -> 1.110223025e-16 | H21: ="reduction in vehicle kilometres travelled by car (Target "&TEXT('Working Values'!M6, "00%")&")" -> reduction in vehicle kilometres travelled by car (Target 20%) | I21: Criterion 3
H22: ='Working Values'!J7 -> Not Achieved
G23: ='Working Values'!J8 -> 0 | H23: ='Working Values'!K8 -> / 3 targets achieved
C27: Reference | H27: Proposed
AL80: bus and ferry are similar
AL81: DEFRA
AL82: http://www.carbonneutralcalculator.com/Carbon%20Offset%20Factors.pdf

Sheet Change Log (hidden)
B1: Movement and Places Calculator
B2: Change Log
C4: Release Date | D4: Summary of Changes
B5: Movement and Places Calculator Version 1 | C5: Release 1, 11/12/2023 | D5: DRAFT for NZGBC
B6: Movement and Places Calculator Version 2 | C6: Release 2, 7/03/2024 | D6: Initial release

Sheet Emission Factors (hidden)
B1: kg CO2-e/PKT | C1: g CO2-e/PKT
A2: Car | B2: 0.265 | C2: =B2*1000 -> 265
A3: Motorcycle | B3: 0.115 | C3: =B3*1000 -> 115 | D3: >60cc only
A4: Bus | B4: 0.155 | C4: 155
A5: Tram | B5: 0 | C5: 0
A6: Train | B6: 0.019 | C6: 19
A7: Ferry | B7: 0.019 | C7: =B7*1000 -> 19
A9: Source: | B9: https://environment.govt.nz/assets/publications/Measuring-emissions-guidance-August-2022/Detailed-guide-PDF-Measuring-emissions-guidance-August-2022.pdf
A10: Source for ferry: | B10: https://www.mfe.govt.nz/sites/default/files/media/Climate%20Change/Measuring%20Emissions%20Detailed%20Guide%202020.pdf

Sheet Data (hidden)
A1: Residential | R1: Commute | AI1: Education
A2: SA2_code_res | B2: SA2_res | C2: state | D2: train | E2: bus | F2: ferry | G2: tram | H2: car | I2: car_passenger | J2: motorcycle | K2: cycling | L2: walking | M2: work_at_home | N2: distance | O2: lon | P2: lat | R2: SA2_code | S2: SA2 | T2: state | U2: train | V2: bus | W2: ferry | X2: tram | Y2: car | Z2: car_passenger | AA2: motorcycle | AB2: cycling | AC2: walking | AD2: work_at_home | AE2: distance | AF2: lon | AG2: lat | AI2: SA2_code | AJ2: SA2 | AK2: state | AL2: train | AM2: bus | AN2: ferry | AO2: tram | AP2: car | AQ2: car_passenger | AR2: motorcycle | AS2: cycling | AT2: walking | AU2: work_at_home | AV2: distance | AW2: lon | AX2: lat
A3: 100100 | B3: North Cape | C3: New Zealand | D3: 0 | E3: 0 | F3: 0 | G3: 0 | H3: 0.89 | I3: 0.03 | J3: 0.01 | K3: 0 | L3: 0.07 | M3: 0.02 | N3: 33.29 | O3: 172.929898 | P3: -34.61007635 | R3: 100100 | S3: North Cape | T3: New Zealand | U3: 0 | V3: 0 | W3: 0 | X3: 0 | Y3: 0.83 | Z3: 0.05 | AA3: 0.01 | AB3: 0 | AC3: 0.11 | AD3: 0.02 | AE3: 19.64 | AF3: 172.929898 | AG3: -34.61007635 | AI3: 100100 | AJ3: North Cape | AK3: New Zealand | AL3: 0 | AM3: 0.52 | AN3: 0 | AO3: 0 | AP3: 0 | AQ3: 0.38 | AR3: 0 | AS3: 0 | AT3: 0.1 | AU3: 0 | AV3: 16.22 | AW3: 172.929898 | AX3: -34.61007635
A4: 100200 | B4: Rangaunu Harbour | C4: New Zealand | D4: 0 | E4: 0 | F4: 0 | G4: 0 | H4: 0.92 | I4: 0.05 | J4: 0.01 | K4: 0 | L4: 0.02 | M4: 0.02 | N4: 18.37 | O4: 173.1997972 | P4: -34.96086021 | R4: 100200 | S4: Rangaunu Harbour | T4: New Zealand | U4: 0 | V4: 0 | W4: 0 | X4: 0 | Y4: 0.88 | Z4: 0.07 | AA4: 0.01 | AB4: 0 | AC4: 0.04 | AD4: 0.02 | AE4: 18.96 | AF4: 173.1997972 | AG4: -34.96086021 | AI4: 100200 | AJ4: Rangaunu Harbour | AK4: New Zealand | AL4: 0 | AM4: 0.51 | AN4: 0 | AO4: 0 | AP4: 0 | AQ4: 0.49 | AR4: 0 | AS4: 0 | AT4: 0 | AU4: 0 | AV4: 12.36 | AW4: 173.1997972 | AX4: -34.96086021
A5: 100400 | B5: Karikari Peninsula | C5: New Zealand | D5: 0 | E5: 0 | F5: 0 | G5: 0 | H5: 0.96 | I5: 0.03 | J5: 0.01 | K5: 0 | L5: 0 | M5: 0.02 | N5: 18.06 | O5: 173.3658754 | P5: -34.92885178 | R5: 100300 | S5: Inlets Far North District | T5: New Zealand | U5: 0 | V5: 0 | W5: 0 | X5: 0 | Y5: 0 | Z5: 0 | AA5: 0 | AB5: 0 | AC5: 0 | AD5: 0.02 | AE5: 0 | AF5: 173.7015399 | AG5: -35.12610467 | AI5: 100400 | AJ5: Karikari Peninsula | AK5: New Zealand | AL5: 0 | AM5: 0.73 | AN5: 0 | AO5: 0 | AP5: 0 | AQ5: 0.27 | AR5: 0 | AS5: 0 | AT5: 0 | AU5: 0 | AV5: 11.46 | AW5: 173.3658754 | AX5: -34.92885178
A6: 100500 | B6: Tangonge | C6: New Zealand | D6: 0 | E6: 0 | F6: 0 | G6: 0 | H6: 0.99 | I6: 0 | J6: 0.01 | K6: 0 | L6: 0 | M6: 0.02 | N6: 9.04 | O6: 173.1830909 | P6: -35.15504513 | R6: 100400 | S6: Karikari Peninsula | T6: New Zealand | U6: 0 | V6: 0 | W6: 0 | X6: 0 | Y6: 0.92 | Z6: 0.07 | AA6: 0.01 | AB6: 0 | AC6: 0 | AD6: 0.02 | AE6: 9.93 | AF6: 173.3658754 | AG6: -34.92885178 | AI6: 100500 | AJ6: Tangonge | AK6: New Zealand | AL6: 0 | AM6: 0.29 | AN6: 0 | AO6: 0 | AP6: 0 | AQ6: 0.61 | AR6: 0 | AS6: 0.04 | AT6: 0.06 | AU6: 0 | AV6: 6.47 | AW6: 173.1830909 | AX6: -35.15504513
A7: 100600 | B7: Ahipara | C7: New Zealand | D7: 0 | E7: 0 | F7: 0 | G7: 0 | H7: 0.97 | I7: 0.02 | J7: 0.01 | K7: 0 | L7: 0 | M7: 0.02 | N7: 10.97 | O7: 173.1520752 | P7: -35.16675416 | R7: 100500 | S7: Tangonge | T7: New Zealand | U7: 0 | V7: 0 | W7: 0 | X7: 0 | Y7: 0.99 | Z7: 0 | AA7: 0.01 | AB7: 0 | AC7: 0 | AD7: 0.02 | AE7: 9.53 | AF7: 173.1830909 | AG7: -35.15504513 | AI7: 100600 | AJ7: Ahipara | AK7: New Zealand | AL7: 0 | AM7: 0 | AN7: 0 | AO7: 0 | AP7: 0 | AQ7: 1 | AR7: 0 | AS7: 0 | AT7: 0 | AU7: 0 | AV7: 1.96 | AW7: 173.1520752 | AX7: -35.16675416
A8: 100700 | B8: Kaitaia East | C8: New Zealand | D8: 0 | E8: 0 | F8: 0 | G8: 0 | H8: 0.82 | I8: 0.07 | J8: 0.01 | K8: 0 | L8: 0.1 | M8: 0.02 | N8: 3.79 | O8: 173.264143 | P8: -35.10383477 | R8: 100600 | S8: Ahipara | T8: New Zealand | U8: 0 | V8: 0 | W8: 0 | X8: 0 | Y8: 0.99 | Z8: 0 | AA8: 0.01 | AB8: 0 | AC8: 0 | AD8: 0.02 | AE8: 1.68 | AF8: 173.1520752 | AG8: -35.16675416 | AI8: 100700 | AJ8: Kaitaia East | AK8: New Zealand | AL8: 0 | AM8: 0.34 | AN8: 0 | AO8: 0 | AP8: 0.09 | AQ8: 0.44 | AR8: 0 | AS8: 0 | AT8: 0.13 | AU8: 0 | AV8: 5.05 | AW8: 173.264143 | AX8: -35.10383477
A9: 100800 | B9: Kaitaia West | C9: New Zealand | D9: 0 | E9: 0 | F9: 0 | G9: 0 | H9: 0.86 | I9: 0.05 | J9: 0.01 | K9: 0 | L9: 0.08 | M9: 0.02 | N9: 7.87 | O9: 173.2584142 | P9: -35.11687978 | R9: 100700 | S9: Kaitaia East | T9: New Zealand | U9: 0 | V9: 0 | W9: 0 | X9: 0 | Y9: 0.91 | Z9: 0.04 | AA9: 0.01 | AB9: 0 | AC9: 0.04 | AD9: 0.02 | AE9: 12.38 | AF9: 173.264143 | AG9: -35.10383477 | AI9: 100800 | AJ9: Kaitaia West | AK9: New Zealand | AL9: 0 | AM9: 0.4 | AN9: 0 | AO9: 0 | AP9: 0.04 | AQ9: 0.4 | AR9: 0 | AS9: 0 | AT9: 0.16 | AU9: 0 | AV9: 12.77 | AW9: 173.2584142 | AX9: -35.11687978
A10: 100900 | B10: Rangitihi | C10: New Zealand | D10: 0 | E10: 0 | F10: 0 | G10: 0 | H10: 0.96 | I10: 0.03 | J10: 0.01 | K10: 0 | L10: 0 | M10: 0.02 | N10: 5.38 | O10: 173.3044665 | P10: -35.12351796 | R10: 100800 | S10: Kaitaia West | T10: New Zealand | U10: 0 | V10: 0 | W10: 0 | X10: 0 | Y10: 0.93 | Z10: 0.02 | AA10: 0.01 | AB10: 0 | AC10: 0.04 | AD10: 0.02 | AE10: 13.01 | AF10: 173.2584142 | AG10: -35.11687978 | AI10: 100900 | AJ10: Rangitihi | AK10: New Zealand | AL10: 0 | AM10: 0.82 | AN10: 0 | AO10: 0 | AP10: 0 | AQ10: 0.18 | AR10: 0 | AS10: 0 | AT10: 0 | AU10: 0 | AV10: 7.68 | AW10: 173.3044665 | AX10: -35.12351796
A11: 101000 | B11: Oruru-Parapara | C11: New Zealand | D11: 0 | E11: 0 | F11: 0 | G11: 0 | H11: 0.99 | I11: 0 | J11: 0.01 | K11: 0 | L11: 0 | M11: 0.02 | N11: 10.99 | O11: 173.4612713 | P11: -35.03330752 | R11: 100900 | S11: Rangitihi | T11: New Zealand | U11: 0 | V11: 0 | W11: 0 | X11: 0 | Y11: 0.99 | Z11: 0 | AA11: 0.01 | AB11: 0 | AC11: 0 | AD11: 0.02 | AE11: 11.02 | AF11: 173.3044665 | AG11: -35.12351796 | AI11: 101000 | AJ11: Oruru-Parapara | AK11: New Zealand | AL11: 0 | AM11: 0 | AN11: 0 | AO11: 0 | AP11: 0 | AQ11: 0 | AR11: 0 | AS11: 0 | AT11: 0 | AU11: 0 | AV11: 0 | AW11: 173.4612713 | AX11: -35.03330752
A12: 101100 | B12: Taumarumaru | C12: New Zealand | D12: 0 | E12: 0 | F12: 0 | G12: 0 | H12: 0.88 | I12: 0.05 | J12: 0.01 | K12: 0 | L12: 0.06 | M12: 0.02 | N12: 13.57 | O12: 173.507744 | P12: -34.99672682 | R12: 101000 | S12: Oruru-Parapara | T12: New Zealand | U12: 0 | V12: 0 | W12: 0 | X12: 0 | Y12: 0.99 | Z12: 0 | AA12: 0.01 | AB12: 0 | AC12: 0 | AD12: 0.02 | AE12: 8.5 | AF12: 173.4612713 | AG12: -35.03330752 | AI12: 101100 | AJ12: Taumarumaru | AK12: New Zealand | AL12: 0 | AM12: 0.5 | AN12: 0 | AO12: 0 | AP12: 0 | AQ12: 0.43 | AR12: 0 | AS12: 0 | AT12: 0.07 | AU12: 0 | AV12: 5.78 | AW12: 173.507744 | AX12: -34.99672682
A13: 101200 | B13: Herekino-Takahue | C13: New Zealand | D13: 0 | E13: 0 | F13: 0 | G13: 0 | H13: 0.95 | I13: 0.04 | J13: 0.01 | K13: 0 | L13: 0 | M13: 0.02 | N13: 14.43 | O13: 173.2778455 | P13: -35.23343366 | R13: 101100 | S13: Taumarumaru | T13: New Zealand | U13: 0 | V13: 0 | W13: 0 | X13: 0 | Y13: 0.88 | Z13: 0.06 | AA13: 0.01 | AB13: 0 | AC13: 0.05 | AD13: 0.02 | AE13: 6.07 | AF13: 173.507744 | AG13: -34.99672682 | AI13: 101200 | AJ13: Herekino-Takahue | AK13: New Zealand | AL13: 0 | AM13: 1 | AN13: 0 | AO13: 0 | AP13: 0 | AQ13: 0 | AR13: 0 | AS13: 0 | AT13: 0 | AU13: 0 | AV13: 9.83 | AW13: 173.2778455 | AX13: -35.23343366
A14: 101300 | B14: Peria | C14: New Zealand | D14: 0 | E14: 0 | F14: 0 | G14: 0 | H14: 0.99 | I14: 0 | J14: 0.01 | K14: 0 | L14: 0 | M14: 0.02 | N14: 16.68 | O14: 173.4437449 | P14: -35.11088648 | R14: 101200 | S14: Herekino-Takahue | T14: New Zealand | U14: 0 | V14: 0 | W14: 0 | X14: 0 | Y14: 0.99 | Z14: 0 | AA14: 0.01 | AB14: 0 | AC14: 0 | AD14: 0.02 | AE14: 9.83 | AF14: 173.2778455 | AG14: -35.23343366 | AI14: 101300 | AJ14: Peria | AK14: New Zealand | AL14: 0 | AM14: 1 | AN14: 0 | AO14: 0 | AP14: 0 | AQ14: 0 | AR14: 0 | AS14: 0 | AT14: 0 | AU14: 0 | AV14: 7.97 | AW14: 173.4437449 | AX14: -35.11088648
A15: 101400 | B15: Taemaro-Oruaiti | C15: New Zealand | D15: 0 | E15: 0 | F15: 0 | G15: 0 | H15: 0.92 | I15: 0.07 | J15: 0.01 | K15: 0 | L15: 0 | M15: 0.02 | N15: 15.79 | O15: 173.5773731 | P15: -35.01818965 | R15: 101300 | S15: Peria | T15: New Zealand | U15: 0 | V15: 0 | W15: 0 | X15: 0 | Y15: 0 | Z15: 0 | AA15: 0 | AB15: 0 | AC15: 0 | AD15: 0.02 | AE15: 0 | AF15: 173.4437449 | AG15: -35.11088648 | AI15: 101400 | AJ15: Taemaro-Oruaiti | AK15: New Zealand | AL15: 0 | AM15: 0.85 | AN15: 0 | AO15: 0 | AP15: 0 | AQ15: 0.15 | AR15: 0 | AS15: 0 | AT15: 0 | AU15: 0 | AV15: 7.82 | AW15: 173.5773731 | AX15: -35.01818965
A16: 101500 | B16: Whakapaku | C16: New Zealand | D16: 0 | E16: 0 | F16: 0 | G16: 0 | H16: 0.99 | I16: 0 | J16: 0.01 | K16: 0 | L16: 0 | M16: 0.02 | N16: 17.83 | O16: 173.6578796 | P16: -35.06147153 | R16: 101400 | S16: Taemaro-Oruaiti | T16: New Zealand | U16: 0 | V16: 0 | W16: 0 | X16: 0 | Y16: 0 | Z16: 0 | AA16: 0 | AB16: 0 | AC16: 0 | AD16: 0.02 | AE16: 0 | AF16: 173.5773731 | AG16: -35.01818965 | AI16: 101500 | AJ16: Whakapaku | AK16: New Zealand | AL16: 0 | AM16: 0.42 | AN16: 0 | AO16: 0 | AP16: 0 | AQ16: 0.58 | AR16: 0 | AS16: 0 | AT16: 0 | AU16: 0 | AV16: 10.85 | AW16: 173.6578796 | AX16: -35.06147153
A17: 101600 | B17: Hokianga North | C17: New Zealand | D17: 0 | E17: 0 | F17: 0 | G17: 0 | H17: 0.99 | I17: 0 | J17: 0.01 | K17: 0 | L17: 0 | M17: 0.02 | N17: 18.05 | O17: 173.3384089 | P17: -35.3685101 | R17: 101500 | S17: Whakapaku | T17: New Zealand | U17: 0 | V17: 0 | W17: 0 | X17: 0 | Y17: 0.99 | Z17: 0 | AA17: 0.01 | AB17: 0 | AC17: 0 | AD17: 0.02 | AE17: 11.38 | AF17: 173.6578796 | AG17: -35.06147153 | AI17: 101600 | AJ17: Hokianga North | AK17: New Zealand | AL17: 0 | AM17: 0.83 | AN17: 0 | AO17: 0 | AP17: 0 | AQ17: 0.17 | AR17: 0 | AS17: 0 | AT17: 0 | AU17: 0 | AV17: 10.49 | AW17: 173.3384089 | AX17: -35.3685101
A18: 101700 | B18: Kohukohu-Broadwood | C18: New Zealand | D18: 0 | E18: 0 | F18: 0 | G18: 0 | H18: 0.99 | I18: 0 | J18: 0.01 | K18: 0 | L18: 0 | M18: 0.02 | N18: 17.17 | O18: 173.4636419 | P18: -35.29007937 | R18: 101600 | S18: Hokianga North | T18: New Zealand | U18: 0 | V18: 0 | W18: 0 | X18: 0 | Y18: 0.99 | Z18: 0 | AA18: 0.01 | AB18: 0 | AC18: 0 | AD18: 0.02 | AE18: 10.49 | AF18: 173.3384089 | AG18: -35.3685101 | AI18: 101700 | AJ18: Kohukohu-Broadwood | AK18: New Zealand | AL18: 0 | AM18: 0.73 | AN18: 0 | AO18: 0 | AP18: 0 | AQ18: 0.16 | AR18: 0 | AS18: 0 | AT18: 0.11 | AU18: 0 | AV18: 10.11 | AW18: 173.4636419 | AX18: -35.29007937
A19: 101800 | B19: Whakarara | C19: New Zealand | D19: 0 | E19: 0 | F19: 0 | G19: 0 | H19: 0.96 | I19: 0 | J19: 0.01 | K19: 0 | L19: 0.03 | M19: 0.02 | N19: 15.22 | O19: 173.8523911 | P19: -35.06087413 | R19: 101700 | S19: Kohukohu-Broadwood | T19: New Zealand | U19: 0 | V19: 0 | W19: 0 | X19: 0 | Y19: 0.99 | Z19: 0 | AA19: 0.01 | AB19: 0 | AC19: 0 | AD19: 0.02 | AE19: 8.16 | AF19: 173.4636419 | AG19: -35.29007937 | AI19: 101800 | AJ19: Whakarara | AK19: New Zealand | AL19: 0 | AM19: 0.46 | AN19: 0 | AO19: 0 | AP19: 0 | AQ19: 0.23 | AR19: 0 | AS19: 0 | AT19: 0.31 | AU19: 0 | AV19: 7.35 | AW19: 173.8523911 | AX19: -35.06087413
A20: 101900 | B20: Kaeo | C20: New Zealand | D20: 0 | E20: 0 | F20: 0 | G20: 0 | H20: 0.94 | I20: 0.05 | J20: 0.01 | K20: 0 | L20: 0 | M20: 0.02 | N20: 15 | O20: 173.7433197 | P20: -35.15410315 | R20: 101800 | S20: Whakarara | T20: New Zealand | U20: 0 | V20: 0 | W20: 0 | X20: 0 | Y20: 0.93 | Z20: 0 | AA20: 0.01 | AB20: 0 | AC20: 0.06 | AD20: 0.02 | AE20: 10.7 | AF20: 173.8523911 | AG20: -35.06087413 | AI20: 101900 | AJ20: Kaeo | AK20: New Zealand | AL20: 0 | AM20: 0.79 | AN20: 0 | AO20: 0 | AP20: 0 | AQ20: 0.21 | AR20: 0 | AS20: 0 | AT20: 0 | AU20: 0 | AV20: 12.14 | AW20: 173.7433197 | AX20: -35.15410315
A21: 102000 | B21: Omahuta Forest-Horeke | C21: New Zealand | D21: 0 | E21: 0 | F21: 0 | G21: 0 | H21: 0.99 | I21: 0 | J21: 0.01 | K21: 0 | L21: 0 | M21: 0.02 | N21: 22.13 | O21: 173.6177806 | P21: -35.28838298 | R21: 101900 | S21: Kaeo | T21: New Zealand | U21: 0 | V21: 0 | W21: 0 | X21: 0 | Y21: 0.91 | Z21: 0.08 | AA21: 0.01 | AB21: 0 | AC21: 0 | AD21: 0.02 | AE21: 10.27 | AF21: 173.7433197 | AG21: -35.15410315 | AI21: 102000 | AJ21: Omahuta Forest-Horeke | AK21: New Zealand | AL21: 0 | AM21: 0.67 | AN21: 0 | AO21: 0 | AP21: 0 | AQ21: 0.33 | AR21: 0 | AS21: 0 | AT21: 0 | AU21: 0 | AV21: 12.15 | AW21: 173.6177806 | AX21: -35.28838298
A22: 102100 | B22: Hokianga South | C22: New Zealand | D22: 0 | E22: 0 | F22: 0 | G22: 0 | H22: 0.88 | I22: 0 | J22: 0.01 | K22: 0 | L22: 0.11 | M22: 0.02 | N22: 12.34 | O22: 173.484387 | P22: -35.46801387 | R22: 102000 | S22: Omahuta Forest-Horeke | T22: New Zealand | U22: 0 | V22: 0 | W22: 0 | X22: 0 | Y22: 0.99 | Z22: 0 | AA22: 0.01 | AB22: 0 | AC22: 0 | AD22: 0.02 | AE22: 12.15 | AF22: 173.6177806 | AG22: -35.28838298 | AI22: 102100 | AJ22: Hokianga South | AK22: New Zealand | AL22: 0 | AM22: 0.39 | AN22: 0 | AO22: 0 | AP22: 0 | AQ22: 0.33 | AR22: 0 | AS22: 0 | AT22: 0.28 | AU22: 0 | AV22: 8.13 | AW22: 173.484387 | AX22: -35.46801387
A23: 102200 | B23: Lake Manuwai-Kapiro | C23: New Zealand | D23: 0 | E23: 0 | F23: 0 | G23: 0 | H23: 0.95 | I23: 0.02 | J23: 0.01 | K23: 0 | L23: 0.02 | M23: 0.02 | N23: 8.88 | O23: 173.8903475 | P23: -35.17898315 | R23: 102100 | S23: Hokianga South | T23: New Zealand | U23: 0 | V23: 0 | W23: 0 | X23: 0 | Y23: 0.9 | Z23: 0 | AA23: 0.01 | AB23: 0 | AC23: 0.09 | AD23: 0.02 | AE23: 11.04 | AF23: 173.484387 | AG23: -35.46801387 | AI23: 102200 | AJ23: Lake Manuwai-Kapiro | AK23: New Zealand | AL23: 0 | AM23: 0 | AN23: 0 | AO23: 0 | AP23: 0 | AQ23: 1 | AR23: 0 | AS23: 0 | AT23: 0 | AU23: 0 | AV23: 6.92 | AW23: 173.8903475 | AX23: -35.17898315
A24: 102300 | B24: Okaihau | C24: New Zealand | D24: 0 | E24: 0 | F24: 0 | G24: 0 | H24: 0.93 | I24: 0 | J24: 0.01 | K24: 0 | L24: 0.06 | M24: 0.02 | N24: 14.09 | O24: 173.7908155 | P24: -35.28661159 | R24: 102200 | S24: Lake Manuwai-Kapiro | T24: New Zealand | U24: 0 | V24: 0 | W24: 0 | X24: 0 | Y24: 0.94 | Z24: 0.02 | AA24: 0.01 | AB24: 0 | AC24: 0.03 | AD24: 0.02 | AE24: 10.1 | AF24: 173.8903475 | AG24: -35.17898315 | AI24: 102300 | AJ24: Okaihau | AK24: New Zealand | AL24: 0 | AM24: 0.73 | AN24: 0 | AO24: 0 | AP24: 0 | AQ24: 0.19 | AR24: 0 | AS24: 0 | AT24: 0.08 | AU24: 0 | AV24: 12.35 | AW24: 173.7908155 | AX24: -35.28661159
A25: 102400 | B25: Rangitane-Purerua | C25: New Zealand | D25: 0 | E25: 0 | F25: 0 | G25: 0 | H25: 0.99 | I25: 0 | J25: 0.01 | K25: 0 | L25: 0 | M25: 0.02 | N25: 11.49 | O25: 173.9940119 | P25: -35.14647726 | R25: 102300 | S25: Okaihau | T25: New Zealand | U25: 0 | V25: 0 | W25: 0 | X25: 0 | Y25: 0.81 | Z25: 0 | AA25: 0.01 | AB25: 0 | AC25: 0.18 | AD25: 0.02 | AE25: 9.8 | AF25: 173.7908155 | AG25: -35.28661159 | AI25: 102400 | AJ25: Rangitane-Purerua | AK25: New Zealand | AL25: 0 | AM25: 0.56 | AN25: 0 | AO25: 0 | AP25: 0 | AQ25: 0.44 | AR25: 0 | AS25: 0 | AT25: 0 | AU25: 0 | AV25: 8.27 | AW25: 173.9940119 | AX25: -35.14647726
A26: 102500 | B26: Waipapa | C26: New Zealand | D26: 0 | E26: 0 | F26: 0 | G26: 0 | H26: 0.94 | I26: 0.05 | J26: 0.01 | K26: 0 | L26: 0 | M26: 0.02 | N26: 5.11 | O26: 173.9158678 | P26: -35.20454373 | R26: 102400 | S26: Rangitane-Purerua | T26: New Zealand | U26: 0 | V26: 0 | W26: 0 | X26: 0 | Y26: 0.99 | Z26: 0 | AA26: 0.01 | AB26: 0 | AC26: 0 | AD26: 0.02 | AE26: 7.97 | AF26: 173.9940119 | AG26: -35.14647726 | AI26: 102500 | AJ26: Waipapa | AK26: New Zealand | AL26: 0 | AM26: 0 | AN26: 0 | AO26: 0 | AP26: 0 | AQ26: 0 | AR26: 0 | AS26: 0 | AT26: 0 | AU26: 0 | AV26: 0 | AW26: 173.9158678 | AX26: -35.20454373
A27: 102600 | B27: Puketotara | C27: New Zealand | D27: 0 | E27: 0 | F27: 0 | G27: 0 | H27: 0.92 | I27: 0.03 | J27: 0.01 | K27: 0 | L27: 0.04 | M27: 0.02 | N27: 7.06 | O27: 173.9033075 | P27: -35.2517628 | R27: 102500 | S27: Waipapa | T27: New Zealand | U27: 0 | V27: 0 | W27: 0 | X27: 0 | Y27: 0.99 | Z27: 0 | AA27: 0.01 | AB27: 0 | AC27: 0 | AD27: 0.02 | AE27: 10.7 | AF27: 173.9158678 | AG27: -35.20454373 | AI27: 102600 | AJ27: Puketotara | AK27: New Zealand | AL27: 0 | AM27: 0.03 | AN27: 0 | AO27: 0 | AP27: 0 | AQ27: 0.97 | AR27: 0 | AS27: 0 | AT27: 0 | AU27: 0 | AV27: 15.08 | AW27: 173.9033075 | AX27: -35.2517628
A28: 102700 | B28: Waima Forest | C28: New Zealand | D28: 0 | E28: 0 | F28: 0 | G28: 0 | H28: 0.99 | I28: 0 | J28: 0.01 | K28: 0 | L28: 0 | M28: 0.02 | N28: 22.26 | O28: 173.6295263 | P28: -35.48716638 | R28: 102600 | S28: Puketotara | T28: New Zealand | U28: 0 | V28: 0 | W28: 0 | X28: 0 | Y28: 0.94 | Z28: 0 | AA28: 0.01 | AB28: 0 | AC28: 0.05 | AD28: 0.02 | AE28: 9.72 | AF28: 173.9033075 | AG28: -35.2517628 | AI28: 102700 | AJ28: Waima Forest | AK28: New Zealand | AL28: 0 | AM28: 0 | AN28: 0 | AO28: 0 | AP28: 0 | AQ28: 0 | AR28: 0 | AS28: 0 | AT28: 0 | AU28: 0 | AV28: 0 | AW28: 173.6295263 | AX28: -35.48716638
A29: 102800 | B29: Riverview | C29: New Zealand | D29: 0 | E29: 0 | F29: 0 | G29: 0 | H29: 0.95 | I29: 0.02 | J29: 0.01 | K29: 0 | L29: 0.02 | M29: 0.02 | N29: 5.55 | O29: 173.9624342 | P29: -35.20805962 | R29: 102700 | S29: Waima Forest | T29: New Zealand | U29: 0 | V29: 0 | W29: 0 | X29: 0 | Y29: 0.99 | Z29: 0 | AA29: 0.01 | AB29: 0 | AC29: 0 | AD29: 0.02 | AE29: 8.69 | AF29: 173.6295263 | AG29: -35.48716638 | AI29: 102800 | AJ29: Riverview | AK29: New Zealand | AL29: 0 | AM29: 0.26 | AN29: 0 | AO29: 0 | AP29: 0 | AQ29: 0.63 | AR29: 0 | AS29: 0.03 | AT29: 0.08 | AU29: 0 | AV29: 4.86 | AW29: 173.9624342 | AX29: -35.20805962
A30: 102900 | B30: Waipoua Forest | C30: New Zealand | D30: 0 | E30: 0 | F30: 0 | G30: 0 | H30: 0.89 | I30: 0.05 | J30: 0.01 | K30: 0 | L30: 0.05 | M30: 0.02 | N30: 12.88 | O30: 173.511349 | P30: -35.58128435 | R30: 102800 | S30: Riverview | T30: New Zealand | U30: 0 | V30: 0 | W30: 0 | X30: 0 | Y30: 0.99 | Z30: 0 | AA30: 0.01 | AB30: 0 | AC30: 0 | AD30: 0.02 | AE30: 7.14 | AF30: 173.9624342 | AG30: -35.20805962 | AI30: 102900 | AJ30: Waipoua Forest | AK30: New Zealand | AL30: 0 | AM30: 0.71 | AN30: 0 | AO30: 0 | AP30: 0 | AQ30: 0.29 | AR30: 0 | AS30: 0 | AT30: 0 | AU30: 0 | AV30: 10 | AW30: 173.511349 | AX30: -35.58128435
A31: 103000 | B31: Kerikeri Central | C31: New Zealand | D31: 0 | E31: 0 | F31: 0 | G31: 0 | H31: 0.8 | I31: 0.02 | J31: 0.01 | K31: 0 | L31: 0.17 | M31: 0.02 | N31: 4.41 | O31: 173.950963 | P31: -35.22507309 | R31: 102900 | S31: Waipoua Forest | T31: New Zealand | U31: 0 | V31: 0 | W31: 0 | X31: 0 | Y31: 0.87 | Z31: 0.06 | AA31: 0.01 | AB31: 0 | AC31: 0.06 | AD31: 0.02 | AE31: 9.98 | AF31: 173.511349 | AG31: -35.58128435 | AI31: 103000 | AJ31: Kerikeri Central | AK31: New Zealand | AL31: 0 | AM31: 0.39 | AN31: 0 | AO31: 0 | AP31: 0.02 | AQ31: 0.47 | AR31: 0 | AS31: 0.03 | AT31: 0.09 | AU31: 0 | AV31: 6.33 | AW31: 173.950963 | AX31: -35.22507309
A32: 103100 | B32: Kerikeri South | C32: New Zealand | D32: 0 | E32: 0 | F32: 0 | G32: 0 | H32: 0.9 | I32: 0.03 | J32: 0.01 | K32: 0.01 | L32: 0.05 | M32: 0.02 | N32: 5.52 | O32: 173.9585462 | P32: -35.23951186 | R32: 103000 | S32: Kerikeri Central | T32: New Zealand | U32: 0 | V32: 0 | W32: 0 | X32: 0 | Y32: 0.91 | Z32: 0.03 | AA32: 0.01 | AB32: 0 | AC32: 0.05 | AD32: 0.02 | AE32: 9.31 | AF32: 173.950963 | AG32: -35.22507309 | AI32: 103100 | AJ32: Kerikeri South | AK32: New Zealand | AL32: 0 | AM32: 0 | AN32: 0 | AO32: 0 | AP32: 0 | AQ32: 0 | AR32: 0 | AS32: 0 | AT32: 0 | AU32: 0 | AV32: 0 | AW32: 173.9585462 | AX32: -35.23951186
A33: 103200 | B33: Ohaeawai-Waimate North | C33: New Zealand | D33: 0 | E33: 0 | F33: 0 | G33: 0 | H33: 0.99 | I33: 0 | J33: 0.01 | K33: 0 | L33: 0 | M33: 0.02 | N33: 13.19 | O33: 173.8599237 | P33: -35.33520904 | R33: 103100 | S33: Kerikeri South | T33: New Zealand | U33: 0 | V33: 0 | W33: 0 | X33: 0 | Y33: 0.92 | Z33: 0.02 | AA33: 0.01 | AB33: 0 | AC33: 0.05 | AD33: 0.02 | AE33: 7.14 | AF33: 173.9585462 | AG33: -35.23951186 | AI33: 103200 | AJ33: Ohaeawai-Waimate North | AK33: New Zealand | AL33: 0 | AM33: 0.16 | AN33: 0 | AO33: 0 | AP33: 0 | AQ33: 0.84 | AR33: 0 | AS33: 0 | AT33: 0 | AU33: 0 | AV33: 10.36 | AW33: 173.8599237 | AX33: -35.33520904
A34: 103300 | B34: Puketona-Waitangi | C34: New Zealand | D34: 0 | E34: 0 | F34: 0 | G34: 0 | H34: 0.93 | I34: 0.02 | J34: 0.01 | K34: 0 | L34: 0.04 | M34: 0.02 | N34: 9.86 | O34: 174.0019489 | P34: -35.27910182 | R34: 103200 | S34: Ohaeawai-Waimate North | T34: New Zealand | U34: 0 | V34: 0 | W34: 0 | X34: 0 | Y34: 0.99 | Z34: 0 | AA34: 0.01 | AB34: 0 | AC34: 0 | AD34: 0.02 | AE34: 7.46 | AF34: 173.8599237 | AG34: -35.33520904 | AI34: 103300 | AJ34: Puketona-Waitangi | AK34: New Zealand | AL34: 0 | AM34: 0 | AN34: 0 | AO34: 0 | AP34: 0 | AQ34: 1 | AR34: 0 | AS34: 0 | AT34: 0 | AU34: 0 | AV34: 9.43 | AW34: 174.0019489 | AX34: -35.27910182
A35: 103400 | B35: Ngapuhi | C35: New Zealand | D35: 0 | E35: 0 | F35: 0 | G35: 0 | H35: 0.93 | I35: 0.06 | J35: 0.01 | K35: 0 | L35: 0 | M35: 0.02 | N35: 10.94 | O35: 173.8107864 | P35: -35.41959762 | R35: 103300 | S35: Puketona-Waitangi | T35: New Zealand | U35: 0 | V35: 0 | W35: 0 | X35: 0 | Y35: 0.9 | Z35: 0 | AA35: 0.01 | AB35: 0 | AC35: 0.09 | AD35: 0.02 | AE35: 10.44 | AF35: 174.0019489 | AG35: -35.27910182 | AI35: 103400 | AJ35: Ngapuhi | AK35: New Zealand | AL35: 0 | AM35: 0 | AN35: 0 | AO35: 0 | AP35: 0 | AQ35: 0 | AR35: 0 | AS35: 0 | AT35: 0 | AU35: 0 | AV35: 0 | AW35: 173.8107864 | AX35: -35.41959762
A36: 103500 | B36: Kaikohe | C36: New Zealand | D36: 0 | E36: 0 | F36: 0 | G36: 0 | H36: 0.85 | I36: 0.04 | J36: 0.01 | K36: 0 | L36: 0.1 | M36: 0.02 | N36: 10.16 | O36: 173.7976752 | P36: -35.40792422 | R36: 103400 | S36: Ngapuhi | T36: New Zealand | U36: 0 | V36: 0 | W36: 0 | X36: 0 | Y36: 0.99 | Z36: 0 | AA36: 0.01 | AB36: 0 | AC36: 0 | AD36: 0.02 | AE36: 13.54 | AF36: 173.8107864 | AG36: -35.41959762 | AI36: 103500 | AJ36: Kaikohe | AK36: New Zealand | AL36: 0 | AM36: 0.16 | AN36: 0 | AO36: 0 | AP36: 0.06 | AQ36: 0.45 | AR36: 0 | AS36: 0 | AT36: 0.33 | AU36: 0 | AV36: 3.85 | AW36: 173.7976752 | AX36: -35.40792422
A37: 103600 | B37: Pakaraka | C37: New Zealand | D37: 0 | E37: 0 | F37: 0 | G37: 0 | H37: 0.99 | I37: 0 | J37: 0.01 | K37: 0 | L37: 0 | M37: 0.02 | N37: 13.14 | O37: 173.98171 | P37: -35.35446636 | R37: 103500 | S37: Kaikohe | T37: New Zealand | U37: 0 | V37: 0 | W37: 0 | X37: 0 | Y37: 0.9 | Z37: 0.03 | AA37: 0.01 | AB37: 0 | AC37: 0.06 | AD37: 0.02 | AE37: 13.09 | AF37: 173.7976752 | AG37: -35.40792422 | AI37: 103600 | AJ37: Pakaraka | AK37: New Zealand | AL37: 0 | AM37: 1 | AN37: 0 | AO37: 0 | AP37: 0 | AQ37: 0 | AR37: 0 | AS37: 0 | AT37: 0 | AU37: 0 | AV37: 7.35 | AW37: 173.98171 | AX37: -35.35446636
A38: 103700 | B38: Haruru | C38: New Zealand | D38: 0 | E38: 0 | F38: 0 | G38: 0 | H38: 0.95 | I38: 0.04 | J38: 0.01 | K38: 0 | L38: 0 | M38: 0.02 | N38: 7.83 | O38: 174.0544334 | P38: -35.27961525 | R38: 103600 | S38: Pakaraka | T38: New Zealand | U38: 0 | V38: 0 | W38: 0 | X38: 0 | Y38: 0.99 | Z38: 0 | AA38: 0.01 | AB38: 0 | AC38: 0 | AD38: 0.02 | AE38: 4.8 | AF38: 173.98171 | AG38: -35.35446636 | AI38: 103700 | AJ38: Haruru | AK38: New Zealand | AL38: 0 | AM38: 0 | AN38: 0 | AO38: 0 | AP38: 0 | AQ38: 0 | AR38: 0 | AS38: 0 | AT38: 0 | AU38: 0 | AV38: 0 | AW38: 174.0544334 | AX38: -35.27961525
A39: 103800 | B39: Russell | C39: New Zealand | D39: 0 | E39: 0 | F39: 0 | G39: 0 | H39: 0.66 | I39: 0.04 | J39: 0.01 | K39: 0 | L39: 0.29 | M39: 0.02 | N39: 1.48 | O39: 174.1244661 | P39: -35.25653762 | R39: 103700 | S39: Haruru | T39: New Zealand | U39: 0 | V39: 0 | W39: 0 | X39: 0 | Y39: 0.99 | Z39: 0 | AA39: 0.01 | AB39: 0 | AC39: 0 | AD39: 0.02 | AE39: 5.61 | AF39: 174.0544334 | AG39: -35.27961525 | AI39: 103800 | AJ39: Russell | AK39: New Zealand | AL39: 0 | AM39: 0.3 | AN39: 0 | AO39: 0 | AP39: 0 | AQ39: 0.4 | AR39: 0 | AS39: 0 | AT39: 0.3 | AU39: 0 | AV39: 3.95 | AW39: 174.1244661 | AX39: -35.25653762
A40: 103900 | B40: Paihia | C40: New Zealand | D40: 0 | E40: 0 | F40: 0 | G40: 0 | H40: 0.67 | I40: 0 | J40: 0.01 | K40: 0 | L40: 0.32 | M40: 0.02 | N40: 5.28 | O40: 174.0866639 | P40: -35.28330128 | R40: 103800 | S40: Russell | T40: New Zealand | U40: 0 | V40: 0 | W40: 0 | X40: 0 | Y40: 0.74 | Z40: 0.03 | AA40: 0.01 | AB40: 0 | AC40: 0.22 | AD40: 0.02 | AE40: 3.36 | AF40: 174.1244661 | AG40: -35.25653762 | AI40: 103900 | AJ40: Paihia | AK40: New Zealand | AL40: 0 | AM40: 0.39 | AN40: 0 | AO40: 0 | AP40: 0 | AQ40: 0.47 | AR40: 0 | AS40: 0 | AT40: 0.14 | AU40: 0 | AV40: 2.3 | AW40: 174.0866639 | AX40: -35.28330128
A41: 104000 | B41: Mataraua Forest | C41: New Zealand | D41: 0 | E41: 0 | F41: 0 | G41: 0 | H41: 0.99 | I41: 0 | J41: 0.01 | K41: 0 | L41: 0 | M41: 0.02 | N41: 13.08 | O41: 173.8053652 | P41: -35.54715526 | R41: 103900 | S41: Paihia | T41: New Zealand | U41: 0 | V41: 0 | W41: 0 | X41: 0 | Y41: 0.82 | Z41: 0.01 | AA41: 0.01 | AB41: 0 | AC41: 0.16 | AD41: 0.02 | AE41: 6.94 | AF41: 174.0866639 | AG41: -35.28330128 | AI41: 104000 | AJ41: Mataraua Forest | AK41: New Zealand | AL41: 0 | AM41: 1 | AN41: 0 | AO41: 0 | AP41: 0 | AQ41: 0 | AR41: 0 | AS41: 0 | AT41: 0 | AU41: 0 | AV41: 11.78 | AW41: 173.8053652 | AX41: -35.54715526
A42: 104100 | B42: Matawaia-Taumarere | C42: New Zealand | D42: 0 | E42: 0 | F42: 0 | G42: 0 | H42: 0.96 | I42: 0.03 | J42: 0.01 | K42: 0 | L42: 0 | M42: 0.02 | N42: 14.64 | O42: 174.0035121 | P42: -35.46063564 | R42: 104000 | S42: Mataraua Forest | T42: New Zealand | U42: 0 | V42: 0 | W42: 0 | X42: 0 | Y42: 0.99 | Z42: 0 | AA42: 0.01 | AB42: 0 | AC42: 0 | AD42: 0.02 | AE42: 9.32 | AF42: 173.8053652 | AG42: -35.54715526 | AI42: 104100 | AJ42: Matawaia-Taumarere | AK42: New Zealand | AL42: 0 | AM42: 0 | AN42: 0 | AO42: 0 | AP42: 0 | AQ42: 1 | AR42: 0 | AS42: 0 | AT42: 0 | AU42: 0 | AV42: 26.3 | AW42: 174.0035121 | AX42: -35.46063564
A43: 104200 | B43: Russell Peninsula | C43: New Zealand | D43: 0 | E43: 0 | F43: 0 | G43: 0 | H43: 0.99 | I43: 0 | J43: 0.01 | K43: 0 | L43: 0 | M43: 0.02 | N43: 4.81 | O43: 174.1620881 | P43: -35.28676755 | R43: 104100 | S43: Matawaia-Taumarere | T43: New Zealand | U43: 0 | V43: 0 | W43: 0 | X43: 0 | Y43: 0.99 | Z43: 0 | AA43: 0.01 | AB43: 0 | AC43: 0 | AD43: 0.02 | AE43: 11.19 | AF43: 174.0035121 | AG43: -35.46063564 | AI43: 104200 | AJ43: Russell Peninsula | AK43: New Zealand | AL43: 0 | AM43: 0 | AN43: 0 | AO43: 0 | AP43: 0 | AQ43: 0 | AR43: 0 | AS43: 0 | AT43: 0 | AU43: 0 | AV43: 0 | AW43: 174.1620881 | AX43: -35.28676755
A44: 104300 | B44: Opua (Far North District) | C44: New Zealand | D44: 0 | E44: 0 | F44: 0 | G44: 0 | H44: 0.97 | I44: 0 | J44: 0.01 | K44: 0 | L44: 0.02 | M44: 0.02 | N44: 8.05 | O44: 174.102073 | P44: -35.30876255 | R44: 104200 | S44: Russell Peninsula | T44: New Zealand | U44: 0 | V44: 0 | W44: 0 | X44: 0 | Y44: 0.99 | Z44: 0 | AA44: 0.01 | AB44: 0 | AC44: 0 | AD44: 0.02 | AE44: 3.98 | AF44: 174.1620881 | AG44: -35.28676755 | AI44: 104300 | AJ44: Opua (Far North District) | AK44: New Zealand | AL44: 0 | AM44: 0 | AN44: 0 | AO44: 0 | AP44: 0 | AQ44: 1 | AR44: 0 | AS44: 0 | AT44: 0 | AU44: 0 | AV44: 6.06 | AW44: 174.102073 | AX44: -35.30876255
A45: 104400 | B45: Russell Forest-Rawhiti | C45: New Zealand | D45: 0 | E45: 0 | F45: 0 | G45: 0 | H45: 0.99 | I45: 0 | J45: 0.01 | K45: 0 | L45: 0 | M45: 0.02 | N45: 13.37 | O45: 174.2322094 | P45: -35.315317 | R45: 104300 | S45: Opua (Far North District) | T45: New Zealand | U45: 0 | V45: 0 | W45: 0 | X45: 0 | Y45: 0.99 | Z45: 0 | AA45: 0.01 | AB45: 0 | AC45: 0 | AD45: 0.02 | AE45: 7.25 | AF45: 174.102073 | AG45: -35.30876255 | AI45: 104400 | AJ45: Russell Forest-Rawhiti | AK45: New Zealand | AL45: 0 | AM45: 0.71 | AN45: 0 | AO45: 0 | AP45: 0 | AQ45: 0.29 | AR45: 0 | AS45: 0 | AT45: 0 | AU45: 0 | AV45: 17.76 | AW45: 174.2322094 | AX45: -35.315317
A46: 104500 | B46: Moerewa | C46: New Zealand | D46: 0 | E46: 0 | F46: 0 | G46: 0 | H46: 0.85 | I46: 0.07 | J46: 0.01 | K46: 0 | L46: 0.07 | M46: 0.02 | N46: 8.14 | O46: 174.0224323 | P46: -35.38553342 | R46: 104400 | S46: Russell Forest-Rawhiti | T46: New Zealand | U46: 0 | V46: 0 | W46: 0 | X46: 0 | Y46: 0.99 | Z46: 0 | AA46: 0.01 | AB46: 0 | AC46: 0 | AD46: 0.02 | AE46: 7.8 | AF46: 174.2322094 | AG46: -35.315317 | AI46: 104500 | AJ46: Moerewa | AK46: New Zealand | AL46: 0 | AM46: 0.23 | AN46: 0 | AO46: 0 | AP46: 0 | AQ46: 0.45 | AR46: 0 | AS46: 0 | AT46: 0.32 | AU46: 0 | AV46: 2.64 | AW46: 174.0224323 | AX46: -35.38553342
A47: 104600 | B47: Kawakawa | C47: New Zealand | D47: 0 | E47: 0 | F47: 0 | G47: 0 | H47: 0.85 | I47: 0.03 | J47: 0.01 | K47: 0 | L47: 0.11 | M47: 0.02 | N47: 9.22 | O47: 174.0695134 | P47: -35.38157971 | R47: 104500 | S47: Moerewa | T47: New Zealand | U47: 0 | V47: 0 | W47: 0 | X47: 0 | Y47: 0.81 | Z47: 0.11 | AA47: 0.01 | AB47: 0 | AC47: 0.07 | AD47: 0.02 | AE47: 6.08 | AF47: 174.0224323 | AG47: -35.38553342 | AI47: 104600 | AJ47: Kawakawa | AK47: New Zealand | AL47: 0 | AM47: 0.43 | AN47: 0 | AO47: 0 | AP47: 0 | AQ47: 0.36 | AR47: 0 | AS47: 0 | AT47: 0.21 | AU47: 0 | AV47: 5.7 | AW47: 174.0695134 | AX47: -35.38157971
A48: 104700 | B48: Maromaku | C48: New Zealand | D48: 0 | E48: 0 | F48: 0 | G48: 0 | H48: 0.82 | I48: 0 | J48: 0.01 | K48: 0 | L48: 0.17 | M48: 0.02 | N48: 16.25 | O48: 174.1413276 | P48: -35.47825535 | R48: 104600 | S48: Kawakawa | T48: New Zealand | U48: 0 | V48: 0 | W48: 0 | X48: 0 | Y48: 0.91 | Z48: 0.01 | AA48: 0.01 | AB48: 0 | AC48: 0.07 | AD48: 0.02 | AE48: 12.77 | AF48: 174.0695134 | AG48: -35.38157971 | AI48: 104700 | AJ48: Maromaku | AK48: New Zealand | AL48: 0 | AM48: 0.53 | AN48: 0 | AO48: 0 | AP48: 0 | AQ48: 0.47 | AR48: 0 | AS48: 0 | AT48: 0 | AU48: 0 | AV48: 12.79 | AW48: 174.1413276 | AX48: -35.47825535
A49: 104800 | B49: Mangakahia-Hukerenui | C49: New Zealand | D49: 0 | E49: 0 | F49: 0 | G49: 0 | H49: 0.95 | I49: 0 | J49: 0.01 | K49: 0 | L49: 0.04 | M49: 0.02 | N49: 24.08 | O49: 174.0023164 | P49: -35.65301955 | R49: 104700 | S49: Maromaku | T49: New Zealand | U49: 0 | V49: 0 | W49: 0 | X49: 0 | Y49: 0.74 | Z49: 0 | AA49: 0.01 | AB49: 0 | AC49: 0.25 | AD49: 0.02 | AE49: 399.65 | AF49: 174.1413276 | AG49: -35.47825535 | AI49: 104800 | AJ49: Mangakahia-Hukerenui | AK49: New Zealand | AL49: 0 | AM49: 0.76 | AN49: 0 | AO49: 0 | AP49: 0 | AQ49: 0.2 | AR49: 0 | AS49: 0 | AT49: 0.04 | AU49: 0 | AV49: 21.09 | AW49: 174.0023164 | AX49: -35.65301955
A50: 104900 | B50: Whangaruru | C50: New Zealand | D50: 0 | E50: 0 | F50: 0 | G50: 0 | H50: 0.96 | I50: 0 | J50: 0.01 | K50: 0 | L50: 0.03 | M50: 0.02 | N50: 21.76 | O50: 174.337521 | P50: -35.48968435 | R50: 104800 | S50: Mangakahia-Hukerenui | T50: New Zealand | U50: 0 | V50: 0 | W50: 0 | X50: 0 | Y50: 0.89 | Z50: 0 | AA50: 0.01 | AB50: 0 | AC50: 0.1 | AD50: 0.02 | AE50: 17.47 | AF50: 174.0023164 | AG50: -35.65301955 | AI50: 104900 | AJ50: Whangaruru | AK50: New Zealand | AL50: 0 | AM50: 0.77 | AN50: 0 | AO50: 0 | AP50: 0 | AQ50: 0.09 | AR50: 0 | AS50: 0 | AT50: 0.14 | AU50: 0 | AV50: 13.07 | AW50: 174.337521 | AX50: -35.48968435
A51: 105100 | B51: Matarau | C51: New Zealand | D51: 0 | E51: 0 | F51: 0 | G51: 0 | H51: 0.97 | I51: 0.02 | J51: 0.01 | K51: 0 | L51: 0 | M51: 0.02 | N51: 10.71 | O51: 174.2164403 | P51: -35.67704478 | R51: 104900 | S51: Whangaruru | T51: New Zealand | U51: 0 | V51: 0 | W51: 0 | X51: 0 | Y51: 0.89 | Z51: 0 | AA51: 0.01 | AB51: 0 | AC51: 0.1 | AD51: 0.02 | AE51: 13.07 | AF51: 174.337521 | AG51: -35.48968435 | AI51: 105100 | AJ51: Matarau | AK51: New Zealand | AL51: 0 | AM51: 0.26 | AN51: 0 | AO51: 0 | AP51: 0 | AQ51: 0.72 | AR51: 0 | AS51: 0 | AT51: 0.02 | AU51: 0 | AV51: 8.54 | AW51: 174.2164403 | AX51: -35.67704478
A52: 105200 | B52: Hikurangi | C52: New Zealand | D52: 0 | E52: 0 | F52: 0 | G52: 0 | H52: 0.96 | I52: 0 | J52: 0.01 | K52: 0 | L52: 0.03 | M52: 0.02 | N52: 12.79 | O52: 174.2871617 | P52: -35.5944828 | R52: 105100 | S52: Matarau | T52: New Zealand | U52: 0 | V52: 0 | W52: 0 | X52: 0 | Y52: 0.99 | Z52: 0 | AA52: 0.01 | AB52: 0 | AC52: 0 | AD52: 0.02 | AE52: 6.62 | AF52: 174.2164403 | AG52: -35.67704478 | AI52: 105200 | AJ52: Hikurangi | AK52: New Zealand | AL52: 0 | AM52: 0.09 | AN52: 0 | AO52: 0 | AP52: 0 | AQ52: 0.47 | AR52: 0 | AS52: 0.08 | AT52: 0.36 | AU52: 0 | AV52: 3.3 | AW52: 174.2871617 | AX52: -35.5944828
A53: 105300 | B53: Kauri | C53: New Zealand | D53: 0 | E53: 0 | F53: 0 | G53: 0 | H53: 0.98 | I53: 0.01 | J53: 0.01 | K53: 0 | L53: 0 | M53: 0.02 | N53: 10.39 | O53: 174.2866567 | P53: -35.62944367 | R53: 105200 | S53: Hikurangi | T53: New Zealand | U53: 0 | V53: 0 | W53: 0 | X53: 0 | Y53: 0.85 | Z53: 0 | AA53: 0.01 | AB53: 0 | AC53: 0.14 | AD53: 0.02 | AE53: 5.14 | AF53: 174.2871617 | AG53: -35.5944828 | AI53: 105300 | AJ53: Kauri | AK53: New Zealand | AL53: 0 | AM53: 0.01 | AN53: 0 | AO53: 0 | AP53: 0 | AQ53: 0.95 | AR53: 0 | AS53: 0 | AT53: 0.04 | AU53: 0 | AV53: 6.51 | AW53: 174.2866567 | AX53: -35.62944367
A54: 105400 | B54: Maungatapere | C54: New Zealand | D54: 0 | E54: 0 | F54: 0 | G54: 0 | H54: 0.95 | I54: 0.01 | J54: 0.01 | K54: 0 | L54: 0.03 | M54: 0.02 | N54: 14.45 | O54: 174.1547373 | P54: -35.76206371 | R54: 105300 | S54: Kauri | T54: New Zealand | U54: 0 | V54: 0 | W54: 0 | X54: 0 | Y54: 0.99 | Z54: 0 | AA54: 0.01 | AB54: 0 | AC54: 0 | AD54: 0.02 | AE54: 11.22 | AF54: 174.2866567 | AG54: -35.62944367 | AI54: 105400 | AJ54: Maungatapere | AK54: New Zealand | AL54: 0 | AM54: 0.27 | AN54: 0 | AO54: 0 | AP54: 0 | AQ54: 0.66 | AR54: 0 | AS54: 0 | AT54: 0.07 | AU54: 0 | AV54: 8.88 | AW54: 174.1547373 | AX54: -35.76206371
A55: 105500 | B55: Kamo West | C55: New Zealand | D55: 0 | E55: 0.02 | F55: 0 | G55: 0 | H55: 0.97 | I55: 0 | J55: 0.01 | K55: 0 | L55: 0 | M55: 0.02 | N55: 6.27 | O55: 174.2950745 | P55: -35.67006476 | R55: 105400 | S55: Maungatapere | T55: New Zealand | U55: 0 | V55: 0 | W55: 0 | X55: 0 | Y55: 0.88 | Z55: 0.02 | AA55: 0.01 | AB55: 0 | AC55: 0.09 | AD55: 0.02 | AE55: 10.43 | AF55: 174.1547373 | AG55: -35.76206371 | AI55: 105500 | AJ55: Kamo West | AK55: New Zealand | AL55: 0 | AM55: 0.03 | AN55: 0 | AO55: 0 | AP55: 0 | AQ55: 0.81 | AR55: 0 | AS55: 0 | AT55: 0.16 | AU55: 0 | AV55: 3.5 | AW55: 174.2950745 | AX55: -35.67006476
A56: 105600 | B56: Matapouri-Tutukaka | C56: New Zealand | D56: 0 | E56: 0 | F56: 0 | G56: 0 | H56: 0.92 | I56: 0.02 | J56: 0.01 | K56: 0 | L56: 0.05 | M56: 0.02 | N56: 15.64 | O56: 174.4781074 | P56: -35.59794692 | R56: 105500 | S56: Kamo West | T56: New Zealand | U56: 0 | V56: 0 | W56: 0 | X56: 0 | Y56: 0.98 | Z56: 0 | AA56: 0.01 | AB56: 0 | AC56: 0.01 | AD56: 0.02 | AE56: 7.85 | AF56: 174.2950745 | AG56: -35.67006476 | AI56: 105600 | AJ56: Matapouri-Tutukaka | AK56: New Zealand | AL56: 0 | AM56: 0 | AN56: 0 | AO56: 0 | AP56: 0 | AQ56: 0 | AR56: 0 | AS56: 0 | AT56: 0 | AU56: 0 | AV56: 0 | AW56: 174.4781074 | AX56: -35.59794692
A57: 105700 | B57: Kiripaka | C57: New Zealand | D57: 0 | E57: 0 | F57: 0 | G57: 0 | H57: 0.99 | I57: 0 | J57: 0.01 | K57: 0 | L57: 0 | M57: 0.02 | N57: 11.65 | O57: 174.4028742 | P57: -35.64674958 | R57: 105600 | S57: Matapouri-Tutukaka | T57: New Zealand | U57: 0 | V57: 0 | W57: 0 | X57: 0 | Y57: 0.76 | Z57: 0.08 | AA57: 0.01 | AB57: 0 | AC57: 0.15 | AD57: 0.02 | AE57: 4.79 | AF57: 174.4781074 | AG57: -35.59794692 | AI57: 105700 | AJ57: Kiripaka | AK57: New Zealand | AL57: 0 | AM57: 0.41 | AN57: 0 | AO57: 0 | AP57: 0 | AQ57: 0.59 | AR57: 0 | AS57: 0 | AT57: 0 | AU57: 0 | AV57: 13.23 | AW57: 174.4028742 | AX57: -35.64674958
A58: 105800 | B58: Kamo East | C58: New Zealand | D58: 0 | E58: 0 | F58: 0 | G58: 0 | H58: 0.97 | I58: 0.02 | J58: 0.01 | K58: 0 | L58: 0 | M58: 0.02 | N58: 6.05 | O58: 174.3098025 | P58: -35.67747272 | R58: 105700 | S58: Kiripaka | T58: New Zealand | U58: 0 | V58: 0 | W58: 0 | X58: 0 | Y58: 0.99 | Z58: 0 | AA58: 0.01 | AB58: 0 | AC58: 0 | AD58: 0.02 | AE58: 6.77 | AF58: 174.4028742 | AG58: -35.64674958 | AI58: 105800 | AJ58: Kamo East | AK58: New Zealand | AL58: 0 | AM58: 0.01 | AN58: 0 | AO58: 0 | AP58: 0 | AQ58: 0.73 | AR58: 0 | AS58: 0 | AT58: 0.26 | AU58: 0 | AV58: 1.17 | AW58: 174.3098025 | AX58: -35.67747272
A59: 105900 | B59: Granfield Reserve | C59: New Zealand | D59: 0 | E59: 0.01 | F59: 0 | G59: 0 | H59: 0.91 | I59: 0.03 | J59: 0.01 | K59: 0 | L59: 0.04 | M59: 0.02 | N59: 5.22 | O59: 174.2950582 | P59: -35.69015065 | R59: 105800 | S59: Kamo East | T59: New Zealand | U59: 0 | V59: 0 | W59: 0 | X59: 0 | Y59: 0.99 | Z59: 0 | AA59: 0.01 | AB59: 0 | AC59: 0 | AD59: 0.02 | AE59: 6.27 | AF59: 174.3098025 | AG59: -35.67747272 | AI59: 105900 | AJ59: Granfield Reserve | AK59: New Zealand | AL59: 0 | AM59: 0 | AN59: 0 | AO59: 0 | AP59: 0 | AQ59: 0.91 | AR59: 0 | AS59: 0 | AT59: 0.09 | AU59: 0 | AV59: 2.87 | AW59: 174.2950582 | AX59: -35.69015065
A60: 106000 | B60: Kamo Central | C60: New Zealand | D60: 0 | E60: 0 | F60: 0 | G60: 0 | H60: 0.94 | I60: 0.04 | J60: 0.01 | K60: 0 | L60: 0.01 | M60: 0.02 | N60: 4.92 | O60: 174.3045812 | P60: -35.683395 | R60: 105900 | S60: Granfield Reserve | T60: New Zealand | U60: 0 | V60: 0 | W60: 0 | X60: 0 | Y60: 0.94 | Z60: 0 | AA60: 0.01 | AB60: 0 | AC60: 0.05 | AD60: 0.02 | AE60: 4.62 | AF60: 174.2950582 | AG60: -35.69015065 | AI60: 106000 | AJ60: Kamo Central | AK60: New Zealand | AL60: 0 | AM60: 0.2 | AN60: 0 | AO60: 0 | AP60: 0 | AQ60: 0.54 | AR60: 0 | AS60: 0.01 | AT60: 0.25 | AU60: 0 | AV60: 5.91 | AW60: 174.3045812 | AX60: -35.683395
A61: 106100 | B61: Whau Valley | C61: New Zealand | D61: 0 | E61: 0 | F61: 0 | G61: 0 | H61: 0.93 | I61: 0.03 | J61: 0.01 | K61: 0 | L61: 0.03 | M61: 0.02 | N61: 4.2 | O61: 174.2958018 | P61: -35.70520079 | R61: 106000 | S61: Kamo Central | T61: New Zealand | U61: 0 | V61: 0 | W61: 0 | X61: 0 | Y61: 0.95 | Z61: 0 | AA61: 0.01 | AB61: 0 | AC61: 0.04 | AD61: 0.02 | AE61: 7.08 | AF61: 174.3045812 | AG61: -35.683395 | AI61: 106100 | AJ61: Whau Valley | AK61: New Zealand | AL61: 0 | AM61: 0.01 | AN61: 0 | AO61: 0 | AP61: 0 | AQ61: 0.73 | AR61: 0 | AS61: 0 | AT61: 0.26 | AU61: 0 | AV61: 2.58 | AW61: 174.2958018 | AX61: -35.70520079
A62: 106200 | B62: Tikipunga North | C62: New Zealand | D62: 0 | E62: 0.02 | F62: 0 | G62: 0 | H62: 0.92 | I62: 0.03 | J62: 0.01 | K62: 0 | L62: 0.02 | M62: 0.02 | N62: 5.41 | O62: 174.3230477 | P62: -35.68085136 | R62: 106100 | S62: Whau Valley | T62: New Zealand | U62: 0 | V62: 0 | W62: 0 | X62: 0 | Y62: 0.95 | Z62: 0 | AA62: 0.01 | AB62: 0 | AC62: 0.04 | AD62: 0.02 | AE62: 5.43 | AF62: 174.2958018 | AG62: -35.70520079 | AI62: 106200 | AJ62: Tikipunga North | AK62: New Zealand | AL62: 0 | AM62: 0.05 | AN62: 0 | AO62: 0 | AP62: 0 | AQ62: 0.53 | AR62: 0 | AS62: 0 | AT62: 0.42 | AU62: 0 | AV62: 1.71 | AW62: 174.3230477 | AX62: -35.68085136
A63: 106300 | B63: Pukenui | C63: New Zealand | D63: 0 | E63: 0 | F63: 0 | G63: 0 | H63: 0.96 | I63: 0.03 | J63: 0.01 | K63: 0 | L63: 0 | M63: 0.02 | N63: 6.65 | O63: 174.255023 | P63: -35.74644668 | R63: 106200 | S63: Tikipunga North | T63: New Zealand | U63: 0 | V63: 0 | W63: 0 | X63: 0 | Y63: 0.96 | Z63: 0 | AA63: 0.01 | AB63: 0 | AC63: 0.03 | AD63: 0.02 | AE63: 6.8 | AF63: 174.3230477 | AG63: -35.68085136 | AI63: 106300 | AJ63: Pukenui | AK63: New Zealand | AL63: 0 | AM63: 0.42 | AN63: 0 | AO63: 0 | AP63: 0 | AQ63: 0.48 | AR63: 0 | AS63: 0 | AT63: 0.1 | AU63: 0 | AV63: 8.4 | AW63: 174.255023 | AX63: -35.74644668
A64: 106400 | B64: Otangarei | C64: New Zealand | D64: 0 | E64: 0 | F64: 0 | G64: 0 | H64: 0.9 | I64: 0.05 | J64: 0.01 | K64: 0 | L64: 0.04 | M64: 0.02 | N64: 3.58 | O64: 174.3176996 | P64: -35.69329776 | R64: 106300 | S64: Pukenui | T64: New Zealand | U64: 0 | V64: 0 | W64: 0 | X64: 0 | Y64: 0.99 | Z64: 0 | AA64: 0.01 | AB64: 0 | AC64: 0 | AD64: 0.02 | AE64: 6.86 | AF64: 174.255023 | AG64: -35.74644668 | AI64: 106400 | AJ64: Otangarei | AK64: New Zealand | AL64: 0 | AM64: 0 | AN64: 0 | AO64: 0 | AP64: 0 | AQ64: 0 | AR64: 0 | AS64: 0 | AT64: 1 | AU64: 0 | AV64: 0.58 | AW64: 174.3176996 | AX64: -35.69329776
A65: 106500 | B65: Tikipunga South | C65: New Zealand | D65: 0 | E65: 0.01 | F65: 0 | G65: 0 | H65: 0.92 | I65: 0.04 | J65: 0.01 | K65: 0.01 | L65: 0.01 | M65: 0.02 | N65: 4.84 | O65: 174.331665 | P65: -35.69457731 | R65: 106400 | S65: Otangarei | T65: New Zealand | U65: 0 | V65: 0 | W65: 0 | X65: 0 | Y65: 0.82 | Z65: 0 | AA65: 0.01 | AB65: 0 | AC65: 0.17 | AD65: 0.02 | AE65: 2.34 | AF65: 174.3176996 | AG65: -35.69329776 | AI65: 106500 | AJ65: Tikipunga South | AK65: New Zealand | AL65: 0 | AM65: 0 | AN65: 0 | AO65: 0 | AP65: 0 | AQ65: 0 | AR65: 0 | AS65: 0 | AT65: 0 | AU65: 0 | AV65: 0 | AW65: 174.331665 | AX65: -35.69457731
A66: 106600 | B66: Kensington (Whangarei District) | C66: New Zealand | D66: 0 | E66: 0 | F66: 0 | G66: 0 | H66: 0.83 | I66: 0.03 | J66: 0.01 | K66: 0.01 | L66: 0.12 | M66: 0.02 | N66: 3.37 | O66: 174.3144168 | P66: -35.71175869 | R66: 106500 | S66: Tikipunga South | T66: New Zealand | U66: 0 | V66: 0 | W66: 0 | X66: 0 | Y66: 0.99 | Z66: 0 | AA66: 0.01 | AB66: 0 | AC66: 0 | AD66: 0.02 | AE66: 6.5 | AF66: 174.331665 | AG66: -35.69457731 | AI66: 106600 | AJ66: Kensington (Whangarei District) | AK66: New Zealand | AL66: 0 | AM66: 0 | AN66: 0 | AO66: 0 | AP66: 0 | AQ66: 0.98 | AR66: 0 | AS66: 0 | AT66: 0.02 | AU66: 0 | AV66: 3.94 | AW66: 174.3144168 | AX66: -35.71175869
A67: 106700 | B67: Abbey Caves-Glenbervie | C67: New Zealand | D67: 0 | E67: 0 | F67: 0 | G67: 0 | H67: 0.99 | I67: 0 | J67: 0.01 | K67: 0 | L67: 0 | M67: 0.02 | N67: 5.28 | O67: 174.3612294 | P67: -35.70399025 | R67: 106600 | S67: Kensington (Whangarei District) | T67: New Zealand | U67: 0 | V67: 0 | W67: 0 | X67: 0 | Y67: 0.92 | Z67: 0.01 | AA67: 0.01 | AB67: 0 | AC67: 0.06 | AD67: 0.02 | AE67: 7.08 | AF67: 174.3144168 | AG67: -35.71175869 | AI67: 106700 | AJ67: Abbey Caves-Glenbervie | AK67: New Zealand | AL67: 0 | AM67: 0.24 | AN67: 0 | AO67: 0 | AP67: 0 | AQ67: 0.76 | AR67: 0 | AS67: 0 | AT67: 0 | AU67: 0 | AV67: 5.99 | AW67: 174.3612294 | AX67: -35.70399025
A68: 106800 | B68: Mairtown | C68: New Zealand | D68: 0 | E68: 0 | F68: 0 | G68: 0 | H68: 0.83 | I68: 0.06 | J68: 0.01 | K68: 0.02 | L68: 0.08 | M68: 0.02 | N68: 3.31 | O68: 174.3243045 | P68: -35.70451425 | R68: 106700 | S68: Abbey Caves-Glenbervie | T68: New Zealand | U68: 0 | V68: 0 | W68: 0 | X68: 0 | Y68: 0.99 | Z68: 0 | AA68: 0.01 | AB68: 0 | AC68: 0 | AD68: 0.02 | AE68: 7.67 | AF68: 174.3612294 | AG68: -35.70399025 | AI68: 106800 | AJ68: Mairtown | AK68: New Zealand | AL68: 0 | AM68: 0 | AN68: 0 | AO68: 0 | AP68: 0 | AQ68: 1 | AR68: 0 | AS68: 0 | AT68: 0 | AU68: 0 | AV68: 2.76 | AW68: 174.3243045 | AX68: -35.70451425
A69: 106900 | B69: Maunu-Horahora | C69: New Zealand | D69: 0 | E69: 0.01 | F69: 0 | G69: 0 | H69: 0.82 | I69: 0.03 | J69: 0.01 | K69: 0.01 | L69: 0.12 | M69: 0.02 | N69: 3.87 | O69: 174.2903713 | P69: -35.73757136 | R69: 106800 | S69: Mairtown | T69: New Zealand | U69: 0 | V69: 0 | W69: 0 | X69: 0 | Y69: 0.93 | Z69: 0 | AA69: 0.01 | AB69: 0 | AC69: 0.06 | AD69: 0.02 | AE69: 3.78 | AF69: 174.3243045 | AG69: -35.70451425 | AI69: 106900 | AJ69: Maunu-Horahora | AK69: New Zealand | AL69: 0 | AM69: 0 | AN69: 0 | AO69: 0 | AP69: 0 | AQ69: 0.79 | AR69: 0 | AS69: 0 | AT69: 0.21 | AU69: 0 | AV69: 3.68 | AW69: 174.2903713 | AX69: -35.73757136
A70: 107000 | B70: Woodhill-Vinetown | C70: New Zealand | D70: 0 | E70: 0 | F70: 0 | G70: 0 | H70: 0.82 | I70: 0.04 | J70: 0.01 | K70: 0.01 | L70: 0.12 | M70: 0.02 | N70: 2.44 | O70: 174.3095526 | P70: -35.727035 | R70: 106900 | S70: Maunu-Horahora | T70: New Zealand | U70: 0 | V70: 0 | W70: 0 | X70: 0 | Y70: 0.93 | Z70: 0 | AA70: 0.01 | AB70: 0 | AC70: 0.06 | AD70: 0.02 | AE70: 8.99 | AF70: 174.2903713 | AG70: -35.73757136 | AI70: 107000 | AJ70: Woodhill-Vinetown | AK70: New Zealand | AL70: 0 | AM70: 0 | AN70: 0 | AO70: 0 | AP70: 0 | AQ70: 1 | AR70: 0 | AS70: 0 | AT70: 0 | AU70: 0 | AV70: 1.02 | AW70: 174.3095526 | AX70: -35.727035
A71: 107100 | B71: Whangarei Central | C71: New Zealand | D71: 0 | E71: 0 | F71: 0 | G71: 0 | H71: 0.75 | I71: 0 | J71: 0.01 | K71: 0 | L71: 0.24 | M71: 0.02 | N71: 1.39 | O71: 174.3242889 | P71: -35.72731299 | R71: 107000 | S71: Woodhill-Vinetown | T71: New Zealand | U71: 0 | V71: 0 | W71: 0 | X71: 0 | Y71: 0.95 | Z71: 0 | AA71: 0.01 | AB71: 0 | AC71: 0.04 | AD71: 0.02 | AE71: 5.55 | AF71: 174.3095526 | AG71: -35.727035 | AI71: 107100 | AJ71: Whangarei Central | AK71: New Zealand | AL71: 0 | AM71: 0.3 | AN71: 0 | AO71: 0 | AP71: 0.08 | AQ71: 0.5 | AR71: 0 | AS71: 0 | AT71: 0.12 | AU71: 0 | AV71: 7.45 | AW71: 174.3242889 | AX71: -35.72731299
A72: 107200 | B72: Riverside | C72: New Zealand | D72: 0 | E72: 0 | F72: 0 | G72: 0 | H72: 0.86 | I72: 0.04 | J72: 0.01 | K72: 0.02 | L72: 0.07 | M72: 0.02 | N72: 2.84 | O72: 174.3396456 | P72: -35.72599375 | R72: 107100 | S72: Whangarei Central | T72: New Zealand | U72: 0 | V72: 0.01 | W72: 0 | X72: 0 | Y72: 0.89 | Z72: 0.04 | AA72: 0.01 | AB72: 0.01 | AC72: 0.04 | AD72: 0.02 | AE72: 8.35 | AF72: 174.3242889 | AG72: -35.72731299 | AI72: 107200 | AJ72: Riverside | AK72: New Zealand | AL72: 0 | AM72: 0 | AN72: 0 | AO72: 0 | AP72: 0 | AQ72: 1 | AR72: 0 | AS72: 0 | AT72: 0 | AU72: 0 | AV72: 1.06 | AW72: 174.3396456 | AX72: -35.72599375
A73: 107300 | B73: Raumanga | C73: New Zealand | D73: 0 | E73: 0.01 | F73: 0 | G73: 0 | H73: 0.9 | I73: 0.04 | J73: 0.01 | K73: 0.02 | L73: 0.02 | M73: 0.02 | N73: 4.68 | O73: 174.3000596 | P73: -35.75164209 | R73: 107200 | S73: Riverside | T73: New Zealand | U73: 0 | V73: 0 | W73: 0 | X73: 0 | Y73: 0.87 | Z73: 0 | AA73: 0.01 | AB73: 0 | AC73: 0.12 | AD73: 0.02 | AE73: 2.95 | AF73: 174.3396456 | AG73: -35.72599375 | AI73: 107300 | AJ73: Raumanga | AK73: New Zealand | AL73: 0 | AM73: 0.01 | AN73: 0 | AO73: 0 | AP73: 0 | AQ73: 0.45 | AR73: 0 | AS73: 0 | AT73: 0.54 | AU73: 0 | AV73: 1.09 | AW73: 174.3000596 | AX73: -35.75164209
A74: 107400 | B74: Tarewa | C74: New Zealand | D74: 0 | E74: 0 | F74: 0 | G74: 0 | H74: 0.87 | I74: 0.07 | J74: 0.01 | K74: 0 | L74: 0.05 | M74: 0.02 | N74: 2.66 | O74: 174.3090376 | P74: -35.7418305 | R74: 107300 | S74: Raumanga | T74: New Zealand | U74: 0 | V74: 0 | W74: 0 | X74: 0 | Y74: 0.99 | Z74: 0 | AA74: 0.01 | AB74: 0 | AC74: 0 | AD74: 0.02 | AE74: 1.05 | AF74: 174.3000596 | AG74: -35.75164209 | AI74: 107400 | AJ74: Tarewa | AK74: New Zealand | AL74: 0 | AM74: 0 | AN74: 0 | AO74: 0 | AP74: 0.88 | AQ74: 0.07 | AR74: 0 | AS74: 0 | AT74: 0.05 | AU74: 0 | AV74: 9.31 | AW74: 174.3090376 | AX74: -35.7418305
A75: 107500 | B75: Morningside (Whangarei District) | C75: New Zealand | D75: 0 | E75: 0 | F75: 0 | G75: 0 | H75: 0.84 | I75: 0.05 | J75: 0.01 | K75: 0 | L75: 0.1 | M75: 0.02 | N75: 2.26 | O75: 174.3200567 | P75: -35.73638776 | R75: 107400 | S75: Tarewa | T75: New Zealand | U75: 0 | V75: 0 | W75: 0 | X75: 0 | Y75: 0.97 | Z75: 0 | AA75: 0.01 | AB75: 0 | AC75: 0.02 | AD75: 0.02 | AE75: 7.26 | AF75: 174.3090376 | AG75: -35.7418305 | AI75: 107500 | AJ75: Morningside (Whangarei District) | AK75: New Zealand | AL75: 0 | AM75: 0.03 | AN75: 0 | AO75: 0 | AP75: 0 | AQ75: 0.88 | AR75: 0 | AS75: 0 | AT75: 0.09 | AU75: 0 | AV75: 4.94 | AW75: 174.3200567 | AX75: -35.73638776
A76: 107600 | B76: Ngunguru | C76: New Zealand | D76: 0 | E76: 0 | F76: 0 | G76: 0 | H76: 0.94 | I76: 0.02 | J76: 0.01 | K76: 0 | L76: 0.03 | M76: 0.02 | N76: 15.27 | O76: 174.5066396 | P76: -35.62891528 | R76: 107500 | S76: Morningside (Whangarei District) | T76: New Zealand | U76: 0 | V76: 0 | W76: 0 | X76: 0 | Y76: 0.88 | Z76: 0 | AA76: 0.01 | AB76: 0 | AC76: 0.11 | AD76: 0.02 | AE76: 3.75 | AF76: 174.3200567 | AG76: -35.73638776 | AI76: 107600 | AJ76: Ngunguru | AK76: New Zealand | AL76: 0 | AM76: 0.29 | AN76: 0 | AO76: 0 | AP76: 0 | AQ76: 0.48 | AR76: 0 | AS76: 0.11 | AT76: 0.12 | AU76: 0 | AV76: 2.63 | AW76: 174.5066396 | AX76: -35.62891528
A77: 107700 | B77: Otaika-Portland | C77: New Zealand | D77: 0 | E77: 0 | F77: 0 | G77: 0 | H77: 0.96 | I77: 0.03 | J77: 0.01 | K77: 0 | L77: 0 | M77: 0.02 | N77: 7.29 | O77: 174.2864707 | P77: -35.78718642 | R77: 107600 | S77: Ngunguru | T77: New Zealand | U77: 0 | V77: 0 | W77: 0 | X77: 0 | Y77: 0.85 | Z77: 0 | AA77: 0.01 | AB77: 0 | AC77: 0.14 | AD77: 0.02 | AE77: 2.14 | AF77: 174.5066396 | AG77: -35.62891528 | AI77: 107700 | AJ77: Otaika-Portland | AK77: New Zealand | AL77: 0 | AM77: 0 | AN77: 0 | AO77: 0 | AP77: 0 | AQ77: 1 | AR77: 0 | AS77: 0 | AT77: 0 | AU77: 0 | AV77: 7.77 | AW77: 174.2864707 | AX77: -35.78718642
A78: 107800 | B78: Oakleigh-Mangapai | C78: New Zealand | D78: 0 | E78: 0 | F78: 0 | G78: 0 | H78: 0.96 | I78: 0.01 | J78: 0.01 | K78: 0 | L78: 0.02 | M78: 0.02 | N78: 18.8 | O78: 174.2159562 | P78: -35.89588695 | R78: 107700 | S78: Otaika-Portland | T78: New Zealand | U78: 0 | V78: 0 | W78: 0 | X78: 0 | Y78: 0.99 | Z78: 0 | AA78: 0.01 | AB78: 0 | AC78: 0 | AD78: 0.02 | AE78: 8.24 | AF78: 174.2864707 | AG78: -35.78718642 | AI78: 107800 | AJ78: Oakleigh-Mangapai | AK78: New Zealand | AL78: 0 | AM78: 0.78 | AN78: 0 | AO78: 0 | AP78: 0 | AQ78: 0.2 | AR78: 0 | AS78: 0 | AT78: 0.02 | AU78: 0 | AV78: 12.9 | AW78: 174.2159562 | AX78: -35.89588695
A79: 107900 | B79: Port-Limeburners | C79: New Zealand | D79: 0 | E79: 0 | F79: 0 | G79: 0 | H79: 0.99 | I79: 0 | J79: 0.01 | K79: 0 | L79: 0 | M79: 0.02 | N79: 1.54 | O79: 174.3307518 | P79: -35.74927345 | R79: 107800 | S79: Oakleigh-Mangapai | T79: New Zealand | U79: 0 | V79: 0 | W79: 0 | X79: 0 | Y79: 0.9 | Z79: 0 | AA79: 0.01 | AB79: 0 | AC79: 0.09 | AD79: 0.02 | AE79: 13.13 | AF79: 174.2159562 | AG79: -35.89588695 | AI79: 107900 | AJ79: Port-Limeburners | AK79: New Zealand | AL79: 0 | AM79: 0 | AN79: 0 | AO79: 0 | AP79: 0 | AQ79: 0 | AR79: 0 | AS79: 0 | AT79: 0 | AU79: 0 | AV79: 0 | AW79: 174.3307518 | AX79: -35.74927345
A80: 108000 | B80: Pataua | C80: New Zealand | D80: 0 | E80: 0 | F80: 0 | G80: 0 | H80: 0.97 | I80: 0.02 | J80: 0.01 | K80: 0 | L80: 0 | M80: 0.02 | N80: 13.18 | O80: 174.4734236 | P80: -35.71821445 | R80: 107900 | S80: Port-Limeburners | T80: New Zealand | U80: 0 | V80: 0 | W80: 0 | X80: 0 | Y80: 0.96 | Z80: 0.03 | AA80: 0.01 | AB80: 0 | AC80: 0 | AD80: 0.02 | AE80: 9.29 | AF80: 174.3307518 | AG80: -35.74927345 | AI80: 108000 | AJ80: Pataua | AK80: New Zealand | AL80: 0 | AM80: 0 | AN80: 0 | AO80: 0 | AP80: 0 | AQ80: 0 | AR80: 0 | AS80: 0 | AT80: 0 | AU80: 0 | AV80: 0 | AW80: 174.4734236 | AX80: -35.71821445
A81: 108100 | B81: Onerahi Park | C81: New Zealand | D81: 0 | E81: 0 | F81: 0 | G81: 0 | H81: 0.94 | I81: 0.03 | J81: 0.01 | K81: 0 | L81: 0.02 | M81: 0.02 | N81: 4.64 | O81: 174.3690032 | P81: -35.74654292 | R81: 108000 | S81: Pataua | T81: New Zealand | U81: 0 | V81: 0 | W81: 0 | X81: 0 | Y81: 0.99 | Z81: 0 | AA81: 0.01 | AB81: 0 | AC81: 0 | AD81: 0.02 | AE81: 6.4 | AF81: 174.4734236 | AG81: -35.71821445 | AI81: 108100 | AJ81: Onerahi Park | AK81: New Zealand | AL81: 0 | AM81: 0 | AN81: 0 | AO81: 0 | AP81: 0 | AQ81: 1 | AR81: 0 | AS81: 0 | AT81: 0 | AU81: 0 | AV81: 1.16 | AW81: 174.3690032 | AX81: -35.74654292
A82: 108200 | B82: Sherwood Rise | C82: New Zealand | D82: 0 | E82: 0.02 | F82: 0 | G82: 0 | H82: 0.93 | I82: 0.03 | J82: 0.01 | K82: 0 | L82: 0.01 | M82: 0.02 | N82: 4.73 | O82: 174.3618074 | P82: -35.7486834 | R82: 108100 | S82: Onerahi Park | T82: New Zealand | U82: 0 | V82: 0 | W82: 0 | X82: 0 | Y82: 0.99 | Z82: 0 | AA82: 0.01 | AB82: 0 | AC82: 0 | AD82: 0.02 | AE82: 8.88 | AF82: 174.3690032 | AG82: -35.74654292 | AI82: 108200 | AJ82: Sherwood Rise | AK82: New Zealand | AL82: 0 | AM82: 0 | AN82: 0 | AO82: 0 | AP82: 0 | AQ82: 0 | AR82: 0 | AS82: 0 | AT82: 0 | AU82: 0 | AV82: 0 | AW82: 174.3618074 | AX82: -35.7486834
A83: 108300 | B83: Onerahi | C83: New Zealand | D83: 0 | E83: 0.01 | F83: 0 | G83: 0 | H83: 0.95 | I83: 0.02 | J83: 0.01 | K83: 0 | L83: 0.01 | M83: 0.02 | N83: 5.77 | O83: 174.363527 | P83: -35.76617497 | R83: 108200 | S83: Sherwood Rise | T83: New Zealand | U83: 0 | V83: 0 | W83: 0 | X83: 0 | Y83: 0.99 | Z83: 0 | AA83: 0.01 | AB83: 0 | AC83: 0 | AD83: 0.02 | AE83: 0.64 | AF83: 174.3618074 | AG83: -35.7486834 | AI83: 108300 | AJ83: Onerahi | AK83: New Zealand | AL83: 0 | AM83: 0 | AN83: 0 | AO83: 0 | AP83: 0 | AQ83: 0.75 | AR83: 0 | AS83: 0 | AT83: 0.25 | AU83: 0 | AV83: 2.48 | AW83: 174.363527 | AX83: -35.76617497
A84: 108500 | B84: Parua Bay | C84: New Zealand | D84: 0 | E84: 0 | F84: 0 | G84: 0 | H84: 0.97 | I84: 0.01 | J84: 0.01 | K84: 0 | L84: 0.01 | M84: 0.02 | N84: 10.05 | O84: 174.4281226 | P84: -35.76001844 | R84: 108300 | S84: Onerahi | T84: New Zealand | U84: 0 | V84: 0 | W84: 0 | X84: 0 | Y84: 0.85 | Z84: 0 | AA84: 0.01 | AB84: 0 | AC84: 0.14 | AD84: 0.02 | AE84: 4.95 | AF84: 174.363527 | AG84: -35.76617497 | AI84: 108500 | AJ84: Parua Bay | AK84: New Zealand | AL84: 0 | AM84: 0.27 | AN84: 0 | AO84: 0 | AP84: 0 | AQ84: 0.62 | AR84: 0 | AS84: 0 | AT84: 0.11 | AU84: 0 | AV84: 6.09 | AW84: 174.4281226 | AX84: -35.76001844
A85: 108600 | B85: Bream Bay | C85: New Zealand | D85: 0 | E85: 0 | F85: 0 | G85: 0 | H85: 0.98 | I85: 0 | J85: 0.01 | K85: 0 | L85: 0.01 | M85: 0.02 | N85: 15.46 | O85: 174.3838888 | P85: -35.91483778 | R85: 108500 | S85: Parua Bay | T85: New Zealand | U85: 0 | V85: 0 | W85: 0 | X85: 0 | Y85: 0.9 | Z85: 0 | AA85: 0.01 | AB85: 0 | AC85: 0.09 | AD85: 0.02 | AE85: 6.58 | AF85: 174.4281226 | AG85: -35.76001844 | AI85: 108600 | AJ85: Bream Bay | AK85: New Zealand | AL85: 0 | AM85: 0.66 | AN85: 0 | AO85: 0 | AP85: 0 | AQ85: 0.34 | AR85: 0 | AS85: 0 | AT85: 0 | AU85: 0 | AV85: 8.35 | AW85: 174.3838888 | AX85: -35.91483778
A86: 108700 | B86: Marsden Bay | C86: New Zealand | D86: 0 | E86: 0 | F86: 0 | G86: 0 | H86: 0.95 | I86: 0.02 | J86: 0.01 | K86: 0 | L86: 0.02 | M86: 0.02 | N86: 10.98 | O86: 174.4753498 | P86: -35.83787078 | R86: 108600 | S86: Bream Bay | T86: New Zealand | U86: 0 | V86: 0 | W86: 0 | X86: 0 | Y86: 0.95 | Z86: 0 | AA86: 0.01 | AB86: 0 | AC86: 0.04 | AD86: 0.02 | AE86: 10.17 | AF86: 174.3838888 | AG86: -35.91483778 | AI86: 108700 | AJ86: Marsden Bay | AK86: New Zealand | AL86: 0 | AM86: 0.37 | AN86: 0 | AO86: 0 | AP86: 0 | AQ86: 0.45 | AR86: 0 | AS86: 0.09 | AT86: 0.09 | AU86: 0 | AV86: 3.28 | AW86: 174.4753498 | AX86: -35.83787078
A87: 108800 | B87: Ruakaka | C87: New Zealand | D87: 0 | E87: 0 | F87: 0 | G87: 0 | H87: 0.95 | I87: 0.02 | J87: 0.01 | K87: 0 | L87: 0.02 | M87: 0.02 | N87: 10.83 | O87: 174.457275 | P87: -35.87869623 | R87: 108700 | S87: Marsden Bay | T87: New Zealand | U87: 0 | V87: 0 | W87: 0 | X87: 0 | Y87: 0.87 | Z87: 0.1 | AA87: 0.01 | AB87: 0 | AC87: 0.02 | AD87: 0.02 | AE87: 12.54 | AF87: 174.4753498 | AG87: -35.83787078 | AI87: 108800 | AJ87: Ruakaka | AK87: New Zealand | AL87: 0 | AM87: 0.61 | AN87: 0 | AO87: 0 | AP87: 0 | AQ87: 0.26 | AR87: 0 | AS87: 0 | AT87: 0.13 | AU87: 0 | AV87: 7.41 | AW87: 174.457275 | AX87: -35.87869623
A88: 108900 | B88: Bream Head | C88: New Zealand | D88: 0 | E88: 0 | F88: 0 | G88: 0 | H88: 0.99 | I88: 0 | J88: 0.01 | K88: 0 | L88: 0 | M88: 0.02 | N88: 24.69 | O88: 174.572351 | P88: -35.84015211 | R88: 108800 | S88: Ruakaka | T88: New Zealand | U88: 0 | V88: 0 | W88: 0 | X88: 0 | Y88: 0.93 | Z88: 0.03 | AA88: 0.01 | AB88: 0 | AC88: 0.03 | AD88: 0.02 | AE88: 8.19 | AF88: 174.457275 | AG88: -35.87869623 | AI88: 108900 | AJ88: Bream Head | AK88: New Zealand | AL88: 0 | AM88: 0.25 | AN88: 0 | AO88: 0 | AP88: 0 | AQ88: 0.75 | AR88: 0 | AS88: 0 | AT88: 0 | AU88: 0 | AV88: 7.5 | AW88: 174.572351 | AX88: -35.84015211
A89: 109000 | B89: Waipu | C89: New Zealand | D89: 0 | E89: 0 | F89: 0 | G89: 0 | H89: 0.88 | I89: 0.02 | J89: 0.01 | K89: 0.02 | L89: 0.07 | M89: 0.02 | N89: 17.33 | O89: 174.4508209 | P89: -36.03330412 | R89: 108900 | S89: Bream Head | T89: New Zealand | U89: 0 | V89: 0 | W89: 0 | X89: 0 | Y89: 0.99 | Z89: 0 | AA89: 0.01 | AB89: 0 | AC89: 0 | AD89: 0.02 | AE89: 4.08 | AF89: 174.572351 | AG89: -35.84015211 | AI89: 109000 | AJ89: Waipu | AK89: New Zealand | AL89: 0 | AM89: 0.42 | AN89: 0 | AO89: 0 | AP89: 0 | AQ89: 0.52 | AR89: 0 | AS89: 0 | AT89: 0.06 | AU89: 0 | AV89: 8.89 | AW89: 174.4508209 | AX89: -36.03330412
A90: 109100 | B90: Kaipara Coastal | C90: New Zealand | D90: 0 | E90: 0 | F90: 0 | G90: 0 | H90: 0.9 | I90: 0.07 | J90: 0.01 | K90: 0 | L90: 0.02 | M90: 0.02 | N90: 11.32 | O90: 173.8158548 | P90: -35.93867544 | R90: 109000 | S90: Waipu | T90: New Zealand | U90: 0 | V90: 0 | W90: 0 | X90: 0 | Y90: 0.83 | Z90: 0.03 | AA90: 0.01 | AB90: 0.03 | AC90: 0.1 | AD90: 0.02 | AE90: 9.8 | AF90: 174.4508209 | AG90: -36.03330412 | AI90: 109100 | AJ90: Kaipara Coastal | AK90: New Zealand | AL90: 0 | AM90: 0.68 | AN90: 0 | AO90: 0 | AP90: 0 | AQ90: 0.16 | AR90: 0 | AS90: 0 | AT90: 0.16 | AU90: 0 | AV90: 18.93 | AW90: 173.8158548 | AX90: -35.93867544
A91: 109200 | B91: Maungaru | C91: New Zealand | D91: 0 | E91: 0 | F91: 0 | G91: 0 | H91: 0.89 | I91: 0.06 | J91: 0.01 | K91: 0 | L91: 0.04 | M91: 0.02 | N91: 15.69 | O91: 173.9708915 | P91: -35.87696287 | R91: 109100 | S91: Kaipara Coastal | T91: New Zealand | U91: 0 | V91: 0 | W91: 0 | X91: 0 | Y91: 0.8 | Z91: 0.14 | AA91: 0.01 | AB91: 0 | AC91: 0.05 | AD91: 0.02 | AE91: 15.81 | AF91: 173.8158548 | AG91: -35.93867544 | AI91: 109200 | AJ91: Maungaru | AK91: New Zealand | AL91: 0 | AM91: 0.71 | AN91: 0 | AO91: 0 | AP91: 0 | AQ91: 0.29 | AR91: 0 | AS91: 0 | AT91: 0 | AU91: 0 | AV91: 14.84 | AW91: 173.9708915 | AX91: -35.87696287
A92: 109300 | B92: Dargaville | C92: New Zealand | D92: 0 | E92: 0 | F92: 0 | G92: 0 | H92: 0.8 | I92: 0.09 | J92: 0.01 | K92: 0.01 | L92: 0.09 | M92: 0.02 | N92: 4.2 | O92: 173.8652404 | P92: -35.93920158 | R92: 109200 | S92: Maungaru | T92: New Zealand | U92: 0 | V92: 0 | W92: 0 | X92: 0 | Y92: 0.71 | Z92: 0.21 | AA92: 0.01 | AB92: 0 | AC92: 0.07 | AD92: 0.02 | AE92: 14.73 | AF92: 173.9708915 | AG92: -35.87696287 | AI92: 109300 | AJ92: Dargaville | AK92: New Zealand | AL92: 0 | AM92: 0.26 | AN92: 0 | AO92: 0 | AP92: 0.05 | AQ92: 0.46 | AR92: 0 | AS92: 0.02 | AT92: 0.21 | AU92: 0 | AV92: 4.7 | AW92: 173.8652404 | AX92: -35.93920158
A93: 109400 | B93: Ruawai-Matakohe | C93: New Zealand | D93: 0 | E93: 0 | F93: 0 | G93: 0 | H93: 0.84 | I93: 0.07 | J93: 0.01 | K93: 0.01 | L93: 0.07 | M93: 0.02 | N93: 18.49 | O93: 174.1465008 | P93: -36.08478512 | R93: 109300 | S93: Dargaville | T93: New Zealand | U93: 0 | V93: 0 | W93: 0 | X93: 0 | Y93: 0.88 | Z93: 0.05 | AA93: 0.01 | AB93: 0 | AC93: 0.06 | AD93: 0.02 | AE93: 6.64 | AF93: 173.8652404 | AG93: -35.93920158 | AI93: 109400 | AJ93: Ruawai-Matakohe | AK93: New Zealand | AL93: 0 | AM93: 0.53 | AN93: 0 | AO93: 0 | AP93: 0 | AQ93: 0.38 | AR93: 0 | AS93: 0 | AT93: 0.09 | AU93: 0 | AV93: 14.39 | AW93: 174.1465008 | AX93: -36.08478512
A94: 109500 | B94: Otamatea (Kaipara District) | C94: New Zealand | D94: 0 | E94: 0 | F94: 0 | G94: 0 | H94: 0.97 | I94: 0 | J94: 0.01 | K94: 0 | L94: 0.02 | M94: 0.02 | N94: 12.62 | O94: 174.3163461 | P94: -36.11269625 | R94: 109400 | S94: Ruawai-Matakohe | T94: New Zealand | U94: 0 | V94: 0 | W94: 0 | X94: 0 | Y94: 0.79 | Z94: 0.09 | AA94: 0.01 | AB94: 0.02 | AC94: 0.09 | AD94: 0.02 | AE94: 15.23 | AF94: 174.1465008 | AG94: -36.08478512 | AI94: 109500 | AJ94: Otamatea (Kaipara District) | AK94: New Zealand | AL94: 0 | AM94: 1 | AN94: 0 | AO94: 0 | AP94: 0 | AQ94: 0 | AR94: 0 | AS94: 0 | AT94: 0 | AU94: 0 | AV94: 8.83 | AW94: 174.3163461 | AX94: -36.11269625
A95: 109600 | B95: Maungaturoto | C95: New Zealand | D95: 0 | E95: 0 | F95: 0 | G95: 0 | H95: 0.84 | I95: 0.08 | J95: 0.01 | K95: 0 | L95: 0.07 | M95: 0.02 | N95: 7.46 | O95: 174.3469392 | P95: -36.10952458 | R95: 109500 | S95: Otamatea (Kaipara District) | T95: New Zealand | U95: 0 | V95: 0 | W95: 0 | X95: 0 | Y95: 0.89 | Z95: 0.06 | AA95: 0.01 | AB95: 0 | AC95: 0.04 | AD95: 0.02 | AE95: 7.19 | AF95: 174.3163461 | AG95: -36.11269625 | AI95: 109600 | AJ95: Maungaturoto | AK95: New Zealand | AL95: 0 | AM95: 0.49 | AN95: 0 | AO95: 0 | AP95: 0 | AQ95: 0.42 | AR95: 0 | AS95: 0 | AT95: 0.09 | AU95: 0 | AV95: 11.73 | AW95: 174.3469392 | AX95: -36.10952458
A96: 109700 | B96: Kaiwaka | C96: New Zealand | D96: 0 | E96: 0 | F96: 0 | G96: 0 | H96: 0.92 | I96: 0.02 | J96: 0.01 | K96: 0 | L96: 0.05 | M96: 0.02 | N96: 13.37 | O96: 174.4195324 | P96: -36.20145386 | R96: 109600 | S96: Maungaturoto | T96: New Zealand | U96: 0 | V96: 0 | W96: 0 | X96: 0 | Y96: 0.92 | Z96: 0.02 | AA96: 0.01 | AB96: 0 | AC96: 0.05 | AD96: 0.02 | AE96: 7.32 | AF96: 174.3469392 | AG96: -36.10952458 | AI96: 109700 | AJ96: Kaiwaka | AK96: New Zealand | AL96: 0 | AM96: 0.46 | AN96: 0 | AO96: 0 | AP96: 0 | AQ96: 0.48 | AR96: 0 | AS96: 0 | AT96: 0.06 | AU96: 0 | AV96: 9.42 | AW96: 174.4195324 | AX96: -36.20145386
A97: 109800 | B97: Mangawhai Rural | C97: New Zealand | D97: 0 | E97: 0 | F97: 0 | G97: 0 | H97: 0.99 | I97: 0 | J97: 0.01 | K97: 0 | L97: 0 | M97: 0.02 | N97: 8.45 | O97: 174.5455796 | P97: -36.11738276 | R97: 109700 | S97: Kaiwaka | T97: New Zealand | U97: 0 | V97: 0 | W97: 0 | X97: 0 | Y97: 0.92 | Z97: 0.02 | AA97: 0.01 | AB97: 0 | AC97: 0.05 | AD97: 0.02 | AE97: 12.58 | AF97: 174.4195324 | AG97: -36.20145386 | AI97: 109800 | AJ97: Mangawhai Rural | AK97: New Zealand | AL97: 0 | AM97: 0 | AN97: 0 | AO97: 0 | AP97: 0 | AQ97: 0 | AR97: 0 | AS97: 0 | AT97: 0 | AU97: 0 | AV97: 0 | AW97: 174.5455796 | AX97: -36.11738276
A98: 109900 | B98: Mangawhai Heads | C98: New Zealand | D98: 0 | E98: 0 | F98: 0 | G98: 0 | H98: 0.93 | I98: 0.02 | J98: 0.01 | K98: 0 | L98: 0.04 | M98: 0.02 | N98: 7.22 | O98: 174.5840667 | P98: -36.09442027 | R98: 109800 | S98: Mangawhai Rural | T98: New Zealand | U98: 0 | V98: 0 | W98: 0 | X98: 0 | Y98: 0.99 | Z98: 0 | AA98: 0.01 | AB98: 0 | AC98: 0 | AD98: 0.02 | AE98: 6.35 | AF98: 174.5455796 | AG98: -36.11738276 | AI98: 109900 | AJ98: Mangawhai Heads | AK98: New Zealand | AL98: 0 | AM98: 0 | AN98: 0 | AO98: 0 | AP98: 0 | AQ98: 0 | AR98: 0 | AS98: 0 | AT98: 0 | AU98: 0 | AV98: 0 | AW98: 174.5840667 | AX98: -36.09442027
A99: 110100 | B99: Mangawhai | C99: New Zealand | D99: 0 | E99: 0 | F99: 0 | G99: 0 | H99: 0.88 | I99: 0 | J99: 0.01 | K99: 0 | L99: 0.11 | M99: 0.02 | N99: 4.22 | O99: 174.5716672 | P99: -36.12240197 | R99: 109900 | S99: Mangawhai Heads | T99: New Zealand | U99: 0 | V99: 0 | W99: 0 | X99: 0 | Y99: 0.93 | Z99: 0.02 | AA99: 0.01 | AB99: 0 | AC99: 0.04 | AD99: 0.02 | AE99: 4.9 | AF99: 174.5840667 | AG99: -36.09442027 | AI99: 110100 | AJ99: Mangawhai | AK99: New Zealand | AL99: 0 | AM99: 0.3 | AN99: 0 | AO99: 0 | AP99: 0 | AQ99: 0.6 | AR99: 0 | AS99: 0.03 | AT99: 0.07 | AU99: 0 | AV99: 4.01 | AW99: 174.5716672 | AX99: -36.12240197
A100: 110200 | B100: Okahukura Peninsula | C100: New Zealand | D100: 0 | E100: 0 | F100: 0 | G100: 0 | H100: 0.96 | I100: 0.03 | J100: 0.01 | K100: 0 | L100: 0 | M100: 0.02 | N100: 20.8 | O100: 174.4018675 | P100: -36.33350311 | R100: 110100 | S100: Mangawhai | T100: New Zealand | U100: 0 | V100: 0 | W100: 0 | X100: 0 | Y100: 0.95 | Z100: 0 | AA100: 0.01 | AB100: 0 | AC100: 0.04 | AD100: 0.02 | AE100: 5.36 | AF100: 174.5716672 | AG100: -36.12240197 | AI100: 110200 | AJ100: Okahukura Peninsula | AK100: New Zealand | AL100: 0 | AM100: 1 | AN100: 0 | AO100: 0 | AP100: 0 | AQ100: 0 | AR100: 0 | AS100: 0 | AT100: 0 | AU100: 0 | AV100: 8.2 | AW100: 174.4018675 | AX100: -36.33350311
A101: 110400 | B101: Cape Rodney | C101: New Zealand | D101: 0 | E101: 0 | F101: 0 | G101: 0 | H101: 0.94 | I101: 0.02 | J101: 0.01 | K101: 0 | L101: 0.03 | M101: 0.02 | N101: 19.96 | O101: 174.6264313 | P101: -36.25434386 | R101: 110200 | S101: Okahukura Peninsula | T101: New Zealand | U101: 0 | V101: 0 | W101: 0 | X101: 0 | Y101: 0.99 | Z101: 0 | AA101: 0.01 | AB101: 0 | AC101: 0 | AD101: 0.02 | AE101: 11.14 | AF101: 174.4018675 | AG101: -36.33350311 | AI101: 110400 | AJ101: Cape Rodney | AK101: New Zealand | AL101: 0 | AM101: 0.42 | AN101: 0 | AO101: 0 | AP101: 0 | AQ101: 0.48 | AR101: 0 | AS101: 0 | AT101: 0.1 | AU101: 0 | AV101: 11.17 | AW101: 174.6264313 | AX101: -36.25434386
A102: 110500 | B102: Wellsford | C102: New Zealand | D102: 0 | E102: 0 | F102: 0 | G102: 0 | H102: 0.87 | I102: 0.05 | J102: 0.01 | K102: 0 | L102: 0.07 | M102: 0.02 | N102: 15.78 | O102: 174.5215278 | P102: -36.2928483 | R102: 110400 | S102: Cape Rodney | T102: New Zealand | U102: 0 | V102: 0 | W102: 0 | X102: 0 | Y102: 0.9 | Z102: 0.03 | AA102: 0.01 | AB102: 0 | AC102: 0.06 | AD102: 0.02 | AE102: 13.51 | AF102: 174.6264313 | AG102: -36.25434386 | AI102: 110500 | AJ102: Wellsford | AK102: New Zealand | AL102: 0 | AM102: 0.5 | AN102: 0 | AO102: 0 | AP102: 0.01 | AQ102: 0.38 | AR102: 0 | AS102: 0 | AT102: 0.11 | AU102: 0 | AV102: 9.55 | AW102: 174.5215278 | AX102: -36.2928483
A103: 110700 | B103: South Head | C103: New Zealand | D103: 0 | E103: 0 | F103: 0 | G103: 0 | H103: 0.99 | I103: 0 | J103: 0.01 | K103: 0 | L103: 0 | M103: 0.02 | N103: 28.78 | O103: 174.3123858 | P103: -36.59357482 | R103: 110500 | S103: Wellsford | T103: New Zealand | U103: 0 | V103: 0 | W103: 0 | X103: 0 | Y103: 0.88 | Z103: 0.05 | AA103: 0.01 | AB103: 0 | AC103: 0.06 | AD103: 0.02 | AE103: 9.91 | AF103: 174.5215278 | AG103: -36.2928483 | AI103: 110700 | AJ103: South Head | AK103: New Zealand | AL103: 0 | AM103: 0.54 | AN103: 0 | AO103: 0 | AP103: 0 | AQ103: 0.46 | AR103: 0 | AS103: 0 | AT103: 0 | AU103: 0 | AV103: 10.4 | AW103: 174.3123858 | AX103: -36.59357482
A104: 110800 | B104: Kaipara Hills | C104: New Zealand | D104: 0 | E104: 0 | F104: 0 | G104: 0 | H104: 0.99 | I104: 0 | J104: 0.01 | K104: 0 | L104: 0 | M104: 0.02 | N104: 26.17 | O104: 174.4888195 | P104: -36.46348663 | R104: 110700 | S104: South Head | T104: New Zealand | U104: 0 | V104: 0 | W104: 0 | X104: 0 | Y104: 0.93 | Z104: 0.06 | AA104: 0.01 | AB104: 0 | AC104: 0 | AD104: 0.02 | AE104: 13.05 | AF104: 174.3123858 | AG104: -36.59357482 | AI104: 110800 | AJ104: Kaipara Hills | AK104: New Zealand | AL104: 0 | AM104: 0.65 | AN104: 0 | AO104: 0 | AP104: 0 | AQ104: 0.35 | AR104: 0 | AS104: 0 | AT104: 0 | AU104: 0 | AV104: 10.45 | AW104: 174.4888195 | AX104: -36.46348663
A105: 110900 | B105: Dome Valley-Matakana | C105: New Zealand | D105: 0 | E105: 0 | F105: 0 | G105: 0 | H105: 0.9 | I105: 0.02 | J105: 0.01 | K105: 0 | L105: 0.07 | M105: 0.02 | N105: 11.21 | O105: 174.6541637 | P105: -36.34661293 | R105: 110800 | S105: Kaipara Hills | T105: New Zealand | U105: 0 | V105: 0 | W105: 0 | X105: 0 | Y105: 0.99 | Z105: 0 | AA105: 0.01 | AB105: 0 | AC105: 0 | AD105: 0.02 | AE105: 9.48 | AF105: 174.4888195 | AG105: -36.46348663 | AI105: 110900 | AJ105: Dome Valley-Matakana | AK105: New Zealand | AL105: 0 | AM105: 0.36 | AN105: 0 | AO105: 0 | AP105: 0 | AQ105: 0.61 | AR105: 0 | AS105: 0 | AT105: 0.03 | AU105: 0 | AV105: 8.6 | AW105: 174.6541637 | AX105: -36.34661293
A106: 111100 | B106: Warkworth West | C106: New Zealand | D106: 0 | E106: 0 | F106: 0 | G106: 0 | H106: 0.88 | I106: 0.03 | J106: 0.01 | K106: 0 | L106: 0.08 | M106: 0.02 | N106: 10.9 | O106: 174.6516007 | P106: -36.38893228 | R106: 110900 | S106: Dome Valley-Matakana | T106: New Zealand | U106: 0 | V106: 0 | W106: 0 | X106: 0 | Y106: 0.91 | Z106: 0.02 | AA106: 0.01 | AB106: 0 | AC106: 0.06 | AD106: 0.02 | AE106: 9.03 | AF106: 174.6541637 | AG106: -36.34661293 | AI106: 111100 | AJ106: Warkworth West | AK106: New Zealand | AL106: 0 | AM106: 0.44 | AN106: 0 | AO106: 0 | AP106: 0.01 | AQ106: 0.37 | AR106: 0 | AS106: 0 | AT106: 0.18 | AU106: 0 | AV106: 7.51 | AW106: 174.6516007 | AX106: -36.38893228
A107: 111200 | B107: Puhoi Valley | C107: New Zealand | D107: 0 | E107: 0.01 | F107: 0 | G107: 0 | H107: 0.95 | I107: 0.03 | J107: 0.01 | K107: 0 | L107: 0 | M107: 0.02 | N107: 21.11 | O107: 174.6247523 | P107: -36.46850912 | R107: 111100 | S107: Warkworth West | T107: New Zealand | U107: 0 | V107: 0 | W107: 0 | X107: 0 | Y107: 0.96 | Z107: 0 | AA107: 0.01 | AB107: 0 | AC107: 0.03 | AD107: 0.02 | AE107: 8.77 | AF107: 174.6516007 | AG107: -36.38893228 | AI107: 111200 | AJ107: Puhoi Valley | AK107: New Zealand | AL107: 0 | AM107: 0.35 | AN107: 0 | AO107: 0 | AP107: 0 | AQ107: 0.65 | AR107: 0 | AS107: 0 | AT107: 0 | AU107: 0 | AV107: 9.3 | AW107: 174.6247523 | AX107: -36.46850912
A108: 111300 | B108: Warkworth East | C108: New Zealand | D108: 0 | E108: 0 | F108: 0 | G108: 0 | H108: 0.85 | I108: 0.04 | J108: 0.01 | K108: 0 | L108: 0.1 | M108: 0.02 | N108: 9.8 | O108: 174.6679194 | P108: -36.40528692 | R108: 111200 | S108: Puhoi Valley | T108: New Zealand | U108: 0 | V108: 0 | W108: 0 | X108: 0 | Y108: 0.89 | Z108: 0.1 | AA108: 0.01 | AB108: 0 | AC108: 0 | AD108: 0.02 | AE108: 11.24 | AF108: 174.6247523 | AG108: -36.46850912 | AI108: 111300 | AJ108: Warkworth East | AK108: New Zealand | AL108: 0 | AM108: 0 | AN108: 0 | AO108: 0 | AP108: 0 | AQ108: 1 | AR108: 0 | AS108: 0 | AT108: 0 | AU108: 0 | AV108: 8.01 | AW108: 174.6679194 | AX108: -36.40528692
A109: 111400 | B109: Sandspit | C109: New Zealand | D109: 0 | E109: 0 | F109: 0 | G109: 0 | H109: 0.99 | I109: 0 | J109: 0.01 | K109: 0 | L109: 0 | M109: 0.02 | N109: 9.47 | O109: 174.6985472 | P109: -36.39777901 | R109: 111300 | S109: Warkworth East | T109: New Zealand | U109: 0 | V109: 0 | W109: 0 | X109: 0 | Y109: 0.85 | Z109: 0.06 | AA109: 0.01 | AB109: 0 | AC109: 0.08 | AD109: 0.02 | AE109: 7.73 | AF109: 174.6679194 | AG109: -36.40528692 | AI109: 111400 | AJ109: Sandspit | AK109: New Zealand | AL109: 0 | AM109: 0 | AN109: 0 | AO109: 0 | AP109: 0 | AQ109: 0 | AR109: 0 | AS109: 0 | AT109: 0 | AU109: 0 | AV109: 0 | AW109: 174.6985472 | AX109: -36.39777901
A110: 111500 | B110: Tawharanui Peninsula | C110: New Zealand | D110: 0 | E110: 0 | F110: 0 | G110: 0 | H110: 0.96 | I110: 0 | J110: 0.01 | K110: 0 | L110: 0.03 | M110: 0.02 | N110: 14.28 | O110: 174.7715087 | P110: -36.36143562 | R110: 111400 | S110: Sandspit | T110: New Zealand | U110: 0 | V110: 0 | W110: 0 | X110: 0 | Y110: 0.99 | Z110: 0 | AA110: 0.01 | AB110: 0 | AC110: 0 | AD110: 0.02 | AE110: 6.77 | AF110: 174.6985472 | AG110: -36.39777901 | AI110: 111500 | AJ110: Tawharanui Peninsula | AK110: New Zealand | AL110: 0 | AM110: 0 | AN110: 0 | AO110: 0 | AP110: 0 | AQ110: 0 | AR110: 0 | AS110: 0 | AT110: 0 | AU110: 0 | AV110: 0 | AW110: 174.7715087 | AX110: -36.36143562
A111: 111600 | B111: Te Kuru | C111: New Zealand | D111: 0 | E111: 0.03 | F111: 0 | G111: 0 | H111: 0.96 | I111: 0 | J111: 0.01 | K111: 0 | L111: 0 | M111: 0.02 | N111: 23.87 | O111: 174.4836448 | P111: -36.6033204 | R111: 111500 | S111: Tawharanui Peninsula | T111: New Zealand | U111: 0 | V111: 0 | W111: 0 | X111: 0 | Y111: 0.95 | Z111: 0 | AA111: 0.01 | AB111: 0 | AC111: 0.04 | AD111: 0.02 | AE111: 8.75 | AF111: 174.7715087 | AG111: -36.36143562 | AI111: 111600 | AJ111: Te Kuru | AK111: New Zealand | AL111: 0 | AM111: 0.25 | AN111: 0 | AO111: 0 | AP111: 0 | AQ111: 0.71 | AR111: 0 | AS111: 0 | AT111: 0.04 | AU111: 0 | AV111: 7.94 | AW111: 174.4836448 | AX111: -36.6033204
A112: 111700 | B112: Snells Beach | C112: New Zealand | D112: 0 | E112: 0 | F112: 0 | G112: 0 | H112: 0.91 | I112: 0.03 | J112: 0.01 | K112: 0 | L112: 0.05 | M112: 0.02 | N112: 12.24 | O112: 174.7251887 | P112: -36.42024184 | R112: 111600 | S112: Te Kuru | T112: New Zealand | U112: 0 | V112: 0 | W112: 0 | X112: 0 | Y112: 0.99 | Z112: 0 | AA112: 0.01 | AB112: 0 | AC112: 0 | AD112: 0.02 | AE112: 6.52 | AF112: 174.4836448 | AG112: -36.6033204 | AI112: 111700 | AJ112: Snells Beach | AK112: New Zealand | AL112: 0 | AM112: 0.08 | AN112: 0 | AO112: 0 | AP112: 0 | AQ112: 0.6 | AR112: 0 | AS112: 0.08 | AT112: 0.24 | AU112: 0 | AV112: 2.59 | AW112: 174.7251887 | AX112: -36.42024184
A113: 111800 | B113: Barrier Islands | C113: New Zealand | D113: 0 | E113: 0 | F113: 0 | G113: 0 | H113: 0.85 | I113: 0 | J113: 0.01 | K113: 0 | L113: 0.14 | M113: 0.02 | N113: 10.1 | O113: 175.3877446 | P113: -36.19824994 | R113: 111700 | S113: Snells Beach | T113: New Zealand | U113: 0 | V113: 0 | W113: 0 | X113: 0 | Y113: 0.86 | Z113: 0.03 | AA113: 0.01 | AB113: 0 | AC113: 0.1 | AD113: 0.02 | AE113: 5.14 | AF113: 174.7251887 | AG113: -36.42024184 | AI113: 111800 | AJ113: Barrier Islands | AK113: New Zealand | AL113: 0 | AM113: 0.42 | AN113: 0 | AO113: 0 | AP113: 0 | AQ113: 0.58 | AR113: 0 | AS113: 0 | AT113: 0 | AU113: 0 | AV113: 10.1 | AW113: 175.3877446 | AX113: -36.19824994
A114: 111900 | B114: Algies Bay-Scotts Landing | C114: New Zealand | D114: 0 | E114: 0 | F114: 0 | G114: 0 | H114: 0.99 | I114: 0 | J114: 0.01 | K114: 0 | L114: 0 | M114: 0.02 | N114: 11.33 | O114: 174.7460147 | P114: -36.45711683 | R114: 111800 | S114: Barrier Islands | T114: New Zealand | U114: 0 | V114: 0 | W114: 0 | X114: 0 | Y114: 0.85 | Z114: 0 | AA114: 0.01 | AB114: 0 | AC114: 0.14 | AD114: 0.02 | AE114: 10.1 | AF114: 175.3877446 | AG114: -36.19824994 | AI114: 111900 | AJ114: Algies Bay-Scotts Landing | AK114: New Zealand | AL114: 0 | AM114: 0 | AN114: 0 | AO114: 0 | AP114: 0 | AQ114: 0 | AR114: 0 | AS114: 0 | AT114: 0 | AU114: 0 | AV114: 0 | AW114: 174.7460147 | AX114: -36.45711683
A115: 112100 | B115: Wainui-Waiwera | C115: New Zealand | D115: 0 | E115: 0 | F115: 0 | G115: 0 | H115: 0.99 | I115: 0 | J115: 0.01 | K115: 0 | L115: 0 | M115: 0.02 | N115: 16.29 | O115: 174.6027253 | P115: -36.58041132 | R115: 111900 | S115: Algies Bay-Scotts Landing | T115: New Zealand | U115: 0 | V115: 0 | W115: 0 | X115: 0 | Y115: 0.99 | Z115: 0 | AA115: 0.01 | AB115: 0 | AC115: 0 | AD115: 0.02 | AE115: 4.32 | AF115: 174.7460147 | AG115: -36.45711683 | AI115: 112100 | AJ115: Wainui-Waiwera | AK115: New Zealand | AL115: 0 | AM115: 0 | AN115: 0 | AO115: 0 | AP115: 0 | AQ115: 0 | AR115: 0 | AS115: 0 | AT115: 0 | AU115: 0 | AV115: 0 | AW115: 174.6027253 | AX115: -36.58041132
A116: 112200 | B116: Parakai | C116: New Zealand | D116: 0 | E116: 0 | F116: 0 | G116: 0 | H116: 0.87 | I116: 0 | J116: 0.01 | K116: 0 | L116: 0.12 | M116: 0.02 | N116: 13.75 | O116: 174.4359929 | P116: -36.65763462 | R116: 112100 | S116: Wainui-Waiwera | T116: New Zealand | U116: 0 | V116: 0 | W116: 0 | X116: 0 | Y116: 0.99 | Z116: 0 | AA116: 0.01 | AB116: 0 | AC116: 0 | AD116: 0.02 | AE116: 5.01 | AF116: 174.6027253 | AG116: -36.58041132 | AI116: 112200 | AJ116: Parakai | AK116: New Zealand | AL116: 0 | AM116: 0.1 | AN116: 0 | AO116: 0 | AP116: 0 | AQ116: 0.49 | AR116: 0 | AS116: 0 | AT116: 0.41 | AU116: 0 | AV116: 4.37 | AW116: 174.4359929 | AX116: -36.65763462
A117: 112300 | B117: Helensville Rural | C117: New Zealand | D117: 0 | E117: 0 | F117: 0 | G117: 0 | H117: 0.99 | I117: 0 | J117: 0.01 | K117: 0 | L117: 0 | M117: 0.02 | N117: 15.68 | O117: 174.471121 | P117: -36.68764661 | R117: 112200 | S117: Parakai | T117: New Zealand | U117: 0 | V117: 0 | W117: 0 | X117: 0 | Y117: 0.71 | Z117: 0.09 | AA117: 0.01 | AB117: 0 | AC117: 0.19 | AD117: 0.02 | AE117: 4.86 | AF117: 174.4359929 | AG117: -36.65763462 | AI117: 112300 | AJ117: Helensville Rural | AK117: New Zealand | AL117: 0 | AM117: 0 | AN117: 0 | AO117: 0 | AP117: 0 | AQ117: 0 | AR117: 0 | AS117: 0 | AT117: 0 | AU117: 0 | AV117: 0 | AW117: 174.471121 | AX117: -36.68764661
A118: 112400 | B118: Helensville | C118: New Zealand | D118: 0 | E118: 0 | F118: 0 | G118: 0 | H118: 0.86 | I118: 0.04 | J118: 0.01 | K118: 0 | L118: 0.09 | M118: 0.02 | N118: 13.84 | O118: 174.4542527 | P118: -36.67496915 | R118: 112300 | S118: Helensville Rural | T118: New Zealand | U118: 0 | V118: 0 | W118: 0 | X118: 0 | Y118: 0.99 | Z118: 0 | AA118: 0.01 | AB118: 0 | AC118: 0 | AD118: 0.02 | AE118: 4.26 | AF118: 174.471121 | AG118: -36.68764661 | AI118: 112400 | AJ118: Helensville | AK118: New Zealand | AL118: 0 | AM118: 0.35 | AN118: 0 | AO118: 0 | AP118: 0.01 | AQ118: 0.44 | AR118: 0 | AS118: 0 | AT118: 0.2 | AU118: 0 | AV118: 6.49 | AW118: 174.4542527 | AX118: -36.67496915
A119: 112500 | B119: Waitoki | C119: New Zealand | D119: 0 | E119: 0 | F119: 0 | G119: 0 | H119: 0.97 | I119: 0.02 | J119: 0.01 | K119: 0 | L119: 0 | M119: 0.02 | N119: 15.51 | O119: 174.5842346 | P119: -36.63734759 | R119: 112400 | S119: Helensville | T119: New Zealand | U119: 0 | V119: 0 | W119: 0 | X119: 0 | Y119: 0.86 | Z119: 0.02 | AA119: 0.01 | AB119: 0 | AC119: 0.11 | AD119: 0.02 | AE119: 5.17 | AF119: 174.4542527 | AG119: -36.67496915 | AI119: 112500 | AJ119: Waitoki | AK119: New Zealand | AL119: 0 | AM119: 0.35 | AN119: 0 | AO119: 0 | AP119: 0 | AQ119: 0.65 | AR119: 0 | AS119: 0 | AT119: 0 | AU119: 0 | AV119: 10.43 | AW119: 174.5842346 | AX119: -36.63734759
A120: 112600 | B120: Waikoukou Valley | C120: New Zealand | D120: 0 | E120: 0.02 | F120: 0 | G120: 0 | H120: 0.97 | I120: 0 | J120: 0.01 | K120: 0 | L120: 0 | M120: 0.02 | N120: 17.87 | O120: 174.5157411 | P120: -36.70989198 | R120: 112500 | S120: Waitoki | T120: New Zealand | U120: 0 | V120: 0 | W120: 0 | X120: 0 | Y120: 0.99 | Z120: 0 | AA120: 0.01 | AB120: 0 | AC120: 0 | AD120: 0.02 | AE120: 8.14 | AF120: 174.5842346 | AG120: -36.63734759 | AI120: 112600 | AJ120: Waikoukou Valley | AK120: New Zealand | AL120: 0 | AM120: 0 | AN120: 0 | AO120: 0 | AP120: 0 | AQ120: 1 | AR120: 0 | AS120: 0 | AT120: 0 | AU120: 0 | AV120: 9.76 | AW120: 174.5157411 | AX120: -36.70989198
A121: 112700 | B121: Orewa North | C121: New Zealand | D121: 0 | E121: 0.06 | F121: 0 | G121: 0 | H121: 0.89 | I121: 0.01 | J121: 0.01 | K121: 0 | L121: 0.03 | M121: 0.02 | N121: 16.65 | O121: 174.6758646 | P121: -36.58108865 | R121: 112600 | S121: Waikoukou Valley | T121: New Zealand | U121: 0 | V121: 0 | W121: 0 | X121: 0 | Y121: 0.99 | Z121: 0 | AA121: 0.01 | AB121: 0 | AC121: 0 | AD121: 0.02 | AE121: 7.57 | AF121: 174.5157411 | AG121: -36.70989198 | AI121: 112700 | AJ121: Orewa North | AK121: New Zealand | AL121: 0 | AM121: 0.01 | AN121: 0 | AO121: 0 | AP121: 0 | AQ121: 0.79 | AR121: 0 | AS121: 0.01 | AT121: 0.19 | AU121: 0 | AV121: 2.91 | AW121: 174.6758646 | AX121: -36.58108865
A122: 112800 | B122: Hatfields Beach | C122: New Zealand | D122: 0 | E122: 0.03 | F122: 0 | G122: 0 | H122: 0.96 | I122: 0 | J122: 0.01 | K122: 0 | L122: 0 | M122: 0.02 | N122: 13.82 | O122: 174.6893556 | P122: -36.57001949 | R122: 112700 | S122: Orewa North | T122: New Zealand | U122: 0 | V122: 0 | W122: 0 | X122: 0 | Y122: 0.83 | Z122: 0 | AA122: 0.01 | AB122: 0 | AC122: 0.16 | AD122: 0.02 | AE122: 3.59 | AF122: 174.6758646 | AG122: -36.58108865 | AI122: 112800 | AJ122: Hatfields Beach | AK122: New Zealand | AL122: 0 | AM122: 0 | AN122: 0 | AO122: 0 | AP122: 0 | AQ122: 0 | AR122: 0 | AS122: 0 | AT122: 0 | AU122: 0 | AV122: 0 | AW122: 174.6893556 | AX122: -36.57001949
A123: 112900 | B123: Orewa South | C123: New Zealand | D123: 0 | E123: 0.01 | F123: 0 | G123: 0 | H123: 0.91 | I123: 0 | J123: 0.01 | K123: 0 | L123: 0.07 | M123: 0.02 | N123: 11.97 | O123: 174.6789611 | P123: -36.59101498 | R123: 112800 | S123: Hatfields Beach | T123: New Zealand | U123: 0 | V123: 0 | W123: 0 | X123: 0 | Y123: 0 | Z123: 0 | AA123: 0 | AB123: 0 | AC123: 0 | AD123: 0.02 | AE123: 0 | AF123: 174.6893556 | AG123: -36.57001949 | AI123: 112900 | AJ123: Orewa South | AK123: New Zealand | AL123: 0 | AM123: 0.34 | AN123: 0 | AO123: 0 | AP123: 0.04 | AQ123: 0.34 | AR123: 0 | AS123: 0.08 | AT123: 0.2 | AU123: 0 | AV123: 4.35 | AW123: 174.6789611 | AX123: -36.59101498
A124: 113000 | B124: Orewa Central | C124: New Zealand | D124: 0 | E124: 0.06 | F124: 0 | G124: 0 | H124: 0.82 | I124: 0 | J124: 0.01 | K124: 0 | L124: 0.11 | M124: 0.02 | N124: 13.01 | O124: 174.6944528 | P124: -36.58726477 | R124: 112900 | S124: Orewa South | T124: New Zealand | U124: 0 | V124: 0 | W124: 0 | X124: 0 | Y124: 0.96 | Z124: 0 | AA124: 0.01 | AB124: 0 | AC124: 0.03 | AD124: 0.02 | AE124: 5.41 | AF124: 174.6789611 | AG124: -36.59101498 | AI124: 113000 | AJ124: Orewa Central | AK124: New Zealand | AL124: 0 | AM124: 0 | AN124: 0 | AO124: 0 | AP124: 0 | AQ124: 1 | AR124: 0 | AS124: 0 | AT124: 0 | AU124: 0 | AV124: 1.45 | AW124: 174.6944528 | AX124: -36.58726477
A125: 113100 | B125: Millwater North | C125: New Zealand | D125: 0 | E125: 0.12 | F125: 0 | G125: 0 | H125: 0.86 | I125: 0.01 | J125: 0.01 | K125: 0 | L125: 0 | M125: 0.02 | N125: 17.54 | O125: 174.6722756 | P125: -36.6014983 | R125: 113000 | S125: Orewa Central | T125: New Zealand | U125: 0 | V125: 0 | W125: 0 | X125: 0 | Y125: 0.9 | Z125: 0.01 | AA125: 0.01 | AB125: 0.01 | AC125: 0.07 | AD125: 0.02 | AE125: 6.35 | AF125: 174.6944528 | AG125: -36.58726477 | AI125: 113100 | AJ125: Millwater North | AK125: New Zealand | AL125: 0 | AM125: 0 | AN125: 0 | AO125: 0 | AP125: 0 | AQ125: 1 | AR125: 0 | AS125: 0 | AT125: 0 | AU125: 0 | AV125: 0.75 | AW125: 174.6722756 | AX125: -36.6014983
A126: 113200 | B126: Waipatukahu | C126: New Zealand | D126: 0 | E126: 0 | F126: 0 | G126: 0 | H126: 0.97 | I126: 0 | J126: 0.01 | K126: 0 | L126: 0.02 | M126: 0.02 | N126: 16.54 | O126: 174.445023 | P126: -36.78130871 | R126: 113100 | S126: Millwater North | T126: New Zealand | U126: 0 | V126: 0 | W126: 0 | X126: 0 | Y126: 0.99 | Z126: 0 | AA126: 0.01 | AB126: 0 | AC126: 0 | AD126: 0.02 | AE126: 0.75 | AF126: 174.6722756 | AG126: -36.6014983 | AI126: 113200 | AJ126: Waipatukahu | AK126: New Zealand | AL126: 0 | AM126: 0 | AN126: 0 | AO126: 0 | AP126: 0 | AQ126: 0 | AR126: 0 | AS126: 0 | AT126: 0 | AU126: 0 | AV126: 0 | AW126: 174.445023 | AX126: -36.78130871
A127: 113300 | B127: Millwater South | C127: New Zealand | D127: 0 | E127: 0.13 | F127: 0 | G127: 0 | H127: 0.86 | I127: 0 | J127: 0.01 | K127: 0 | L127: 0 | M127: 0.02 | N127: 18.32 | O127: 174.6700085 | P127: -36.61231012 | R127: 113200 | S127: Waipatukahu | T127: New Zealand | U127: 0 | V127: 0 | W127: 0 | X127: 0 | Y127: 0.74 | Z127: 0 | AA127: 0.01 | AB127: 0 | AC127: 0.25 | AD127: 0.02 | AE127: 4.89 | AF127: 174.445023 | AG127: -36.78130871 | AI127: 113300 | AJ127: Millwater South | AK127: New Zealand | AL127: 0 | AM127: 0.04 | AN127: 0 | AO127: 0 | AP127: 0 | AQ127: 0.8 | AR127: 0 | AS127: 0.02 | AT127: 0.14 | AU127: 0 | AV127: 2.51 | AW127: 174.6700085 | AX127: -36.61231012
A128: 113400 | B128: Dairy Flat North | C128: New Zealand | D128: 0 | E128: 0.02 | F128: 0 | G128: 0 | H128: 0.95 | I128: 0 | J128: 0.01 | K128: 0 | L128: 0.02 | M128: 0.02 | N128: 11.35 | O128: 174.6537422 | P128: -36.6446947 | R128: 113300 | S128: Millwater South | T128: New Zealand | U128: 0 | V128: 0 | W128: 0 | X128: 0 | Y128: 0.99 | Z128: 0 | AA128: 0.01 | AB128: 0 | AC128: 0 | AD128: 0.02 | AE128: 4.38 | AF128: 174.6700085 | AG128: -36.61231012 | AI128: 113400 | AJ128: Dairy Flat North | AK128: New Zealand | AL128: 0 | AM128: 0.27 | AN128: 0 | AO128: 0 | AP128: 0 | AQ128: 0.73 | AR128: 0 | AS128: 0 | AT128: 0 | AU128: 0 | AV128: 5.17 | AW128: 174.6537422 | AX128: -36.6446947
A129: 113500 | B129: Dairy Flat West | C129: New Zealand | D129: 0 | E129: 0.02 | F129: 0 | G129: 0 | H129: 0.97 | I129: 0 | J129: 0.01 | K129: 0 | L129: 0 | M129: 0.02 | N129: 12.73 | O129: 174.6189121 | P129: -36.67100483 | R129: 113400 | S129: Dairy Flat North | T129: New Zealand | U129: 0 | V129: 0 | W129: 0 | X129: 0 | Y129: 0.93 | Z129: 0 | AA129: 0.01 | AB129: 0 | AC129: 0.06 | AD129: 0.02 | AE129: 6.35 | AF129: 174.6537422 | AG129: -36.6446947 | AI129: 113500 | AJ129: Dairy Flat West | AK129: New Zealand | AL129: 0 | AM129: 0 | AN129: 0 | AO129: 0 | AP129: 0 | AQ129: 0 | AR129: 0 | AS129: 0 | AT129: 0 | AU129: 0 | AV129: 0 | AW129: 174.6189121 | AX129: -36.67100483
A130: 113600 | B130: Kingsway | C130: New Zealand | D130: 0 | E130: 0.02 | F130: 0 | G130: 0 | H130: 0.92 | I130: 0.02 | J130: 0.01 | K130: 0.01 | L130: 0.02 | M130: 0.02 | N130: 10.58 | O130: 174.6865144 | P130: -36.60606427 | R130: 113500 | S130: Dairy Flat West | T130: New Zealand | U130: 0 | V130: 0 | W130: 0 | X130: 0 | Y130: 0.99 | Z130: 0 | AA130: 0.01 | AB130: 0 | AC130: 0 | AD130: 0.02 | AE130: 5.47 | AF130: 174.6189121 | AG130: -36.67100483 | AI130: 113600 | AJ130: Kingsway | AK130: New Zealand | AL130: 0 | AM130: 0.31 | AN130: 0 | AO130: 0 | AP130: 0 | AQ130: 0.5 | AR130: 0 | AS130: 0.01 | AT130: 0.18 | AU130: 0 | AV130: 4.93 | AW130: 174.6865144 | AX130: -36.60606427
A131: 113800 | B131: Silverdale Central (Auckland) | C131: New Zealand | D131: 0 | E131: 0 | F131: 0 | G131: 0 | H131: 0.77 | I131: 0 | J131: 0.01 | K131: 0 | L131: 0.22 | M131: 0.02 | N131: 2.24 | O131: 174.6749306 | P131: -36.62402013 | R131: 113600 | S131: Kingsway | T131: New Zealand | U131: 0 | V131: 0 | W131: 0 | X131: 0 | Y131: 0.99 | Z131: 0 | AA131: 0.01 | AB131: 0 | AC131: 0 | AD131: 0.02 | AE131: 2.25 | AF131: 174.6865144 | AG131: -36.60606427 | AI131: 113800 | AJ131: Silverdale Central (Auckland) | AK131: New Zealand | AL131: 0 | AM131: 0 | AN131: 0 | AO131: 0 | AP131: 0 | AQ131: 1 | AR131: 0 | AS131: 0 | AT131: 0 | AU131: 0 | AV131: 2.13 | AW131: 174.6749306 | AX131: -36.62402013
A132: 113900 | B132: Red Beach West | C132: New Zealand | D132: 0 | E132: 0.04 | F132: 0 | G132: 0 | H132: 0.91 | I132: 0.02 | J132: 0.01 | K132: 0 | L132: 0.02 | M132: 0.02 | N132: 11.41 | O132: 174.6954596 | P132: -36.61127031 | R132: 113800 | S132: Silverdale Central (Auckland) | T132: New Zealand | U132: 0 | V132: 0.01 | W132: 0 | X132: 0 | Y132: 0.95 | Z132: 0.02 | AA132: 0.01 | AB132: 0 | AC132: 0.01 | AD132: 0.02 | AE132: 9.32 | AF132: 174.6749306 | AG132: -36.62402013 | AI132: 113900 | AJ132: Red Beach West | AK132: New Zealand | AL132: 0 | AM132: 0 | AN132: 0 | AO132: 0 | AP132: 0 | AQ132: 0 | AR132: 0 | AS132: 0 | AT132: 0 | AU132: 0 | AV132: 0 | AW132: 174.6954596 | AX132: -36.61127031
A133: 114000 | B133: Red Beach East | C133: New Zealand | D133: 0 | E133: 0.08 | F133: 0 | G133: 0 | H133: 0.88 | I133: 0.02 | J133: 0.01 | K133: 0 | L133: 0.01 | M133: 0.02 | N133: 12.81 | O133: 174.7048899 | P133: -36.60592118 | R133: 113900 | S133: Red Beach West | T133: New Zealand | U133: 0 | V133: 0 | W133: 0 | X133: 0 | Y133: 0.95 | Z133: 0 | AA133: 0.01 | AB133: 0 | AC133: 0.04 | AD133: 0.02 | AE133: 3.86 | AF133: 174.6954596 | AG133: -36.61127031 | AI133: 114000 | AJ133: Red Beach East | AK133: New Zealand | AL133: 0 | AM133: 0 | AN133: 0 | AO133: 0 | AP133: 0 | AQ133: 0.72 | AR133: 0 | AS133: 0.01 | AT133: 0.27 | AU133: 0 | AV133: 1.67 | AW133: 174.7048899 | AX133: -36.60592118
A134: 114100 | B134: Silverdale South (Auckland) | C134: New Zealand | D134: 0 | E134: 0.01 | F134: 0 | G134: 0 | H134: 0.96 | I134: 0.01 | J134: 0.01 | K134: 0 | L134: 0.01 | M134: 0.02 | N134: 11.87 | O134: 174.6879166 | P134: -36.63663655 | R134: 114000 | S134: Red Beach East | T134: New Zealand | U134: 0 | V134: 0 | W134: 0 | X134: 0 | Y134: 0.91 | Z134: 0 | AA134: 0.01 | AB134: 0 | AC134: 0.08 | AD134: 0.02 | AE134: 2.62 | AF134: 174.7048899 | AG134: -36.60592118 | AI134: 114100 | AJ134: Silverdale South (Auckland) | AK134: New Zealand | AL134: 0 | AM134: 0 | AN134: 0 | AO134: 0 | AP134: 0 | AQ134: 1 | AR134: 0 | AS134: 0 | AT134: 0 | AU134: 0 | AV134: 1.8 | AW134: 174.6879166 | AX134: -36.63663655
A135: 114200 | B135: Waimauku | C135: New Zealand | D135: 0 | E135: 0 | F135: 0 | G135: 0 | H135: 0.96 | I135: 0 | J135: 0.01 | K135: 0 | L135: 0.03 | M135: 0.02 | N135: 15.99 | O135: 174.4790399 | P135: -36.77727784 | R135: 114100 | S135: Silverdale South (Auckland) | T135: New Zealand | U135: 0 | V135: 0 | W135: 0 | X135: 0 | Y135: 0.82 | Z135: 0 | AA135: 0.01 | AB135: 0 | AC135: 0.17 | AD135: 0.02 | AE135: 1.8 | AF135: 174.6879166 | AG135: -36.63663655 | AI135: 114200 | AJ135: Waimauku | AK135: New Zealand | AL135: 0 | AM135: 0.29 | AN135: 0 | AO135: 0 | AP135: 0 | AQ135: 0.59 | AR135: 0 | AS135: 0 | AT135: 0.12 | AU135: 0 | AV135: 5.77 | AW135: 174.4790399 | AX135: -36.77727784
A136: 114300 | B136: Gulf Islands | C136: New Zealand | D136: 0 | E136: 0 | F136: 0 | G136: 0 | H136: 0 | I136: 0 | J136: 0 | K136: 0 | L136: 0 | M136: 0.02 | N136: 0 | O136: 174.8755435 | P136: -36.6581464 | R136: 114200 | S136: Waimauku | T136: New Zealand | U136: 0 | V136: 0 | W136: 0 | X136: 0 | Y136: 0.92 | Z136: 0 | AA136: 0.01 | AB136: 0 | AC136: 0.07 | AD136: 0.02 | AE136: 7.05 | AF136: 174.4790399 | AG136: -36.77727784 | AI136: 114400 | AJ136: Vipond | AK136: New Zealand | AL136: 0 | AM136: 0 | AN136: 0 | AO136: 0 | AP136: 0 | AQ136: 1 | AR136: 0 | AS136: 0 | AT136: 0 | AU136: 0 | AV136: 4.24 | AW136: 174.7180399 | AX136: -36.61796366
A137: 114400 | B137: Vipond | C137: New Zealand | D137: 0 | E137: 0.04 | F137: 0 | G137: 0 | H137: 0.93 | I137: 0.01 | J137: 0.01 | K137: 0 | L137: 0.01 | M137: 0.02 | N137: 11.59 | O137: 174.7180399 | P137: -36.61796366 | R137: 114300 | S137: Gulf Islands | T137: New Zealand | U137: 0 | V137: 0 | W137: 0 | X137: 0 | Y137: 0 | Z137: 0 | AA137: 0 | AB137: 0 | AC137: 0 | AD137: 0.02 | AE137: 0 | AF137: 174.8755435 | AG137: -36.6581464 | AI137: 114500 | AJ137: Muriwai | AK137: New Zealand | AL137: 0 | AM137: 0 | AN137: 0 | AO137: 0 | AP137: 0 | AQ137: 0 | AR137: 0 | AS137: 0 | AT137: 0 | AU137: 0 | AV137: 0 | AW137: 174.4292264 | AX137: -36.82525102
A138: 114500 | B138: Muriwai | C138: New Zealand | D138: 0 | E138: 0 | F138: 0 | G138: 0 | H138: 0.99 | I138: 0 | J138: 0.01 | K138: 0 | L138: 0 | M138: 0.02 | N138: 18.63 | O138: 174.4292264 | P138: -36.82525102 | R138: 114400 | S138: Vipond | T138: New Zealand | U138: 0 | V138: 0 | W138: 0 | X138: 0 | Y138: 0.89 | Z138: 0 | AA138: 0.01 | AB138: 0 | AC138: 0.1 | AD138: 0.02 | AE138: 2.52 | AF138: 174.7180399 | AG138: -36.61796366 | AI138: 114600 | AJ138: Stanmore Bay West | AK138: New Zealand | AL138: 0 | AM138: 0.01 | AN138: 0 | AO138: 0 | AP138: 0 | AQ138: 0.73 | AR138: 0 | AS138: 0.01 | AT138: 0.25 | AU138: 0 | AV138: 1.61 | AW138: 174.727836 | AX138: -36.62371099
A139: 114600 | B139: Stanmore Bay West | C139: New Zealand | D139: 0 | E139: 0.03 | F139: 0 | G139: 0 | H139: 0.94 | I139: 0 | J139: 0.01 | K139: 0 | L139: 0.02 | M139: 0.02 | N139: 11.59 | O139: 174.727836 | P139: -36.62371099 | R139: 114500 | S139: Muriwai | T139: New Zealand | U139: 0 | V139: 0 | W139: 0 | X139: 0 | Y139: 0.99 | Z139: 0 | AA139: 0.01 | AB139: 0 | AC139: 0 | AD139: 0.02 | AE139: 0.98 | AF139: 174.4292264 | AG139: -36.82525102 | AI139: 114700 | AJ139: Kumeu Rural West | AK139: New Zealand | AL139: 0 | AM139: 0 | AN139: 0 | AO139: 0 | AP139: 0 | AQ139: 0 | AR139: 0 | AS139: 0 | AT139: 0 | AU139: 0 | AV139: 0 | AW139: 174.5213384 | AX139: -36.79039063
A140: 114700 | B140: Kumeu Rural West | C140: New Zealand | D140: 0 | E140: 0 | F140: 0 | G140: 0 | H140: 0.97 | I140: 0.02 | J140: 0.01 | K140: 0 | L140: 0 | M140: 0.02 | N140: 12.99 | O140: 174.5213384 | P140: -36.79039063 | R140: 114600 | S140: Stanmore Bay West | T140: New Zealand | U140: 0 | V140: 0 | W140: 0 | X140: 0 | Y140: 0.87 | Z140: 0 | AA140: 0.01 | AB140: 0 | AC140: 0.12 | AD140: 0.02 | AE140: 2.49 | AF140: 174.727836 | AG140: -36.62371099 | AI140: 114800 | AJ140: Okura Bush | AK140: New Zealand | AL140: 0 | AM140: 0 | AN140: 0 | AO140: 0 | AP140: 0 | AQ140: 0 | AR140: 0 | AS140: 0 | AT140: 0 | AU140: 0 | AV140: 0 | AW140: 174.7099226 | AX140: -36.66711378
A141: 114800 | B141: Okura Bush | C141: New Zealand | D141: 0 | E141: 0.06 | F141: 0 | G141: 0 | H141: 0.93 | I141: 0 | J141: 0.01 | K141: 0 | L141: 0 | M141: 0.02 | N141: 11.23 | O141: 174.7099226 | P141: -36.66711378 | R141: 114700 | S141: Kumeu Rural West | T141: New Zealand | U141: 0 | V141: 0 | W141: 0 | X141: 0 | Y141: 0.99 | Z141: 0 | AA141: 0.01 | AB141: 0 | AC141: 0 | AD141: 0.02 | AE141: 4.77 | AF141: 174.5213384 | AG141: -36.79039063 | AI141: 114900 | AJ141: Whangaparoa Central | AK141: New Zealand | AL141: 0 | AM141: 0 | AN141: 0 | AO141: 0 | AP141: 0 | AQ141: 1 | AR141: 0 | AS141: 0 | AT141: 0 | AU141: 0 | AV141: 2.88 | AW141: 174.7335833 | AX141: -36.63661523
A142: 114900 | B142: Whangaparoa Central | C142: New Zealand | D142: 0 | E142: 0.06 | F142: 0 | G142: 0 | H142: 0.89 | I142: 0.02 | J142: 0.01 | K142: 0 | L142: 0.02 | M142: 0.02 | N142: 11.37 | O142: 174.7335833 | P142: -36.63661523 | R142: 114800 | S142: Okura Bush | T142: New Zealand | U142: 0 | V142: 0 | W142: 0 | X142: 0 | Y142: 0.99 | Z142: 0 | AA142: 0.01 | AB142: 0 | AC142: 0 | AD142: 0.02 | AE142: 3.04 | AF142: 174.7099226 | AG142: -36.66711378 | AI142: 115000 | AJ142: Kumeu-Huapai | AK142: New Zealand | AL142: 0 | AM142: 0 | AN142: 0 | AO142: 0 | AP142: 0 | AQ142: 0.87 | AR142: 0 | AS142: 0.05 | AT142: 0.08 | AU142: 0 | AV142: 3.27 | AW142: 174.5428667 | AX142: -36.76998293
A143: 115000 | B143: Kumeu-Huapai | C143: New Zealand | D143: 0 | E143: 0.01 | F143: 0 | G143: 0 | H143: 0.96 | I143: 0 | J143: 0.01 | K143: 0 | L143: 0.02 | M143: 0.02 | N143: 15.73 | O143: 174.5428667 | P143: -36.76998293 | R143: 114900 | S143: Whangaparoa Central | T143: New Zealand | U143: 0 | V143: 0.01 | W143: 0 | X143: 0 | Y143: 0.91 | Z143: 0.02 | AA143: 0.01 | AB143: 0 | AC143: 0.05 | AD143: 0.02 | AE143: 4.16 | AF143: 174.7335833 | AG143: -36.63661523 | AI143: 115100 | AJ143: Stanmore Bay East | AK143: New Zealand | AL143: 0 | AM143: 0.28 | AN143: 0 | AO143: 0 | AP143: 0.02 | AQ143: 0.37 | AR143: 0 | AS143: 0.01 | AT143: 0.32 | AU143: 0 | AV143: 2.73 | AW143: 174.7417636 | AX143: -36.6293262
A144: 115100 | B144: Stanmore Bay East | C144: New Zealand | D144: 0 | E144: 0.05 | F144: 0 | G144: 0 | H144: 0.89 | I144: 0.01 | J144: 0.01 | K144: 0 | L144: 0.04 | M144: 0.02 | N144: 9.84 | O144: 174.7417636 | P144: -36.6293262 | R144: 115000 | S144: Kumeu-Huapai | T144: New Zealand | U144: 0 | V144: 0 | W144: 0 | X144: 0 | Y144: 0.96 | Z144: 0.01 | AA144: 0.01 | AB144: 0 | AC144: 0.02 | AD144: 0.02 | AE144: 8.9 | AF144: 174.5428667 | AG144: -36.76998293 | AI144: 115200 | AJ144: Manly West | AK144: New Zealand | AL144: 0 | AM144: 0 | AN144: 0 | AO144: 0 | AP144: 0 | AQ144: 1 | AR144: 0 | AS144: 0 | AT144: 0 | AU144: 0 | AV144: 1.7 | AW144: 174.7502976 | AX144: -36.62973708
A145: 115200 | B145: Manly West | C145: New Zealand | D145: 0 | E145: 0.06 | F145: 0 | G145: 0 | H145: 0.92 | I145: 0 | J145: 0.01 | K145: 0 | L145: 0.01 | M145: 0.02 | N145: 9.96 | O145: 174.7502976 | P145: -36.62973708 | R145: 115100 | S145: Stanmore Bay East | T145: New Zealand | U145: 0 | V145: 0 | W145: 0 | X145: 0 | Y145: 0.93 | Z145: 0 | AA145: 0.01 | AB145: 0 | AC145: 0.06 | AD145: 0.02 | AE145: 2.55 | AF145: 174.7417636 | AG145: -36.6293262 | AI145: 115300 | AJ145: Muriwai Valley-Bethells Beach | AK145: New Zealand | AL145: 0 | AM145: 0 | AN145: 0 | AO145: 0 | AP145: 0 | AQ145: 0 | AR145: 0 | AS145: 0 | AT145: 0 | AU145: 0 | AV145: 0 | AW145: 174.4606891 | AX145: -36.84648724
A146: 115300 | B146: Muriwai Valley-Bethells Beach | C146: New Zealand | D146: 0 | E146: 0 | F146: 0 | G146: 0 | H146: 0.99 | I146: 0 | J146: 0.01 | K146: 0 | L146: 0 | M146: 0.02 | N146: 17.78 | O146: 174.4606891 | P146: -36.84648724 | R146: 115200 | S146: Manly West | T146: New Zealand | U146: 0 | V146: 0 | W146: 0 | X146: 0 | Y146: 0.99 | Z146: 0 | AA146: 0.01 | AB146: 0 | AC146: 0 | AD146: 0.02 | AE146: 0.67 | AF146: 174.7502976 | AG146: -36.62973708 | AI146: 115400 | AJ146: Tindalls-Matakatia | AK146: New Zealand | AL146: 0 | AM146: 0 | AN146: 0 | AO146: 0 | AP146: 0 | AQ146: 0 | AR146: 0 | AS146: 0 | AT146: 0 | AU146: 0 | AV146: 0 | AW146: 174.7770413 | AX146: -36.61664367
A147: 115400 | B147: Tindalls-Matakatia | C147: New Zealand | D147: 0 | E147: 0 | F147: 0.02 | G147: 0 | H147: 0.97 | I147: 0 | J147: 0.01 | K147: 0 | L147: 0 | M147: 0.02 | N147: 11.04 | O147: 174.7770413 | P147: -36.61664367 | R147: 115300 | S147: Muriwai Valley-Bethells Beach | T147: New Zealand | U147: 0 | V147: 0 | W147: 0 | X147: 0 | Y147: 0 | Z147: 0 | AA147: 0 | AB147: 0 | AC147: 0 | AD147: 0.02 | AE147: 0 | AF147: 174.4606891 | AG147: -36.84648724 | AI147: 115500 | AJ147: Coatesville | AK147: New Zealand | AL147: 0 | AM147: 0.05 | AN147: 0 | AO147: 0 | AP147: 0 | AQ147: 0.95 | AR147: 0 | AS147: 0 | AT147: 0 | AU147: 0 | AV147: 3.4 | AW147: 174.6433629 | AX147: -36.72270876
A148: 115500 | B148: Coatesville | C148: New Zealand | D148: 0 | E148: 0.05 | F148: 0 | G148: 0 | H148: 0.92 | I148: 0.02 | J148: 0.01 | K148: 0 | L148: 0 | M148: 0.02 | N148: 10.53 | O148: 174.6433629 | P148: -36.72270876 | R148: 115400 | S148: Tindalls-Matakatia | T148: New Zealand | U148: 0 | V148: 0 | W148: 0 | X148: 0 | Y148: 0.99 | Z148: 0 | AA148: 0.01 | AB148: 0 | AC148: 0 | AD148: 0.02 | AE148: 0.97 | AF148: 174.7770413 | AG148: -36.61664367 | AI148: 115600 | AJ148: Dairy Flat South | AK148: New Zealand | AL148: 0 | AM148: 0 | AN148: 0 | AO148: 0 | AP148: 0 | AQ148: 0 | AR148: 0 | AS148: 0 | AT148: 0 | AU148: 0 | AV148: 0 | AW148: 174.6791641 | AX148: -36.6956027
A149: 115600 | B149: Dairy Flat South | C149: New Zealand | D149: 0 | E149: 0.07 | F149: 0 | G149: 0 | H149: 0.92 | I149: 0 | J149: 0.01 | K149: 0 | L149: 0 | M149: 0.02 | N149: 10.22 | O149: 174.6791641 | P149: -36.6956027 | R149: 115500 | S149: Coatesville | T149: New Zealand | U149: 0 | V149: 0 | W149: 0 | X149: 0 | Y149: 0.99 | Z149: 0 | AA149: 0.01 | AB149: 0 | AC149: 0 | AD149: 0.02 | AE149: 8.19 | AF149: 174.6433629 | AG149: -36.72270876 | AI149: 115700 | AJ149: Gulf Harbour North | AK149: New Zealand | AL149: 0 | AM149: 0.05 | AN149: 0 | AO149: 0 | AP149: 0 | AQ149: 0.7 | AR149: 0 | AS149: 0.01 | AT149: 0.24 | AU149: 0 | AV149: 1.64 | AW149: 174.7941367 | AX149: -36.60949658
A150: 115700 | B150: Gulf Harbour North | C150: New Zealand | D150: 0 | E150: 0.03 | F150: 0.1 | G150: 0 | H150: 0.84 | I150: 0.01 | J150: 0.01 | K150: 0 | L150: 0.01 | M150: 0.02 | N150: 15.49 | O150: 174.7941367 | P150: -36.60949658 | R150: 115600 | S150: Dairy Flat South | T150: New Zealand | U150: 0 | V150: 0 | W150: 0 | X150: 0 | Y150: 0 | Z150: 0 | AA150: 0 | AB150: 0 | AC150: 0 | AD150: 0.02 | AE150: 0 | AF150: 174.6791641 | AG150: -36.6956027 | AI150: 115800 | AJ150: Manly East | AK150: New Zealand | AL150: 0 | AM150: 0 | AN150: 0 | AO150: 0 | AP150: 0 | AQ150: 0.71 | AR150: 0 | AS150: 0.06 | AT150: 0.23 | AU150: 0 | AV150: 1.88 | AW150: 174.761288 | AX150: -36.63338986
A151: 115800 | B151: Manly East | C151: New Zealand | D151: 0 | E151: 0.03 | F151: 0 | G151: 0 | H151: 0.94 | I151: 0 | J151: 0.01 | K151: 0 | L151: 0.02 | M151: 0.02 | N151: 11.47 | O151: 174.761288 | P151: -36.63338986 | R151: 115700 | S151: Gulf Harbour North | T151: New Zealand | U151: 0 | V151: 0 | W151: 0 | X151: 0 | Y151: 0.87 | Z151: 0 | AA151: 0.01 | AB151: 0 | AC151: 0.12 | AD151: 0.02 | AE151: 2.28 | AF151: 174.7941367 | AG151: -36.60949658 | AI151: 115900 | AJ151: Riverhead | AK151: New Zealand | AL151: 0 | AM151: 0.06 | AN151: 0 | AO151: 0 | AP151: 0 | AQ151: 0.59 | AR151: 0 | AS151: 0.06 | AT151: 0.29 | AU151: 0 | AV151: 1.49 | AW151: 174.5837118 | AX151: -36.75810331
A152: 115900 | B152: Riverhead | C152: New Zealand | D152: 0 | E152: 0.01 | F152: 0 | G152: 0 | H152: 0.96 | I152: 0 | J152: 0.01 | K152: 0 | L152: 0.02 | M152: 0.02 | N152: 14.16 | O152: 174.5837118 | P152: -36.75810331 | R152: 115800 | S152: Manly East | T152: New Zealand | U152: 0 | V152: 0 | W152: 0 | X152: 0 | Y152: 0.93 | Z152: 0 | AA152: 0.01 | AB152: 0 | AC152: 0.06 | AD152: 0.02 | AE152: 2.32 | AF152: 174.761288 | AG152: -36.63338986 | AI152: 116000 | AJ152: Army Bay | AK152: New Zealand | AL152: 0 | AM152: 0 | AN152: 0 | AO152: 0 | AP152: 0 | AQ152: 0 | AR152: 0 | AS152: 0 | AT152: 0 | AU152: 0 | AV152: 0 | AW152: 174.8232573 | AX152: -36.60509803
A153: 116000 | B153: Army Bay | C153: New Zealand | D153: 0 | E153: 0 | F153: 0.07 | G153: 0 | H153: 0.92 | I153: 0 | J153: 0.01 | K153: 0 | L153: 0 | M153: 0.02 | N153: 13.71 | O153: 174.8232573 | P153: -36.60509803 | R153: 115900 | S153: Riverhead | T153: New Zealand | U153: 0 | V153: 0 | W153: 0 | X153: 0 | Y153: 0.9 | Z153: 0 | AA153: 0.01 | AB153: 0 | AC153: 0.09 | AD153: 0.02 | AE153: 5.68 | AF153: 174.5837118 | AG153: -36.75810331 | AI153: 116100 | AJ153: Kumeu Rural East | AK153: New Zealand | AL153: 0 | AM153: 0 | AN153: 0 | AO153: 0 | AP153: 0 | AQ153: 1 | AR153: 0 | AS153: 0 | AT153: 0 | AU153: 0 | AV153: 2.77 | AW153: 174.5745689 | AX153: -36.77658085
A154: 116100 | B154: Kumeu Rural East | C154: New Zealand | D154: 0 | E154: 0 | F154: 0 | G154: 0 | H154: 0.96 | I154: 0 | J154: 0.01 | K154: 0 | L154: 0.03 | M154: 0.02 | N154: 10.69 | O154: 174.5745689 | P154: -36.77658085 | R154: 116000 | S154: Army Bay | T154: New Zealand | U154: 0 | V154: 0 | W154: 0 | X154: 0 | Y154: 0.99 | Z154: 0 | AA154: 0.01 | AB154: 0 | AC154: 0 | AD154: 0.02 | AE154: 1.41 | AF154: 174.8232573 | AG154: -36.60509803 | AI154: 116200 | AJ154: Gulf Harbour South | AK154: New Zealand | AL154: 0 | AM154: 0 | AN154: 0 | AO154: 0 | AP154: 0 | AQ154: 0 | AR154: 0 | AS154: 0 | AT154: 0 | AU154: 0 | AV154: 0 | AW154: 174.7962562 | AX154: -36.62011096
A155: 116200 | B155: Gulf Harbour South | C155: New Zealand | D155: 0 | E155: 0.03 | F155: 0.1 | G155: 0 | H155: 0.83 | I155: 0 | J155: 0.01 | K155: 0 | L155: 0.03 | M155: 0.02 | N155: 15.62 | O155: 174.7962562 | P155: -36.62011096 | R155: 116100 | S155: Kumeu Rural East | T155: New Zealand | U155: 0 | V155: 0 | W155: 0 | X155: 0 | Y155: 0.96 | Z155: 0 | AA155: 0.01 | AB155: 0 | AC155: 0.03 | AD155: 0.02 | AE155: 8.12 | AF155: 174.5745689 | AG155: -36.77658085 | AI155: 116300 | AJ155: Paremoremo West | AK155: New Zealand | AL155: 0 | AM155: 0 | AN155: 0 | AO155: 0 | AP155: 0 | AQ155: 0 | AR155: 0 | AS155: 0 | AT155: 0 | AU155: 0 | AV155: 0 | AW155: 174.6158432 | AX155: -36.75507226
A156: 116300 | B156: Paremoremo West | C156: New Zealand | D156: 0 | E156: 0 | F156: 0 | G156: 0 | H156: 0.99 | I156: 0 | J156: 0.01 | K156: 0 | L156: 0 | M156: 0.02 | N156: 10.76 | O156: 174.6158432 | P156: -36.75507226 | R156: 116200 | S156: Gulf Harbour South | T156: New Zealand | U156: 0 | V156: 0 | W156: 0 | X156: 0 | Y156: 0.92 | Z156: 0 | AA156: 0.01 | AB156: 0 | AC156: 0.07 | AD156: 0.02 | AE156: 16.83 | AF156: 174.7962562 | AG156: -36.62011096 | AI156: 116400 | AJ156: Taupaki | AK156: New Zealand | AL156: 0 | AM156: 0.01 | AN156: 0 | AO156: 0 | AP156: 0 | AQ156: 0.9 | AR156: 0 | AS156: 0 | AT156: 0.09 | AU156: 0 | AV156: 4.17 | AW156: 174.5542496 | AX156: -36.82164682
A157: 116400 | B157: Taupaki | C157: New Zealand | D157: 0 | E157: 0 | F157: 0 | G157: 0 | H157: 0.95 | I157: 0 | J157: 0.01 | K157: 0 | L157: 0.04 | M157: 0.02 | N157: 10.63 | O157: 174.5542496 | P157: -36.82164682 | R157: 116300 | S157: Paremoremo West | T157: New Zealand | U157: 0 | V157: 0 | W157: 0 | X157: 0 | Y157: 0 | Z157: 0 | AA157: 0 | AB157: 0 | AC157: 0 | AD157: 0.02 | AE157: 0 | AF157: 174.6158432 | AG157: -36.75507226 | AI157: 116500 | AJ157: Long Bay | AK157: New Zealand | AL157: 0 | AM157: 0.25 | AN157: 0 | AO157: 0 | AP157: 0.04 | AQ157: 0.42 | AR157: 0 | AS157: 0 | AT157: 0.29 | AU157: 0 | AV157: 2.42 | AW157: 174.7330696 | AX157: -36.68946348
A158: 116500 | B158: Long Bay | C158: New Zealand | D158: 0 | E158: 0.15 | F158: 0 | G158: 0 | H158: 0.84 | I158: 0 | J158: 0.01 | K158: 0 | L158: 0 | M158: 0.02 | N158: 10.92 | O158: 174.7330696 | P158: -36.68946348 | R158: 116400 | S158: Taupaki | T158: New Zealand | U158: 0 | V158: 0 | W158: 0 | X158: 0 | Y158: 0.8 | Z158: 0 | AA158: 0.01 | AB158: 0 | AC158: 0.19 | AD158: 0.02 | AE158: 3.09 | AF158: 174.5542496 | AG158: -36.82164682 | AI158: 116600 | AJ158: Paremoremo East | AK158: New Zealand | AL158: 0 | AM158: 0 | AN158: 0 | AO158: 0 | AP158: 0 | AQ158: 0.7 | AR158: 0 | AS158: 0 | AT158: 0.3 | AU158: 0 | AV158: 1.92 | AW158: 174.6602053 | AX158: -36.74982031
A159: 116600 | B159: Paremoremo East | C159: New Zealand | D159: 0 | E159: 0.04 | F159: 0 | G159: 0 | H159: 0.91 | I159: 0.02 | J159: 0.01 | K159: 0 | L159: 0.02 | M159: 0.02 | N159: 7.18 | O159: 174.6602053 | P159: -36.74982031 | R159: 116500 | S159: Long Bay | T159: New Zealand | U159: 0 | V159: 0 | W159: 0 | X159: 0 | Y159: 0.99 | Z159: 0 | AA159: 0.01 | AB159: 0 | AC159: 0 | AD159: 0.02 | AE159: 1.77 | AF159: 174.7330696 | AG159: -36.68946348 | AI159: 116700 | AJ159: Albany Heights | AK159: New Zealand | AL159: 0 | AM159: 0 | AN159: 0 | AO159: 0 | AP159: 0 | AQ159: 0 | AR159: 0 | AS159: 0 | AT159: 0 | AU159: 0 | AV159: 0 | AW159: 174.6940139 | AX159: -36.71796472
A160: 116700 | B160: Albany Heights | C160: New Zealand | D160: 0 | E160: 0.12 | F160: 0 | G160: 0 | H160: 0.82 | I160: 0.04 | J160: 0.01 | K160: 0 | L160: 0.01 | M160: 0.02 | N160: 8.81 | O160: 174.6940139 | P160: -36.71796472 | R160: 116600 | S160: Paremoremo East | T160: New Zealand | U160: 0 | V160: 0 | W160: 0 | X160: 0 | Y160: 0.88 | Z160: 0 | AA160: 0.01 | AB160: 0 | AC160: 0.11 | AD160: 0.02 | AE160: 5.92 | AF160: 174.6602053 | AG160: -36.74982031 | AI160: 116800 | AJ160: Awaruku | AK160: New Zealand | AL160: 0 | AM160: 0 | AN160: 0 | AO160: 0 | AP160: 0 | AQ160: 1 | AR160: 0 | AS160: 0 | AT160: 0 | AU160: 0 | AV160: 1.23 | AW160: 174.7316233 | AX160: -36.69875022
A161: 116800 | B161: Awaruku | C161: New Zealand | D161: 0 | E161: 0.12 | F161: 0 | G161: 0 | H161: 0.86 | I161: 0.01 | J161: 0.01 | K161: 0 | L161: 0 | M161: 0.02 | N161: 9.95 | O161: 174.7316233 | P161: -36.69875022 | R161: 116700 | S161: Albany Heights | T161: New Zealand | U161: 0 | V161: 0 | W161: 0 | X161: 0 | Y161: 0.99 | Z161: 0 | AA161: 0.01 | AB161: 0 | AC161: 0 | AD161: 0.02 | AE161: 0.99 | AF161: 174.6940139 | AG161: -36.71796472 | AI161: 116900 | AJ161: Fairview Heights | AK161: New Zealand | AL161: 0 | AM161: 0 | AN161: 0 | AO161: 0 | AP161: 0 | AQ161: 1 | AR161: 0 | AS161: 0 | AT161: 0 | AU161: 0 | AV161: 0.71 | AW161: 174.7167898 | AX161: -36.71007322
A162: 116900 | B162: Fairview Heights | C162: New Zealand | D162: 0 | E162: 0.16 | F162: 0 | G162: 0 | H162: 0.82 | I162: 0.01 | J162: 0.01 | K162: 0 | L162: 0 | M162: 0.02 | N162: 9.46 | O162: 174.7167898 | P162: -36.71007322 | R162: 116800 | S162: Awaruku | T162: New Zealand | U162: 0 | V162: 0 | W162: 0 | X162: 0 | Y162: 0.77 | Z162: 0 | AA162: 0.01 | AB162: 0 | AC162: 0.22 | AD162: 0.02 | AE162: 0.7 | AF162: 174.7316233 | AG162: -36.69875022 | AI162: 117000 | AJ162: Whenuapai | AK162: New Zealand | AL162: 0 | AM162: 0.16 | AN162: 0 | AO162: 0 | AP162: 0.02 | AQ162: 0.67 | AR162: 0 | AS162: 0 | AT162: 0.15 | AU162: 0 | AV162: 3.4 | AW162: 174.6135958 | AX162: -36.79835846
A163: 117000 | B163: Whenuapai | C163: New Zealand | D163: 0 | E163: 0.01 | F163: 0 | G163: 0 | H163: 0.78 | I163: 0.01 | J163: 0.01 | K163: 0.04 | L163: 0.15 | M163: 0.02 | N163: 8.75 | O163: 174.6135958 | P163: -36.79835846 | R163: 116900 | S163: Fairview Heights | T163: New Zealand | U163: 0 | V163: 0 | W163: 0 | X163: 0 | Y163: 0.99 | Z163: 0 | AA163: 0.01 | AB163: 0 | AC163: 0 | AD163: 0.02 | AE163: 1.21 | AF163: 174.7167898 | AG163: -36.71007322 | AI163: 117100 | AJ163: Waitakere Ranges North | AK163: New Zealand | AL163: 0 | AM163: 0 | AN163: 0 | AO163: 0 | AP163: 0 | AQ163: 0 | AR163: 0 | AS163: 0 | AT163: 0 | AU163: 0 | AV163: 0 | AW163: 174.50001 | AX163: -36.89876888
A164: 117100 | B164: Waitakere Ranges North | C164: New Zealand | D164: 0 | E164: 0 | F164: 0 | G164: 0 | H164: 0.99 | I164: 0 | J164: 0.01 | K164: 0 | L164: 0 | M164: 0.02 | N164: 14.52 | O164: 174.50001 | P164: -36.89876888 | R164: 117000 | S164: Whenuapai | T164: New Zealand | U164: 0 | V164: 0 | W164: 0 | X164: 0 | Y164: 0.83 | Z164: 0 | AA164: 0.01 | AB164: 0.04 | AC164: 0.12 | AD164: 0.02 | AE164: 8.77 | AF164: 174.6135958 | AG164: -36.79835846 | AI164: 117200 | AJ164: Torbay | AK164: New Zealand | AL164: 0 | AM164: 0 | AN164: 0 | AO164: 0 | AP164: 0 | AQ164: 1 | AR164: 0 | AS164: 0 | AT164: 0 | AU164: 0 | AV164: 1.27 | AW164: 174.7509292 | AX164: -36.69512414
A165: 117200 | B165: Torbay | C165: New Zealand | D165: 0 | E165: 0.09 | F165: 0 | G165: 0 | H165: 0.87 | I165: 0.01 | J165: 0.01 | K165: 0 | L165: 0.02 | M165: 0.02 | N165: 10.14 | O165: 174.7509292 | P165: -36.69512414 | R165: 117100 | S165: Waitakere Ranges North | T165: New Zealand | U165: 0 | V165: 0 | W165: 0 | X165: 0 | Y165: 0.99 | Z165: 0 | AA165: 0.01 | AB165: 0 | AC165: 0 | AD165: 0.02 | AE165: 5.26 | AF165: 174.50001 | AG165: -36.89876888 | AI165: 117300 | AJ165: Albany Central | AK165: New Zealand | AL165: 0 | AM165: 0.16 | AN165: 0 | AO165: 0 | AP165: 0.69 | AQ165: 0.07 | AR165: 0 | AS165: 0 | AT165: 0.08 | AU165: 0 | AV165: 6.68 | AW165: 174.7048352 | AX165: -36.72820186
A166: 117300 | B166: Albany Central | C166: New Zealand | D166: 0 | E166: 0 | F166: 0 | G166: 0 | H166: 0.71 | I166: 0 | J166: 0.01 | K166: 0 | L166: 0.28 | M166: 0.02 | N166: 2.02 | O166: 174.7048352 | P166: -36.72820186 | R166: 117200 | S166: Torbay | T166: New Zealand | U166: 0 | V166: 0 | W166: 0 | X166: 0 | Y166: 0.82 | Z166: 0 | AA166: 0.01 | AB166: 0 | AC166: 0.17 | AD166: 0.02 | AE166: 1.68 | AF166: 174.7509292 | AG166: -36.69512414 | AI166: 117400 | AJ166: Albany West | AK166: New Zealand | AL166: 0 | AM166: 0.3 | AN166: 0 | AO166: 0 | AP166: 0.09 | AQ166: 0.46 | AR166: 0 | AS166: 0.02 | AT166: 0.13 | AU166: 0 | AV166: 5.71 | AW166: 174.6878799 | AX166: -36.7414674
A167: 117400 | B167: Albany West | C167: New Zealand | D167: 0 | E167: 0.09 | F167: 0 | G167: 0 | H167: 0.84 | I167: 0.01 | J167: 0.01 | K167: 0 | L167: 0.05 | M167: 0.02 | N167: 5.84 | O167: 174.6878799 | P167: -36.7414674 | R167: 117300 | S167: Albany Central | T167: New Zealand | U167: 0 | V167: 0.05 | W167: 0 | X167: 0 | Y167: 0.89 | Z167: 0.03 | AA167: 0.01 | AB167: 0 | AC167: 0.02 | AD167: 0.02 | AE167: 8.32 | AF167: 174.7048352 | AG167: -36.72820186 | AI167: 117500 | AJ167: Glamorgan | AK167: New Zealand | AL167: 0 | AM167: 0.01 | AN167: 0 | AO167: 0 | AP167: 0 | AQ167: 0.7 | AR167: 0 | AS167: 0 | AT167: 0.29 | AU167: 0 | AV167: 0.91 | AW167: 174.7405506 | AX167: -36.70130329
A168: 117500 | B168: Glamorgan | C168: New Zealand | D168: 0 | E168: 0.12 | F168: 0 | G168: 0 | H168: 0.85 | I168: 0.02 | J168: 0.01 | K168: 0 | L168: 0 | M168: 0.02 | N168: 10.16 | O168: 174.7405506 | P168: -36.70130329 | R168: 117400 | S168: Albany West | T168: New Zealand | U168: 0 | V168: 0 | W168: 0 | X168: 0 | Y168: 0.98 | Z168: 0 | AA168: 0.01 | AB168: 0 | AC168: 0.01 | AD168: 0.02 | AE168: 5.03 | AF168: 174.6878799 | AG168: -36.7414674 | AI168: 117600 | AJ168: Oteha East | AK168: New Zealand | AL168: 0 | AM168: 0 | AN168: 0 | AO168: 0 | AP168: 0 | AQ168: 0.69 | AR168: 0 | AS168: 0 | AT168: 0.31 | AU168: 0 | AV168: 1.02 | AW168: 174.7220726 | AX168: -36.71657898
A169: 117600 | B169: Oteha East | C169: New Zealand | D169: 0 | E169: 0.17 | F169: 0 | G169: 0 | H169: 0.76 | I169: 0.03 | J169: 0.01 | K169: 0 | L169: 0.03 | M169: 0.02 | N169: 8.75 | O169: 174.7220726 | P169: -36.71657898 | R169: 117500 | S169: Glamorgan | T169: New Zealand | U169: 0 | V169: 0 | W169: 0 | X169: 0 | Y169: 0.99 | Z169: 0 | AA169: 0.01 | AB169: 0 | AC169: 0 | AD169: 0.02 | AE169: 0.81 | AF169: 174.7405506 | AG169: -36.70130329 | AI169: 117700 | AJ169: Northcross | AK169: New Zealand | AL169: 0 | AM169: 0.17 | AN169: 0 | AO169: 0 | AP169: 0 | AQ169: 0.54 | AR169: 0 | AS169: 0 | AT169: 0.29 | AU169: 0 | AV169: 2.19 | AW169: 174.7307683 | AX169: -36.71165743
A170: 117700 | B170: Northcross | C170: New Zealand | D170: 0 | E170: 0.14 | F170: 0 | G170: 0 | H170: 0.82 | I170: 0.02 | J170: 0.01 | K170: 0 | L170: 0.01 | M170: 0.02 | N170: 8.44 | O170: 174.7307683 | P170: -36.71165743 | R170: 117600 | S170: Oteha East | T170: New Zealand | U170: 0 | V170: 0 | W170: 0 | X170: 0 | Y170: 0.93 | Z170: 0 | AA170: 0.01 | AB170: 0 | AC170: 0.06 | AD170: 0.02 | AE170: 1.49 | AF170: 174.7220726 | AG170: -36.71657898 | AI170: 117800 | AJ170: Oteha West | AK170: New Zealand | AL170: 0 | AM170: 0 | AN170: 0 | AO170: 0 | AP170: 0 | AQ170: 0 | AR170: 0 | AS170: 0 | AT170: 0 | AU170: 0 | AV170: 0 | AW170: 174.7168674 | AX170: -36.72206732
A171: 117800 | B171: Oteha West | C171: New Zealand | D171: 0 | E171: 0.19 | F171: 0 | G171: 0 | H171: 0.76 | I171: 0 | J171: 0.01 | K171: 0 | L171: 0.04 | M171: 0.02 | N171: 7.94 | O171: 174.7168674 | P171: -36.72206732 | R171: 117700 | S171: Northcross | T171: New Zealand | U171: 0 | V171: 0 | W171: 0 | X171: 0 | Y171: 0.94 | Z171: 0 | AA171: 0.01 | AB171: 0 | AC171: 0.05 | AD171: 0.02 | AE171: 1.35 | AF171: 174.7307683 | AG171: -36.71165743 | AI171: 117900 | AJ171: Waiake | AK171: New Zealand | AL171: 0 | AM171: 0 | AN171: 0 | AO171: 0 | AP171: 0 | AQ171: 0.61 | AR171: 0 | AS171: 0 | AT171: 0.39 | AU171: 0 | AV171: 0.95 | AW171: 174.7443967 | AX171: -36.70665026
A172: 117900 | B172: Waiake | C172: New Zealand | D172: 0 | E172: 0.13 | F172: 0 | G172: 0 | H172: 0.83 | I172: 0.02 | J172: 0.01 | K172: 0 | L172: 0.01 | M172: 0.02 | N172: 9.33 | O172: 174.7443967 | P172: -36.70665026 | R172: 117800 | S172: Oteha West | T172: New Zealand | U172: 0 | V172: 0 | W172: 0 | X172: 0 | Y172: 0.99 | Z172: 0 | AA172: 0.01 | AB172: 0 | AC172: 0 | AD172: 0.02 | AE172: 0.41 | AF172: 174.7168674 | AG172: -36.72206732 | AI172: 118000 | AJ172: Waitakere | AK172: New Zealand | AL172: 0 | AM172: 0.16 | AN172: 0 | AO172: 0 | AP172: 0 | AQ172: 0.74 | AR172: 0 | AS172: 0.03 | AT172: 0.07 | AU172: 0 | AV172: 3.97 | AW172: 174.5407292 | AX172: -36.85697982
A173: 118000 | B173: Waitakere | C173: New Zealand | D173: 0 | E173: 0 | F173: 0 | G173: 0 | H173: 0.99 | I173: 0 | J173: 0.01 | K173: 0 | L173: 0 | M173: 0.02 | N173: 12.38 | O173: 174.5407292 | P173: -36.85697982 | R173: 117900 | S173: Waiake | T173: New Zealand | U173: 0 | V173: 0 | W173: 0 | X173: 0 | Y173: 0.81 | Z173: 0 | AA173: 0.01 | AB173: 0 | AC173: 0.18 | AD173: 0.02 | AE173: 0.96 | AF173: 174.7443967 | AG173: -36.70665026 | AI173: 118100 | AJ173: Albany South | AK173: New Zealand | AL173: 0 | AM173: 0.12 | AN173: 0 | AO173: 0 | AP173: 0 | AQ173: 0.8 | AR173: 0 | AS173: 0 | AT173: 0.08 | AU173: 0 | AV173: 5.13 | AW173: 174.7034374 | AX173: -36.73853668
A174: 118100 | B174: Albany South | C174: New Zealand | D174: 0 | E174: 0.1 | F174: 0 | G174: 0 | H174: 0.82 | I174: 0.02 | J174: 0.01 | K174: 0 | L174: 0.05 | M174: 0.02 | N174: 6.54 | O174: 174.7034374 | P174: -36.73853668 | R174: 118000 | S174: Waitakere | T174: New Zealand | U174: 0 | V174: 0 | W174: 0 | X174: 0 | Y174: 0.99 | Z174: 0 | AA174: 0.01 | AB174: 0 | AC174: 0 | AD174: 0.02 | AE174: 2.21 | AF174: 174.5407292 | AG174: -36.85697982 | AI174: 118200 | AJ174: Browns Bay South West | AK174: New Zealand | AL174: 0 | AM174: 0 | AN174: 0 | AO174: 0 | AP174: 0 | AQ174: 0.6 | AR174: 0 | AS174: 0 | AT174: 0.4 | AU174: 0 | AV174: 0.61 | AW174: 174.7299465 | AX174: -36.72178932
A175: 118200 | B175: Browns Bay South West | C175: New Zealand | D175: 0 | E175: 0.12 | F175: 0 | G175: 0 | H175: 0.85 | I175: 0.01 | J175: 0.01 | K175: 0 | L175: 0.01 | M175: 0.02 | N175: 8.35 | O175: 174.7299465 | P175: -36.72178932 | R175: 118100 | S175: Albany South | T175: New Zealand | U175: 0 | V175: 0 | W175: 0 | X175: 0 | Y175: 0.96 | Z175: 0 | AA175: 0.01 | AB175: 0 | AC175: 0.03 | AD175: 0.02 | AE175: 4.53 | AF175: 174.7034374 | AG175: -36.73853668 | AI175: 118300 | AJ175: Browns Bay Central | AK175: New Zealand | AL175: 0 | AM175: 0 | AN175: 0 | AO175: 0 | AP175: 0 | AQ175: 1 | AR175: 0 | AS175: 0 | AT175: 0 | AU175: 0 | AV175: 1.45 | AW175: 174.7432631 | AX175: -36.71427585
A176: 118300 | B176: Browns Bay Central | C176: New Zealand | D176: 0 | E176: 0.14 | F176: 0 | G176: 0 | H176: 0.81 | I176: 0 | J176: 0.01 | K176: 0 | L176: 0.04 | M176: 0.02 | N176: 8.84 | O176: 174.7432631 | P176: -36.71427585 | R176: 118200 | S176: Browns Bay South West | T176: New Zealand | U176: 0 | V176: 0 | W176: 0 | X176: 0 | Y176: 0.99 | Z176: 0 | AA176: 0.01 | AB176: 0 | AC176: 0 | AD176: 0.02 | AE176: 0.61 | AF176: 174.7299465 | AG176: -36.72178932 | AI176: 118400 | AJ176: Schnapper Rock | AK176: New Zealand | AL176: 0 | AM176: 0 | AN176: 0 | AO176: 0 | AP176: 0 | AQ176: 0 | AR176: 0 | AS176: 0 | AT176: 0 | AU176: 0 | AV176: 0 | AW176: 174.6869198 | AX176: -36.75623258
A177: 118400 | B177: Schnapper Rock | C177: New Zealand | D177: 0 | E177: 0.08 | F177: 0 | G177: 0 | H177: 0.88 | I177: 0.02 | J177: 0.01 | K177: 0 | L177: 0.01 | M177: 0.02 | N177: 7.87 | O177: 174.6869198 | P177: -36.75623258 | R177: 118300 | S177: Browns Bay Central | T177: New Zealand | U177: 0 | V177: 0.01 | W177: 0 | X177: 0 | Y177: 0.91 | Z177: 0.01 | AA177: 0.01 | AB177: 0 | AC177: 0.06 | AD177: 0.02 | AE177: 3.8 | AF177: 174.7432631 | AG177: -36.71427585 | AI177: 118500 | AJ177: Pinehill | AK177: New Zealand | AL177: 0 | AM177: 0 | AN177: 0 | AO177: 0 | AP177: 0 | AQ177: 0.68 | AR177: 0 | AS177: 0 | AT177: 0.32 | AU177: 0 | AV177: 1.23 | AW177: 174.7236327 | AX177: -36.73133656
A178: 118500 | B178: Pinehill | C178: New Zealand | D178: 0 | E178: 0.14 | F178: 0 | G178: 0 | H178: 0.8 | I178: 0.02 | J178: 0.01 | K178: 0 | L178: 0.03 | M178: 0.02 | N178: 7.42 | O178: 174.7236327 | P178: -36.73133656 | R178: 118400 | S178: Schnapper Rock | T178: New Zealand | U178: 0 | V178: 0 | W178: 0 | X178: 0 | Y178: 0.99 | Z178: 0 | AA178: 0.01 | AB178: 0 | AC178: 0 | AD178: 0.02 | AE178: 0.84 | AF178: 174.6869198 | AG178: -36.75623258 | AI178: 118600 | AJ178: North Harbour | AK178: New Zealand | AL178: 0 | AM178: 0 | AN178: 0 | AO178: 0 | AP178: 0.02 | AQ178: 0.98 | AR178: 0 | AS178: 0 | AT178: 0 | AU178: 0 | AV178: 2.91 | AW178: 174.7150298 | AX178: -36.74630474
A179: 118600 | B179: North Harbour | C179: New Zealand | D179: 0 | E179: 0 | F179: 0 | G179: 0 | H179: 0.84 | I179: 0 | J179: 0.01 | K179: 0 | L179: 0.15 | M179: 0.02 | N179: 3.49 | O179: 174.7150298 | P179: -36.74630474 | R179: 118500 | S179: Pinehill | T179: New Zealand | U179: 0 | V179: 0 | W179: 0 | X179: 0 | Y179: 0.94 | Z179: 0 | AA179: 0.01 | AB179: 0 | AC179: 0.05 | AD179: 0.02 | AE179: 2.19 | AF179: 174.7236327 | AG179: -36.73133656 | AI179: 118700 | AJ179: Browns Bay South East | AK179: New Zealand | AL179: 0 | AM179: 0 | AN179: 0 | AO179: 0 | AP179: 0 | AQ179: 1 | AR179: 0 | AS179: 0 | AT179: 0 | AU179: 0 | AV179: 0.52 | AW179: 174.7377054 | AX179: -36.72475755
A180: 118700 | B180: Browns Bay South East | C180: New Zealand | D180: 0 | E180: 0.09 | F180: 0 | G180: 0 | H180: 0.86 | I180: 0.02 | J180: 0.01 | K180: 0 | L180: 0.02 | M180: 0.02 | N180: 7.78 | O180: 174.7377054 | P180: -36.72475755 | R180: 118600 | S180: North Harbour | T180: New Zealand | U180: 0 | V180: 0.02 | W180: 0 | X180: 0 | Y180: 0.95 | Z180: 0.01 | AA180: 0.01 | AB180: 0 | AC180: 0.01 | AD180: 0.02 | AE180: 10.31 | AF180: 174.7150298 | AG180: -36.74630474 | AI180: 118800 | AJ180: Westgate Central | AK180: New Zealand | AL180: 0 | AM180: 0 | AN180: 0 | AO180: 0 | AP180: 0 | AQ180: 1 | AR180: 0 | AS180: 0 | AT180: 0 | AU180: 0 | AV180: 3.15 | AW180: 174.6057745 | AX180: -36.81462711
A181: 118900 | B181: Greenhithe West | C181: New Zealand | D181: 0 | E181: 0.06 | F181: 0 | G181: 0 | H181: 0.91 | I181: 0.01 | J181: 0.01 | K181: 0 | L181: 0.01 | M181: 0.02 | N181: 8.56 | O181: 174.6735475 | P181: -36.77353411 | R181: 118700 | S181: Browns Bay South East | T181: New Zealand | U181: 0 | V181: 0 | W181: 0 | X181: 0 | Y181: 0.99 | Z181: 0 | AA181: 0.01 | AB181: 0 | AC181: 0 | AD181: 0.02 | AE181: 0.52 | AF181: 174.7377054 | AG181: -36.72475755 | AI181: 118900 | AJ181: Greenhithe West | AK181: New Zealand | AL181: 0 | AM181: 0 | AN181: 0 | AO181: 0 | AP181: 0 | AQ181: 0.66 | AR181: 0 | AS181: 0 | AT181: 0.34 | AU181: 0 | AV181: 1.37 | AW181: 174.6735475 | AX181: -36.77353411
A182: 119000 | B182: Rothesay Bay | C182: New Zealand | D182: 0 | E182: 0.13 | F182: 0 | G182: 0 | H182: 0.86 | I182: 0 | J182: 0.01 | K182: 0 | L182: 0 | M182: 0.02 | N182: 9.16 | O182: 174.7472939 | P182: -36.7235541 | R182: 118800 | S182: Westgate Central | T182: New Zealand | U182: 0 | V182: 0.01 | W182: 0 | X182: 0 | Y182: 0.95 | Z182: 0.02 | AA182: 0.01 | AB182: 0 | AC182: 0.01 | AD182: 0.02 | AE182: 6.86 | AF182: 174.6057745 | AG182: -36.81462711 | AI182: 119000 | AJ182: Rothesay Bay | AK182: New Zealand | AL182: 0 | AM182: 0 | AN182: 0 | AO182: 0 | AP182: 0 | AQ182: 0.67 | AR182: 0 | AS182: 0 | AT182: 0.33 | AU182: 0 | AV182: 1 | AW182: 174.7472939 | AX182: -36.7235541
A183: 119100 | B183: Greenhithe East | C183: New Zealand | D183: 0 | E183: 0.1 | F183: 0 | G183: 0 | H183: 0.87 | I183: 0.02 | J183: 0.01 | K183: 0 | L183: 0 | M183: 0.02 | N183: 7.56 | O183: 174.6893254 | P183: -36.7641032 | R183: 118900 | S183: Greenhithe West | T183: New Zealand | U183: 0 | V183: 0 | W183: 0 | X183: 0 | Y183: 0.88 | Z183: 0 | AA183: 0.01 | AB183: 0 | AC183: 0.11 | AD183: 0.02 | AE183: 1.16 | AF183: 174.6735475 | AG183: -36.77353411 | AI183: 119100 | AJ183: Greenhithe East | AK183: New Zealand | AL183: 0 | AM183: 0.11 | AN183: 0 | AO183: 0 | AP183: 0 | AQ183: 0.58 | AR183: 0 | AS183: 0 | AT183: 0.31 | AU183: 0 | AV183: 0.84 | AW183: 174.6893254 | AX183: -36.7641032
A184: 119200 | B184: Hobsonville | C184: New Zealand | D184: 0 | E184: 0 | F184: 0.04 | G184: 0 | H184: 0.95 | I184: 0 | J184: 0.01 | K184: 0 | L184: 0 | M184: 0.02 | N184: 10.82 | O184: 174.635474 | P184: -36.8051505 | R184: 119000 | S184: Rothesay Bay | T184: New Zealand | U184: 0 | V184: 0 | W184: 0 | X184: 0 | Y184: 0.99 | Z184: 0 | AA184: 0.01 | AB184: 0 | AC184: 0 | AD184: 0.02 | AE184: 1.77 | AF184: 174.7472939 | AG184: -36.7235541 | AI184: 119200 | AJ184: Hobsonville | AK184: New Zealand | AL184: 0 | AM184: 0 | AN184: 0 | AO184: 0 | AP184: 0 | AQ184: 0.86 | AR184: 0 | AS184: 0.04 | AT184: 0.1 | AU184: 0 | AV184: 2.15 | AW184: 174.635474 | AX184: -36.8051505
A185: 119300 | B185: Inlet Waitemata Harbour | C185: New Zealand | D185: 0 | E185: 0 | F185: 0 | G185: 0 | H185: 0 | I185: 0 | J185: 0.01 | K185: 0 | L185: 0.99 | M185: 0.02 | N185: 7.05 | O185: 174.7050812 | P185: -36.82874735 | R185: 119100 | S185: Greenhithe East | T185: New Zealand | U185: 0 | V185: 0 | W185: 0 | X185: 0 | Y185: 0.99 | Z185: 0 | AA185: 0.01 | AB185: 0 | AC185: 0 | AD185: 0.02 | AE185: 0.68 | AF185: 174.6893254 | AG185: -36.7641032 | AI185: 119400 | AJ185: Greenhithe South | AK185: New Zealand | AL185: 0 | AM185: 0 | AN185: 0 | AO185: 0 | AP185: 0 | AQ185: 0 | AR185: 0 | AS185: 0 | AT185: 0 | AU185: 0 | AV185: 0 | AW185: 174.6943051 | AX185: -36.77162145
A186: 119400 | B186: Greenhithe South | C186: New Zealand | D186: 0 | E186: 0.08 | F186: 0 | G186: 0 | H186: 0.91 | I186: 0 | J186: 0.01 | K186: 0 | L186: 0 | M186: 0.02 | N186: 7.04 | O186: 174.6943051 | P186: -36.77162145 | R186: 119200 | S186: Hobsonville | T186: New Zealand | U186: 0 | V186: 0 | W186: 0 | X186: 0 | Y186: 0.99 | Z186: 0 | AA186: 0.01 | AB186: 0 | AC186: 0 | AD186: 0.02 | AE186: 1.83 | AF186: 174.635474 | AG186: -36.8051505 | AI186: 119500 | AJ186: Murrays Bay West | AK186: New Zealand | AL186: 0 | AM186: 0.18 | AN186: 0 | AO186: 0 | AP186: 0 | AQ186: 0.45 | AR186: 0 | AS186: 0 | AT186: 0.37 | AU186: 0 | AV186: 1.74 | AW186: 174.7417476 | AX186: -36.73177873
A187: 119500 | B187: Murrays Bay West | C187: New Zealand | D187: 0 | E187: 0.14 | F187: 0 | G187: 0 | H187: 0.84 | I187: 0.01 | J187: 0.01 | K187: 0 | L187: 0 | M187: 0.02 | N187: 8.22 | O187: 174.7417476 | P187: -36.73177873 | R187: 119300 | S187: Inlet Waitemata Harbour | T187: New Zealand | U187: 0 | V187: 0 | W187: 0 | X187: 0 | Y187: 0 | Z187: 0 | AA187: 0 | AB187: 0 | AC187: 0 | AD187: 0.02 | AE187: 0 | AF187: 174.7050812 | AG187: -36.82874735 | AI187: 119600 | AJ187: Westgate South | AK187: New Zealand | AL187: 0 | AM187: 0 | AN187: 0 | AO187: 0 | AP187: 0 | AQ187: 0.83 | AR187: 0 | AS187: 0 | AT187: 0.17 | AU187: 0 | AV187: 2 | AW187: 174.6079192 | AX187: -36.82710769
A188: 119600 | B188: Westgate South | C188: New Zealand | D188: 0 | E188: 0.02 | F188: 0 | G188: 0 | H188: 0.95 | I188: 0 | J188: 0.01 | K188: 0 | L188: 0.02 | M188: 0.02 | N188: 10.38 | O188: 174.6079192 | P188: -36.82710769 | R188: 119400 | S188: Greenhithe South | T188: New Zealand | U188: 0 | V188: 0 | W188: 0 | X188: 0 | Y188: 0.99 | Z188: 0 | AA188: 0.01 | AB188: 0 | AC188: 0 | AD188: 0.02 | AE188: 1.08 | AF188: 174.6943051 | AG188: -36.77162145 | AI188: 119700 | AJ188: Windsor Park | AK188: New Zealand | AL188: 0 | AM188: 0.29 | AN188: 0 | AO188: 0 | AP188: 0.04 | AQ188: 0.37 | AR188: 0 | AS188: 0 | AT188: 0.3 | AU188: 0 | AV188: 3.45 | AW188: 174.7356835 | AX188: -36.73975221
A189: 119700 | B189: Windsor Park | C189: New Zealand | D189: 0 | E189: 0.14 | F189: 0 | G189: 0 | H189: 0.82 | I189: 0 | J189: 0.01 | K189: 0 | L189: 0.03 | M189: 0.02 | N189: 7.33 | O189: 174.7356835 | P189: -36.73975221 | R189: 119500 | S189: Murrays Bay West | T189: New Zealand | U189: 0 | V189: 0 | W189: 0 | X189: 0 | Y189: 0.99 | Z189: 0 | AA189: 0.01 | AB189: 0 | AC189: 0 | AD189: 0.02 | AE189: 0.96 | AF189: 174.7417476 | AG189: -36.73177873 | AI189: 119800 | AJ189: West Harbour West | AK189: New Zealand | AL189: 0 | AM189: 0 | AN189: 0 | AO189: 0 | AP189: 0 | AQ189: 0.66 | AR189: 0 | AS189: 0 | AT189: 0.34 | AU189: 0 | AV189: 1.27 | AW189: 174.6225404 | AX189: -36.81872701
A190: 119800 | B190: West Harbour West | C190: New Zealand | D190: 0 | E190: 0 | F190: 0 | G190: 0 | H190: 0.97 | I190: 0 | J190: 0.01 | K190: 0 | L190: 0.02 | M190: 0.02 | N190: 11.35 | O190: 174.6225404 | P190: -36.81872701 | R190: 119600 | S190: Westgate South | T190: New Zealand | U190: 0 | V190: 0 | W190: 0 | X190: 0 | Y190: 0.88 | Z190: 0.11 | AA190: 0.01 | AB190: 0 | AC190: 0 | AD190: 0.02 | AE190: 3.08 | AF190: 174.6079192 | AG190: -36.82710769 | AI190: 119900 | AJ190: Unsworth Heights West | AK190: New Zealand | AL190: 0 | AM190: 0 | AN190: 0 | AO190: 0 | AP190: 0 | AQ190: 0.88 | AR190: 0 | AS190: 0 | AT190: 0.12 | AU190: 0 | AV190: 1.48 | AW190: 174.7113026 | AX190: -36.75886381
A191: 119900 | B191: Unsworth Heights West | C191: New Zealand | D191: 0 | E191: 0.11 | F191: 0 | G191: 0 | H191: 0.86 | I191: 0.02 | J191: 0.01 | K191: 0 | L191: 0 | M191: 0.02 | N191: 6.66 | O191: 174.7113026 | P191: -36.75886381 | R191: 119700 | S191: Windsor Park | T191: New Zealand | U191: 0 | V191: 0 | W191: 0 | X191: 0 | Y191: 0.99 | Z191: 0 | AA191: 0.01 | AB191: 0 | AC191: 0 | AD191: 0.02 | AE191: 3.07 | AF191: 174.7356835 | AG191: -36.73975221 | AI191: 120000 | AJ191: Murrays Bay East | AK191: New Zealand | AL191: 0 | AM191: 0 | AN191: 0 | AO191: 0 | AP191: 0 | AQ191: 1 | AR191: 0 | AS191: 0 | AT191: 0 | AU191: 0 | AV191: 0.89 | AW191: 174.7516195 | AX191: -36.7310303
A192: 120000 | B192: Murrays Bay East | C192: New Zealand | D192: 0 | E192: 0.11 | F192: 0 | G192: 0 | H192: 0.86 | I192: 0.02 | J192: 0.01 | K192: 0 | L192: 0 | M192: 0.02 | N192: 7.93 | O192: 174.7516195 | P192: -36.7310303 | R192: 119800 | S192: West Harbour West | T192: New Zealand | U192: 0 | V192: 0 | W192: 0 | X192: 0 | Y192: 0.81 | Z192: 0 | AA192: 0.01 | AB192: 0 | AC192: 0.18 | AD192: 0.02 | AE192: 1.43 | AF192: 174.6225404 | AG192: -36.81872701 | AI192: 120100 | AJ192: Birdwood West | AK192: New Zealand | AL192: 0 | AM192: 0 | AN192: 0 | AO192: 0 | AP192: 0 | AQ192: 0 | AR192: 0 | AS192: 0 | AT192: 0 | AU192: 0 | AV192: 0 | AW192: 174.5866772 | AX192: -36.85060481
A193: 120100 | B193: Birdwood West | C193: New Zealand | D193: 0 | E193: 0 | F193: 0 | G193: 0 | H193: 0.99 | I193: 0 | J193: 0.01 | K193: 0 | L193: 0 | M193: 0.02 | N193: 7.79 | O193: 174.5866772 | P193: -36.85060481 | R193: 119900 | S193: Unsworth Heights West | T193: New Zealand | U193: 0 | V193: 0 | W193: 0 | X193: 0 | Y193: 0.99 | Z193: 0 | AA193: 0.01 | AB193: 0 | AC193: 0 | AD193: 0.02 | AE193: 0.49 | AF193: 174.7113026 | AG193: -36.75886381 | AI193: 120200 | AJ193: Hobsonville Point | AK193: New Zealand | AL193: 0 | AM193: 0.13 | AN193: 0 | AO193: 0 | AP193: 0.03 | AQ193: 0.33 | AR193: 0 | AS193: 0.08 | AT193: 0.43 | AU193: 0 | AV193: 2.1 | AW193: 174.6622985 | AX193: -36.79633568
A194: 120200 | B194: Hobsonville Point | C194: New Zealand | D194: 0 | E194: 0.07 | F194: 0.12 | G194: 0 | H194: 0.79 | I194: 0 | J194: 0.01 | K194: 0 | L194: 0.01 | M194: 0.02 | N194: 10.35 | O194: 174.6622985 | P194: -36.79633568 | R194: 120000 | S194: Murrays Bay East | T194: New Zealand | U194: 0 | V194: 0 | W194: 0 | X194: 0 | Y194: 0.99 | Z194: 0 | AA194: 0.01 | AB194: 0 | AC194: 0 | AD194: 0.02 | AE194: 0.47 | AF194: 174.7516195 | AG194: -36.7310303 | AI194: 120300 | AJ194: West Harbour Clearwater Cove | AK194: New Zealand | AL194: 0 | AM194: 0 | AN194: 0 | AO194: 0 | AP194: 0 | AQ194: 0 | AR194: 0 | AS194: 0 | AT194: 0 | AU194: 0 | AV194: 0 | AW194: 174.6419032 | AX194: -36.80927913
A195: 120300 | B195: West Harbour Clearwater Cove | C195: New Zealand | D195: 0 | E195: 0.01 | F195: 0.07 | G195: 0 | H195: 0.89 | I195: 0.01 | J195: 0.01 | K195: 0 | L195: 0.01 | M195: 0.02 | N195: 10.06 | O195: 174.6419032 | P195: -36.80927913 | R195: 120100 | S195: Birdwood West | T195: New Zealand | U195: 0 | V195: 0 | W195: 0 | X195: 0 | Y195: 0.99 | Z195: 0 | AA195: 0.01 | AB195: 0 | AC195: 0 | AD195: 0.02 | AE195: 1.37 | AF195: 174.5866772 | AG195: -36.85060481 | AI195: 120400 | AJ195: Unsworth Heights East | AK195: New Zealand | AL195: 0 | AM195: 0 | AN195: 0 | AO195: 0 | AP195: 0 | AQ195: 1 | AR195: 0 | AS195: 0 | AT195: 0 | AU195: 0 | AV195: 0.77 | AW195: 174.7197727 | AX195: -36.75603242
A196: 120400 | B196: Unsworth Heights East | C196: New Zealand | D196: 0 | E196: 0.19 | F196: 0 | G196: 0 | H196: 0.76 | I196: 0.02 | J196: 0.01 | K196: 0.01 | L196: 0.01 | M196: 0.02 | N196: 6.86 | O196: 174.7197727 | P196: -36.75603242 | R196: 120200 | S196: Hobsonville Point | T196: New Zealand | U196: 0 | V196: 0 | W196: 0 | X196: 0 | Y196: 0.87 | Z196: 0 | AA196: 0.01 | AB196: 0 | AC196: 0.12 | AD196: 0.02 | AE196: 3.46 | AF196: 174.6622985 | AG196: -36.79633568 | AI196: 120500 | AJ196: Mairangi Bay North | AK196: New Zealand | AL196: 0 | AM196: 0.01 | AN196: 0 | AO196: 0 | AP196: 0 | AQ196: 0.86 | AR196: 0 | AS196: 0 | AT196: 0.13 | AU196: 0 | AV196: 2.01 | AW196: 174.7465493 | AX196: -36.73858904
A197: 120500 | B197: Mairangi Bay North | C197: New Zealand | D197: 0 | E197: 0.11 | F197: 0 | G197: 0 | H197: 0.85 | I197: 0.01 | J197: 0.01 | K197: 0 | L197: 0.02 | M197: 0.02 | N197: 7.39 | O197: 174.7465493 | P197: -36.73858904 | R197: 120300 | S197: West Harbour Clearwater Cove | T197: New Zealand | U197: 0 | V197: 0 | W197: 0 | X197: 0 | Y197: 0.88 | Z197: 0 | AA197: 0.01 | AB197: 0 | AC197: 0.11 | AD197: 0.02 | AE197: 1.11 | AF197: 174.6419032 | AG197: -36.80927913 | AI197: 120600 | AJ197: Massey Central | AK197: New Zealand | AL197: 0 | AM197: 0 | AN197: 0 | AO197: 0 | AP197: 0 | AQ197: 0 | AR197: 0 | AS197: 0 | AT197: 0 | AU197: 0 | AV197: 0 | AW197: 174.6060205 | AX197: -36.83909835
A198: 120600 | B198: Massey Central | C198: New Zealand | D198: 0 | E198: 0.03 | F198: 0 | G198: 0 | H198: 0.95 | I198: 0.01 | J198: 0.01 | K198: 0 | L198: 0 | M198: 0.02 | N198: 11.55 | O198: 174.6060205 | P198: -36.83909835 | R198: 120400 | S198: Unsworth Heights East | T198: New Zealand | U198: 0 | V198: 0 | W198: 0 | X198: 0 | Y198: 0.99 | Z198: 0 | AA198: 0.01 | AB198: 0 | AC198: 0 | AD198: 0.02 | AE198: 0.59 | AF198: 174.7197727 | AG198: -36.75603242 | AI198: 120700 | AJ198: West Harbour Luckens Point | AK198: New Zealand | AL198: 0 | AM198: 0 | AN198: 0 | AO198: 0 | AP198: 0 | AQ198: 0.68 | AR198: 0 | AS198: 0 | AT198: 0.32 | AU198: 0 | AV198: 1.36 | AW198: 174.6369598 | AX198: -36.81802341
A199: 120700 | B199: West Harbour Luckens Point | C199: New Zealand | D199: 0 | E199: 0 | F199: 0.04 | G199: 0 | H199: 0.94 | I199: 0 | J199: 0.01 | K199: 0 | L199: 0.01 | M199: 0.02 | N199: 9.68 | O199: 174.6369598 | P199: -36.81802341 | R199: 120500 | S199: Mairangi Bay North | T199: New Zealand | U199: 0 | V199: 0 | W199: 0 | X199: 0 | Y199: 0.92 | Z199: 0 | AA199: 0.01 | AB199: 0 | AC199: 0.07 | AD199: 0.02 | AE199: 2.15 | AF199: 174.7465493 | AG199: -36.73858904 | AI199: 120800 | AJ199: Mairangi Bay South | AK199: New Zealand | AL199: 0 | AM199: 0.01 | AN199: 0 | AO199: 0 | AP199: 0 | AQ199: 0.55 | AR199: 0 | AS199: 0 | AT199: 0.44 | AU199: 0 | AV199: 0.82 | AW199: 174.7486477 | AX199: -36.74390273
A200: 120800 | B200: Mairangi Bay South | C200: New Zealand | D200: 0 | E200: 0.13 | F200: 0 | G200: 0 | H200: 0.85 | I200: 0 | J200: 0.01 | K200: 0 | L200: 0.01 | M200: 0.02 | N200: 7.06 | O200: 174.7486477 | P200: -36.74390273 | R200: 120600 | S200: Massey Central | T200: New Zealand | U200: 0 | V200: 0 | W200: 0 | X200: 0 | Y200: 0.99 | Z200: 0 | AA200: 0.01 | AB200: 0 | AC200: 0 | AD200: 0.02 | AE200: 0.53 | AF200: 174.6060205 | AG200: -36.83909835 | AI200: 120900 | AJ200: Massey Royal Road West | AK200: New Zealand | AL200: 0 | AM200: 0 | AN200: 0 | AO200: 0 | AP200: 0 | AQ200: 0 | AR200: 0 | AS200: 0 | AT200: 0 | AU200: 0 | AV200: 0 | AW200: 174.6125455 | AX200: -36.83429912
... 925 more rows

Sheet Secure (hidden)
A1: General Password | B1: NZGBC1
A3: Google API key | B3: AIzaSyAhJ--W8CSq_dqxcCyqt4S19WKVuj9n4zo
A5: Walkscore API key | B5: f8574f377dd279dbecd6827a6befd1f6
A7: Master Password | B7: turnkey-lacing0MRC

Sheet Travel Data (hidden)
A1: SA2_code | B1: SA2 | C1: state | D1: train | E1: bus | F1: ferry | G1: tram | H1: car | I1: car_passenger | J1: motorcycle | K1: cycling | L1: walking | M1: work_at_home | N1: distance | O1: lon | P1: lat | U1: SA2 | V1: state | W1: train | X1: bus | Y1: ferry | Z1: tram | AA1: car | AB1: car_passenger | AC1: motorcycle | AD1: cycling | AE1: walking | AF1: work_at_home | AG1: distance | AH1: lon | AI1: lat
A2: =_xlfn.LET(_xlpm.office_type,'Working Values'!$F$13,IF(_xlpm.office_type="Multi-unit Residential",Data!A3,IF(_xlpm.office_type="Education",Data!AI3,IF(_xlpm.office_type="Mixed-use Building",T6,Data!R3)))) -> 100100 | B2: =_xlfn.LET(_xlpm.office_type,'Working Values'!$F$13,IF(_xlpm.office_type="Multi-unit Residential",Data!B3,IF(_xlpm.office_type="Education",Data!AJ3,IF(_xlpm.office_type="Mixed-use Building",U6,Data!S3)))) -> North Cape | C2: =_xlfn.LET(_xlpm.office_type,'Working Values'!$F$13,IF(_xlpm.office_type="Multi-unit Residential",Data!C3,IF(_xlpm.office_type="Education",Data!AK3,IF(_xlpm.office_type="Mixed-use Building",V6,Data!T3)))) -> New Zealand | D2: =_xlfn.LET(_xlpm.office_type,'Working Values'!$F$13,IF(_xlpm.office_type="Multi-unit Residential",Data!D3,IF(_xlpm.office_type="Education",Data!AL3,IF(_xlpm.office_type="Mixed-use Building",W6,Data!U3)))) -> 0 | E2: =_xlfn.LET(_xlpm.office_type,'Working Values'!$F$13,IF(_xlpm.office_type="Multi-unit Residential",Data!E3,IF(_xlpm.office_type="Education",Data!AM3,IF(_xlpm.office_type="Mixed-use Building",X6,Data!V3)))) -> 0 | F2: =_xlfn.LET(_xlpm.office_type,'Working Values'!$F$13,IF(_xlpm.office_type="Multi-unit Residential",Data!F3,IF(_xlpm.office_type="Education",Data!AN3,IF(_xlpm.office_type="Mixed-use Building",Y6,Data!W3)))) -> 0 | G2: =_xlfn.LET(_xlpm.office_type,'Working Values'!$F$13,IF(_xlpm.office_type="Multi-unit Residential",Data!G3,IF(_xlpm.office_type="Education",Data!AO3,IF(_xlpm.office_type="Mixed-use Building",Z6,Data!X3)))) -> 0 | H2: =_xlfn.LET(_xlpm.office_type,'Working Values'!$F$13,IF(_xlpm.office_type="Multi-unit Residential",Data!H3,IF(_xlpm.office_type="Education",Data!AP3,IF(_xlpm.office_type="Mixed-use Building",AA6,Data!Y3)))) -> 0.83 | I2: =_xlfn.LET(_xlpm.office_type,'Working Values'!$F$13,IF(_xlpm.office_type="Multi-unit Residential",Data!I3,IF(_xlpm.office_type="Education",Data!AQ3,IF(_xlpm.office_type="Mixed-use Building",AB6,Data!Z3)))) -> 0.05 | J2: =_xlfn.LET(_xlpm.office_type,'Working Values'!$F$13,IF(_xlpm.office_type="Multi-unit Residential",Data!J3,IF(_xlpm.office_type="Education",Data!AR3,IF(_xlpm.office_type="Mixed-use Building",AC6,Data!AA3)))) -> 0.01 | K2: =_xlfn.LET(_xlpm.office_type,'Working Values'!$F$13,IF(_xlpm.office_type="Multi-unit Residential",Data!K3,IF(_xlpm.office_type="Education",Data!AS3,IF(_xlpm.office_type="Mixed-use Building",AD6,Data!AB3)))) -> 0 | L2: =_xlfn.LET(_xlpm.office_type,'Working Values'!$F$13,IF(_xlpm.office_type="Multi-unit Residential",Data!L3,IF(_xlpm.office_type="Education",Data!AT3,IF(_xlpm.office_type="Mixed-use Building",AE6,Data!AC3)))) -> 0.11 | M2: =_xlfn.LET(_xlpm.office_type,'Working Values'!$F$13,IF(_xlpm.office_type="Multi-unit Residential",Data!M3,IF(_xlpm.office_type="Education",Data!AU3,IF(_xlpm.office_type="Mixed-use Building",AF6,Data!AD3)))) -> 0.02 | N2: =_xlfn.LET(_xlpm.office_type,'Working Values'!$F$13,IF(_xlpm.office_type="Multi-unit Residential",Data!N3,IF(_xlpm.office_type="Education",Data!AV3,IF(_xlpm.office_type="Mixed-use Building",AG6,Data!AE3)))) -> 19.64 | O2: =_xlfn.LET(_xlpm.office_type,'Working Values'!$F$13,IF(_xlpm.office_type="Multi-unit Residential",Data!O3,IF(_xlpm.office_type="Education",Data!AW3,IF(_xlpm.office_type="Mixed-use Building",AH6,Data!AF3)))) -> 172.929898 | P2: =_xlfn.LET(_xlpm.office_type,'Working Values'!$F$13,IF(_xlpm.office_type="Multi-unit Residential",Data!P3,IF(_xlpm.office_type="Education",Data!AX3,IF(_xlpm.office_type="Mixed-use Building",AI6,Data!AG3)))) -> -34.61007635 | T2: Residential | U2: =VLOOKUP(sa2_found,residential_data,1,FALSE) -> Queen Street | V2: =VLOOKUP(sa2_found,residential_data,2,FALSE) -> New Zealand | W2: =VLOOKUP(sa2_found,residential_data,3,FALSE) -> 0.05 | X2: =VLOOKUP(sa2_found,residential_data,4,FALSE) -> 0.14 | Y2: =VLOOKUP(sa2_found,residential_data,5,FALSE) -> 0 | Z2: =VLOOKUP(sa2_found,residential_data,6,FALSE) -> 0 | AA2: =VLOOKUP(sa2_found,residential_data,7,FALSE) -> 0.05 | AB2: =VLOOKUP(sa2_found,residential_data,8,FALSE) -> 0 | AC2: =VLOOKUP(sa2_found,residential_data,9,FALSE) -> 0.01 | AD2: =VLOOKUP(sa2_found,residential_data,10,FALSE) -> 0 | AE2: =VLOOKUP(sa2_found,residential_data,11,FALSE) -> 0.75 | AF2: =VLOOKUP(sa2_found,residential_data,12,FALSE) -> 0.02 | AG2: =VLOOKUP(sa2_found,residential_data,13,FALSE) -> 1.39 | AH2: =VLOOKUP(sa2_found,residential_data,14,FALSE) -> 174.7652497 | AI2: =VLOOKUP(sa2_found,residential_data,15,FALSE) -> -36.84774104
A3: =_xlfn.LET(_xlpm.office_type,'Working Values'!$F$13,IF(_xlpm.office_type="Multi-unit Residential",Data!A4,IF(_xlpm.office_type="Education",Data!AI4,IF(_xlpm.office_type="Mixed-use Building",T7,Data!R4)))) -> 100200 | B3: =_xlfn.LET(_xlpm.office_type,'Working Values'!$F$13,IF(_xlpm.office_type="Multi-unit Residential",Data!B4,IF(_xlpm.office_type="Education",Data!AJ4,IF(_xlpm.office_type="Mixed-use Building",U7,Data!S4)))) -> Rangaunu Harbour | C3: =_xlfn.LET(_xlpm.office_type,'Working Values'!$F$13,IF(_xlpm.office_type="Multi-unit Residential",Data!C4,IF(_xlpm.office_type="Education",Data!AK4,IF(_xlpm.office_type="Mixed-use Building",V7,Data!T4)))) -> New Zealand | D3: =_xlfn.LET(_xlpm.office_type,'Working Values'!$F$13,IF(_xlpm.office_type="Multi-unit Residential",Data!D4,IF(_xlpm.office_type="Education",Data!AL4,IF(_xlpm.office_type="Mixed-use Building",W7,Data!U4)))) -> 0 | E3: =_xlfn.LET(_xlpm.office_type,'Working Values'!$F$13,IF(_xlpm.office_type="Multi-unit Residential",Data!E4,IF(_xlpm.office_type="Education",Data!AM4,IF(_xlpm.office_type="Mixed-use Building",X7,Data!V4)))) -> 0 | F3: =_xlfn.LET(_xlpm.office_type,'Working Values'!$F$13,IF(_xlpm.office_type="Multi-unit Residential",Data!F4,IF(_xlpm.office_type="Education",Data!AN4,IF(_xlpm.office_type="Mixed-use Building",Y7,Data!W4)))) -> 0 | G3: =_xlfn.LET(_xlpm.office_type,'Working Values'!$F$13,IF(_xlpm.office_type="Multi-unit Residential",Data!G4,IF(_xlpm.office_type="Education",Data!AO4,IF(_xlpm.office_type="Mixed-use Building",Z7,Data!X4)))) -> 0 | H3: =_xlfn.LET(_xlpm.office_type,'Working Values'!$F$13,IF(_xlpm.office_type="Multi-unit Residential",Data!H4,IF(_xlpm.office_type="Education",Data!AP4,IF(_xlpm.office_type="Mixed-use Building",AA7,Data!Y4)))) -> 0.88 | I3: =_xlfn.LET(_xlpm.office_type,'Working Values'!$F$13,IF(_xlpm.office_type="Multi-unit Residential",Data!I4,IF(_xlpm.office_type="Education",Data!AQ4,IF(_xlpm.office_type="Mixed-use Building",AB7,Data!Z4)))) -> 0.07 | J3: =_xlfn.LET(_xlpm.office_type,'Working Values'!$F$13,IF(_xlpm.office_type="Multi-unit Residential",Data!J4,IF(_xlpm.office_type="Education",Data!AR4,IF(_xlpm.office_type="Mixed-use Building",AC7,Data!AA4)))) -> 0.01 | K3: =_xlfn.LET(_xlpm.office_type,'Working Values'!$F$13,IF(_xlpm.office_type="Multi-unit Residential",Data!K4,IF(_xlpm.office_type="Education",Data!AS4,IF(_xlpm.office_type="Mixed-use Building",AD7,Data!AB4)))) -> 0 | L3: =_xlfn.LET(_xlpm.office_type,'Working Values'!$F$13,IF(_xlpm.office_type="Multi-unit Residential",Data!L4,IF(_xlpm.office_type="Education",Data!AT4,IF(_xlpm.office_type="Mixed-use Building",AE7,Data!AC4)))) -> 0.04 | M3: =_xlfn.LET(_xlpm.office_type,'Working Values'!$F$13,IF(_xlpm.office_type="Multi-unit Residential",Data!M4,IF(_xlpm.office_type="Education",Data!AU4,IF(_xlpm.office_type="Mixed-use Building",AF7,Data!AD4)))) -> 0.02 | N3: =_xlfn.LET(_xlpm.office_type,'Working Values'!$F$13,IF(_xlpm.office_type="Multi-unit Residential",Data!N4,IF(_xlpm.office_type="Education",Data!AV4,IF(_xlpm.office_type="Mixed-use Building",AG7,Data!AE4)))) -> 18.96 | O3: =_xlfn.LET(_xlpm.office_type,'Working Values'!$F$13,IF(_xlpm.office_type="Multi-unit Residential",Data!O4,IF(_xlpm.office_type="Education",Data!AW4,IF(_xlpm.office_type="Mixed-use Building",AH7,Data!AF4)))) -> 173.1997972 | P3: =_xlfn.LET(_xlpm.office_type,'Working Values'!$F$13,IF(_xlpm.office_type="Multi-unit Residential",Data!P4,IF(_xlpm.office_type="Education",Data!AX4,IF(_xlpm.office_type="Mixed-use Building",AI7,Data!AG4)))) -> -34.96086021 | T3: Commute | U3: =VLOOKUP(sa2_found,data_commute,1,FALSE) -> Queen Street | V3: =VLOOKUP(sa2_found,data_commute,2,FALSE) -> New Zealand | W3: =VLOOKUP(sa2_found,data_commute,3,FALSE) -> 0.09 | X3: =VLOOKUP(sa2_found,data_commute,4,FALSE) -> 0.32 | Y3: =VLOOKUP(sa2_found,data_commute,5,FALSE) -> 0.04 | Z3: =VLOOKUP(sa2_found,data_commute,6,FALSE) -> 0 | AA3: =VLOOKUP(sa2_found,data_commute,7,FALSE) -> 0.41 | AB3: =VLOOKUP(sa2_found,data_commute,8,FALSE) -> 0 | AC3: =VLOOKUP(sa2_found,data_commute,9,FALSE) -> 0.01 | AD3: =VLOOKUP(sa2_found,data_commute,10,FALSE) -> 0 | AE3: =VLOOKUP(sa2_found,data_commute,11,FALSE) -> 0.13 | AF3: =VLOOKUP(sa2_found,data_commute,12,FALSE) -> 0.02 | AG3: =VLOOKUP(sa2_found,data_commute,13,FALSE) -> 8.53 | AH3: =VLOOKUP(sa2_found,data_commute,14,FALSE) -> 174.7652497 | AI3: =VLOOKUP(sa2_found,data_commute,15,FALSE) -> -36.84774104
A4: =_xlfn.LET(_xlpm.office_type,'Working Values'!$F$13,IF(_xlpm.office_type="Multi-unit Residential",Data!A5,IF(_xlpm.office_type="Education",Data!AI5,IF(_xlpm.office_type="Mixed-use Building",T8,Data!R5)))) -> 100300 | B4: =_xlfn.LET(_xlpm.office_type,'Working Values'!$F$13,IF(_xlpm.office_type="Multi-unit Residential",Data!B5,IF(_xlpm.office_type="Education",Data!AJ5,IF(_xlpm.office_type="Mixed-use Building",U8,Data!S5)))) -> Inlets Far North District | C4: =_xlfn.LET(_xlpm.office_type,'Working Values'!$F$13,IF(_xlpm.office_type="Multi-unit Residential",Data!C5,IF(_xlpm.office_type="Education",Data!AK5,IF(_xlpm.office_type="Mixed-use Building",V8,Data!T5)))) -> New Zealand | D4: =_xlfn.LET(_xlpm.office_type,'Working Values'!$F$13,IF(_xlpm.office_type="Multi-unit Residential",Data!D5,IF(_xlpm.office_type="Education",Data!AL5,IF(_xlpm.office_type="Mixed-use Building",W8,Data!U5)))) -> 0 | E4: =_xlfn.LET(_xlpm.office_type,'Working Values'!$F$13,IF(_xlpm.office_type="Multi-unit Residential",Data!E5,IF(_xlpm.office_type="Education",Data!AM5,IF(_xlpm.office_type="Mixed-use Building",X8,Data!V5)))) -> 0 | F4: =_xlfn.LET(_xlpm.office_type,'Working Values'!$F$13,IF(_xlpm.office_type="Multi-unit Residential",Data!F5,IF(_xlpm.office_type="Education",Data!AN5,IF(_xlpm.office_type="Mixed-use Building",Y8,Data!W5)))) -> 0 | G4: =_xlfn.LET(_xlpm.office_type,'Working Values'!$F$13,IF(_xlpm.office_type="Multi-unit Residential",Data!G5,IF(_xlpm.office_type="Education",Data!AO5,IF(_xlpm.office_type="Mixed-use Building",Z8,Data!X5)))) -> 0 | H4: =_xlfn.LET(_xlpm.office_type,'Working Values'!$F$13,IF(_xlpm.office_type="Multi-unit Residential",Data!H5,IF(_xlpm.office_type="Education",Data!AP5,IF(_xlpm.office_type="Mixed-use Building",AA8,Data!Y5)))) -> 0 | I4: =_xlfn.LET(_xlpm.office_type,'Working Values'!$F$13,IF(_xlpm.office_type="Multi-unit Residential",Data!I5,IF(_xlpm.office_type="Education",Data!AQ5,IF(_xlpm.office_type="Mixed-use Building",AB8,Data!Z5)))) -> 0 | J4: =_xlfn.LET(_xlpm.office_type,'Working Values'!$F$13,IF(_xlpm.office_type="Multi-unit Residential",Data!J5,IF(_xlpm.office_type="Education",Data!AR5,IF(_xlpm.office_type="Mixed-use Building",AC8,Data!AA5)))) -> 0 | K4: =_xlfn.LET(_xlpm.office_type,'Working Values'!$F$13,IF(_xlpm.office_type="Multi-unit Residential",Data!K5,IF(_xlpm.office_type="Education",Data!AS5,IF(_xlpm.office_type="Mixed-use Building",AD8,Data!AB5)))) -> 0 | L4: =_xlfn.LET(_xlpm.office_type,'Working Values'!$F$13,IF(_xlpm.office_type="Multi-unit Residential",Data!L5,IF(_xlpm.office_type="Education",Data!AT5,IF(_xlpm.office_type="Mixed-use Building",AE8,Data!AC5)))) -> 0 | M4: =_xlfn.LET(_xlpm.office_type,'Working Values'!$F$13,IF(_xlpm.office_type="Multi-unit Residential",Data!M5,IF(_xlpm.office_type="Education",Data!AU5,IF(_xlpm.office_type="Mixed-use Building",AF8,Data!AD5)))) -> 0.02 | N4: =_xlfn.LET(_xlpm.office_type,'Working Values'!$F$13,IF(_xlpm.office_type="Multi-unit Residential",Data!N5,IF(_xlpm.office_type="Education",Data!AV5,IF(_xlpm.office_type="Mixed-use Building",AG8,Data!AE5)))) -> 0 | O4: =_xlfn.LET(_xlpm.office_type,'Working Values'!$F$13,IF(_xlpm.office_type="Multi-unit Residential",Data!O5,IF(_xlpm.office_type="Education",Data!AW5,IF(_xlpm.office_type="Mixed-use Building",AH8,Data!AF5)))) -> 173.7015399 | P4: =_xlfn.LET(_xlpm.office_type,'Working Values'!$F$13,IF(_xlpm.office_type="Multi-unit Residential",Data!P5,IF(_xlpm.office_type="Education",Data!AX5,IF(_xlpm.office_type="Mixed-use Building",AI8,Data!AG5)))) -> -35.12610467 | T4: Education | U4: =VLOOKUP(sa2_found,education_data,1,FALSE) -> Queen Street | V4: =VLOOKUP(sa2_found,education_data,2,FALSE) -> New Zealand | W4: =VLOOKUP(sa2_found,education_data,3,FALSE) -> 0.05 | X4: =VLOOKUP(sa2_found,education_data,4,FALSE) -> 0.22 | Y4: =VLOOKUP(sa2_found,education_data,5,FALSE) -> 0 | Z4: =VLOOKUP(sa2_found,education_data,6,FALSE) -> 0 | AA4: =VLOOKUP(sa2_found,education_data,7,FALSE) -> 0.55 | AB4: =VLOOKUP(sa2_found,education_data,8,FALSE) -> 0 | AC4: =VLOOKUP(sa2_found,education_data,9,FALSE) -> 0 | AD4: =VLOOKUP(sa2_found,education_data,10,FALSE) -> 0 | AE4: =VLOOKUP(sa2_found,education_data,11,FALSE) -> 0.18 | AF4: =VLOOKUP(sa2_found,education_data,12,FALSE) -> 0 | AG4: =VLOOKUP(sa2_found,education_data,13,FALSE) -> 10.2 | AH4: =VLOOKUP(sa2_found,education_data,14,FALSE) -> 174.7652497 | AI4: =VLOOKUP(sa2_found,education_data,15,FALSE) -> -36.84774104
A5: =_xlfn.LET(_xlpm.office_type,'Working Values'!$F$13,IF(_xlpm.office_type="Multi-unit Residential",Data!A6,IF(_xlpm.office_type="Education",Data!AI6,IF(_xlpm.office_type="Mixed-use Building",T9,Data!R6)))) -> 100400 | B5: =_xlfn.LET(_xlpm.office_type,'Working Values'!$F$13,IF(_xlpm.office_type="Multi-unit Residential",Data!B6,IF(_xlpm.office_type="Education",Data!AJ6,IF(_xlpm.office_type="Mixed-use Building",U9,Data!S6)))) -> Karikari Peninsula | C5: =_xlfn.LET(_xlpm.office_type,'Working Values'!$F$13,IF(_xlpm.office_type="Multi-unit Residential",Data!C6,IF(_xlpm.office_type="Education",Data!AK6,IF(_xlpm.office_type="Mixed-use Building",V9,Data!T6)))) -> New Zealand | D5: =_xlfn.LET(_xlpm.office_type,'Working Values'!$F$13,IF(_xlpm.office_type="Multi-unit Residential",Data!D6,IF(_xlpm.office_type="Education",Data!AL6,IF(_xlpm.office_type="Mixed-use Building",W9,Data!U6)))) -> 0 | E5: =_xlfn.LET(_xlpm.office_type,'Working Values'!$F$13,IF(_xlpm.office_type="Multi-unit Residential",Data!E6,IF(_xlpm.office_type="Education",Data!AM6,IF(_xlpm.office_type="Mixed-use Building",X9,Data!V6)))) -> 0 | F5: =_xlfn.LET(_xlpm.office_type,'Working Values'!$F$13,IF(_xlpm.office_type="Multi-unit Residential",Data!F6,IF(_xlpm.office_type="Education",Data!AN6,IF(_xlpm.office_type="Mixed-use Building",Y9,Data!W6)))) -> 0 | G5: =_xlfn.LET(_xlpm.office_type,'Working Values'!$F$13,IF(_xlpm.office_type="Multi-unit Residential",Data!G6,IF(_xlpm.office_type="Education",Data!AO6,IF(_xlpm.office_type="Mixed-use Building",Z9,Data!X6)))) -> 0 | H5: =_xlfn.LET(_xlpm.office_type,'Working Values'!$F$13,IF(_xlpm.office_type="Multi-unit Residential",Data!H6,IF(_xlpm.office_type="Education",Data!AP6,IF(_xlpm.office_type="Mixed-use Building",AA9,Data!Y6)))) -> 0.92 | I5: =_xlfn.LET(_xlpm.office_type,'Working Values'!$F$13,IF(_xlpm.office_type="Multi-unit Residential",Data!I6,IF(_xlpm.office_type="Education",Data!AQ6,IF(_xlpm.office_type="Mixed-use Building",AB9,Data!Z6)))) -> 0.07 | J5: =_xlfn.LET(_xlpm.office_type,'Working Values'!$F$13,IF(_xlpm.office_type="Multi-unit Residential",Data!J6,IF(_xlpm.office_type="Education",Data!AR6,IF(_xlpm.office_type="Mixed-use Building",AC9,Data!AA6)))) -> 0.01 | K5: =_xlfn.LET(_xlpm.office_type,'Working Values'!$F$13,IF(_xlpm.office_type="Multi-unit Residential",Data!K6,IF(_xlpm.office_type="Education",Data!AS6,IF(_xlpm.office_type="Mixed-use Building",AD9,Data!AB6)))) -> 0 | L5: =_xlfn.LET(_xlpm.office_type,'Working Values'!$F$13,IF(_xlpm.office_type="Multi-unit Residential",Data!L6,IF(_xlpm.office_type="Education",Data!AT6,IF(_xlpm.office_type="Mixed-use Building",AE9,Data!AC6)))) -> 0 | M5: =_xlfn.LET(_xlpm.office_type,'Working Values'!$F$13,IF(_xlpm.office_type="Multi-unit Residential",Data!M6,IF(_xlpm.office_type="Education",Data!AU6,IF(_xlpm.office_type="Mixed-use Building",AF9,Data!AD6)))) -> 0.02 | N5: =_xlfn.LET(_xlpm.office_type,'Working Values'!$F$13,IF(_xlpm.office_type="Multi-unit Residential",Data!N6,IF(_xlpm.office_type="Education",Data!AV6,IF(_xlpm.office_type="Mixed-use Building",AG9,Data!AE6)))) -> 9.93 | O5: =_xlfn.LET(_xlpm.office_type,'Working Values'!$F$13,IF(_xlpm.office_type="Multi-unit Residential",Data!O6,IF(_xlpm.office_type="Education",Data!AW6,IF(_xlpm.office_type="Mixed-use Building",AH9,Data!AF6)))) -> 173.3658754 | P5: =_xlfn.LET(_xlpm.office_type,'Working Values'!$F$13,IF(_xlpm.office_type="Multi-unit Residential",Data!P6,IF(_xlpm.office_type="Education",Data!AX6,IF(_xlpm.office_type="Mixed-use Building",AI9,Data!AG6)))) -> -34.92885178
A6: =_xlfn.LET(_xlpm.office_type,'Working Values'!$F$13,IF(_xlpm.office_type="Multi-unit Residential",Data!A7,IF(_xlpm.office_type="Education",Data!AI7,IF(_xlpm.office_type="Mixed-use Building",T10,Data!R7)))) -> 100500 | B6: =_xlfn.LET(_xlpm.office_type,'Working Values'!$F$13,IF(_xlpm.office_type="Multi-unit Residential",Data!B7,IF(_xlpm.office_type="Education",Data!AJ7,IF(_xlpm.office_type="Mixed-use Building",U10,Data!S7)))) -> Tangonge | C6: =_xlfn.LET(_xlpm.office_type,'Working Values'!$F$13,IF(_xlpm.office_type="Multi-unit Residential",Data!C7,IF(_xlpm.office_type="Education",Data!AK7,IF(_xlpm.office_type="Mixed-use Building",V10,Data!T7)))) -> New Zealand | D6: =_xlfn.LET(_xlpm.office_type,'Working Values'!$F$13,IF(_xlpm.office_type="Multi-unit Residential",Data!D7,IF(_xlpm.office_type="Education",Data!AL7,IF(_xlpm.office_type="Mixed-use Building",W10,Data!U7)))) -> 0 | E6: =_xlfn.LET(_xlpm.office_type,'Working Values'!$F$13,IF(_xlpm.office_type="Multi-unit Residential",Data!E7,IF(_xlpm.office_type="Education",Data!AM7,IF(_xlpm.office_type="Mixed-use Building",X10,Data!V7)))) -> 0 | F6: =_xlfn.LET(_xlpm.office_type,'Working Values'!$F$13,IF(_xlpm.office_type="Multi-unit Residential",Data!F7,IF(_xlpm.office_type="Education",Data!AN7,IF(_xlpm.office_type="Mixed-use Building",Y10,Data!W7)))) -> 0 | G6: =_xlfn.LET(_xlpm.office_type,'Working Values'!$F$13,IF(_xlpm.office_type="Multi-unit Residential",Data!G7,IF(_xlpm.office_type="Education",Data!AO7,IF(_xlpm.office_type="Mixed-use Building",Z10,Data!X7)))) -> 0 | H6: =_xlfn.LET(_xlpm.office_type,'Working Values'!$F$13,IF(_xlpm.office_type="Multi-unit Residential",Data!H7,IF(_xlpm.office_type="Education",Data!AP7,IF(_xlpm.office_type="Mixed-use Building",AA10,Data!Y7)))) -> 0.99 | I6: =_xlfn.LET(_xlpm.office_type,'Working Values'!$F$13,IF(_xlpm.office_type="Multi-unit Residential",Data!I7,IF(_xlpm.office_type="Education",Data!AQ7,IF(_xlpm.office_type="Mixed-use Building",AB10,Data!Z7)))) -> 0 | J6: =_xlfn.LET(_xlpm.office_type,'Working Values'!$F$13,IF(_xlpm.office_type="Multi-unit Residential",Data!J7,IF(_xlpm.office_type="Education",Data!AR7,IF(_xlpm.office_type="Mixed-use Building",AC10,Data!AA7)))) -> 0.01 | K6: =_xlfn.LET(_xlpm.office_type,'Working Values'!$F$13,IF(_xlpm.office_type="Multi-unit Residential",Data!K7,IF(_xlpm.office_type="Education",Data!AS7,IF(_xlpm.office_type="Mixed-use Building",AD10,Data!AB7)))) -> 0 | L6: =_xlfn.LET(_xlpm.office_type,'Working Values'!$F$13,IF(_xlpm.office_type="Multi-unit Residential",Data!L7,IF(_xlpm.office_type="Education",Data!AT7,IF(_xlpm.office_type="Mixed-use Building",AE10,Data!AC7)))) -> 0 | M6: =_xlfn.LET(_xlpm.office_type,'Working Values'!$F$13,IF(_xlpm.office_type="Multi-unit Residential",Data!M7,IF(_xlpm.office_type="Education",Data!AU7,IF(_xlpm.office_type="Mixed-use Building",AF10,Data!AD7)))) -> 0.02 | N6: =_xlfn.LET(_xlpm.office_type,'Working Values'!$F$13,IF(_xlpm.office_type="Multi-unit Residential",Data!N7,IF(_xlpm.office_type="Education",Data!AV7,IF(_xlpm.office_type="Mixed-use Building",AG10,Data!AE7)))) -> 9.53 | O6: =_xlfn.LET(_xlpm.office_type,'Working Values'!$F$13,IF(_xlpm.office_type="Multi-unit Residential",Data!O7,IF(_xlpm.office_type="Education",Data!AW7,IF(_xlpm.office_type="Mixed-use Building",AH10,Data!AF7)))) -> 173.1830909 | P6: =_xlfn.LET(_xlpm.office_type,'Working Values'!$F$13,IF(_xlpm.office_type="Multi-unit Residential",Data!P7,IF(_xlpm.office_type="Education",Data!AX7,IF(_xlpm.office_type="Mixed-use Building",AI10,Data!AG7)))) -> -35.15504513 | T6: Combined | U6: =U2 -> Queen Street | V6: =V2 -> New Zealand | W6: =W2*(Transport!$I$11/100) + (1-(Transport!$I$11/100))*W3 -> 0.07 | X6: =X2*(Transport!$I$11/100) + (1-(Transport!$I$11/100))*X3 -> 0.23 | Y6: =Y2*(Transport!$I$11/100) + (1-(Transport!$I$11/100))*Y3 -> 0.02 | Z6: =Z2*(Transport!$I$11/100) + (1-(Transport!$I$11/100))*Z3 -> 0 | AA6: =AA2*(Transport!$I$11/100) + (1-(Transport!$I$11/100))*AA3 -> 0.23 | AB6: =AB2*(Transport!$I$11/100) + (1-(Transport!$I$11/100))*AB3 -> 0 | AC6: =AC2*(Transport!$I$11/100) + (1-(Transport!$I$11/100))*AC3 -> 0.01 | AD6: =AD2*(Transport!$I$11/100) + (1-(Transport!$I$11/100))*AD3 -> 0 | AE6: =AE2*(Transport!$I$11/100) + (1-(Transport!$I$11/100))*AE3 -> 0.44 | AF6: =AF2*(Transport!$I$11/100) + (1-(Transport!$I$11/100))*AF3 -> 0.02 | AG6: =AG2 -> 1.39 | AH6: 174.7652497 | AI6: -36.84774104
A7: =_xlfn.LET(_xlpm.office_type,'Working Values'!$F$13,IF(_xlpm.office_type="Multi-unit Residential",Data!A8,IF(_xlpm.office_type="Education",Data!AI8,IF(_xlpm.office_type="Mixed-use Building",T11,Data!R8)))) -> 100600 | B7: =_xlfn.LET(_xlpm.office_type,'Working Values'!$F$13,IF(_xlpm.office_type="Multi-unit Residential",Data!B8,IF(_xlpm.office_type="Education",Data!AJ8,IF(_xlpm.office_type="Mixed-use Building",U11,Data!S8)))) -> Ahipara | C7: =_xlfn.LET(_xlpm.office_type,'Working Values'!$F$13,IF(_xlpm.office_type="Multi-unit Residential",Data!C8,IF(_xlpm.office_type="Education",Data!AK8,IF(_xlpm.office_type="Mixed-use Building",V11,Data!T8)))) -> New Zealand | D7: =_xlfn.LET(_xlpm.office_type,'Working Values'!$F$13,IF(_xlpm.office_type="Multi-unit Residential",Data!D8,IF(_xlpm.office_type="Education",Data!AL8,IF(_xlpm.office_type="Mixed-use Building",W11,Data!U8)))) -> 0 | E7: =_xlfn.LET(_xlpm.office_type,'Working Values'!$F$13,IF(_xlpm.office_type="Multi-unit Residential",Data!E8,IF(_xlpm.office_type="Education",Data!AM8,IF(_xlpm.office_type="Mixed-use Building",X11,Data!V8)))) -> 0 | F7: =_xlfn.LET(_xlpm.office_type,'Working Values'!$F$13,IF(_xlpm.office_type="Multi-unit Residential",Data!F8,IF(_xlpm.office_type="Education",Data!AN8,IF(_xlpm.office_type="Mixed-use Building",Y11,Data!W8)))) -> 0 | G7: =_xlfn.LET(_xlpm.office_type,'Working Values'!$F$13,IF(_xlpm.office_type="Multi-unit Residential",Data!G8,IF(_xlpm.office_type="Education",Data!AO8,IF(_xlpm.office_type="Mixed-use Building",Z11,Data!X8)))) -> 0 | H7: =_xlfn.LET(_xlpm.office_type,'Working Values'!$F$13,IF(_xlpm.office_type="Multi-unit Residential",Data!H8,IF(_xlpm.office_type="Education",Data!AP8,IF(_xlpm.office_type="Mixed-use Building",AA11,Data!Y8)))) -> 0.99 | I7: =_xlfn.LET(_xlpm.office_type,'Working Values'!$F$13,IF(_xlpm.office_type="Multi-unit Residential",Data!I8,IF(_xlpm.office_type="Education",Data!AQ8,IF(_xlpm.office_type="Mixed-use Building",AB11,Data!Z8)))) -> 0 | J7: =_xlfn.LET(_xlpm.office_type,'Working Values'!$F$13,IF(_xlpm.office_type="Multi-unit Residential",Data!J8,IF(_xlpm.office_type="Education",Data!AR8,IF(_xlpm.office_type="Mixed-use Building",AC11,Data!AA8)))) -> 0.01 | K7: =_xlfn.LET(_xlpm.office_type,'Working Values'!$F$13,IF(_xlpm.office_type="Multi-unit Residential",Data!K8,IF(_xlpm.office_type="Education",Data!AS8,IF(_xlpm.office_type="Mixed-use Building",AD11,Data!AB8)))) -> 0 | L7: =_xlfn.LET(_xlpm.office_type,'Working Values'!$F$13,IF(_xlpm.office_type="Multi-unit Residential",Data!L8,IF(_xlpm.office_type="Education",Data!AT8,IF(_xlpm.office_type="Mixed-use Building",AE11,Data!AC8)))) -> 0 | M7: =_xlfn.LET(_xlpm.office_type,'Working Values'!$F$13,IF(_xlpm.office_type="Multi-unit Residential",Data!M8,IF(_xlpm.office_type="Education",Data!AU8,IF(_xlpm.office_type="Mixed-use Building",AF11,Data!AD8)))) -> 0.02 | N7: =_xlfn.LET(_xlpm.office_type,'Working Values'!$F$13,IF(_xlpm.office_type="Multi-unit Residential",Data!N8,IF(_xlpm.office_type="Education",Data!AV8,IF(_xlpm.office_type="Mixed-use Building",AG11,Data!AE8)))) -> 1.68 | O7: =_xlfn.LET(_xlpm.office_type,'Working Values'!$F$13,IF(_xlpm.office_type="Multi-unit Residential",Data!O8,IF(_xlpm.office_type="Education",Data!AW8,IF(_xlpm.office_type="Mixed-use Building",AH11,Data!AF8)))) -> 173.1520752 | P7: =_xlfn.LET(_xlpm.office_type,'Working Values'!$F$13,IF(_xlpm.office_type="Multi-unit Residential",Data!P8,IF(_xlpm.office_type="Education",Data!AX8,IF(_xlpm.office_type="Mixed-use Building",AI11,Data!AG8)))) -> -35.16675416
A8: =_xlfn.LET(_xlpm.office_type,'Working Values'!$F$13,IF(_xlpm.office_type="Multi-unit Residential",Data!A9,IF(_xlpm.office_type="Education",Data!AI9,IF(_xlpm.office_type="Mixed-use Building",T12,Data!R9)))) -> 100700 | B8: =_xlfn.LET(_xlpm.office_type,'Working Values'!$F$13,IF(_xlpm.office_type="Multi-unit Residential",Data!B9,IF(_xlpm.office_type="Education",Data!AJ9,IF(_xlpm.office_type="Mixed-use Building",U12,Data!S9)))) -> Kaitaia East | C8: =_xlfn.LET(_xlpm.office_type,'Working Values'!$F$13,IF(_xlpm.office_type="Multi-unit Residential",Data!C9,IF(_xlpm.office_type="Education",Data!AK9,IF(_xlpm.office_type="Mixed-use Building",V12,Data!T9)))) -> New Zealand | D8: =_xlfn.LET(_xlpm.office_type,'Working Values'!$F$13,IF(_xlpm.office_type="Multi-unit Residential",Data!D9,IF(_xlpm.office_type="Education",Data!AL9,IF(_xlpm.office_type="Mixed-use Building",W12,Data!U9)))) -> 0 | E8: =_xlfn.LET(_xlpm.office_type,'Working Values'!$F$13,IF(_xlpm.office_type="Multi-unit Residential",Data!E9,IF(_xlpm.office_type="Education",Data!AM9,IF(_xlpm.office_type="Mixed-use Building",X12,Data!V9)))) -> 0 | F8: =_xlfn.LET(_xlpm.office_type,'Working Values'!$F$13,IF(_xlpm.office_type="Multi-unit Residential",Data!F9,IF(_xlpm.office_type="Education",Data!AN9,IF(_xlpm.office_type="Mixed-use Building",Y12,Data!W9)))) -> 0 | G8: =_xlfn.LET(_xlpm.office_type,'Working Values'!$F$13,IF(_xlpm.office_type="Multi-unit Residential",Data!G9,IF(_xlpm.office_type="Education",Data!AO9,IF(_xlpm.office_type="Mixed-use Building",Z12,Data!X9)))) -> 0 | H8: =_xlfn.LET(_xlpm.office_type,'Working Values'!$F$13,IF(_xlpm.office_type="Multi-unit Residential",Data!H9,IF(_xlpm.office_type="Education",Data!AP9,IF(_xlpm.office_type="Mixed-use Building",AA12,Data!Y9)))) -> 0.91 | I8: =_xlfn.LET(_xlpm.office_type,'Working Values'!$F$13,IF(_xlpm.office_type="Multi-unit Residential",Data!I9,IF(_xlpm.office_type="Education",Data!AQ9,IF(_xlpm.office_type="Mixed-use Building",AB12,Data!Z9)))) -> 0.04 | J8: =_xlfn.LET(_xlpm.office_type,'Working Values'!$F$13,IF(_xlpm.office_type="Multi-unit Residential",Data!J9,IF(_xlpm.office_type="Education",Data!AR9,IF(_xlpm.office_type="Mixed-use Building",AC12,Data!AA9)))) -> 0.01 | K8: =_xlfn.LET(_xlpm.office_type,'Working Values'!$F$13,IF(_xlpm.office_type="Multi-unit Residential",Data!K9,IF(_xlpm.office_type="Education",Data!AS9,IF(_xlpm.office_type="Mixed-use Building",AD12,Data!AB9)))) -> 0 | L8: =_xlfn.LET(_xlpm.office_type,'Working Values'!$F$13,IF(_xlpm.office_type="Multi-unit Residential",Data!L9,IF(_xlpm.office_type="Education",Data!AT9,IF(_xlpm.office_type="Mixed-use Building",AE12,Data!AC9)))) -> 0.04 | M8: =_xlfn.LET(_xlpm.office_type,'Working Values'!$F$13,IF(_xlpm.office_type="Multi-unit Residential",Data!M9,IF(_xlpm.office_type="Education",Data!AU9,IF(_xlpm.office_type="Mixed-use Building",AF12,Data!AD9)))) -> 0.02 | N8: =_xlfn.LET(_xlpm.office_type,'Working Values'!$F$13,IF(_xlpm.office_type="Multi-unit Residential",Data!N9,IF(_xlpm.office_type="Education",Data!AV9,IF(_xlpm.office_type="Mixed-use Building",AG12,Data!AE9)))) -> 12.38 | O8: =_xlfn.LET(_xlpm.office_type,'Working Values'!$F$13,IF(_xlpm.office_type="Multi-unit Residential",Data!O9,IF(_xlpm.office_type="Education",Data!AW9,IF(_xlpm.office_type="Mixed-use Building",AH12,Data!AF9)))) -> 173.264143 | P8: =_xlfn.LET(_xlpm.office_type,'Working Values'!$F$13,IF(_xlpm.office_type="Multi-unit Residential",Data!P9,IF(_xlpm.office_type="Education",Data!AX9,IF(_xlpm.office_type="Mixed-use Building",AI12,Data!AG9)))) -> -35.10383477
A9: =_xlfn.LET(_xlpm.office_type,'Working Values'!$F$13,IF(_xlpm.office_type="Multi-unit Residential",Data!A10,IF(_xlpm.office_type="Education",Data!AI10,IF(_xlpm.office_type="Mixed-use Building",T13,Data!R10)))) -> 100800 | B9: =_xlfn.LET(_xlpm.office_type,'Working Values'!$F$13,IF(_xlpm.office_type="Multi-unit Residential",Data!B10,IF(_xlpm.office_type="Education",Data!AJ10,IF(_xlpm.office_type="Mixed-use Building",U13,Data!S10)))) -> Kaitaia West | C9: =_xlfn.LET(_xlpm.office_type,'Working Values'!$F$13,IF(_xlpm.office_type="Multi-unit Residential",Data!C10,IF(_xlpm.office_type="Education",Data!AK10,IF(_xlpm.office_type="Mixed-use Building",V13,Data!T10)))) -> New Zealand | D9: =_xlfn.LET(_xlpm.office_type,'Working Values'!$F$13,IF(_xlpm.office_type="Multi-unit Residential",Data!D10,IF(_xlpm.office_type="Education",Data!AL10,IF(_xlpm.office_type="Mixed-use Building",W13,Data!U10)))) -> 0 | E9: =_xlfn.LET(_xlpm.office_type,'Working Values'!$F$13,IF(_xlpm.office_type="Multi-unit Residential",Data!E10,IF(_xlpm.office_type="Education",Data!AM10,IF(_xlpm.office_type="Mixed-use Building",X13,Data!V10)))) -> 0 | F9: =_xlfn.LET(_xlpm.office_type,'Working Values'!$F$13,IF(_xlpm.office_type="Multi-unit Residential",Data!F10,IF(_xlpm.office_type="Education",Data!AN10,IF(_xlpm.office_type="Mixed-use Building",Y13,Data!W10)))) -> 0 | G9: =_xlfn.LET(_xlpm.office_type,'Working Values'!$F$13,IF(_xlpm.office_type="Multi-unit Residential",Data!G10,IF(_xlpm.office_type="Education",Data!AO10,IF(_xlpm.office_type="Mixed-use Building",Z13,Data!X10)))) -> 0 | H9: =_xlfn.LET(_xlpm.office_type,'Working Values'!$F$13,IF(_xlpm.office_type="Multi-unit Residential",Data!H10,IF(_xlpm.office_type="Education",Data!AP10,IF(_xlpm.office_type="Mixed-use Building",AA13,Data!Y10)))) -> 0.93 | I9: =_xlfn.LET(_xlpm.office_type,'Working Values'!$F$13,IF(_xlpm.office_type="Multi-unit Residential",Data!I10,IF(_xlpm.office_type="Education",Data!AQ10,IF(_xlpm.office_type="Mixed-use Building",AB13,Data!Z10)))) -> 0.02 | J9: =_xlfn.LET(_xlpm.office_type,'Working Values'!$F$13,IF(_xlpm.office_type="Multi-unit Residential",Data!J10,IF(_xlpm.office_type="Education",Data!AR10,IF(_xlpm.office_type="Mixed-use Building",AC13,Data!AA10)))) -> 0.01 | K9: =_xlfn.LET(_xlpm.office_type,'Working Values'!$F$13,IF(_xlpm.office_type="Multi-unit Residential",Data!K10,IF(_xlpm.office_type="Education",Data!AS10,IF(_xlpm.office_type="Mixed-use Building",AD13,Data!AB10)))) -> 0 | L9: =_xlfn.LET(_xlpm.office_type,'Working Values'!$F$13,IF(_xlpm.office_type="Multi-unit Residential",Data!L10,IF(_xlpm.office_type="Education",Data!AT10,IF(_xlpm.office_type="Mixed-use Building",AE13,Data!AC10)))) -> 0.04 | M9: =_xlfn.LET(_xlpm.office_type,'Working Values'!$F$13,IF(_xlpm.office_type="Multi-unit Residential",Data!M10,IF(_xlpm.office_type="Education",Data!AU10,IF(_xlpm.office_type="Mixed-use Building",AF13,Data!AD10)))) -> 0.02 | N9: =_xlfn.LET(_xlpm.office_type,'Working Values'!$F$13,IF(_xlpm.office_type="Multi-unit Residential",Data!N10,IF(_xlpm.office_type="Education",Data!AV10,IF(_xlpm.office_type="Mixed-use Building",AG13,Data!AE10)))) -> 13.01 | O9: =_xlfn.LET(_xlpm.office_type,'Working Values'!$F$13,IF(_xlpm.office_type="Multi-unit Residential",Data!O10,IF(_xlpm.office_type="Education",Data!AW10,IF(_xlpm.office_type="Mixed-use Building",AH13,Data!AF10)))) -> 173.2584142 | P9: =_xlfn.LET(_xlpm.office_type,'Working Values'!$F$13,IF(_xlpm.office_type="Multi-unit Residential",Data!P10,IF(_xlpm.office_type="Education",Data!AX10,IF(_xlpm.office_type="Mixed-use Building",AI13,Data!AG10)))) -> -35.11687978
A10: =_xlfn.LET(_xlpm.office_type,'Working Values'!$F$13,IF(_xlpm.office_type="Multi-unit Residential",Data!A11,IF(_xlpm.office_type="Education",Data!AI11,IF(_xlpm.office_type="Mixed-use Building",T14,Data!R11)))) -> 100900 | B10: =_xlfn.LET(_xlpm.office_type,'Working Values'!$F$13,IF(_xlpm.office_type="Multi-unit Residential",Data!B11,IF(_xlpm.office_type="Education",Data!AJ11,IF(_xlpm.office_type="Mixed-use Building",U14,Data!S11)))) -> Rangitihi | C10: =_xlfn.LET(_xlpm.office_type,'Working Values'!$F$13,IF(_xlpm.office_type="Multi-unit Residential",Data!C11,IF(_xlpm.office_type="Education",Data!AK11,IF(_xlpm.office_type="Mixed-use Building",V14,Data!T11)))) -> New Zealand | D10: =_xlfn.LET(_xlpm.office_type,'Working Values'!$F$13,IF(_xlpm.office_type="Multi-unit Residential",Data!D11,IF(_xlpm.office_type="Education",Data!AL11,IF(_xlpm.office_type="Mixed-use Building",W14,Data!U11)))) -> 0 | E10: =_xlfn.LET(_xlpm.office_type,'Working Values'!$F$13,IF(_xlpm.office_type="Multi-unit Residential",Data!E11,IF(_xlpm.office_type="Education",Data!AM11,IF(_xlpm.office_type="Mixed-use Building",X14,Data!V11)))) -> 0 | F10: =_xlfn.LET(_xlpm.office_type,'Working Values'!$F$13,IF(_xlpm.office_type="Multi-unit Residential",Data!F11,IF(_xlpm.office_type="Education",Data!AN11,IF(_xlpm.office_type="Mixed-use Building",Y14,Data!W11)))) -> 0 | G10: =_xlfn.LET(_xlpm.office_type,'Working Values'!$F$13,IF(_xlpm.office_type="Multi-unit Residential",Data!G11,IF(_xlpm.office_type="Education",Data!AO11,IF(_xlpm.office_type="Mixed-use Building",Z14,Data!X11)))) -> 0 | H10: =_xlfn.LET(_xlpm.office_type,'Working Values'!$F$13,IF(_xlpm.office_type="Multi-unit Residential",Data!H11,IF(_xlpm.office_type="Education",Data!AP11,IF(_xlpm.office_type="Mixed-use Building",AA14,Data!Y11)))) -> 0.99 | I10: =_xlfn.LET(_xlpm.office_type,'Working Values'!$F$13,IF(_xlpm.office_type="Multi-unit Residential",Data!I11,IF(_xlpm.office_type="Education",Data!AQ11,IF(_xlpm.office_type="Mixed-use Building",AB14,Data!Z11)))) -> 0 | J10: =_xlfn.LET(_xlpm.office_type,'Working Values'!$F$13,IF(_xlpm.office_type="Multi-unit Residential",Data!J11,IF(_xlpm.office_type="Education",Data!AR11,IF(_xlpm.office_type="Mixed-use Building",AC14,Data!AA11)))) -> 0.01 | K10: =_xlfn.LET(_xlpm.office_type,'Working Values'!$F$13,IF(_xlpm.office_type="Multi-unit Residential",Data!K11,IF(_xlpm.office_type="Education",Data!AS11,IF(_xlpm.office_type="Mixed-use Building",AD14,Data!AB11)))) -> 0 | L10: =_xlfn.LET(_xlpm.office_type,'Working Values'!$F$13,IF(_xlpm.office_type="Multi-unit Residential",Data!L11,IF(_xlpm.office_type="Education",Data!AT11,IF(_xlpm.office_type="Mixed-use Building",AE14,Data!AC11)))) -> 0 | M10: =_xlfn.LET(_xlpm.office_type,'Working Values'!$F$13,IF(_xlpm.office_type="Multi-unit Residential",Data!M11,IF(_xlpm.office_type="Education",Data!AU11,IF(_xlpm.office_type="Mixed-use Building",AF14,Data!AD11)))) -> 0.02 | N10: =_xlfn.LET(_xlpm.office_type,'Working Values'!$F$13,IF(_xlpm.office_type="Multi-unit Residential",Data!N11,IF(_xlpm.office_type="Education",Data!AV11,IF(_xlpm.office_type="Mixed-use Building",AG14,Data!AE11)))) -> 11.02 | O10: =_xlfn.LET(_xlpm.office_type,'Working Values'!$F$13,IF(_xlpm.office_type="Multi-unit Residential",Data!O11,IF(_xlpm.office_type="Education",Data!AW11,IF(_xlpm.office_type="Mixed-use Building",AH14,Data!AF11)))) -> 173.3044665 | P10: =_xlfn.LET(_xlpm.office_type,'Working Values'!$F$13,IF(_xlpm.office_type="Multi-unit Residential",Data!P11,IF(_xlpm.office_type="Education",Data!AX11,IF(_xlpm.office_type="Mixed-use Building",AI14,Data!AG11)))) -> -35.12351796
A11: =_xlfn.LET(_xlpm.office_type,'Working Values'!$F$13,IF(_xlpm.office_type="Multi-unit Residential",Data!A12,IF(_xlpm.office_type="Education",Data!AI12,IF(_xlpm.office_type="Mixed-use Building",T15,Data!R12)))) -> 101000 | B11: =_xlfn.LET(_xlpm.office_type,'Working Values'!$F$13,IF(_xlpm.office_type="Multi-unit Residential",Data!B12,IF(_xlpm.office_type="Education",Data!AJ12,IF(_xlpm.office_type="Mixed-use Building",U15,Data!S12)))) -> Oruru-Parapara | C11: =_xlfn.LET(_xlpm.office_type,'Working Values'!$F$13,IF(_xlpm.office_type="Multi-unit Residential",Data!C12,IF(_xlpm.office_type="Education",Data!AK12,IF(_xlpm.office_type="Mixed-use Building",V15,Data!T12)))) -> New Zealand | D11: =_xlfn.LET(_xlpm.office_type,'Working Values'!$F$13,IF(_xlpm.office_type="Multi-unit Residential",Data!D12,IF(_xlpm.office_type="Education",Data!AL12,IF(_xlpm.office_type="Mixed-use Building",W15,Data!U12)))) -> 0 | E11: =_xlfn.LET(_xlpm.office_type,'Working Values'!$F$13,IF(_xlpm.office_type="Multi-unit Residential",Data!E12,IF(_xlpm.office_type="Education",Data!AM12,IF(_xlpm.office_type="Mixed-use Building",X15,Data!V12)))) -> 0 | F11: =_xlfn.LET(_xlpm.office_type,'Working Values'!$F$13,IF(_xlpm.office_type="Multi-unit Residential",Data!F12,IF(_xlpm.office_type="Education",Data!AN12,IF(_xlpm.office_type="Mixed-use Building",Y15,Data!W12)))) -> 0 | G11: =_xlfn.LET(_xlpm.office_type,'Working Values'!$F$13,IF(_xlpm.office_type="Multi-unit Residential",Data!G12,IF(_xlpm.office_type="Education",Data!AO12,IF(_xlpm.office_type="Mixed-use Building",Z15,Data!X12)))) -> 0 | H11: =_xlfn.LET(_xlpm.office_type,'Working Values'!$F$13,IF(_xlpm.office_type="Multi-unit Residential",Data!H12,IF(_xlpm.office_type="Education",Data!AP12,IF(_xlpm.office_type="Mixed-use Building",AA15,Data!Y12)))) -> 0.99 | I11: =_xlfn.LET(_xlpm.office_type,'Working Values'!$F$13,IF(_xlpm.office_type="Multi-unit Residential",Data!I12,IF(_xlpm.office_type="Education",Data!AQ12,IF(_xlpm.office_type="Mixed-use Building",AB15,Data!Z12)))) -> 0 | J11: =_xlfn.LET(_xlpm.office_type,'Working Values'!$F$13,IF(_xlpm.office_type="Multi-unit Residential",Data!J12,IF(_xlpm.office_type="Education",Data!AR12,IF(_xlpm.office_type="Mixed-use Building",AC15,Data!AA12)))) -> 0.01 | K11: =_xlfn.LET(_xlpm.office_type,'Working Values'!$F$13,IF(_xlpm.office_type="Multi-unit Residential",Data!K12,IF(_xlpm.office_type="Education",Data!AS12,IF(_xlpm.office_type="Mixed-use Building",AD15,Data!AB12)))) -> 0 | L11: =_xlfn.LET(_xlpm.office_type,'Working Values'!$F$13,IF(_xlpm.office_type="Multi-unit Residential",Data!L12,IF(_xlpm.office_type="Education",Data!AT12,IF(_xlpm.office_type="Mixed-use Building",AE15,Data!AC12)))) -> 0 | M11: =_xlfn.LET(_xlpm.office_type,'Working Values'!$F$13,IF(_xlpm.office_type="Multi-unit Residential",Data!M12,IF(_xlpm.office_type="Education",Data!AU12,IF(_xlpm.office_type="Mixed-use Building",AF15,Data!AD12)))) -> 0.02 | N11: =_xlfn.LET(_xlpm.office_type,'Working Values'!$F$13,IF(_xlpm.office_type="Multi-unit Residential",Data!N12,IF(_xlpm.office_type="Education",Data!AV12,IF(_xlpm.office_type="Mixed-use Building",AG15,Data!AE12)))) -> 8.5 | O11: =_xlfn.LET(_xlpm.office_type,'Working Values'!$F$13,IF(_xlpm.office_type="Multi-unit Residential",Data!O12,IF(_xlpm.office_type="Education",Data!AW12,IF(_xlpm.office_type="Mixed-use Building",AH15,Data!AF12)))) -> 173.4612713 | P11: =_xlfn.LET(_xlpm.office_type,'Working Values'!$F$13,IF(_xlpm.office_type="Multi-unit Residential",Data!P12,IF(_xlpm.office_type="Education",Data!AX12,IF(_xlpm.office_type="Mixed-use Building",AI15,Data!AG12)))) -> -35.03330752
A12: =_xlfn.LET(_xlpm.office_type,'Working Values'!$F$13,IF(_xlpm.office_type="Multi-unit Residential",Data!A13,IF(_xlpm.office_type="Education",Data!AI13,IF(_xlpm.office_type="Mixed-use Building",T16,Data!R13)))) -> 101100 | B12: =_xlfn.LET(_xlpm.office_type,'Working Values'!$F$13,IF(_xlpm.office_type="Multi-unit Residential",Data!B13,IF(_xlpm.office_type="Education",Data!AJ13,IF(_xlpm.office_type="Mixed-use Building",U16,Data!S13)))) -> Taumarumaru | C12: =_xlfn.LET(_xlpm.office_type,'Working Values'!$F$13,IF(_xlpm.office_type="Multi-unit Residential",Data!C13,IF(_xlpm.office_type="Education",Data!AK13,IF(_xlpm.office_type="Mixed-use Building",V16,Data!T13)))) -> New Zealand | D12: =_xlfn.LET(_xlpm.office_type,'Working Values'!$F$13,IF(_xlpm.office_type="Multi-unit Residential",Data!D13,IF(_xlpm.office_type="Education",Data!AL13,IF(_xlpm.office_type="Mixed-use Building",W16,Data!U13)))) -> 0 | E12: =_xlfn.LET(_xlpm.office_type,'Working Values'!$F$13,IF(_xlpm.office_type="Multi-unit Residential",Data!E13,IF(_xlpm.office_type="Education",Data!AM13,IF(_xlpm.office_type="Mixed-use Building",X16,Data!V13)))) -> 0 | F12: =_xlfn.LET(_xlpm.office_type,'Working Values'!$F$13,IF(_xlpm.office_type="Multi-unit Residential",Data!F13,IF(_xlpm.office_type="Education",Data!AN13,IF(_xlpm.office_type="Mixed-use Building",Y16,Data!W13)))) -> 0 | G12: =_xlfn.LET(_xlpm.office_type,'Working Values'!$F$13,IF(_xlpm.office_type="Multi-unit Residential",Data!G13,IF(_xlpm.office_type="Education",Data!AO13,IF(_xlpm.office_type="Mixed-use Building",Z16,Data!X13)))) -> 0 | H12: =_xlfn.LET(_xlpm.office_type,'Working Values'!$F$13,IF(_xlpm.office_type="Multi-unit Residential",Data!H13,IF(_xlpm.office_type="Education",Data!AP13,IF(_xlpm.office_type="Mixed-use Building",AA16,Data!Y13)))) -> 0.88 | I12: =_xlfn.LET(_xlpm.office_type,'Working Values'!$F$13,IF(_xlpm.office_type="Multi-unit Residential",Data!I13,IF(_xlpm.office_type="Education",Data!AQ13,IF(_xlpm.office_type="Mixed-use Building",AB16,Data!Z13)))) -> 0.06 | J12: =_xlfn.LET(_xlpm.office_type,'Working Values'!$F$13,IF(_xlpm.office_type="Multi-unit Residential",Data!J13,IF(_xlpm.office_type="Education",Data!AR13,IF(_xlpm.office_type="Mixed-use Building",AC16,Data!AA13)))) -> 0.01 | K12: =_xlfn.LET(_xlpm.office_type,'Working Values'!$F$13,IF(_xlpm.office_type="Multi-unit Residential",Data!K13,IF(_xlpm.office_type="Education",Data!AS13,IF(_xlpm.office_type="Mixed-use Building",AD16,Data!AB13)))) -> 0 | L12: =_xlfn.LET(_xlpm.office_type,'Working Values'!$F$13,IF(_xlpm.office_type="Multi-unit Residential",Data!L13,IF(_xlpm.office_type="Education",Data!AT13,IF(_xlpm.office_type="Mixed-use Building",AE16,Data!AC13)))) -> 0.05 | M12: =_xlfn.LET(_xlpm.office_type,'Working Values'!$F$13,IF(_xlpm.office_type="Multi-unit Residential",Data!M13,IF(_xlpm.office_type="Education",Data!AU13,IF(_xlpm.office_type="Mixed-use Building",AF16,Data!AD13)))) -> 0.02 | N12: =_xlfn.LET(_xlpm.office_type,'Working Values'!$F$13,IF(_xlpm.office_type="Multi-unit Residential",Data!N13,IF(_xlpm.office_type="Education",Data!AV13,IF(_xlpm.office_type="Mixed-use Building",AG16,Data!AE13)))) -> 6.07 | O12: =_xlfn.LET(_xlpm.office_type,'Working Values'!$F$13,IF(_xlpm.office_type="Multi-unit Residential",Data!O13,IF(_xlpm.office_type="Education",Data!AW13,IF(_xlpm.office_type="Mixed-use Building",AH16,Data!AF13)))) -> 173.507744 | P12: =_xlfn.LET(_xlpm.office_type,'Working Values'!$F$13,IF(_xlpm.office_type="Multi-unit Residential",Data!P13,IF(_xlpm.office_type="Education",Data!AX13,IF(_xlpm.office_type="Mixed-use Building",AI16,Data!AG13)))) -> -34.99672682
A13: =_xlfn.LET(_xlpm.office_type,'Working Values'!$F$13,IF(_xlpm.office_type="Multi-unit Residential",Data!A14,IF(_xlpm.office_type="Education",Data!AI14,IF(_xlpm.office_type="Mixed-use Building",T17,Data!R14)))) -> 101200 | B13: =_xlfn.LET(_xlpm.office_type,'Working Values'!$F$13,IF(_xlpm.office_type="Multi-unit Residential",Data!B14,IF(_xlpm.office_type="Education",Data!AJ14,IF(_xlpm.office_type="Mixed-use Building",U17,Data!S14)))) -> Herekino-Takahue | C13: =_xlfn.LET(_xlpm.office_type,'Working Values'!$F$13,IF(_xlpm.office_type="Multi-unit Residential",Data!C14,IF(_xlpm.office_type="Education",Data!AK14,IF(_xlpm.office_type="Mixed-use Building",V17,Data!T14)))) -> New Zealand | D13: =_xlfn.LET(_xlpm.office_type,'Working Values'!$F$13,IF(_xlpm.office_type="Multi-unit Residential",Data!D14,IF(_xlpm.office_type="Education",Data!AL14,IF(_xlpm.office_type="Mixed-use Building",W17,Data!U14)))) -> 0 | E13: =_xlfn.LET(_xlpm.office_type,'Working Values'!$F$13,IF(_xlpm.office_type="Multi-unit Residential",Data!E14,IF(_xlpm.office_type="Education",Data!AM14,IF(_xlpm.office_type="Mixed-use Building",X17,Data!V14)))) -> 0 | F13: =_xlfn.LET(_xlpm.office_type,'Working Values'!$F$13,IF(_xlpm.office_type="Multi-unit Residential",Data!F14,IF(_xlpm.office_type="Education",Data!AN14,IF(_xlpm.office_type="Mixed-use Building",Y17,Data!W14)))) -> 0 | G13: =_xlfn.LET(_xlpm.office_type,'Working Values'!$F$13,IF(_xlpm.office_type="Multi-unit Residential",Data!G14,IF(_xlpm.office_type="Education",Data!AO14,IF(_xlpm.office_type="Mixed-use Building",Z17,Data!X14)))) -> 0 | H13: =_xlfn.LET(_xlpm.office_type,'Working Values'!$F$13,IF(_xlpm.office_type="Multi-unit Residential",Data!H14,IF(_xlpm.office_type="Education",Data!AP14,IF(_xlpm.office_type="Mixed-use Building",AA17,Data!Y14)))) -> 0.99 | I13: =_xlfn.LET(_xlpm.office_type,'Working Values'!$F$13,IF(_xlpm.office_type="Multi-unit Residential",Data!I14,IF(_xlpm.office_type="Education",Data!AQ14,IF(_xlpm.office_type="Mixed-use Building",AB17,Data!Z14)))) -> 0 | J13: =_xlfn.LET(_xlpm.office_type,'Working Values'!$F$13,IF(_xlpm.office_type="Multi-unit Residential",Data!J14,IF(_xlpm.office_type="Education",Data!AR14,IF(_xlpm.office_type="Mixed-use Building",AC17,Data!AA14)))) -> 0.01 | K13: =_xlfn.LET(_xlpm.office_type,'Working Values'!$F$13,IF(_xlpm.office_type="Multi-unit Residential",Data!K14,IF(_xlpm.office_type="Education",Data!AS14,IF(_xlpm.office_type="Mixed-use Building",AD17,Data!AB14)))) -> 0 | L13: =_xlfn.LET(_xlpm.office_type,'Working Values'!$F$13,IF(_xlpm.office_type="Multi-unit Residential",Data!L14,IF(_xlpm.office_type="Education",Data!AT14,IF(_xlpm.office_type="Mixed-use Building",AE17,Data!AC14)))) -> 0 | M13: =_xlfn.LET(_xlpm.office_type,'Working Values'!$F$13,IF(_xlpm.office_type="Multi-unit Residential",Data!M14,IF(_xlpm.office_type="Education",Data!AU14,IF(_xlpm.office_type="Mixed-use Building",AF17,Data!AD14)))) -> 0.02 | N13: =_xlfn.LET(_xlpm.office_type,'Working Values'!$F$13,IF(_xlpm.office_type="Multi-unit Residential",Data!N14,IF(_xlpm.office_type="Education",Data!AV14,IF(_xlpm.office_type="Mixed-use Building",AG17,Data!AE14)))) -> 9.83 | O13: =_xlfn.LET(_xlpm.office_type,'Working Values'!$F$13,IF(_xlpm.office_type="Multi-unit Residential",Data!O14,IF(_xlpm.office_type="Education",Data!AW14,IF(_xlpm.office_type="Mixed-use Building",AH17,Data!AF14)))) -> 173.2778455 | P13: =_xlfn.LET(_xlpm.office_type,'Working Values'!$F$13,IF(_xlpm.office_type="Multi-unit Residential",Data!P14,IF(_xlpm.office_type="Education",Data!AX14,IF(_xlpm.office_type="Mixed-use Building",AI17,Data!AG14)))) -> -35.23343366
A14: =_xlfn.LET(_xlpm.office_type,'Working Values'!$F$13,IF(_xlpm.office_type="Multi-unit Residential",Data!A15,IF(_xlpm.office_type="Education",Data!AI15,IF(_xlpm.office_type="Mixed-use Building",T18,Data!R15)))) -> 101300 | B14: =_xlfn.LET(_xlpm.office_type,'Working Values'!$F$13,IF(_xlpm.office_type="Multi-unit Residential",Data!B15,IF(_xlpm.office_type="Education",Data!AJ15,IF(_xlpm.office_type="Mixed-use Building",U18,Data!S15)))) -> Peria | C14: =_xlfn.LET(_xlpm.office_type,'Working Values'!$F$13,IF(_xlpm.office_type="Multi-unit Residential",Data!C15,IF(_xlpm.office_type="Education",Data!AK15,IF(_xlpm.office_type="Mixed-use Building",V18,Data!T15)))) -> New Zealand | D14: =_xlfn.LET(_xlpm.office_type,'Working Values'!$F$13,IF(_xlpm.office_type="Multi-unit Residential",Data!D15,IF(_xlpm.office_type="Education",Data!AL15,IF(_xlpm.office_type="Mixed-use Building",W18,Data!U15)))) -> 0 | E14: =_xlfn.LET(_xlpm.office_type,'Working Values'!$F$13,IF(_xlpm.office_type="Multi-unit Residential",Data!E15,IF(_xlpm.office_type="Education",Data!AM15,IF(_xlpm.office_type="Mixed-use Building",X18,Data!V15)))) -> 0 | F14: =_xlfn.LET(_xlpm.office_type,'Working Values'!$F$13,IF(_xlpm.office_type="Multi-unit Residential",Data!F15,IF(_xlpm.office_type="Education",Data!AN15,IF(_xlpm.office_type="Mixed-use Building",Y18,Data!W15)))) -> 0 | G14: =_xlfn.LET(_xlpm.office_type,'Working Values'!$F$13,IF(_xlpm.office_type="Multi-unit Residential",Data!G15,IF(_xlpm.office_type="Education",Data!AO15,IF(_xlpm.office_type="Mixed-use Building",Z18,Data!X15)))) -> 0 | H14: =_xlfn.LET(_xlpm.office_type,'Working Values'!$F$13,IF(_xlpm.office_type="Multi-unit Residential",Data!H15,IF(_xlpm.office_type="Education",Data!AP15,IF(_xlpm.office_type="Mixed-use Building",AA18,Data!Y15)))) -> 0 | I14: =_xlfn.LET(_xlpm.office_type,'Working Values'!$F$13,IF(_xlpm.office_type="Multi-unit Residential",Data!I15,IF(_xlpm.office_type="Education",Data!AQ15,IF(_xlpm.office_type="Mixed-use Building",AB18,Data!Z15)))) -> 0 | J14: =_xlfn.LET(_xlpm.office_type,'Working Values'!$F$13,IF(_xlpm.office_type="Multi-unit Residential",Data!J15,IF(_xlpm.office_type="Education",Data!AR15,IF(_xlpm.office_type="Mixed-use Building",AC18,Data!AA15)))) -> 0 | K14: =_xlfn.LET(_xlpm.office_type,'Working Values'!$F$13,IF(_xlpm.office_type="Multi-unit Residential",Data!K15,IF(_xlpm.office_type="Education",Data!AS15,IF(_xlpm.office_type="Mixed-use Building",AD18,Data!AB15)))) -> 0 | L14: =_xlfn.LET(_xlpm.office_type,'Working Values'!$F$13,IF(_xlpm.office_type="Multi-unit Residential",Data!L15,IF(_xlpm.office_type="Education",Data!AT15,IF(_xlpm.office_type="Mixed-use Building",AE18,Data!AC15)))) -> 0 | M14: =_xlfn.LET(_xlpm.office_type,'Working Values'!$F$13,IF(_xlpm.office_type="Multi-unit Residential",Data!M15,IF(_xlpm.office_type="Education",Data!AU15,IF(_xlpm.office_type="Mixed-use Building",AF18,Data!AD15)))) -> 0.02 | N14: =_xlfn.LET(_xlpm.office_type,'Working Values'!$F$13,IF(_xlpm.office_type="Multi-unit Residential",Data!N15,IF(_xlpm.office_type="Education",Data!AV15,IF(_xlpm.office_type="Mixed-use Building",AG18,Data!AE15)))) -> 0 | O14: =_xlfn.LET(_xlpm.office_type,'Working Values'!$F$13,IF(_xlpm.office_type="Multi-unit Residential",Data!O15,IF(_xlpm.office_type="Education",Data!AW15,IF(_xlpm.office_type="Mixed-use Building",AH18,Data!AF15)))) -> 173.4437449 | P14: =_xlfn.LET(_xlpm.office_type,'Working Values'!$F$13,IF(_xlpm.office_type="Multi-unit Residential",Data!P15,IF(_xlpm.office_type="Education",Data!AX15,IF(_xlpm.office_type="Mixed-use Building",AI18,Data!AG15)))) -> -35.11088648
A15: =_xlfn.LET(_xlpm.office_type,'Working Values'!$F$13,IF(_xlpm.office_type="Multi-unit Residential",Data!A16,IF(_xlpm.office_type="Education",Data!AI16,IF(_xlpm.office_type="Mixed-use Building",T19,Data!R16)))) -> 101400 | B15: =_xlfn.LET(_xlpm.office_type,'Working Values'!$F$13,IF(_xlpm.office_type="Multi-unit Residential",Data!B16,IF(_xlpm.office_type="Education",Data!AJ16,IF(_xlpm.office_type="Mixed-use Building",U19,Data!S16)))) -> Taemaro-Oruaiti | C15: =_xlfn.LET(_xlpm.office_type,'Working Values'!$F$13,IF(_xlpm.office_type="Multi-unit Residential",Data!C16,IF(_xlpm.office_type="Education",Data!AK16,IF(_xlpm.office_type="Mixed-use Building",V19,Data!T16)))) -> New Zealand | D15: =_xlfn.LET(_xlpm.office_type,'Working Values'!$F$13,IF(_xlpm.office_type="Multi-unit Residential",Data!D16,IF(_xlpm.office_type="Education",Data!AL16,IF(_xlpm.office_type="Mixed-use Building",W19,Data!U16)))) -> 0 | E15: =_xlfn.LET(_xlpm.office_type,'Working Values'!$F$13,IF(_xlpm.office_type="Multi-unit Residential",Data!E16,IF(_xlpm.office_type="Education",Data!AM16,IF(_xlpm.office_type="Mixed-use Building",X19,Data!V16)))) -> 0 | F15: =_xlfn.LET(_xlpm.office_type,'Working Values'!$F$13,IF(_xlpm.office_type="Multi-unit Residential",Data!F16,IF(_xlpm.office_type="Education",Data!AN16,IF(_xlpm.office_type="Mixed-use Building",Y19,Data!W16)))) -> 0 | G15: =_xlfn.LET(_xlpm.office_type,'Working Values'!$F$13,IF(_xlpm.office_type="Multi-unit Residential",Data!G16,IF(_xlpm.office_type="Education",Data!AO16,IF(_xlpm.office_type="Mixed-use Building",Z19,Data!X16)))) -> 0 | H15: =_xlfn.LET(_xlpm.office_type,'Working Values'!$F$13,IF(_xlpm.office_type="Multi-unit Residential",Data!H16,IF(_xlpm.office_type="Education",Data!AP16,IF(_xlpm.office_type="Mixed-use Building",AA19,Data!Y16)))) -> 0 | I15: =_xlfn.LET(_xlpm.office_type,'Working Values'!$F$13,IF(_xlpm.office_type="Multi-unit Residential",Data!I16,IF(_xlpm.office_type="Education",Data!AQ16,IF(_xlpm.office_type="Mixed-use Building",AB19,Data!Z16)))) -> 0 | J15: =_xlfn.LET(_xlpm.office_type,'Working Values'!$F$13,IF(_xlpm.office_type="Multi-unit Residential",Data!J16,IF(_xlpm.office_type="Education",Data!AR16,IF(_xlpm.office_type="Mixed-use Building",AC19,Data!AA16)))) -> 0 | K15: =_xlfn.LET(_xlpm.office_type,'Working Values'!$F$13,IF(_xlpm.office_type="Multi-unit Residential",Data!K16,IF(_xlpm.office_type="Education",Data!AS16,IF(_xlpm.office_type="Mixed-use Building",AD19,Data!AB16)))) -> 0 | L15: =_xlfn.LET(_xlpm.office_type,'Working Values'!$F$13,IF(_xlpm.office_type="Multi-unit Residential",Data!L16,IF(_xlpm.office_type="Education",Data!AT16,IF(_xlpm.office_type="Mixed-use Building",AE19,Data!AC16)))) -> 0 | M15: =_xlfn.LET(_xlpm.office_type,'Working Values'!$F$13,IF(_xlpm.office_type="Multi-unit Residential",Data!M16,IF(_xlpm.office_type="Education",Data!AU16,IF(_xlpm.office_type="Mixed-use Building",AF19,Data!AD16)))) -> 0.02 | N15: =_xlfn.LET(_xlpm.office_type,'Working Values'!$F$13,IF(_xlpm.office_type="Multi-unit Residential",Data!N16,IF(_xlpm.office_type="Education",Data!AV16,IF(_xlpm.office_type="Mixed-use Building",AG19,Data!AE16)))) -> 0 | O15: =_xlfn.LET(_xlpm.office_type,'Working Values'!$F$13,IF(_xlpm.office_type="Multi-unit Residential",Data!O16,IF(_xlpm.office_type="Education",Data!AW16,IF(_xlpm.office_type="Mixed-use Building",AH19,Data!AF16)))) -> 173.5773731 | P15: =_xlfn.LET(_xlpm.office_type,'Working Values'!$F$13,IF(_xlpm.office_type="Multi-unit Residential",Data!P16,IF(_xlpm.office_type="Education",Data!AX16,IF(_xlpm.office_type="Mixed-use Building",AI19,Data!AG16)))) -> -35.01818965
A16: =_xlfn.LET(_xlpm.office_type,'Working Values'!$F$13,IF(_xlpm.office_type="Multi-unit Residential",Data!A17,IF(_xlpm.office_type="Education",Data!AI17,IF(_xlpm.office_type="Mixed-use Building",T20,Data!R17)))) -> 101500 | B16: =_xlfn.LET(_xlpm.office_type,'Working Values'!$F$13,IF(_xlpm.office_type="Multi-unit Residential",Data!B17,IF(_xlpm.office_type="Education",Data!AJ17,IF(_xlpm.office_type="Mixed-use Building",U20,Data!S17)))) -> Whakapaku | C16: =_xlfn.LET(_xlpm.office_type,'Working Values'!$F$13,IF(_xlpm.office_type="Multi-unit Residential",Data!C17,IF(_xlpm.office_type="Education",Data!AK17,IF(_xlpm.office_type="Mixed-use Building",V20,Data!T17)))) -> New Zealand | D16: =_xlfn.LET(_xlpm.office_type,'Working Values'!$F$13,IF(_xlpm.office_type="Multi-unit Residential",Data!D17,IF(_xlpm.office_type="Education",Data!AL17,IF(_xlpm.office_type="Mixed-use Building",W20,Data!U17)))) -> 0 | E16: =_xlfn.LET(_xlpm.office_type,'Working Values'!$F$13,IF(_xlpm.office_type="Multi-unit Residential",Data!E17,IF(_xlpm.office_type="Education",Data!AM17,IF(_xlpm.office_type="Mixed-use Building",X20,Data!V17)))) -> 0 | F16: =_xlfn.LET(_xlpm.office_type,'Working Values'!$F$13,IF(_xlpm.office_type="Multi-unit Residential",Data!F17,IF(_xlpm.office_type="Education",Data!AN17,IF(_xlpm.office_type="Mixed-use Building",Y20,Data!W17)))) -> 0 | G16: =_xlfn.LET(_xlpm.office_type,'Working Values'!$F$13,IF(_xlpm.office_type="Multi-unit Residential",Data!G17,IF(_xlpm.office_type="Education",Data!AO17,IF(_xlpm.office_type="Mixed-use Building",Z20,Data!X17)))) -> 0 | H16: =_xlfn.LET(_xlpm.office_type,'Working Values'!$F$13,IF(_xlpm.office_type="Multi-unit Residential",Data!H17,IF(_xlpm.office_type="Education",Data!AP17,IF(_xlpm.office_type="Mixed-use Building",AA20,Data!Y17)))) -> 0.99 | I16: =_xlfn.LET(_xlpm.office_type,'Working Values'!$F$13,IF(_xlpm.office_type="Multi-unit Residential",Data!I17,IF(_xlpm.office_type="Education",Data!AQ17,IF(_xlpm.office_type="Mixed-use Building",AB20,Data!Z17)))) -> 0 | J16: =_xlfn.LET(_xlpm.office_type,'Working Values'!$F$13,IF(_xlpm.office_type="Multi-unit Residential",Data!J17,IF(_xlpm.office_type="Education",Data!AR17,IF(_xlpm.office_type="Mixed-use Building",AC20,Data!AA17)))) -> 0.01 | K16: =_xlfn.LET(_xlpm.office_type,'Working Values'!$F$13,IF(_xlpm.office_type="Multi-unit Residential",Data!K17,IF(_xlpm.office_type="Education",Data!AS17,IF(_xlpm.office_type="Mixed-use Building",AD20,Data!AB17)))) -> 0 | L16: =_xlfn.LET(_xlpm.office_type,'Working Values'!$F$13,IF(_xlpm.office_type="Multi-unit Residential",Data!L17,IF(_xlpm.office_type="Education",Data!AT17,IF(_xlpm.office_type="Mixed-use Building",AE20,Data!AC17)))) -> 0 | M16: =_xlfn.LET(_xlpm.office_type,'Working Values'!$F$13,IF(_xlpm.office_type="Multi-unit Residential",Data!M17,IF(_xlpm.office_type="Education",Data!AU17,IF(_xlpm.office_type="Mixed-use Building",AF20,Data!AD17)))) -> 0.02 | N16: =_xlfn.LET(_xlpm.office_type,'Working Values'!$F$13,IF(_xlpm.office_type="Multi-unit Residential",Data!N17,IF(_xlpm.office_type="Education",Data!AV17,IF(_xlpm.office_type="Mixed-use Building",AG20,Data!AE17)))) -> 11.38 | O16: =_xlfn.LET(_xlpm.office_type,'Working Values'!$F$13,IF(_xlpm.office_type="Multi-unit Residential",Data!O17,IF(_xlpm.office_type="Education",Data!AW17,IF(_xlpm.office_type="Mixed-use Building",AH20,Data!AF17)))) -> 173.6578796 | P16: =_xlfn.LET(_xlpm.office_type,'Working Values'!$F$13,IF(_xlpm.office_type="Multi-unit Residential",Data!P17,IF(_xlpm.office_type="Education",Data!AX17,IF(_xlpm.office_type="Mixed-use Building",AI20,Data!AG17)))) -> -35.06147153
A17: =_xlfn.LET(_xlpm.office_type,'Working Values'!$F$13,IF(_xlpm.office_type="Multi-unit Residential",Data!A18,IF(_xlpm.office_type="Education",Data!AI18,IF(_xlpm.office_type="Mixed-use Building",T21,Data!R18)))) -> 101600 | B17: =_xlfn.LET(_xlpm.office_type,'Working Values'!$F$13,IF(_xlpm.office_type="Multi-unit Residential",Data!B18,IF(_xlpm.office_type="Education",Data!AJ18,IF(_xlpm.office_type="Mixed-use Building",U21,Data!S18)))) -> Hokianga North | C17: =_xlfn.LET(_xlpm.office_type,'Working Values'!$F$13,IF(_xlpm.office_type="Multi-unit Residential",Data!C18,IF(_xlpm.office_type="Education",Data!AK18,IF(_xlpm.office_type="Mixed-use Building",V21,Data!T18)))) -> New Zealand | D17: =_xlfn.LET(_xlpm.office_type,'Working Values'!$F$13,IF(_xlpm.office_type="Multi-unit Residential",Data!D18,IF(_xlpm.office_type="Education",Data!AL18,IF(_xlpm.office_type="Mixed-use Building",W21,Data!U18)))) -> 0 | E17: =_xlfn.LET(_xlpm.office_type,'Working Values'!$F$13,IF(_xlpm.office_type="Multi-unit Residential",Data!E18,IF(_xlpm.office_type="Education",Data!AM18,IF(_xlpm.office_type="Mixed-use Building",X21,Data!V18)))) -> 0 | F17: =_xlfn.LET(_xlpm.office_type,'Working Values'!$F$13,IF(_xlpm.office_type="Multi-unit Residential",Data!F18,IF(_xlpm.office_type="Education",Data!AN18,IF(_xlpm.office_type="Mixed-use Building",Y21,Data!W18)))) -> 0 | G17: =_xlfn.LET(_xlpm.office_type,'Working Values'!$F$13,IF(_xlpm.office_type="Multi-unit Residential",Data!G18,IF(_xlpm.office_type="Education",Data!AO18,IF(_xlpm.office_type="Mixed-use Building",Z21,Data!X18)))) -> 0 | H17: =_xlfn.LET(_xlpm.office_type,'Working Values'!$F$13,IF(_xlpm.office_type="Multi-unit Residential",Data!H18,IF(_xlpm.office_type="Education",Data!AP18,IF(_xlpm.office_type="Mixed-use Building",AA21,Data!Y18)))) -> 0.99 | I17: =_xlfn.LET(_xlpm.office_type,'Working Values'!$F$13,IF(_xlpm.office_type="Multi-unit Residential",Data!I18,IF(_xlpm.office_type="Education",Data!AQ18,IF(_xlpm.office_type="Mixed-use Building",AB21,Data!Z18)))) -> 0 | J17: =_xlfn.LET(_xlpm.office_type,'Working Values'!$F$13,IF(_xlpm.office_type="Multi-unit Residential",Data!J18,IF(_xlpm.office_type="Education",Data!AR18,IF(_xlpm.office_type="Mixed-use Building",AC21,Data!AA18)))) -> 0.01 | K17: =_xlfn.LET(_xlpm.office_type,'Working Values'!$F$13,IF(_xlpm.office_type="Multi-unit Residential",Data!K18,IF(_xlpm.office_type="Education",Data!AS18,IF(_xlpm.office_type="Mixed-use Building",AD21,Data!AB18)))) -> 0 | L17: =_xlfn.LET(_xlpm.office_type,'Working Values'!$F$13,IF(_xlpm.office_type="Multi-unit Residential",Data!L18,IF(_xlpm.office_type="Education",Data!AT18,IF(_xlpm.office_type="Mixed-use Building",AE21,Data!AC18)))) -> 0 | M17: =_xlfn.LET(_xlpm.office_type,'Working Values'!$F$13,IF(_xlpm.office_type="Multi-unit Residential",Data!M18,IF(_xlpm.office_type="Education",Data!AU18,IF(_xlpm.office_type="Mixed-use Building",AF21,Data!AD18)))) -> 0.02 | N17: =_xlfn.LET(_xlpm.office_type,'Working Values'!$F$13,IF(_xlpm.office_type="Multi-unit Residential",Data!N18,IF(_xlpm.office_type="Education",Data!AV18,IF(_xlpm.office_type="Mixed-use Building",AG21,Data!AE18)))) -> 10.49 | O17: =_xlfn.LET(_xlpm.office_type,'Working Values'!$F$13,IF(_xlpm.office_type="Multi-unit Residential",Data!O18,IF(_xlpm.office_type="Education",Data!AW18,IF(_xlpm.office_type="Mixed-use Building",AH21,Data!AF18)))) -> 173.3384089 | P17: =_xlfn.LET(_xlpm.office_type,'Working Values'!$F$13,IF(_xlpm.office_type="Multi-unit Residential",Data!P18,IF(_xlpm.office_type="Education",Data!AX18,IF(_xlpm.office_type="Mixed-use Building",AI21,Data!AG18)))) -> -35.3685101
A18: =_xlfn.LET(_xlpm.office_type,'Working Values'!$F$13,IF(_xlpm.office_type="Multi-unit Residential",Data!A19,IF(_xlpm.office_type="Education",Data!AI19,IF(_xlpm.office_type="Mixed-use Building",T22,Data!R19)))) -> 101700 | B18: =_xlfn.LET(_xlpm.office_type,'Working Values'!$F$13,IF(_xlpm.office_type="Multi-unit Residential",Data!B19,IF(_xlpm.office_type="Education",Data!AJ19,IF(_xlpm.office_type="Mixed-use Building",U22,Data!S19)))) -> Kohukohu-Broadwood | C18: =_xlfn.LET(_xlpm.office_type,'Working Values'!$F$13,IF(_xlpm.office_type="Multi-unit Residential",Data!C19,IF(_xlpm.office_type="Education",Data!AK19,IF(_xlpm.office_type="Mixed-use Building",V22,Data!T19)))) -> New Zealand | D18: =_xlfn.LET(_xlpm.office_type,'Working Values'!$F$13,IF(_xlpm.office_type="Multi-unit Residential",Data!D19,IF(_xlpm.office_type="Education",Data!AL19,IF(_xlpm.office_type="Mixed-use Building",W22,Data!U19)))) -> 0 | E18: =_xlfn.LET(_xlpm.office_type,'Working Values'!$F$13,IF(_xlpm.office_type="Multi-unit Residential",Data!E19,IF(_xlpm.office_type="Education",Data!AM19,IF(_xlpm.office_type="Mixed-use Building",X22,Data!V19)))) -> 0 | F18: =_xlfn.LET(_xlpm.office_type,'Working Values'!$F$13,IF(_xlpm.office_type="Multi-unit Residential",Data!F19,IF(_xlpm.office_type="Education",Data!AN19,IF(_xlpm.office_type="Mixed-use Building",Y22,Data!W19)))) -> 0 | G18: =_xlfn.LET(_xlpm.office_type,'Working Values'!$F$13,IF(_xlpm.office_type="Multi-unit Residential",Data!G19,IF(_xlpm.office_type="Education",Data!AO19,IF(_xlpm.office_type="Mixed-use Building",Z22,Data!X19)))) -> 0 | H18: =_xlfn.LET(_xlpm.office_type,'Working Values'!$F$13,IF(_xlpm.office_type="Multi-unit Residential",Data!H19,IF(_xlpm.office_type="Education",Data!AP19,IF(_xlpm.office_type="Mixed-use Building",AA22,Data!Y19)))) -> 0.99 | I18: =_xlfn.LET(_xlpm.office_type,'Working Values'!$F$13,IF(_xlpm.office_type="Multi-unit Residential",Data!I19,IF(_xlpm.office_type="Education",Data!AQ19,IF(_xlpm.office_type="Mixed-use Building",AB22,Data!Z19)))) -> 0 | J18: =_xlfn.LET(_xlpm.office_type,'Working Values'!$F$13,IF(_xlpm.office_type="Multi-unit Residential",Data!J19,IF(_xlpm.office_type="Education",Data!AR19,IF(_xlpm.office_type="Mixed-use Building",AC22,Data!AA19)))) -> 0.01 | K18: =_xlfn.LET(_xlpm.office_type,'Working Values'!$F$13,IF(_xlpm.office_type="Multi-unit Residential",Data!K19,IF(_xlpm.office_type="Education",Data!AS19,IF(_xlpm.office_type="Mixed-use Building",AD22,Data!AB19)))) -> 0 | L18: =_xlfn.LET(_xlpm.office_type,'Working Values'!$F$13,IF(_xlpm.office_type="Multi-unit Residential",Data!L19,IF(_xlpm.office_type="Education",Data!AT19,IF(_xlpm.office_type="Mixed-use Building",AE22,Data!AC19)))) -> 0 | M18: =_xlfn.LET(_xlpm.office_type,'Working Values'!$F$13,IF(_xlpm.office_type="Multi-unit Residential",Data!M19,IF(_xlpm.office_type="Education",Data!AU19,IF(_xlpm.office_type="Mixed-use Building",AF22,Data!AD19)))) -> 0.02 | N18: =_xlfn.LET(_xlpm.office_type,'Working Values'!$F$13,IF(_xlpm.office_type="Multi-unit Residential",Data!N19,IF(_xlpm.office_type="Education",Data!AV19,IF(_xlpm.office_type="Mixed-use Building",AG22,Data!AE19)))) -> 8.16 | O18: =_xlfn.LET(_xlpm.office_type,'Working Values'!$F$13,IF(_xlpm.office_type="Multi-unit Residential",Data!O19,IF(_xlpm.office_type="Education",Data!AW19,IF(_xlpm.office_type="Mixed-use Building",AH22,Data!AF19)))) -> 173.4636419 | P18: =_xlfn.LET(_xlpm.office_type,'Working Values'!$F$13,IF(_xlpm.office_type="Multi-unit Residential",Data!P19,IF(_xlpm.office_type="Education",Data!AX19,IF(_xlpm.office_type="Mixed-use Building",AI22,Data!AG19)))) -> -35.29007937
A19: =_xlfn.LET(_xlpm.office_type,'Working Values'!$F$13,IF(_xlpm.office_type="Multi-unit Residential",Data!A20,IF(_xlpm.office_type="Education",Data!AI20,IF(_xlpm.office_type="Mixed-use Building",T23,Data!R20)))) -> 101800 | B19: =_xlfn.LET(_xlpm.office_type,'Working Values'!$F$13,IF(_xlpm.office_type="Multi-unit Residential",Data!B20,IF(_xlpm.office_type="Education",Data!AJ20,IF(_xlpm.office_type="Mixed-use Building",U23,Data!S20)))) -> Whakarara | C19: =_xlfn.LET(_xlpm.office_type,'Working Values'!$F$13,IF(_xlpm.office_type="Multi-unit Residential",Data!C20,IF(_xlpm.office_type="Education",Data!AK20,IF(_xlpm.office_type="Mixed-use Building",V23,Data!T20)))) -> New Zealand | D19: =_xlfn.LET(_xlpm.office_type,'Working Values'!$F$13,IF(_xlpm.office_type="Multi-unit Residential",Data!D20,IF(_xlpm.office_type="Education",Data!AL20,IF(_xlpm.office_type="Mixed-use Building",W23,Data!U20)))) -> 0 | E19: =_xlfn.LET(_xlpm.office_type,'Working Values'!$F$13,IF(_xlpm.office_type="Multi-unit Residential",Data!E20,IF(_xlpm.office_type="Education",Data!AM20,IF(_xlpm.office_type="Mixed-use Building",X23,Data!V20)))) -> 0 | F19: =_xlfn.LET(_xlpm.office_type,'Working Values'!$F$13,IF(_xlpm.office_type="Multi-unit Residential",Data!F20,IF(_xlpm.office_type="Education",Data!AN20,IF(_xlpm.office_type="Mixed-use Building",Y23,Data!W20)))) -> 0 | G19: =_xlfn.LET(_xlpm.office_type,'Working Values'!$F$13,IF(_xlpm.office_type="Multi-unit Residential",Data!G20,IF(_xlpm.office_type="Education",Data!AO20,IF(_xlpm.office_type="Mixed-use Building",Z23,Data!X20)))) -> 0 | H19: =_xlfn.LET(_xlpm.office_type,'Working Values'!$F$13,IF(_xlpm.office_type="Multi-unit Residential",Data!H20,IF(_xlpm.office_type="Education",Data!AP20,IF(_xlpm.office_type="Mixed-use Building",AA23,Data!Y20)))) -> 0.93 | I19: =_xlfn.LET(_xlpm.office_type,'Working Values'!$F$13,IF(_xlpm.office_type="Multi-unit Residential",Data!I20,IF(_xlpm.office_type="Education",Data!AQ20,IF(_xlpm.office_type="Mixed-use Building",AB23,Data!Z20)))) -> 0 | J19: =_xlfn.LET(_xlpm.office_type,'Working Values'!$F$13,IF(_xlpm.office_type="Multi-unit Residential",Data!J20,IF(_xlpm.office_type="Education",Data!AR20,IF(_xlpm.office_type="Mixed-use Building",AC23,Data!AA20)))) -> 0.01 | K19: =_xlfn.LET(_xlpm.office_type,'Working Values'!$F$13,IF(_xlpm.office_type="Multi-unit Residential",Data!K20,IF(_xlpm.office_type="Education",Data!AS20,IF(_xlpm.office_type="Mixed-use Building",AD23,Data!AB20)))) -> 0 | L19: =_xlfn.LET(_xlpm.office_type,'Working Values'!$F$13,IF(_xlpm.office_type="Multi-unit Residential",Data!L20,IF(_xlpm.office_type="Education",Data!AT20,IF(_xlpm.office_type="Mixed-use Building",AE23,Data!AC20)))) -> 0.06 | M19: =_xlfn.LET(_xlpm.office_type,'Working Values'!$F$13,IF(_xlpm.office_type="Multi-unit Residential",Data!M20,IF(_xlpm.office_type="Education",Data!AU20,IF(_xlpm.office_type="Mixed-use Building",AF23,Data!AD20)))) -> 0.02 | N19: =_xlfn.LET(_xlpm.office_type,'Working Values'!$F$13,IF(_xlpm.office_type="Multi-unit Residential",Data!N20,IF(_xlpm.office_type="Education",Data!AV20,IF(_xlpm.office_type="Mixed-use Building",AG23,Data!AE20)))) -> 10.7 | O19: =_xlfn.LET(_xlpm.office_type,'Working Values'!$F$13,IF(_xlpm.office_type="Multi-unit Residential",Data!O20,IF(_xlpm.office_type="Education",Data!AW20,IF(_xlpm.office_type="Mixed-use Building",AH23,Data!AF20)))) -> 173.8523911 | P19: =_xlfn.LET(_xlpm.office_type,'Working Values'!$F$13,IF(_xlpm.office_type="Multi-unit Residential",Data!P20,IF(_xlpm.office_type="Education",Data!AX20,IF(_xlpm.office_type="Mixed-use Building",AI23,Data!AG20)))) -> -35.06087413
A20: =_xlfn.LET(_xlpm.office_type,'Working Values'!$F$13,IF(_xlpm.office_type="Multi-unit Residential",Data!A21,IF(_xlpm.office_type="Education",Data!AI21,IF(_xlpm.office_type="Mixed-use Building",T24,Data!R21)))) -> 101900 | B20: =_xlfn.LET(_xlpm.office_type,'Working Values'!$F$13,IF(_xlpm.office_type="Multi-unit Residential",Data!B21,IF(_xlpm.office_type="Education",Data!AJ21,IF(_xlpm.office_type="Mixed-use Building",U24,Data!S21)))) -> Kaeo | C20: =_xlfn.LET(_xlpm.office_type,'Working Values'!$F$13,IF(_xlpm.office_type="Multi-unit Residential",Data!C21,IF(_xlpm.office_type="Education",Data!AK21,IF(_xlpm.office_type="Mixed-use Building",V24,Data!T21)))) -> New Zealand | D20: =_xlfn.LET(_xlpm.office_type,'Working Values'!$F$13,IF(_xlpm.office_type="Multi-unit Residential",Data!D21,IF(_xlpm.office_type="Education",Data!AL21,IF(_xlpm.office_type="Mixed-use Building",W24,Data!U21)))) -> 0 | E20: =_xlfn.LET(_xlpm.office_type,'Working Values'!$F$13,IF(_xlpm.office_type="Multi-unit Residential",Data!E21,IF(_xlpm.office_type="Education",Data!AM21,IF(_xlpm.office_type="Mixed-use Building",X24,Data!V21)))) -> 0 | F20: =_xlfn.LET(_xlpm.office_type,'Working Values'!$F$13,IF(_xlpm.office_type="Multi-unit Residential",Data!F21,IF(_xlpm.office_type="Education",Data!AN21,IF(_xlpm.office_type="Mixed-use Building",Y24,Data!W21)))) -> 0 | G20: =_xlfn.LET(_xlpm.office_type,'Working Values'!$F$13,IF(_xlpm.office_type="Multi-unit Residential",Data!G21,IF(_xlpm.office_type="Education",Data!AO21,IF(_xlpm.office_type="Mixed-use Building",Z24,Data!X21)))) -> 0 | H20: =_xlfn.LET(_xlpm.office_type,'Working Values'!$F$13,IF(_xlpm.office_type="Multi-unit Residential",Data!H21,IF(_xlpm.office_type="Education",Data!AP21,IF(_xlpm.office_type="Mixed-use Building",AA24,Data!Y21)))) -> 0.91 | I20: =_xlfn.LET(_xlpm.office_type,'Working Values'!$F$13,IF(_xlpm.office_type="Multi-unit Residential",Data!I21,IF(_xlpm.office_type="Education",Data!AQ21,IF(_xlpm.office_type="Mixed-use Building",AB24,Data!Z21)))) -> 0.08 | J20: =_xlfn.LET(_xlpm.office_type,'Working Values'!$F$13,IF(_xlpm.office_type="Multi-unit Residential",Data!J21,IF(_xlpm.office_type="Education",Data!AR21,IF(_xlpm.office_type="Mixed-use Building",AC24,Data!AA21)))) -> 0.01 | K20: =_xlfn.LET(_xlpm.office_type,'Working Values'!$F$13,IF(_xlpm.office_type="Multi-unit Residential",Data!K21,IF(_xlpm.office_type="Education",Data!AS21,IF(_xlpm.office_type="Mixed-use Building",AD24,Data!AB21)))) -> 0 | L20: =_xlfn.LET(_xlpm.office_type,'Working Values'!$F$13,IF(_xlpm.office_type="Multi-unit Residential",Data!L21,IF(_xlpm.office_type="Education",Data!AT21,IF(_xlpm.office_type="Mixed-use Building",AE24,Data!AC21)))) -> 0 | M20: =_xlfn.LET(_xlpm.office_type,'Working Values'!$F$13,IF(_xlpm.office_type="Multi-unit Residential",Data!M21,IF(_xlpm.office_type="Education",Data!AU21,IF(_xlpm.office_type="Mixed-use Building",AF24,Data!AD21)))) -> 0.02 | N20: =_xlfn.LET(_xlpm.office_type,'Working Values'!$F$13,IF(_xlpm.office_type="Multi-unit Residential",Data!N21,IF(_xlpm.office_type="Education",Data!AV21,IF(_xlpm.office_type="Mixed-use Building",AG24,Data!AE21)))) -> 10.27 | O20: =_xlfn.LET(_xlpm.office_type,'Working Values'!$F$13,IF(_xlpm.office_type="Multi-unit Residential",Data!O21,IF(_xlpm.office_type="Education",Data!AW21,IF(_xlpm.office_type="Mixed-use Building",AH24,Data!AF21)))) -> 173.7433197 | P20: =_xlfn.LET(_xlpm.office_type,'Working Values'!$F$13,IF(_xlpm.office_type="Multi-unit Residential",Data!P21,IF(_xlpm.office_type="Education",Data!AX21,IF(_xlpm.office_type="Mixed-use Building",AI24,Data!AG21)))) -> -35.15410315
A21: =_xlfn.LET(_xlpm.office_type,'Working Values'!$F$13,IF(_xlpm.office_type="Multi-unit Residential",Data!A22,IF(_xlpm.office_type="Education",Data!AI22,IF(_xlpm.office_type="Mixed-use Building",T25,Data!R22)))) -> 102000 | B21: =_xlfn.LET(_xlpm.office_type,'Working Values'!$F$13,IF(_xlpm.office_type="Multi-unit Residential",Data!B22,IF(_xlpm.office_type="Education",Data!AJ22,IF(_xlpm.office_type="Mixed-use Building",U25,Data!S22)))) -> Omahuta Forest-Horeke | C21: =_xlfn.LET(_xlpm.office_type,'Working Values'!$F$13,IF(_xlpm.office_type="Multi-unit Residential",Data!C22,IF(_xlpm.office_type="Education",Data!AK22,IF(_xlpm.office_type="Mixed-use Building",V25,Data!T22)))) -> New Zealand | D21: =_xlfn.LET(_xlpm.office_type,'Working Values'!$F$13,IF(_xlpm.office_type="Multi-unit Residential",Data!D22,IF(_xlpm.office_type="Education",Data!AL22,IF(_xlpm.office_type="Mixed-use Building",W25,Data!U22)))) -> 0 | E21: =_xlfn.LET(_xlpm.office_type,'Working Values'!$F$13,IF(_xlpm.office_type="Multi-unit Residential",Data!E22,IF(_xlpm.office_type="Education",Data!AM22,IF(_xlpm.office_type="Mixed-use Building",X25,Data!V22)))) -> 0 | F21: =_xlfn.LET(_xlpm.office_type,'Working Values'!$F$13,IF(_xlpm.office_type="Multi-unit Residential",Data!F22,IF(_xlpm.office_type="Education",Data!AN22,IF(_xlpm.office_type="Mixed-use Building",Y25,Data!W22)))) -> 0 | G21: =_xlfn.LET(_xlpm.office_type,'Working Values'!$F$13,IF(_xlpm.office_type="Multi-unit Residential",Data!G22,IF(_xlpm.office_type="Education",Data!AO22,IF(_xlpm.office_type="Mixed-use Building",Z25,Data!X22)))) -> 0 | H21: =_xlfn.LET(_xlpm.office_type,'Working Values'!$F$13,IF(_xlpm.office_type="Multi-unit Residential",Data!H22,IF(_xlpm.office_type="Education",Data!AP22,IF(_xlpm.office_type="Mixed-use Building",AA25,Data!Y22)))) -> 0.99 | I21: =_xlfn.LET(_xlpm.office_type,'Working Values'!$F$13,IF(_xlpm.office_type="Multi-unit Residential",Data!I22,IF(_xlpm.office_type="Education",Data!AQ22,IF(_xlpm.office_type="Mixed-use Building",AB25,Data!Z22)))) -> 0 | J21: =_xlfn.LET(_xlpm.office_type,'Working Values'!$F$13,IF(_xlpm.office_type="Multi-unit Residential",Data!J22,IF(_xlpm.office_type="Education",Data!AR22,IF(_xlpm.office_type="Mixed-use Building",AC25,Data!AA22)))) -> 0.01 | K21: =_xlfn.LET(_xlpm.office_type,'Working Values'!$F$13,IF(_xlpm.office_type="Multi-unit Residential",Data!K22,IF(_xlpm.office_type="Education",Data!AS22,IF(_xlpm.office_type="Mixed-use Building",AD25,Data!AB22)))) -> 0 | L21: =_xlfn.LET(_xlpm.office_type,'Working Values'!$F$13,IF(_xlpm.office_type="Multi-unit Residential",Data!L22,IF(_xlpm.office_type="Education",Data!AT22,IF(_xlpm.office_type="Mixed-use Building",AE25,Data!AC22)))) -> 0 | M21: =_xlfn.LET(_xlpm.office_type,'Working Values'!$F$13,IF(_xlpm.office_type="Multi-unit Residential",Data!M22,IF(_xlpm.office_type="Education",Data!AU22,IF(_xlpm.office_type="Mixed-use Building",AF25,Data!AD22)))) -> 0.02 | N21: =_xlfn.LET(_xlpm.office_type,'Working Values'!$F$13,IF(_xlpm.office_type="Multi-unit Residential",Data!N22,IF(_xlpm.office_type="Education",Data!AV22,IF(_xlpm.office_type="Mixed-use Building",AG25,Data!AE22)))) -> 12.15 | O21: =_xlfn.LET(_xlpm.office_type,'Working Values'!$F$13,IF(_xlpm.office_type="Multi-unit Residential",Data!O22,IF(_xlpm.office_type="Education",Data!AW22,IF(_xlpm.office_type="Mixed-use Building",AH25,Data!AF22)))) -> 173.6177806 | P21: =_xlfn.LET(_xlpm.office_type,'Working Values'!$F$13,IF(_xlpm.office_type="Multi-unit Residential",Data!P22,IF(_xlpm.office_type="Education",Data!AX22,IF(_xlpm.office_type="Mixed-use Building",AI25,Data!AG22)))) -> -35.28838298
A22: =_xlfn.LET(_xlpm.office_type,'Working Values'!$F$13,IF(_xlpm.office_type="Multi-unit Residential",Data!A23,IF(_xlpm.office_type="Education",Data!AI23,IF(_xlpm.office_type="Mixed-use Building",T26,Data!R23)))) -> 102100 | B22: =_xlfn.LET(_xlpm.office_type,'Working Values'!$F$13,IF(_xlpm.office_type="Multi-unit Residential",Data!B23,IF(_xlpm.office_type="Education",Data!AJ23,IF(_xlpm.office_type="Mixed-use Building",U26,Data!S23)))) -> Hokianga South | C22: =_xlfn.LET(_xlpm.office_type,'Working Values'!$F$13,IF(_xlpm.office_type="Multi-unit Residential",Data!C23,IF(_xlpm.office_type="Education",Data!AK23,IF(_xlpm.office_type="Mixed-use Building",V26,Data!T23)))) -> New Zealand | D22: =_xlfn.LET(_xlpm.office_type,'Working Values'!$F$13,IF(_xlpm.office_type="Multi-unit Residential",Data!D23,IF(_xlpm.office_type="Education",Data!AL23,IF(_xlpm.office_type="Mixed-use Building",W26,Data!U23)))) -> 0 | E22: =_xlfn.LET(_xlpm.office_type,'Working Values'!$F$13,IF(_xlpm.office_type="Multi-unit Residential",Data!E23,IF(_xlpm.office_type="Education",Data!AM23,IF(_xlpm.office_type="Mixed-use Building",X26,Data!V23)))) -> 0 | F22: =_xlfn.LET(_xlpm.office_type,'Working Values'!$F$13,IF(_xlpm.office_type="Multi-unit Residential",Data!F23,IF(_xlpm.office_type="Education",Data!AN23,IF(_xlpm.office_type="Mixed-use Building",Y26,Data!W23)))) -> 0 | G22: =_xlfn.LET(_xlpm.office_type,'Working Values'!$F$13,IF(_xlpm.office_type="Multi-unit Residential",Data!G23,IF(_xlpm.office_type="Education",Data!AO23,IF(_xlpm.office_type="Mixed-use Building",Z26,Data!X23)))) -> 0 | H22: =_xlfn.LET(_xlpm.office_type,'Working Values'!$F$13,IF(_xlpm.office_type="Multi-unit Residential",Data!H23,IF(_xlpm.office_type="Education",Data!AP23,IF(_xlpm.office_type="Mixed-use Building",AA26,Data!Y23)))) -> 0.9 | I22: =_xlfn.LET(_xlpm.office_type,'Working Values'!$F$13,IF(_xlpm.office_type="Multi-unit Residential",Data!I23,IF(_xlpm.office_type="Education",Data!AQ23,IF(_xlpm.office_type="Mixed-use Building",AB26,Data!Z23)))) -> 0 | J22: =_xlfn.LET(_xlpm.office_type,'Working Values'!$F$13,IF(_xlpm.office_type="Multi-unit Residential",Data!J23,IF(_xlpm.office_type="Education",Data!AR23,IF(_xlpm.office_type="Mixed-use Building",AC26,Data!AA23)))) -> 0.01 | K22: =_xlfn.LET(_xlpm.office_type,'Working Values'!$F$13,IF(_xlpm.office_type="Multi-unit Residential",Data!K23,IF(_xlpm.office_type="Education",Data!AS23,IF(_xlpm.office_type="Mixed-use Building",AD26,Data!AB23)))) -> 0 | L22: =_xlfn.LET(_xlpm.office_type,'Working Values'!$F$13,IF(_xlpm.office_type="Multi-unit Residential",Data!L23,IF(_xlpm.office_type="Education",Data!AT23,IF(_xlpm.office_type="Mixed-use Building",AE26,Data!AC23)))) -> 0.09 | M22: =_xlfn.LET(_xlpm.office_type,'Working Values'!$F$13,IF(_xlpm.office_type="Multi-unit Residential",Data!M23,IF(_xlpm.office_type="Education",Data!AU23,IF(_xlpm.office_type="Mixed-use Building",AF26,Data!AD23)))) -> 0.02 | N22: =_xlfn.LET(_xlpm.office_type,'Working Values'!$F$13,IF(_xlpm.office_type="Multi-unit Residential",Data!N23,IF(_xlpm.office_type="Education",Data!AV23,IF(_xlpm.office_type="Mixed-use Building",AG26,Data!AE23)))) -> 11.04 | O22: =_xlfn.LET(_xlpm.office_type,'Working Values'!$F$13,IF(_xlpm.office_type="Multi-unit Residential",Data!O23,IF(_xlpm.office_type="Education",Data!AW23,IF(_xlpm.office_type="Mixed-use Building",AH26,Data!AF23)))) -> 173.484387 | P22: =_xlfn.LET(_xlpm.office_type,'Working Values'!$F$13,IF(_xlpm.office_type="Multi-unit Residential",Data!P23,IF(_xlpm.office_type="Education",Data!AX23,IF(_xlpm.office_type="Mixed-use Building",AI26,Data!AG23)))) -> -35.46801387
A23: =_xlfn.LET(_xlpm.office_type,'Working Values'!$F$13,IF(_xlpm.office_type="Multi-unit Residential",Data!A24,IF(_xlpm.office_type="Education",Data!AI24,IF(_xlpm.office_type="Mixed-use Building",T27,Data!R24)))) -> 102200 | B23: =_xlfn.LET(_xlpm.office_type,'Working Values'!$F$13,IF(_xlpm.office_type="Multi-unit Residential",Data!B24,IF(_xlpm.office_type="Education",Data!AJ24,IF(_xlpm.office_type="Mixed-use Building",U27,Data!S24)))) -> Lake Manuwai-Kapiro | C23: =_xlfn.LET(_xlpm.office_type,'Working Values'!$F$13,IF(_xlpm.office_type="Multi-unit Residential",Data!C24,IF(_xlpm.office_type="Education",Data!AK24,IF(_xlpm.office_type="Mixed-use Building",V27,Data!T24)))) -> New Zealand | D23: =_xlfn.LET(_xlpm.office_type,'Working Values'!$F$13,IF(_xlpm.office_type="Multi-unit Residential",Data!D24,IF(_xlpm.office_type="Education",Data!AL24,IF(_xlpm.office_type="Mixed-use Building",W27,Data!U24)))) -> 0 | E23: =_xlfn.LET(_xlpm.office_type,'Working Values'!$F$13,IF(_xlpm.office_type="Multi-unit Residential",Data!E24,IF(_xlpm.office_type="Education",Data!AM24,IF(_xlpm.office_type="Mixed-use Building",X27,Data!V24)))) -> 0 | F23: =_xlfn.LET(_xlpm.office_type,'Working Values'!$F$13,IF(_xlpm.office_type="Multi-unit Residential",Data!F24,IF(_xlpm.office_type="Education",Data!AN24,IF(_xlpm.office_type="Mixed-use Building",Y27,Data!W24)))) -> 0 | G23: =_xlfn.LET(_xlpm.office_type,'Working Values'!$F$13,IF(_xlpm.office_type="Multi-unit Residential",Data!G24,IF(_xlpm.office_type="Education",Data!AO24,IF(_xlpm.office_type="Mixed-use Building",Z27,Data!X24)))) -> 0 | H23: =_xlfn.LET(_xlpm.office_type,'Working Values'!$F$13,IF(_xlpm.office_type="Multi-unit Residential",Data!H24,IF(_xlpm.office_type="Education",Data!AP24,IF(_xlpm.office_type="Mixed-use Building",AA27,Data!Y24)))) -> 0.94 | I23: =_xlfn.LET(_xlpm.office_type,'Working Values'!$F$13,IF(_xlpm.office_type="Multi-unit Residential",Data!I24,IF(_xlpm.office_type="Education",Data!AQ24,IF(_xlpm.office_type="Mixed-use Building",AB27,Data!Z24)))) -> 0.02 | J23: =_xlfn.LET(_xlpm.office_type,'Working Values'!$F$13,IF(_xlpm.office_type="Multi-unit Residential",Data!J24,IF(_xlpm.office_type="Education",Data!AR24,IF(_xlpm.office_type="Mixed-use Building",AC27,Data!AA24)))) -> 0.01 | K23: =_xlfn.LET(_xlpm.office_type,'Working Values'!$F$13,IF(_xlpm.office_type="Multi-unit Residential",Data!K24,IF(_xlpm.office_type="Education",Data!AS24,IF(_xlpm.office_type="Mixed-use Building",AD27,Data!AB24)))) -> 0 | L23: =_xlfn.LET(_xlpm.office_type,'Working Values'!$F$13,IF(_xlpm.office_type="Multi-unit Residential",Data!L24,IF(_xlpm.office_type="Education",Data!AT24,IF(_xlpm.office_type="Mixed-use Building",AE27,Data!AC24)))) -> 0.03 | M23: =_xlfn.LET(_xlpm.office_type,'Working Values'!$F$13,IF(_xlpm.office_type="Multi-unit Residential",Data!M24,IF(_xlpm.office_type="Education",Data!AU24,IF(_xlpm.office_type="Mixed-use Building",AF27,Data!AD24)))) -> 0.02 | N23: =_xlfn.LET(_xlpm.office_type,'Working Values'!$F$13,IF(_xlpm.office_type="Multi-unit Residential",Data!N24,IF(_xlpm.office_type="Education",Data!AV24,IF(_xlpm.office_type="Mixed-use Building",AG27,Data!AE24)))) -> 10.1 | O23: =_xlfn.LET(_xlpm.office_type,'Working Values'!$F$13,IF(_xlpm.office_type="Multi-unit Residential",Data!O24,IF(_xlpm.office_type="Education",Data!AW24,IF(_xlpm.office_type="Mixed-use Building",AH27,Data!AF24)))) -> 173.8903475 | P23: =_xlfn.LET(_xlpm.office_type,'Working Values'!$F$13,IF(_xlpm.office_type="Multi-unit Residential",Data!P24,IF(_xlpm.office_type="Education",Data!AX24,IF(_xlpm.office_type="Mixed-use Building",AI27,Data!AG24)))) -> -35.17898315
A24: =_xlfn.LET(_xlpm.office_type,'Working Values'!$F$13,IF(_xlpm.office_type="Multi-unit Residential",Data!A25,IF(_xlpm.office_type="Education",Data!AI25,IF(_xlpm.office_type="Mixed-use Building",T28,Data!R25)))) -> 102300 | B24: =_xlfn.LET(_xlpm.office_type,'Working Values'!$F$13,IF(_xlpm.office_type="Multi-unit Residential",Data!B25,IF(_xlpm.office_type="Education",Data!AJ25,IF(_xlpm.office_type="Mixed-use Building",U28,Data!S25)))) -> Okaihau | C24: =_xlfn.LET(_xlpm.office_type,'Working Values'!$F$13,IF(_xlpm.office_type="Multi-unit Residential",Data!C25,IF(_xlpm.office_type="Education",Data!AK25,IF(_xlpm.office_type="Mixed-use Building",V28,Data!T25)))) -> New Zealand | D24: =_xlfn.LET(_xlpm.office_type,'Working Values'!$F$13,IF(_xlpm.office_type="Multi-unit Residential",Data!D25,IF(_xlpm.office_type="Education",Data!AL25,IF(_xlpm.office_type="Mixed-use Building",W28,Data!U25)))) -> 0 | E24: =_xlfn.LET(_xlpm.office_type,'Working Values'!$F$13,IF(_xlpm.office_type="Multi-unit Residential",Data!E25,IF(_xlpm.office_type="Education",Data!AM25,IF(_xlpm.office_type="Mixed-use Building",X28,Data!V25)))) -> 0 | F24: =_xlfn.LET(_xlpm.office_type,'Working Values'!$F$13,IF(_xlpm.office_type="Multi-unit Residential",Data!F25,IF(_xlpm.office_type="Education",Data!AN25,IF(_xlpm.office_type="Mixed-use Building",Y28,Data!W25)))) -> 0 | G24: =_xlfn.LET(_xlpm.office_type,'Working Values'!$F$13,IF(_xlpm.office_type="Multi-unit Residential",Data!G25,IF(_xlpm.office_type="Education",Data!AO25,IF(_xlpm.office_type="Mixed-use Building",Z28,Data!X25)))) -> 0 | H24: =_xlfn.LET(_xlpm.office_type,'Working Values'!$F$13,IF(_xlpm.office_type="Multi-unit Residential",Data!H25,IF(_xlpm.office_type="Education",Data!AP25,IF(_xlpm.office_type="Mixed-use Building",AA28,Data!Y25)))) -> 0.81 | I24: =_xlfn.LET(_xlpm.office_type,'Working Values'!$F$13,IF(_xlpm.office_type="Multi-unit Residential",Data!I25,IF(_xlpm.office_type="Education",Data!AQ25,IF(_xlpm.office_type="Mixed-use Building",AB28,Data!Z25)))) -> 0 | J24: =_xlfn.LET(_xlpm.office_type,'Working Values'!$F$13,IF(_xlpm.office_type="Multi-unit Residential",Data!J25,IF(_xlpm.office_type="Education",Data!AR25,IF(_xlpm.office_type="Mixed-use Building",AC28,Data!AA25)))) -> 0.01 | K24: =_xlfn.LET(_xlpm.office_type,'Working Values'!$F$13,IF(_xlpm.office_type="Multi-unit Residential",Data!K25,IF(_xlpm.office_type="Education",Data!AS25,IF(_xlpm.office_type="Mixed-use Building",AD28,Data!AB25)))) -> 0 | L24: =_xlfn.LET(_xlpm.office_type,'Working Values'!$F$13,IF(_xlpm.office_type="Multi-unit Residential",Data!L25,IF(_xlpm.office_type="Education",Data!AT25,IF(_xlpm.office_type="Mixed-use Building",AE28,Data!AC25)))) -> 0.18 | M24: =_xlfn.LET(_xlpm.office_type,'Working Values'!$F$13,IF(_xlpm.office_type="Multi-unit Residential",Data!M25,IF(_xlpm.office_type="Education",Data!AU25,IF(_xlpm.office_type="Mixed-use Building",AF28,Data!AD25)))) -> 0.02 | N24: =_xlfn.LET(_xlpm.office_type,'Working Values'!$F$13,IF(_xlpm.office_type="Multi-unit Residential",Data!N25,IF(_xlpm.office_type="Education",Data!AV25,IF(_xlpm.office_type="Mixed-use Building",AG28,Data!AE25)))) -> 9.8 | O24: =_xlfn.LET(_xlpm.office_type,'Working Values'!$F$13,IF(_xlpm.office_type="Multi-unit Residential",Data!O25,IF(_xlpm.office_type="Education",Data!AW25,IF(_xlpm.office_type="Mixed-use Building",AH28,Data!AF25)))) -> 173.7908155 | P24: =_xlfn.LET(_xlpm.office_type,'Working Values'!$F$13,IF(_xlpm.office_type="Multi-unit Residential",Data!P25,IF(_xlpm.office_type="Education",Data!AX25,IF(_xlpm.office_type="Mixed-use Building",AI28,Data!AG25)))) -> -35.28661159
A25: =_xlfn.LET(_xlpm.office_type,'Working Values'!$F$13,IF(_xlpm.office_type="Multi-unit Residential",Data!A26,IF(_xlpm.office_type="Education",Data!AI26,IF(_xlpm.office_type="Mixed-use Building",T29,Data!R26)))) -> 102400 | B25: =_xlfn.LET(_xlpm.office_type,'Working Values'!$F$13,IF(_xlpm.office_type="Multi-unit Residential",Data!B26,IF(_xlpm.office_type="Education",Data!AJ26,IF(_xlpm.office_type="Mixed-use Building",U29,Data!S26)))) -> Rangitane-Purerua | C25: =_xlfn.LET(_xlpm.office_type,'Working Values'!$F$13,IF(_xlpm.office_type="Multi-unit Residential",Data!C26,IF(_xlpm.office_type="Education",Data!AK26,IF(_xlpm.office_type="Mixed-use Building",V29,Data!T26)))) -> New Zealand | D25: =_xlfn.LET(_xlpm.office_type,'Working Values'!$F$13,IF(_xlpm.office_type="Multi-unit Residential",Data!D26,IF(_xlpm.office_type="Education",Data!AL26,IF(_xlpm.office_type="Mixed-use Building",W29,Data!U26)))) -> 0 | E25: =_xlfn.LET(_xlpm.office_type,'Working Values'!$F$13,IF(_xlpm.office_type="Multi-unit Residential",Data!E26,IF(_xlpm.office_type="Education",Data!AM26,IF(_xlpm.office_type="Mixed-use Building",X29,Data!V26)))) -> 0 | F25: =_xlfn.LET(_xlpm.office_type,'Working Values'!$F$13,IF(_xlpm.office_type="Multi-unit Residential",Data!F26,IF(_xlpm.office_type="Education",Data!AN26,IF(_xlpm.office_type="Mixed-use Building",Y29,Data!W26)))) -> 0 | G25: =_xlfn.LET(_xlpm.office_type,'Working Values'!$F$13,IF(_xlpm.office_type="Multi-unit Residential",Data!G26,IF(_xlpm.office_type="Education",Data!AO26,IF(_xlpm.office_type="Mixed-use Building",Z29,Data!X26)))) -> 0 | H25: =_xlfn.LET(_xlpm.office_type,'Working Values'!$F$13,IF(_xlpm.office_type="Multi-unit Residential",Data!H26,IF(_xlpm.office_type="Education",Data!AP26,IF(_xlpm.office_type="Mixed-use Building",AA29,Data!Y26)))) -> 0.99 | I25: =_xlfn.LET(_xlpm.office_type,'Working Values'!$F$13,IF(_xlpm.office_type="Multi-unit Residential",Data!I26,IF(_xlpm.office_type="Education",Data!AQ26,IF(_xlpm.office_type="Mixed-use Building",AB29,Data!Z26)))) -> 0 | J25: =_xlfn.LET(_xlpm.office_type,'Working Values'!$F$13,IF(_xlpm.office_type="Multi-unit Residential",Data!J26,IF(_xlpm.office_type="Education",Data!AR26,IF(_xlpm.office_type="Mixed-use Building",AC29,Data!AA26)))) -> 0.01 | K25: =_xlfn.LET(_xlpm.office_type,'Working Values'!$F$13,IF(_xlpm.office_type="Multi-unit Residential",Data!K26,IF(_xlpm.office_type="Education",Data!AS26,IF(_xlpm.office_type="Mixed-use Building",AD29,Data!AB26)))) -> 0 | L25: =_xlfn.LET(_xlpm.office_type,'Working Values'!$F$13,IF(_xlpm.office_type="Multi-unit Residential",Data!L26,IF(_xlpm.office_type="Education",Data!AT26,IF(_xlpm.office_type="Mixed-use Building",AE29,Data!AC26)))) -> 0 | M25: =_xlfn.LET(_xlpm.office_type,'Working Values'!$F$13,IF(_xlpm.office_type="Multi-unit Residential",Data!M26,IF(_xlpm.office_type="Education",Data!AU26,IF(_xlpm.office_type="Mixed-use Building",AF29,Data!AD26)))) -> 0.02 | N25: =_xlfn.LET(_xlpm.office_type,'Working Values'!$F$13,IF(_xlpm.office_type="Multi-unit Residential",Data!N26,IF(_xlpm.office_type="Education",Data!AV26,IF(_xlpm.office_type="Mixed-use Building",AG29,Data!AE26)))) -> 7.97 | O25: =_xlfn.LET(_xlpm.office_type,'Working Values'!$F$13,IF(_xlpm.office_type="Multi-unit Residential",Data!O26,IF(_xlpm.office_type="Education",Data!AW26,IF(_xlpm.office_type="Mixed-use Building",AH29,Data!AF26)))) -> 173.9940119 | P25: =_xlfn.LET(_xlpm.office_type,'Working Values'!$F$13,IF(_xlpm.office_type="Multi-unit Residential",Data!P26,IF(_xlpm.office_type="Education",Data!AX26,IF(_xlpm.office_type="Mixed-use Building",AI29,Data!AG26)))) -> -35.14647726
A26: =_xlfn.LET(_xlpm.office_type,'Working Values'!$F$13,IF(_xlpm.office_type="Multi-unit Residential",Data!A27,IF(_xlpm.office_type="Education",Data!AI27,IF(_xlpm.office_type="Mixed-use Building",T30,Data!R27)))) -> 102500 | B26: =_xlfn.LET(_xlpm.office_type,'Working Values'!$F$13,IF(_xlpm.office_type="Multi-unit Residential",Data!B27,IF(_xlpm.office_type="Education",Data!AJ27,IF(_xlpm.office_type="Mixed-use Building",U30,Data!S27)))) -> Waipapa | C26: =_xlfn.LET(_xlpm.office_type,'Working Values'!$F$13,IF(_xlpm.office_type="Multi-unit Residential",Data!C27,IF(_xlpm.office_type="Education",Data!AK27,IF(_xlpm.office_type="Mixed-use Building",V30,Data!T27)))) -> New Zealand | D26: =_xlfn.LET(_xlpm.office_type,'Working Values'!$F$13,IF(_xlpm.office_type="Multi-unit Residential",Data!D27,IF(_xlpm.office_type="Education",Data!AL27,IF(_xlpm.office_type="Mixed-use Building",W30,Data!U27)))) -> 0 | E26: =_xlfn.LET(_xlpm.office_type,'Working Values'!$F$13,IF(_xlpm.office_type="Multi-unit Residential",Data!E27,IF(_xlpm.office_type="Education",Data!AM27,IF(_xlpm.office_type="Mixed-use Building",X30,Data!V27)))) -> 0 | F26: =_xlfn.LET(_xlpm.office_type,'Working Values'!$F$13,IF(_xlpm.office_type="Multi-unit Residential",Data!F27,IF(_xlpm.office_type="Education",Data!AN27,IF(_xlpm.office_type="Mixed-use Building",Y30,Data!W27)))) -> 0 | G26: =_xlfn.LET(_xlpm.office_type,'Working Values'!$F$13,IF(_xlpm.office_type="Multi-unit Residential",Data!G27,IF(_xlpm.office_type="Education",Data!AO27,IF(_xlpm.office_type="Mixed-use Building",Z30,Data!X27)))) -> 0 | H26: =_xlfn.LET(_xlpm.office_type,'Working Values'!$F$13,IF(_xlpm.office_type="Multi-unit Residential",Data!H27,IF(_xlpm.office_type="Education",Data!AP27,IF(_xlpm.office_type="Mixed-use Building",AA30,Data!Y27)))) -> 0.99 | I26: =_xlfn.LET(_xlpm.office_type,'Working Values'!$F$13,IF(_xlpm.office_type="Multi-unit Residential",Data!I27,IF(_xlpm.office_type="Education",Data!AQ27,IF(_xlpm.office_type="Mixed-use Building",AB30,Data!Z27)))) -> 0 | J26: =_xlfn.LET(_xlpm.office_type,'Working Values'!$F$13,IF(_xlpm.office_type="Multi-unit Residential",Data!J27,IF(_xlpm.office_type="Education",Data!AR27,IF(_xlpm.office_type="Mixed-use Building",AC30,Data!AA27)))) -> 0.01 | K26: =_xlfn.LET(_xlpm.office_type,'Working Values'!$F$13,IF(_xlpm.office_type="Multi-unit Residential",Data!K27,IF(_xlpm.office_type="Education",Data!AS27,IF(_xlpm.office_type="Mixed-use Building",AD30,Data!AB27)))) -> 0 | L26: =_xlfn.LET(_xlpm.office_type,'Working Values'!$F$13,IF(_xlpm.office_type="Multi-unit Residential",Data!L27,IF(_xlpm.office_type="Education",Data!AT27,IF(_xlpm.office_type="Mixed-use Building",AE30,Data!AC27)))) -> 0 | M26: =_xlfn.LET(_xlpm.office_type,'Working Values'!$F$13,IF(_xlpm.office_type="Multi-unit Residential",Data!M27,IF(_xlpm.office_type="Education",Data!AU27,IF(_xlpm.office_type="Mixed-use Building",AF30,Data!AD27)))) -> 0.02 | N26: =_xlfn.LET(_xlpm.office_type,'Working Values'!$F$13,IF(_xlpm.office_type="Multi-unit Residential",Data!N27,IF(_xlpm.office_type="Education",Data!AV27,IF(_xlpm.office_type="Mixed-use Building",AG30,Data!AE27)))) -> 10.7 | O26: =_xlfn.LET(_xlpm.office_type,'Working Values'!$F$13,IF(_xlpm.office_type="Multi-unit Residential",Data!O27,IF(_xlpm.office_type="Education",Data!AW27,IF(_xlpm.office_type="Mixed-use Building",AH30,Data!AF27)))) -> 173.9158678 | P26: =_xlfn.LET(_xlpm.office_type,'Working Values'!$F$13,IF(_xlpm.office_type="Multi-unit Residential",Data!P27,IF(_xlpm.office_type="Education",Data!AX27,IF(_xlpm.office_type="Mixed-use Building",AI30,Data!AG27)))) -> -35.20454373
A27: =_xlfn.LET(_xlpm.office_type,'Working Values'!$F$13,IF(_xlpm.office_type="Multi-unit Residential",Data!A28,IF(_xlpm.office_type="Education",Data!AI28,IF(_xlpm.office_type="Mixed-use Building",T31,Data!R28)))) -> 102600 | B27: =_xlfn.LET(_xlpm.office_type,'Working Values'!$F$13,IF(_xlpm.office_type="Multi-unit Residential",Data!B28,IF(_xlpm.office_type="Education",Data!AJ28,IF(_xlpm.office_type="Mixed-use Building",U31,Data!S28)))) -> Puketotara | C27: =_xlfn.LET(_xlpm.office_type,'Working Values'!$F$13,IF(_xlpm.office_type="Multi-unit Residential",Data!C28,IF(_xlpm.office_type="Education",Data!AK28,IF(_xlpm.office_type="Mixed-use Building",V31,Data!T28)))) -> New Zealand | D27: =_xlfn.LET(_xlpm.office_type,'Working Values'!$F$13,IF(_xlpm.office_type="Multi-unit Residential",Data!D28,IF(_xlpm.office_type="Education",Data!AL28,IF(_xlpm.office_type="Mixed-use Building",W31,Data!U28)))) -> 0 | E27: =_xlfn.LET(_xlpm.office_type,'Working Values'!$F$13,IF(_xlpm.office_type="Multi-unit Residential",Data!E28,IF(_xlpm.office_type="Education",Data!AM28,IF(_xlpm.office_type="Mixed-use Building",X31,Data!V28)))) -> 0 | F27: =_xlfn.LET(_xlpm.office_type,'Working Values'!$F$13,IF(_xlpm.office_type="Multi-unit Residential",Data!F28,IF(_xlpm.office_type="Education",Data!AN28,IF(_xlpm.office_type="Mixed-use Building",Y31,Data!W28)))) -> 0 | G27: =_xlfn.LET(_xlpm.office_type,'Working Values'!$F$13,IF(_xlpm.office_type="Multi-unit Residential",Data!G28,IF(_xlpm.office_type="Education",Data!AO28,IF(_xlpm.office_type="Mixed-use Building",Z31,Data!X28)))) -> 0 | H27: =_xlfn.LET(_xlpm.office_type,'Working Values'!$F$13,IF(_xlpm.office_type="Multi-unit Residential",Data!H28,IF(_xlpm.office_type="Education",Data!AP28,IF(_xlpm.office_type="Mixed-use Building",AA31,Data!Y28)))) -> 0.94 | I27: =_xlfn.LET(_xlpm.office_type,'Working Values'!$F$13,IF(_xlpm.office_type="Multi-unit Residential",Data!I28,IF(_xlpm.office_type="Education",Data!AQ28,IF(_xlpm.office_type="Mixed-use Building",AB31,Data!Z28)))) -> 0 | J27: =_xlfn.LET(_xlpm.office_type,'Working Values'!$F$13,IF(_xlpm.office_type="Multi-unit Residential",Data!J28,IF(_xlpm.office_type="Education",Data!AR28,IF(_xlpm.office_type="Mixed-use Building",AC31,Data!AA28)))) -> 0.01 | K27: =_xlfn.LET(_xlpm.office_type,'Working Values'!$F$13,IF(_xlpm.office_type="Multi-unit Residential",Data!K28,IF(_xlpm.office_type="Education",Data!AS28,IF(_xlpm.office_type="Mixed-use Building",AD31,Data!AB28)))) -> 0 | L27: =_xlfn.LET(_xlpm.office_type,'Working Values'!$F$13,IF(_xlpm.office_type="Multi-unit Residential",Data!L28,IF(_xlpm.office_type="Education",Data!AT28,IF(_xlpm.office_type="Mixed-use Building",AE31,Data!AC28)))) -> 0.05 | M27: =_xlfn.LET(_xlpm.office_type,'Working Values'!$F$13,IF(_xlpm.office_type="Multi-unit Residential",Data!M28,IF(_xlpm.office_type="Education",Data!AU28,IF(_xlpm.office_type="Mixed-use Building",AF31,Data!AD28)))) -> 0.02 | N27: =_xlfn.LET(_xlpm.office_type,'Working Values'!$F$13,IF(_xlpm.office_type="Multi-unit Residential",Data!N28,IF(_xlpm.office_type="Education",Data!AV28,IF(_xlpm.office_type="Mixed-use Building",AG31,Data!AE28)))) -> 9.72 | O27: =_xlfn.LET(_xlpm.office_type,'Working Values'!$F$13,IF(_xlpm.office_type="Multi-unit Residential",Data!O28,IF(_xlpm.office_type="Education",Data!AW28,IF(_xlpm.office_type="Mixed-use Building",AH31,Data!AF28)))) -> 173.9033075 | P27: =_xlfn.LET(_xlpm.office_type,'Working Values'!$F$13,IF(_xlpm.office_type="Multi-unit Residential",Data!P28,IF(_xlpm.office_type="Education",Data!AX28,IF(_xlpm.office_type="Mixed-use Building",AI31,Data!AG28)))) -> -35.2517628
A28: =_xlfn.LET(_xlpm.office_type,'Working Values'!$F$13,IF(_xlpm.office_type="Multi-unit Residential",Data!A29,IF(_xlpm.office_type="Education",Data!AI29,IF(_xlpm.office_type="Mixed-use Building",T32,Data!R29)))) -> 102700 | B28: =_xlfn.LET(_xlpm.office_type,'Working Values'!$F$13,IF(_xlpm.office_type="Multi-unit Residential",Data!B29,IF(_xlpm.office_type="Education",Data!AJ29,IF(_xlpm.office_type="Mixed-use Building",U32,Data!S29)))) -> Waima Forest | C28: =_xlfn.LET(_xlpm.office_type,'Working Values'!$F$13,IF(_xlpm.office_type="Multi-unit Residential",Data!C29,IF(_xlpm.office_type="Education",Data!AK29,IF(_xlpm.office_type="Mixed-use Building",V32,Data!T29)))) -> New Zealand | D28: =_xlfn.LET(_xlpm.office_type,'Working Values'!$F$13,IF(_xlpm.office_type="Multi-unit Residential",Data!D29,IF(_xlpm.office_type="Education",Data!AL29,IF(_xlpm.office_type="Mixed-use Building",W32,Data!U29)))) -> 0 | E28: =_xlfn.LET(_xlpm.office_type,'Working Values'!$F$13,IF(_xlpm.office_type="Multi-unit Residential",Data!E29,IF(_xlpm.office_type="Education",Data!AM29,IF(_xlpm.office_type="Mixed-use Building",X32,Data!V29)))) -> 0 | F28: =_xlfn.LET(_xlpm.office_type,'Working Values'!$F$13,IF(_xlpm.office_type="Multi-unit Residential",Data!F29,IF(_xlpm.office_type="Education",Data!AN29,IF(_xlpm.office_type="Mixed-use Building",Y32,Data!W29)))) -> 0 | G28: =_xlfn.LET(_xlpm.office_type,'Working Values'!$F$13,IF(_xlpm.office_type="Multi-unit Residential",Data!G29,IF(_xlpm.office_type="Education",Data!AO29,IF(_xlpm.office_type="Mixed-use Building",Z32,Data!X29)))) -> 0 | H28: =_xlfn.LET(_xlpm.office_type,'Working Values'!$F$13,IF(_xlpm.office_type="Multi-unit Residential",Data!H29,IF(_xlpm.office_type="Education",Data!AP29,IF(_xlpm.office_type="Mixed-use Building",AA32,Data!Y29)))) -> 0.99 | I28: =_xlfn.LET(_xlpm.office_type,'Working Values'!$F$13,IF(_xlpm.office_type="Multi-unit Residential",Data!I29,IF(_xlpm.office_type="Education",Data!AQ29,IF(_xlpm.office_type="Mixed-use Building",AB32,Data!Z29)))) -> 0 | J28: =_xlfn.LET(_xlpm.office_type,'Working Values'!$F$13,IF(_xlpm.office_type="Multi-unit Residential",Data!J29,IF(_xlpm.office_type="Education",Data!AR29,IF(_xlpm.office_type="Mixed-use Building",AC32,Data!AA29)))) -> 0.01 | K28: =_xlfn.LET(_xlpm.office_type,'Working Values'!$F$13,IF(_xlpm.office_type="Multi-unit Residential",Data!K29,IF(_xlpm.office_type="Education",Data!AS29,IF(_xlpm.office_type="Mixed-use Building",AD32,Data!AB29)))) -> 0 | L28: =_xlfn.LET(_xlpm.office_type,'Working Values'!$F$13,IF(_xlpm.office_type="Multi-unit Residential",Data!L29,IF(_xlpm.office_type="Education",Data!AT29,IF(_xlpm.office_type="Mixed-use Building",AE32,Data!AC29)))) -> 0 | M28: =_xlfn.LET(_xlpm.office_type,'Working Values'!$F$13,IF(_xlpm.office_type="Multi-unit Residential",Data!M29,IF(_xlpm.office_type="Education",Data!AU29,IF(_xlpm.office_type="Mixed-use Building",AF32,Data!AD29)))) -> 0.02 | N28: =_xlfn.LET(_xlpm.office_type,'Working Values'!$F$13,IF(_xlpm.office_type="Multi-unit Residential",Data!N29,IF(_xlpm.office_type="Education",Data!AV29,IF(_xlpm.office_type="Mixed-use Building",AG32,Data!AE29)))) -> 8.69 | O28: =_xlfn.LET(_xlpm.office_type,'Working Values'!$F$13,IF(_xlpm.office_type="Multi-unit Residential",Data!O29,IF(_xlpm.office_type="Education",Data!AW29,IF(_xlpm.office_type="Mixed-use Building",AH32,Data!AF29)))) -> 173.6295263 | P28: =_xlfn.LET(_xlpm.office_type,'Working Values'!$F$13,IF(_xlpm.office_type="Multi-unit Residential",Data!P29,IF(_xlpm.office_type="Education",Data!AX29,IF(_xlpm.office_type="Mixed-use Building",AI32,Data!AG29)))) -> -35.48716638
A29: =_xlfn.LET(_xlpm.office_type,'Working Values'!$F$13,IF(_xlpm.office_type="Multi-unit Residential",Data!A30,IF(_xlpm.office_type="Education",Data!AI30,IF(_xlpm.office_type="Mixed-use Building",T33,Data!R30)))) -> 102800 | B29: =_xlfn.LET(_xlpm.office_type,'Working Values'!$F$13,IF(_xlpm.office_type="Multi-unit Residential",Data!B30,IF(_xlpm.office_type="Education",Data!AJ30,IF(_xlpm.office_type="Mixed-use Building",U33,Data!S30)))) -> Riverview | C29: =_xlfn.LET(_xlpm.office_type,'Working Values'!$F$13,IF(_xlpm.office_type="Multi-unit Residential",Data!C30,IF(_xlpm.office_type="Education",Data!AK30,IF(_xlpm.office_type="Mixed-use Building",V33,Data!T30)))) -> New Zealand | D29: =_xlfn.LET(_xlpm.office_type,'Working Values'!$F$13,IF(_xlpm.office_type="Multi-unit Residential",Data!D30,IF(_xlpm.office_type="Education",Data!AL30,IF(_xlpm.office_type="Mixed-use Building",W33,Data!U30)))) -> 0 | E29: =_xlfn.LET(_xlpm.office_type,'Working Values'!$F$13,IF(_xlpm.office_type="Multi-unit Residential",Data!E30,IF(_xlpm.office_type="Education",Data!AM30,IF(_xlpm.office_type="Mixed-use Building",X33,Data!V30)))) -> 0 | F29: =_xlfn.LET(_xlpm.office_type,'Working Values'!$F$13,IF(_xlpm.office_type="Multi-unit Residential",Data!F30,IF(_xlpm.office_type="Education",Data!AN30,IF(_xlpm.office_type="Mixed-use Building",Y33,Data!W30)))) -> 0 | G29: =_xlfn.LET(_xlpm.office_type,'Working Values'!$F$13,IF(_xlpm.office_type="Multi-unit Residential",Data!G30,IF(_xlpm.office_type="Education",Data!AO30,IF(_xlpm.office_type="Mixed-use Building",Z33,Data!X30)))) -> 0 | H29: =_xlfn.LET(_xlpm.office_type,'Working Values'!$F$13,IF(_xlpm.office_type="Multi-unit Residential",Data!H30,IF(_xlpm.office_type="Education",Data!AP30,IF(_xlpm.office_type="Mixed-use Building",AA33,Data!Y30)))) -> 0.99 | I29: =_xlfn.LET(_xlpm.office_type,'Working Values'!$F$13,IF(_xlpm.office_type="Multi-unit Residential",Data!I30,IF(_xlpm.office_type="Education",Data!AQ30,IF(_xlpm.office_type="Mixed-use Building",AB33,Data!Z30)))) -> 0 | J29: =_xlfn.LET(_xlpm.office_type,'Working Values'!$F$13,IF(_xlpm.office_type="Multi-unit Residential",Data!J30,IF(_xlpm.office_type="Education",Data!AR30,IF(_xlpm.office_type="Mixed-use Building",AC33,Data!AA30)))) -> 0.01 | K29: =_xlfn.LET(_xlpm.office_type,'Working Values'!$F$13,IF(_xlpm.office_type="Multi-unit Residential",Data!K30,IF(_xlpm.office_type="Education",Data!AS30,IF(_xlpm.office_type="Mixed-use Building",AD33,Data!AB30)))) -> 0 | L29: =_xlfn.LET(_xlpm.office_type,'Working Values'!$F$13,IF(_xlpm.office_type="Multi-unit Residential",Data!L30,IF(_xlpm.office_type="Education",Data!AT30,IF(_xlpm.office_type="Mixed-use Building",AE33,Data!AC30)))) -> 0 | M29: =_xlfn.LET(_xlpm.office_type,'Working Values'!$F$13,IF(_xlpm.office_type="Multi-unit Residential",Data!M30,IF(_xlpm.office_type="Education",Data!AU30,IF(_xlpm.office_type="Mixed-use Building",AF33,Data!AD30)))) -> 0.02 | N29: =_xlfn.LET(_xlpm.office_type,'Working Values'!$F$13,IF(_xlpm.office_type="Multi-unit Residential",Data!N30,IF(_xlpm.office_type="Education",Data!AV30,IF(_xlpm.office_type="Mixed-use Building",AG33,Data!AE30)))) -> 7.14 | O29: =_xlfn.LET(_xlpm.office_type,'Working Values'!$F$13,IF(_xlpm.office_type="Multi-unit Residential",Data!O30,IF(_xlpm.office_type="Education",Data!AW30,IF(_xlpm.office_type="Mixed-use Building",AH33,Data!AF30)))) -> 173.9624342 | P29: =_xlfn.LET(_xlpm.office_type,'Working Values'!$F$13,IF(_xlpm.office_type="Multi-unit Residential",Data!P30,IF(_xlpm.office_type="Education",Data!AX30,IF(_xlpm.office_type="Mixed-use Building",AI33,Data!AG30)))) -> -35.20805962
A30: =_xlfn.LET(_xlpm.office_type,'Working Values'!$F$13,IF(_xlpm.office_type="Multi-unit Residential",Data!A31,IF(_xlpm.office_type="Education",Data!AI31,IF(_xlpm.office_type="Mixed-use Building",T34,Data!R31)))) -> 102900 | B30: =_xlfn.LET(_xlpm.office_type,'Working Values'!$F$13,IF(_xlpm.office_type="Multi-unit Residential",Data!B31,IF(_xlpm.office_type="Education",Data!AJ31,IF(_xlpm.office_type="Mixed-use Building",U34,Data!S31)))) -> Waipoua Forest | C30: =_xlfn.LET(_xlpm.office_type,'Working Values'!$F$13,IF(_xlpm.office_type="Multi-unit Residential",Data!C31,IF(_xlpm.office_type="Education",Data!AK31,IF(_xlpm.office_type="Mixed-use Building",V34,Data!T31)))) -> New Zealand | D30: =_xlfn.LET(_xlpm.office_type,'Working Values'!$F$13,IF(_xlpm.office_type="Multi-unit Residential",Data!D31,IF(_xlpm.office_type="Education",Data!AL31,IF(_xlpm.office_type="Mixed-use Building",W34,Data!U31)))) -> 0 | E30: =_xlfn.LET(_xlpm.office_type,'Working Values'!$F$13,IF(_xlpm.office_type="Multi-unit Residential",Data!E31,IF(_xlpm.office_type="Education",Data!AM31,IF(_xlpm.office_type="Mixed-use Building",X34,Data!V31)))) -> 0 | F30: =_xlfn.LET(_xlpm.office_type,'Working Values'!$F$13,IF(_xlpm.office_type="Multi-unit Residential",Data!F31,IF(_xlpm.office_type="Education",Data!AN31,IF(_xlpm.office_type="Mixed-use Building",Y34,Data!W31)))) -> 0 | G30: =_xlfn.LET(_xlpm.office_type,'Working Values'!$F$13,IF(_xlpm.office_type="Multi-unit Residential",Data!G31,IF(_xlpm.office_type="Education",Data!AO31,IF(_xlpm.office_type="Mixed-use Building",Z34,Data!X31)))) -> 0 | H30: =_xlfn.LET(_xlpm.office_type,'Working Values'!$F$13,IF(_xlpm.office_type="Multi-unit Residential",Data!H31,IF(_xlpm.office_type="Education",Data!AP31,IF(_xlpm.office_type="Mixed-use Building",AA34,Data!Y31)))) -> 0.87 | I30: =_xlfn.LET(_xlpm.office_type,'Working Values'!$F$13,IF(_xlpm.office_type="Multi-unit Residential",Data!I31,IF(_xlpm.office_type="Education",Data!AQ31,IF(_xlpm.office_type="Mixed-use Building",AB34,Data!Z31)))) -> 0.06 | J30: =_xlfn.LET(_xlpm.office_type,'Working Values'!$F$13,IF(_xlpm.office_type="Multi-unit Residential",Data!J31,IF(_xlpm.office_type="Education",Data!AR31,IF(_xlpm.office_type="Mixed-use Building",AC34,Data!AA31)))) -> 0.01 | K30: =_xlfn.LET(_xlpm.office_type,'Working Values'!$F$13,IF(_xlpm.office_type="Multi-unit Residential",Data!K31,IF(_xlpm.office_type="Education",Data!AS31,IF(_xlpm.office_type="Mixed-use Building",AD34,Data!AB31)))) -> 0 | L30: =_xlfn.LET(_xlpm.office_type,'Working Values'!$F$13,IF(_xlpm.office_type="Multi-unit Residential",Data!L31,IF(_xlpm.office_type="Education",Data!AT31,IF(_xlpm.office_type="Mixed-use Building",AE34,Data!AC31)))) -> 0.06 | M30: =_xlfn.LET(_xlpm.office_type,'Working Values'!$F$13,IF(_xlpm.office_type="Multi-unit Residential",Data!M31,IF(_xlpm.office_type="Education",Data!AU31,IF(_xlpm.office_type="Mixed-use Building",AF34,Data!AD31)))) -> 0.02 | N30: =_xlfn.LET(_xlpm.office_type,'Working Values'!$F$13,IF(_xlpm.office_type="Multi-unit Residential",Data!N31,IF(_xlpm.office_type="Education",Data!AV31,IF(_xlpm.office_type="Mixed-use Building",AG34,Data!AE31)))) -> 9.98 | O30: =_xlfn.LET(_xlpm.office_type,'Working Values'!$F$13,IF(_xlpm.office_type="Multi-unit Residential",Data!O31,IF(_xlpm.office_type="Education",Data!AW31,IF(_xlpm.office_type="Mixed-use Building",AH34,Data!AF31)))) -> 173.511349 | P30: =_xlfn.LET(_xlpm.office_type,'Working Values'!$F$13,IF(_xlpm.office_type="Multi-unit Residential",Data!P31,IF(_xlpm.office_type="Education",Data!AX31,IF(_xlpm.office_type="Mixed-use Building",AI34,Data!AG31)))) -> -35.58128435
A31: =_xlfn.LET(_xlpm.office_type,'Working Values'!$F$13,IF(_xlpm.office_type="Multi-unit Residential",Data!A32,IF(_xlpm.office_type="Education",Data!AI32,IF(_xlpm.office_type="Mixed-use Building",T35,Data!R32)))) -> 103000 | B31: =_xlfn.LET(_xlpm.office_type,'Working Values'!$F$13,IF(_xlpm.office_type="Multi-unit Residential",Data!B32,IF(_xlpm.office_type="Education",Data!AJ32,IF(_xlpm.office_type="Mixed-use Building",U35,Data!S32)))) -> Kerikeri Central | C31: =_xlfn.LET(_xlpm.office_type,'Working Values'!$F$13,IF(_xlpm.office_type="Multi-unit Residential",Data!C32,IF(_xlpm.office_type="Education",Data!AK32,IF(_xlpm.office_type="Mixed-use Building",V35,Data!T32)))) -> New Zealand | D31: =_xlfn.LET(_xlpm.office_type,'Working Values'!$F$13,IF(_xlpm.office_type="Multi-unit Residential",Data!D32,IF(_xlpm.office_type="Education",Data!AL32,IF(_xlpm.office_type="Mixed-use Building",W35,Data!U32)))) -> 0 | E31: =_xlfn.LET(_xlpm.office_type,'Working Values'!$F$13,IF(_xlpm.office_type="Multi-unit Residential",Data!E32,IF(_xlpm.office_type="Education",Data!AM32,IF(_xlpm.office_type="Mixed-use Building",X35,Data!V32)))) -> 0 | F31: =_xlfn.LET(_xlpm.office_type,'Working Values'!$F$13,IF(_xlpm.office_type="Multi-unit Residential",Data!F32,IF(_xlpm.office_type="Education",Data!AN32,IF(_xlpm.office_type="Mixed-use Building",Y35,Data!W32)))) -> 0 | G31: =_xlfn.LET(_xlpm.office_type,'Working Values'!$F$13,IF(_xlpm.office_type="Multi-unit Residential",Data!G32,IF(_xlpm.office_type="Education",Data!AO32,IF(_xlpm.office_type="Mixed-use Building",Z35,Data!X32)))) -> 0 | H31: =_xlfn.LET(_xlpm.office_type,'Working Values'!$F$13,IF(_xlpm.office_type="Multi-unit Residential",Data!H32,IF(_xlpm.office_type="Education",Data!AP32,IF(_xlpm.office_type="Mixed-use Building",AA35,Data!Y32)))) -> 0.91 | I31: =_xlfn.LET(_xlpm.office_type,'Working Values'!$F$13,IF(_xlpm.office_type="Multi-unit Residential",Data!I32,IF(_xlpm.office_type="Education",Data!AQ32,IF(_xlpm.office_type="Mixed-use Building",AB35,Data!Z32)))) -> 0.03 | J31: =_xlfn.LET(_xlpm.office_type,'Working Values'!$F$13,IF(_xlpm.office_type="Multi-unit Residential",Data!J32,IF(_xlpm.office_type="Education",Data!AR32,IF(_xlpm.office_type="Mixed-use Building",AC35,Data!AA32)))) -> 0.01 | K31: =_xlfn.LET(_xlpm.office_type,'Working Values'!$F$13,IF(_xlpm.office_type="Multi-unit Residential",Data!K32,IF(_xlpm.office_type="Education",Data!AS32,IF(_xlpm.office_type="Mixed-use Building",AD35,Data!AB32)))) -> 0 | L31: =_xlfn.LET(_xlpm.office_type,'Working Values'!$F$13,IF(_xlpm.office_type="Multi-unit Residential",Data!L32,IF(_xlpm.office_type="Education",Data!AT32,IF(_xlpm.office_type="Mixed-use Building",AE35,Data!AC32)))) -> 0.05 | M31: =_xlfn.LET(_xlpm.office_type,'Working Values'!$F$13,IF(_xlpm.office_type="Multi-unit Residential",Data!M32,IF(_xlpm.office_type="Education",Data!AU32,IF(_xlpm.office_type="Mixed-use Building",AF35,Data!AD32)))) -> 0.02 | N31: =_xlfn.LET(_xlpm.office_type,'Working Values'!$F$13,IF(_xlpm.office_type="Multi-unit Residential",Data!N32,IF(_xlpm.office_type="Education",Data!AV32,IF(_xlpm.office_type="Mixed-use Building",AG35,Data!AE32)))) -> 9.31 | O31: =_xlfn.LET(_xlpm.office_type,'Working Values'!$F$13,IF(_xlpm.office_type="Multi-unit Residential",Data!O32,IF(_xlpm.office_type="Education",Data!AW32,IF(_xlpm.office_type="Mixed-use Building",AH35,Data!AF32)))) -> 173.950963 | P31: =_xlfn.LET(_xlpm.office_type,'Working Values'!$F$13,IF(_xlpm.office_type="Multi-unit Residential",Data!P32,IF(_xlpm.office_type="Education",Data!AX32,IF(_xlpm.office_type="Mixed-use Building",AI35,Data!AG32)))) -> -35.22507309
A32: =_xlfn.LET(_xlpm.office_type,'Working Values'!$F$13,IF(_xlpm.office_type="Multi-unit Residential",Data!A33,IF(_xlpm.office_type="Education",Data!AI33,IF(_xlpm.office_type="Mixed-use Building",T36,Data!R33)))) -> 103100 | B32: =_xlfn.LET(_xlpm.office_type,'Working Values'!$F$13,IF(_xlpm.office_type="Multi-unit Residential",Data!B33,IF(_xlpm.office_type="Education",Data!AJ33,IF(_xlpm.office_type="Mixed-use Building",U36,Data!S33)))) -> Kerikeri South | C32: =_xlfn.LET(_xlpm.office_type,'Working Values'!$F$13,IF(_xlpm.office_type="Multi-unit Residential",Data!C33,IF(_xlpm.office_type="Education",Data!AK33,IF(_xlpm.office_type="Mixed-use Building",V36,Data!T33)))) -> New Zealand | D32: =_xlfn.LET(_xlpm.office_type,'Working Values'!$F$13,IF(_xlpm.office_type="Multi-unit Residential",Data!D33,IF(_xlpm.office_type="Education",Data!AL33,IF(_xlpm.office_type="Mixed-use Building",W36,Data!U33)))) -> 0 | E32: =_xlfn.LET(_xlpm.office_type,'Working Values'!$F$13,IF(_xlpm.office_type="Multi-unit Residential",Data!E33,IF(_xlpm.office_type="Education",Data!AM33,IF(_xlpm.office_type="Mixed-use Building",X36,Data!V33)))) -> 0 | F32: =_xlfn.LET(_xlpm.office_type,'Working Values'!$F$13,IF(_xlpm.office_type="Multi-unit Residential",Data!F33,IF(_xlpm.office_type="Education",Data!AN33,IF(_xlpm.office_type="Mixed-use Building",Y36,Data!W33)))) -> 0 | G32: =_xlfn.LET(_xlpm.office_type,'Working Values'!$F$13,IF(_xlpm.office_type="Multi-unit Residential",Data!G33,IF(_xlpm.office_type="Education",Data!AO33,IF(_xlpm.office_type="Mixed-use Building",Z36,Data!X33)))) -> 0 | H32: =_xlfn.LET(_xlpm.office_type,'Working Values'!$F$13,IF(_xlpm.office_type="Multi-unit Residential",Data!H33,IF(_xlpm.office_type="Education",Data!AP33,IF(_xlpm.office_type="Mixed-use Building",AA36,Data!Y33)))) -> 0.92 | I32: =_xlfn.LET(_xlpm.office_type,'Working Values'!$F$13,IF(_xlpm.office_type="Multi-unit Residential",Data!I33,IF(_xlpm.office_type="Education",Data!AQ33,IF(_xlpm.office_type="Mixed-use Building",AB36,Data!Z33)))) -> 0.02 | J32: =_xlfn.LET(_xlpm.office_type,'Working Values'!$F$13,IF(_xlpm.office_type="Multi-unit Residential",Data!J33,IF(_xlpm.office_type="Education",Data!AR33,IF(_xlpm.office_type="Mixed-use Building",AC36,Data!AA33)))) -> 0.01 | K32: =_xlfn.LET(_xlpm.office_type,'Working Values'!$F$13,IF(_xlpm.office_type="Multi-unit Residential",Data!K33,IF(_xlpm.office_type="Education",Data!AS33,IF(_xlpm.office_type="Mixed-use Building",AD36,Data!AB33)))) -> 0 | L32: =_xlfn.LET(_xlpm.office_type,'Working Values'!$F$13,IF(_xlpm.office_type="Multi-unit Residential",Data!L33,IF(_xlpm.office_type="Education",Data!AT33,IF(_xlpm.office_type="Mixed-use Building",AE36,Data!AC33)))) -> 0.05 | M32: =_xlfn.LET(_xlpm.office_type,'Working Values'!$F$13,IF(_xlpm.office_type="Multi-unit Residential",Data!M33,IF(_xlpm.office_type="Education",Data!AU33,IF(_xlpm.office_type="Mixed-use Building",AF36,Data!AD33)))) -> 0.02 | N32: =_xlfn.LET(_xlpm.office_type,'Working Values'!$F$13,IF(_xlpm.office_type="Multi-unit Residential",Data!N33,IF(_xlpm.office_type="Education",Data!AV33,IF(_xlpm.office_type="Mixed-use Building",AG36,Data!AE33)))) -> 7.14 | O32: =_xlfn.LET(_xlpm.office_type,'Working Values'!$F$13,IF(_xlpm.office_type="Multi-unit Residential",Data!O33,IF(_xlpm.office_type="Education",Data!AW33,IF(_xlpm.office_type="Mixed-use Building",AH36,Data!AF33)))) -> 173.9585462 | P32: =_xlfn.LET(_xlpm.office_type,'Working Values'!$F$13,IF(_xlpm.office_type="Multi-unit Residential",Data!P33,IF(_xlpm.office_type="Education",Data!AX33,IF(_xlpm.office_type="Mixed-use Building",AI36,Data!AG33)))) -> -35.23951186
A33: =_xlfn.LET(_xlpm.office_type,'Working Values'!$F$13,IF(_xlpm.office_type="Multi-unit Residential",Data!A34,IF(_xlpm.office_type="Education",Data!AI34,IF(_xlpm.office_type="Mixed-use Building",T37,Data!R34)))) -> 103200 | B33: =_xlfn.LET(_xlpm.office_type,'Working Values'!$F$13,IF(_xlpm.office_type="Multi-unit Residential",Data!B34,IF(_xlpm.office_type="Education",Data!AJ34,IF(_xlpm.office_type="Mixed-use Building",U37,Data!S34)))) -> Ohaeawai-Waimate North | C33: =_xlfn.LET(_xlpm.office_type,'Working Values'!$F$13,IF(_xlpm.office_type="Multi-unit Residential",Data!C34,IF(_xlpm.office_type="Education",Data!AK34,IF(_xlpm.office_type="Mixed-use Building",V37,Data!T34)))) -> New Zealand | D33: =_xlfn.LET(_xlpm.office_type,'Working Values'!$F$13,IF(_xlpm.office_type="Multi-unit Residential",Data!D34,IF(_xlpm.office_type="Education",Data!AL34,IF(_xlpm.office_type="Mixed-use Building",W37,Data!U34)))) -> 0 | E33: =_xlfn.LET(_xlpm.office_type,'Working Values'!$F$13,IF(_xlpm.office_type="Multi-unit Residential",Data!E34,IF(_xlpm.office_type="Education",Data!AM34,IF(_xlpm.office_type="Mixed-use Building",X37,Data!V34)))) -> 0 | F33: =_xlfn.LET(_xlpm.office_type,'Working Values'!$F$13,IF(_xlpm.office_type="Multi-unit Residential",Data!F34,IF(_xlpm.office_type="Education",Data!AN34,IF(_xlpm.office_type="Mixed-use Building",Y37,Data!W34)))) -> 0 | G33: =_xlfn.LET(_xlpm.office_type,'Working Values'!$F$13,IF(_xlpm.office_type="Multi-unit Residential",Data!G34,IF(_xlpm.office_type="Education",Data!AO34,IF(_xlpm.office_type="Mixed-use Building",Z37,Data!X34)))) -> 0 | H33: =_xlfn.LET(_xlpm.office_type,'Working Values'!$F$13,IF(_xlpm.office_type="Multi-unit Residential",Data!H34,IF(_xlpm.office_type="Education",Data!AP34,IF(_xlpm.office_type="Mixed-use Building",AA37,Data!Y34)))) -> 0.99 | I33: =_xlfn.LET(_xlpm.office_type,'Working Values'!$F$13,IF(_xlpm.office_type="Multi-unit Residential",Data!I34,IF(_xlpm.office_type="Education",Data!AQ34,IF(_xlpm.office_type="Mixed-use Building",AB37,Data!Z34)))) -> 0 | J33: =_xlfn.LET(_xlpm.office_type,'Working Values'!$F$13,IF(_xlpm.office_type="Multi-unit Residential",Data!J34,IF(_xlpm.office_type="Education",Data!AR34,IF(_xlpm.office_type="Mixed-use Building",AC37,Data!AA34)))) -> 0.01 | K33: =_xlfn.LET(_xlpm.office_type,'Working Values'!$F$13,IF(_xlpm.office_type="Multi-unit Residential",Data!K34,IF(_xlpm.office_type="Education",Data!AS34,IF(_xlpm.office_type="Mixed-use Building",AD37,Data!AB34)))) -> 0 | L33: =_xlfn.LET(_xlpm.office_type,'Working Values'!$F$13,IF(_xlpm.office_type="Multi-unit Residential",Data!L34,IF(_xlpm.office_type="Education",Data!AT34,IF(_xlpm.office_type="Mixed-use Building",AE37,Data!AC34)))) -> 0 | M33: =_xlfn.LET(_xlpm.office_type,'Working Values'!$F$13,IF(_xlpm.office_type="Multi-unit Residential",Data!M34,IF(_xlpm.office_type="Education",Data!AU34,IF(_xlpm.office_type="Mixed-use Building",AF37,Data!AD34)))) -> 0.02 | N33: =_xlfn.LET(_xlpm.office_type,'Working Values'!$F$13,IF(_xlpm.office_type="Multi-unit Residential",Data!N34,IF(_xlpm.office_type="Education",Data!AV34,IF(_xlpm.office_type="Mixed-use Building",AG37,Data!AE34)))) -> 7.46 | O33: =_xlfn.LET(_xlpm.office_type,'Working Values'!$F$13,IF(_xlpm.office_type="Multi-unit Residential",Data!O34,IF(_xlpm.office_type="Education",Data!AW34,IF(_xlpm.office_type="Mixed-use Building",AH37,Data!AF34)))) -> 173.8599237 | P33: =_xlfn.LET(_xlpm.office_type,'Working Values'!$F$13,IF(_xlpm.office_type="Multi-unit Residential",Data!P34,IF(_xlpm.office_type="Education",Data!AX34,IF(_xlpm.office_type="Mixed-use Building",AI37,Data!AG34)))) -> -35.33520904
A34: =_xlfn.LET(_xlpm.office_type,'Working Values'!$F$13,IF(_xlpm.office_type="Multi-unit Residential",Data!A35,IF(_xlpm.office_type="Education",Data!AI35,IF(_xlpm.office_type="Mixed-use Building",T38,Data!R35)))) -> 103300 | B34: =_xlfn.LET(_xlpm.office_type,'Working Values'!$F$13,IF(_xlpm.office_type="Multi-unit Residential",Data!B35,IF(_xlpm.office_type="Education",Data!AJ35,IF(_xlpm.office_type="Mixed-use Building",U38,Data!S35)))) -> Puketona-Waitangi | C34: =_xlfn.LET(_xlpm.office_type,'Working Values'!$F$13,IF(_xlpm.office_type="Multi-unit Residential",Data!C35,IF(_xlpm.office_type="Education",Data!AK35,IF(_xlpm.office_type="Mixed-use Building",V38,Data!T35)))) -> New Zealand | D34: =_xlfn.LET(_xlpm.office_type,'Working Values'!$F$13,IF(_xlpm.office_type="Multi-unit Residential",Data!D35,IF(_xlpm.office_type="Education",Data!AL35,IF(_xlpm.office_type="Mixed-use Building",W38,Data!U35)))) -> 0 | E34: =_xlfn.LET(_xlpm.office_type,'Working Values'!$F$13,IF(_xlpm.office_type="Multi-unit Residential",Data!E35,IF(_xlpm.office_type="Education",Data!AM35,IF(_xlpm.office_type="Mixed-use Building",X38,Data!V35)))) -> 0 | F34: =_xlfn.LET(_xlpm.office_type,'Working Values'!$F$13,IF(_xlpm.office_type="Multi-unit Residential",Data!F35,IF(_xlpm.office_type="Education",Data!AN35,IF(_xlpm.office_type="Mixed-use Building",Y38,Data!W35)))) -> 0 | G34: =_xlfn.LET(_xlpm.office_type,'Working Values'!$F$13,IF(_xlpm.office_type="Multi-unit Residential",Data!G35,IF(_xlpm.office_type="Education",Data!AO35,IF(_xlpm.office_type="Mixed-use Building",Z38,Data!X35)))) -> 0 | H34: =_xlfn.LET(_xlpm.office_type,'Working Values'!$F$13,IF(_xlpm.office_type="Multi-unit Residential",Data!H35,IF(_xlpm.office_type="Education",Data!AP35,IF(_xlpm.office_type="Mixed-use Building",AA38,Data!Y35)))) -> 0.9 | I34: =_xlfn.LET(_xlpm.office_type,'Working Values'!$F$13,IF(_xlpm.office_type="Multi-unit Residential",Data!I35,IF(_xlpm.office_type="Education",Data!AQ35,IF(_xlpm.office_type="Mixed-use Building",AB38,Data!Z35)))) -> 0 | J34: =_xlfn.LET(_xlpm.office_type,'Working Values'!$F$13,IF(_xlpm.office_type="Multi-unit Residential",Data!J35,IF(_xlpm.office_type="Education",Data!AR35,IF(_xlpm.office_type="Mixed-use Building",AC38,Data!AA35)))) -> 0.01 | K34: =_xlfn.LET(_xlpm.office_type,'Working Values'!$F$13,IF(_xlpm.office_type="Multi-unit Residential",Data!K35,IF(_xlpm.office_type="Education",Data!AS35,IF(_xlpm.office_type="Mixed-use Building",AD38,Data!AB35)))) -> 0 | L34: =_xlfn.LET(_xlpm.office_type,'Working Values'!$F$13,IF(_xlpm.office_type="Multi-unit Residential",Data!L35,IF(_xlpm.office_type="Education",Data!AT35,IF(_xlpm.office_type="Mixed-use Building",AE38,Data!AC35)))) -> 0.09 | M34: =_xlfn.LET(_xlpm.office_type,'Working Values'!$F$13,IF(_xlpm.office_type="Multi-unit Residential",Data!M35,IF(_xlpm.office_type="Education",Data!AU35,IF(_xlpm.office_type="Mixed-use Building",AF38,Data!AD35)))) -> 0.02 | N34: =_xlfn.LET(_xlpm.office_type,'Working Values'!$F$13,IF(_xlpm.office_type="Multi-unit Residential",Data!N35,IF(_xlpm.office_type="Education",Data!AV35,IF(_xlpm.office_type="Mixed-use Building",AG38,Data!AE35)))) -> 10.44 | O34: =_xlfn.LET(_xlpm.office_type,'Working Values'!$F$13,IF(_xlpm.office_type="Multi-unit Residential",Data!O35,IF(_xlpm.office_type="Education",Data!AW35,IF(_xlpm.office_type="Mixed-use Building",AH38,Data!AF35)))) -> 174.0019489 | P34: =_xlfn.LET(_xlpm.office_type,'Working Values'!$F$13,IF(_xlpm.office_type="Multi-unit Residential",Data!P35,IF(_xlpm.office_type="Education",Data!AX35,IF(_xlpm.office_type="Mixed-use Building",AI38,Data!AG35)))) -> -35.27910182
A35: =_xlfn.LET(_xlpm.office_type,'Working Values'!$F$13,IF(_xlpm.office_type="Multi-unit Residential",Data!A36,IF(_xlpm.office_type="Education",Data!AI36,IF(_xlpm.office_type="Mixed-use Building",T39,Data!R36)))) -> 103400 | B35: =_xlfn.LET(_xlpm.office_type,'Working Values'!$F$13,IF(_xlpm.office_type="Multi-unit Residential",Data!B36,IF(_xlpm.office_type="Education",Data!AJ36,IF(_xlpm.office_type="Mixed-use Building",U39,Data!S36)))) -> Ngapuhi | C35: =_xlfn.LET(_xlpm.office_type,'Working Values'!$F$13,IF(_xlpm.office_type="Multi-unit Residential",Data!C36,IF(_xlpm.office_type="Education",Data!AK36,IF(_xlpm.office_type="Mixed-use Building",V39,Data!T36)))) -> New Zealand | D35: =_xlfn.LET(_xlpm.office_type,'Working Values'!$F$13,IF(_xlpm.office_type="Multi-unit Residential",Data!D36,IF(_xlpm.office_type="Education",Data!AL36,IF(_xlpm.office_type="Mixed-use Building",W39,Data!U36)))) -> 0 | E35: =_xlfn.LET(_xlpm.office_type,'Working Values'!$F$13,IF(_xlpm.office_type="Multi-unit Residential",Data!E36,IF(_xlpm.office_type="Education",Data!AM36,IF(_xlpm.office_type="Mixed-use Building",X39,Data!V36)))) -> 0 | F35: =_xlfn.LET(_xlpm.office_type,'Working Values'!$F$13,IF(_xlpm.office_type="Multi-unit Residential",Data!F36,IF(_xlpm.office_type="Education",Data!AN36,IF(_xlpm.office_type="Mixed-use Building",Y39,Data!W36)))) -> 0 | G35: =_xlfn.LET(_xlpm.office_type,'Working Values'!$F$13,IF(_xlpm.office_type="Multi-unit Residential",Data!G36,IF(_xlpm.office_type="Education",Data!AO36,IF(_xlpm.office_type="Mixed-use Building",Z39,Data!X36)))) -> 0 | H35: =_xlfn.LET(_xlpm.office_type,'Working Values'!$F$13,IF(_xlpm.office_type="Multi-unit Residential",Data!H36,IF(_xlpm.office_type="Education",Data!AP36,IF(_xlpm.office_type="Mixed-use Building",AA39,Data!Y36)))) -> 0.99 | I35: =_xlfn.LET(_xlpm.office_type,'Working Values'!$F$13,IF(_xlpm.office_type="Multi-unit Residential",Data!I36,IF(_xlpm.office_type="Education",Data!AQ36,IF(_xlpm.office_type="Mixed-use Building",AB39,Data!Z36)))) -> 0 | J35: =_xlfn.LET(_xlpm.office_type,'Working Values'!$F$13,IF(_xlpm.office_type="Multi-unit Residential",Data!J36,IF(_xlpm.office_type="Education",Data!AR36,IF(_xlpm.office_type="Mixed-use Building",AC39,Data!AA36)))) -> 0.01 | K35: =_xlfn.LET(_xlpm.office_type,'Working Values'!$F$13,IF(_xlpm.office_type="Multi-unit Residential",Data!K36,IF(_xlpm.office_type="Education",Data!AS36,IF(_xlpm.office_type="Mixed-use Building",AD39,Data!AB36)))) -> 0 | L35: =_xlfn.LET(_xlpm.office_type,'Working Values'!$F$13,IF(_xlpm.office_type="Multi-unit Residential",Data!L36,IF(_xlpm.office_type="Education",Data!AT36,IF(_xlpm.office_type="Mixed-use Building",AE39,Data!AC36)))) -> 0 | M35: =_xlfn.LET(_xlpm.office_type,'Working Values'!$F$13,IF(_xlpm.office_type="Multi-unit Residential",Data!M36,IF(_xlpm.office_type="Education",Data!AU36,IF(_xlpm.office_type="Mixed-use Building",AF39,Data!AD36)))) -> 0.02 | N35: =_xlfn.LET(_xlpm.office_type,'Working Values'!$F$13,IF(_xlpm.office_type="Multi-unit Residential",Data!N36,IF(_xlpm.office_type="Education",Data!AV36,IF(_xlpm.office_type="Mixed-use Building",AG39,Data!AE36)))) -> 13.54 | O35: =_xlfn.LET(_xlpm.office_type,'Working Values'!$F$13,IF(_xlpm.office_type="Multi-unit Residential",Data!O36,IF(_xlpm.office_type="Education",Data!AW36,IF(_xlpm.office_type="Mixed-use Building",AH39,Data!AF36)))) -> 173.8107864 | P35: =_xlfn.LET(_xlpm.office_type,'Working Values'!$F$13,IF(_xlpm.office_type="Multi-unit Residential",Data!P36,IF(_xlpm.office_type="Education",Data!AX36,IF(_xlpm.office_type="Mixed-use Building",AI39,Data!AG36)))) -> -35.41959762
A36: =_xlfn.LET(_xlpm.office_type,'Working Values'!$F$13,IF(_xlpm.office_type="Multi-unit Residential",Data!A37,IF(_xlpm.office_type="Education",Data!AI37,IF(_xlpm.office_type="Mixed-use Building",T40,Data!R37)))) -> 103500 | B36: =_xlfn.LET(_xlpm.office_type,'Working Values'!$F$13,IF(_xlpm.office_type="Multi-unit Residential",Data!B37,IF(_xlpm.office_type="Education",Data!AJ37,IF(_xlpm.office_type="Mixed-use Building",U40,Data!S37)))) -> Kaikohe | C36: =_xlfn.LET(_xlpm.office_type,'Working Values'!$F$13,IF(_xlpm.office_type="Multi-unit Residential",Data!C37,IF(_xlpm.office_type="Education",Data!AK37,IF(_xlpm.office_type="Mixed-use Building",V40,Data!T37)))) -> New Zealand | D36: =_xlfn.LET(_xlpm.office_type,'Working Values'!$F$13,IF(_xlpm.office_type="Multi-unit Residential",Data!D37,IF(_xlpm.office_type="Education",Data!AL37,IF(_xlpm.office_type="Mixed-use Building",W40,Data!U37)))) -> 0 | E36: =_xlfn.LET(_xlpm.office_type,'Working Values'!$F$13,IF(_xlpm.office_type="Multi-unit Residential",Data!E37,IF(_xlpm.office_type="Education",Data!AM37,IF(_xlpm.office_type="Mixed-use Building",X40,Data!V37)))) -> 0 | F36: =_xlfn.LET(_xlpm.office_type,'Working Values'!$F$13,IF(_xlpm.office_type="Multi-unit Residential",Data!F37,IF(_xlpm.office_type="Education",Data!AN37,IF(_xlpm.office_type="Mixed-use Building",Y40,Data!W37)))) -> 0 | G36: =_xlfn.LET(_xlpm.office_type,'Working Values'!$F$13,IF(_xlpm.office_type="Multi-unit Residential",Data!G37,IF(_xlpm.office_type="Education",Data!AO37,IF(_xlpm.office_type="Mixed-use Building",Z40,Data!X37)))) -> 0 | H36: =_xlfn.LET(_xlpm.office_type,'Working Values'!$F$13,IF(_xlpm.office_type="Multi-unit Residential",Data!H37,IF(_xlpm.office_type="Education",Data!AP37,IF(_xlpm.office_type="Mixed-use Building",AA40,Data!Y37)))) -> 0.9 | I36: =_xlfn.LET(_xlpm.office_type,'Working Values'!$F$13,IF(_xlpm.office_type="Multi-unit Residential",Data!I37,IF(_xlpm.office_type="Education",Data!AQ37,IF(_xlpm.office_type="Mixed-use Building",AB40,Data!Z37)))) -> 0.03 | J36: =_xlfn.LET(_xlpm.office_type,'Working Values'!$F$13,IF(_xlpm.office_type="Multi-unit Residential",Data!J37,IF(_xlpm.office_type="Education",Data!AR37,IF(_xlpm.office_type="Mixed-use Building",AC40,Data!AA37)))) -> 0.01 | K36: =_xlfn.LET(_xlpm.office_type,'Working Values'!$F$13,IF(_xlpm.office_type="Multi-unit Residential",Data!K37,IF(_xlpm.office_type="Education",Data!AS37,IF(_xlpm.office_type="Mixed-use Building",AD40,Data!AB37)))) -> 0 | L36: =_xlfn.LET(_xlpm.office_type,'Working Values'!$F$13,IF(_xlpm.office_type="Multi-unit Residential",Data!L37,IF(_xlpm.office_type="Education",Data!AT37,IF(_xlpm.office_type="Mixed-use Building",AE40,Data!AC37)))) -> 0.06 | M36: =_xlfn.LET(_xlpm.office_type,'Working Values'!$F$13,IF(_xlpm.office_type="Multi-unit Residential",Data!M37,IF(_xlpm.office_type="Education",Data!AU37,IF(_xlpm.office_type="Mixed-use Building",AF40,Data!AD37)))) -> 0.02 | N36: =_xlfn.LET(_xlpm.office_type,'Working Values'!$F$13,IF(_xlpm.office_type="Multi-unit Residential",Data!N37,IF(_xlpm.office_type="Education",Data!AV37,IF(_xlpm.office_type="Mixed-use Building",AG40,Data!AE37)))) -> 13.09 | O36: =_xlfn.LET(_xlpm.office_type,'Working Values'!$F$13,IF(_xlpm.office_type="Multi-unit Residential",Data!O37,IF(_xlpm.office_type="Education",Data!AW37,IF(_xlpm.office_type="Mixed-use Building",AH40,Data!AF37)))) -> 173.7976752 | P36: =_xlfn.LET(_xlpm.office_type,'Working Values'!$F$13,IF(_xlpm.office_type="Multi-unit Residential",Data!P37,IF(_xlpm.office_type="Education",Data!AX37,IF(_xlpm.office_type="Mixed-use Building",AI40,Data!AG37)))) -> -35.40792422
A37: =_xlfn.LET(_xlpm.office_type,'Working Values'!$F$13,IF(_xlpm.office_type="Multi-unit Residential",Data!A38,IF(_xlpm.office_type="Education",Data!AI38,IF(_xlpm.office_type="Mixed-use Building",T41,Data!R38)))) -> 103600 | B37: =_xlfn.LET(_xlpm.office_type,'Working Values'!$F$13,IF(_xlpm.office_type="Multi-unit Residential",Data!B38,IF(_xlpm.office_type="Education",Data!AJ38,IF(_xlpm.office_type="Mixed-use Building",U41,Data!S38)))) -> Pakaraka | C37: =_xlfn.LET(_xlpm.office_type,'Working Values'!$F$13,IF(_xlpm.office_type="Multi-unit Residential",Data!C38,IF(_xlpm.office_type="Education",Data!AK38,IF(_xlpm.office_type="Mixed-use Building",V41,Data!T38)))) -> New Zealand | D37: =_xlfn.LET(_xlpm.office_type,'Working Values'!$F$13,IF(_xlpm.office_type="Multi-unit Residential",Data!D38,IF(_xlpm.office_type="Education",Data!AL38,IF(_xlpm.office_type="Mixed-use Building",W41,Data!U38)))) -> 0 | E37: =_xlfn.LET(_xlpm.office_type,'Working Values'!$F$13,IF(_xlpm.office_type="Multi-unit Residential",Data!E38,IF(_xlpm.office_type="Education",Data!AM38,IF(_xlpm.office_type="Mixed-use Building",X41,Data!V38)))) -> 0 | F37: =_xlfn.LET(_xlpm.office_type,'Working Values'!$F$13,IF(_xlpm.office_type="Multi-unit Residential",Data!F38,IF(_xlpm.office_type="Education",Data!AN38,IF(_xlpm.office_type="Mixed-use Building",Y41,Data!W38)))) -> 0 | G37: =_xlfn.LET(_xlpm.office_type,'Working Values'!$F$13,IF(_xlpm.office_type="Multi-unit Residential",Data!G38,IF(_xlpm.office_type="Education",Data!AO38,IF(_xlpm.office_type="Mixed-use Building",Z41,Data!X38)))) -> 0 | H37: =_xlfn.LET(_xlpm.office_type,'Working Values'!$F$13,IF(_xlpm.office_type="Multi-unit Residential",Data!H38,IF(_xlpm.office_type="Education",Data!AP38,IF(_xlpm.office_type="Mixed-use Building",AA41,Data!Y38)))) -> 0.99 | I37: =_xlfn.LET(_xlpm.office_type,'Working Values'!$F$13,IF(_xlpm.office_type="Multi-unit Residential",Data!I38,IF(_xlpm.office_type="Education",Data!AQ38,IF(_xlpm.office_type="Mixed-use Building",AB41,Data!Z38)))) -> 0 | J37: =_xlfn.LET(_xlpm.office_type,'Working Values'!$F$13,IF(_xlpm.office_type="Multi-unit Residential",Data!J38,IF(_xlpm.office_type="Education",Data!AR38,IF(_xlpm.office_type="Mixed-use Building",AC41,Data!AA38)))) -> 0.01 | K37: =_xlfn.LET(_xlpm.office_type,'Working Values'!$F$13,IF(_xlpm.office_type="Multi-unit Residential",Data!K38,IF(_xlpm.office_type="Education",Data!AS38,IF(_xlpm.office_type="Mixed-use Building",AD41,Data!AB38)))) -> 0 | L37: =_xlfn.LET(_xlpm.office_type,'Working Values'!$F$13,IF(_xlpm.office_type="Multi-unit Residential",Data!L38,IF(_xlpm.office_type="Education",Data!AT38,IF(_xlpm.office_type="Mixed-use Building",AE41,Data!AC38)))) -> 0 | M37: =_xlfn.LET(_xlpm.office_type,'Working Values'!$F$13,IF(_xlpm.office_type="Multi-unit Residential",Data!M38,IF(_xlpm.office_type="Education",Data!AU38,IF(_xlpm.office_type="Mixed-use Building",AF41,Data!AD38)))) -> 0.02 | N37: =_xlfn.LET(_xlpm.office_type,'Working Values'!$F$13,IF(_xlpm.office_type="Multi-unit Residential",Data!N38,IF(_xlpm.office_type="Education",Data!AV38,IF(_xlpm.office_type="Mixed-use Building",AG41,Data!AE38)))) -> 4.8 | O37: =_xlfn.LET(_xlpm.office_type,'Working Values'!$F$13,IF(_xlpm.office_type="Multi-unit Residential",Data!O38,IF(_xlpm.office_type="Education",Data!AW38,IF(_xlpm.office_type="Mixed-use Building",AH41,Data!AF38)))) -> 173.98171 | P37: =_xlfn.LET(_xlpm.office_type,'Working Values'!$F$13,IF(_xlpm.office_type="Multi-unit Residential",Data!P38,IF(_xlpm.office_type="Education",Data!AX38,IF(_xlpm.office_type="Mixed-use Building",AI41,Data!AG38)))) -> -35.35446636
A38: =_xlfn.LET(_xlpm.office_type,'Working Values'!$F$13,IF(_xlpm.office_type="Multi-unit Residential",Data!A39,IF(_xlpm.office_type="Education",Data!AI39,IF(_xlpm.office_type="Mixed-use Building",T42,Data!R39)))) -> 103700 | B38: =_xlfn.LET(_xlpm.office_type,'Working Values'!$F$13,IF(_xlpm.office_type="Multi-unit Residential",Data!B39,IF(_xlpm.office_type="Education",Data!AJ39,IF(_xlpm.office_type="Mixed-use Building",U42,Data!S39)))) -> Haruru | C38: =_xlfn.LET(_xlpm.office_type,'Working Values'!$F$13,IF(_xlpm.office_type="Multi-unit Residential",Data!C39,IF(_xlpm.office_type="Education",Data!AK39,IF(_xlpm.office_type="Mixed-use Building",V42,Data!T39)))) -> New Zealand | D38: =_xlfn.LET(_xlpm.office_type,'Working Values'!$F$13,IF(_xlpm.office_type="Multi-unit Residential",Data!D39,IF(_xlpm.office_type="Education",Data!AL39,IF(_xlpm.office_type="Mixed-use Building",W42,Data!U39)))) -> 0 | E38: =_xlfn.LET(_xlpm.office_type,'Working Values'!$F$13,IF(_xlpm.office_type="Multi-unit Residential",Data!E39,IF(_xlpm.office_type="Education",Data!AM39,IF(_xlpm.office_type="Mixed-use Building",X42,Data!V39)))) -> 0 | F38: =_xlfn.LET(_xlpm.office_type,'Working Values'!$F$13,IF(_xlpm.office_type="Multi-unit Residential",Data!F39,IF(_xlpm.office_type="Education",Data!AN39,IF(_xlpm.office_type="Mixed-use Building",Y42,Data!W39)))) -> 0 | G38: =_xlfn.LET(_xlpm.office_type,'Working Values'!$F$13,IF(_xlpm.office_type="Multi-unit Residential",Data!G39,IF(_xlpm.office_type="Education",Data!AO39,IF(_xlpm.office_type="Mixed-use Building",Z42,Data!X39)))) -> 0 | H38: =_xlfn.LET(_xlpm.office_type,'Working Values'!$F$13,IF(_xlpm.office_type="Multi-unit Residential",Data!H39,IF(_xlpm.office_type="Education",Data!AP39,IF(_xlpm.office_type="Mixed-use Building",AA42,Data!Y39)))) -> 0.99 | I38: =_xlfn.LET(_xlpm.office_type,'Working Values'!$F$13,IF(_xlpm.office_type="Multi-unit Residential",Data!I39,IF(_xlpm.office_type="Education",Data!AQ39,IF(_xlpm.office_type="Mixed-use Building",AB42,Data!Z39)))) -> 0 | J38: =_xlfn.LET(_xlpm.office_type,'Working Values'!$F$13,IF(_xlpm.office_type="Multi-unit Residential",Data!J39,IF(_xlpm.office_type="Education",Data!AR39,IF(_xlpm.office_type="Mixed-use Building",AC42,Data!AA39)))) -> 0.01 | K38: =_xlfn.LET(_xlpm.office_type,'Working Values'!$F$13,IF(_xlpm.office_type="Multi-unit Residential",Data!K39,IF(_xlpm.office_type="Education",Data!AS39,IF(_xlpm.office_type="Mixed-use Building",AD42,Data!AB39)))) -> 0 | L38: =_xlfn.LET(_xlpm.office_type,'Working Values'!$F$13,IF(_xlpm.office_type="Multi-unit Residential",Data!L39,IF(_xlpm.office_type="Education",Data!AT39,IF(_xlpm.office_type="Mixed-use Building",AE42,Data!AC39)))) -> 0 | M38: =_xlfn.LET(_xlpm.office_type,'Working Values'!$F$13,IF(_xlpm.office_type="Multi-unit Residential",Data!M39,IF(_xlpm.office_type="Education",Data!AU39,IF(_xlpm.office_type="Mixed-use Building",AF42,Data!AD39)))) -> 0.02 | N38: =_xlfn.LET(_xlpm.office_type,'Working Values'!$F$13,IF(_xlpm.office_type="Multi-unit Residential",Data!N39,IF(_xlpm.office_type="Education",Data!AV39,IF(_xlpm.office_type="Mixed-use Building",AG42,Data!AE39)))) -> 5.61 | O38: =_xlfn.LET(_xlpm.office_type,'Working Values'!$F$13,IF(_xlpm.office_type="Multi-unit Residential",Data!O39,IF(_xlpm.office_type="Education",Data!AW39,IF(_xlpm.office_type="Mixed-use Building",AH42,Data!AF39)))) -> 174.0544334 | P38: =_xlfn.LET(_xlpm.office_type,'Working Values'!$F$13,IF(_xlpm.office_type="Multi-unit Residential",Data!P39,IF(_xlpm.office_type="Education",Data!AX39,IF(_xlpm.office_type="Mixed-use Building",AI42,Data!AG39)))) -> -35.27961525
A39: =_xlfn.LET(_xlpm.office_type,'Working Values'!$F$13,IF(_xlpm.office_type="Multi-unit Residential",Data!A40,IF(_xlpm.office_type="Education",Data!AI40,IF(_xlpm.office_type="Mixed-use Building",T43,Data!R40)))) -> 103800 | B39: =_xlfn.LET(_xlpm.office_type,'Working Values'!$F$13,IF(_xlpm.office_type="Multi-unit Residential",Data!B40,IF(_xlpm.office_type="Education",Data!AJ40,IF(_xlpm.office_type="Mixed-use Building",U43,Data!S40)))) -> Russell | C39: =_xlfn.LET(_xlpm.office_type,'Working Values'!$F$13,IF(_xlpm.office_type="Multi-unit Residential",Data!C40,IF(_xlpm.office_type="Education",Data!AK40,IF(_xlpm.office_type="Mixed-use Building",V43,Data!T40)))) -> New Zealand | D39: =_xlfn.LET(_xlpm.office_type,'Working Values'!$F$13,IF(_xlpm.office_type="Multi-unit Residential",Data!D40,IF(_xlpm.office_type="Education",Data!AL40,IF(_xlpm.office_type="Mixed-use Building",W43,Data!U40)))) -> 0 | E39: =_xlfn.LET(_xlpm.office_type,'Working Values'!$F$13,IF(_xlpm.office_type="Multi-unit Residential",Data!E40,IF(_xlpm.office_type="Education",Data!AM40,IF(_xlpm.office_type="Mixed-use Building",X43,Data!V40)))) -> 0 | F39: =_xlfn.LET(_xlpm.office_type,'Working Values'!$F$13,IF(_xlpm.office_type="Multi-unit Residential",Data!F40,IF(_xlpm.office_type="Education",Data!AN40,IF(_xlpm.office_type="Mixed-use Building",Y43,Data!W40)))) -> 0 | G39: =_xlfn.LET(_xlpm.office_type,'Working Values'!$F$13,IF(_xlpm.office_type="Multi-unit Residential",Data!G40,IF(_xlpm.office_type="Education",Data!AO40,IF(_xlpm.office_type="Mixed-use Building",Z43,Data!X40)))) -> 0 | H39: =_xlfn.LET(_xlpm.office_type,'Working Values'!$F$13,IF(_xlpm.office_type="Multi-unit Residential",Data!H40,IF(_xlpm.office_type="Education",Data!AP40,IF(_xlpm.office_type="Mixed-use Building",AA43,Data!Y40)))) -> 0.74 | I39: =_xlfn.LET(_xlpm.office_type,'Working Values'!$F$13,IF(_xlpm.office_type="Multi-unit Residential",Data!I40,IF(_xlpm.office_type="Education",Data!AQ40,IF(_xlpm.office_type="Mixed-use Building",AB43,Data!Z40)))) -> 0.03 | J39: =_xlfn.LET(_xlpm.office_type,'Working Values'!$F$13,IF(_xlpm.office_type="Multi-unit Residential",Data!J40,IF(_xlpm.office_type="Education",Data!AR40,IF(_xlpm.office_type="Mixed-use Building",AC43,Data!AA40)))) -> 0.01 | K39: =_xlfn.LET(_xlpm.office_type,'Working Values'!$F$13,IF(_xlpm.office_type="Multi-unit Residential",Data!K40,IF(_xlpm.office_type="Education",Data!AS40,IF(_xlpm.office_type="Mixed-use Building",AD43,Data!AB40)))) -> 0 | L39: =_xlfn.LET(_xlpm.office_type,'Working Values'!$F$13,IF(_xlpm.office_type="Multi-unit Residential",Data!L40,IF(_xlpm.office_type="Education",Data!AT40,IF(_xlpm.office_type="Mixed-use Building",AE43,Data!AC40)))) -> 0.22 | M39: =_xlfn.LET(_xlpm.office_type,'Working Values'!$F$13,IF(_xlpm.office_type="Multi-unit Residential",Data!M40,IF(_xlpm.office_type="Education",Data!AU40,IF(_xlpm.office_type="Mixed-use Building",AF43,Data!AD40)))) -> 0.02 | N39: =_xlfn.LET(_xlpm.office_type,'Working Values'!$F$13,IF(_xlpm.office_type="Multi-unit Residential",Data!N40,IF(_xlpm.office_type="Education",Data!AV40,IF(_xlpm.office_type="Mixed-use Building",AG43,Data!AE40)))) -> 3.36 | O39: =_xlfn.LET(_xlpm.office_type,'Working Values'!$F$13,IF(_xlpm.office_type="Multi-unit Residential",Data!O40,IF(_xlpm.office_type="Education",Data!AW40,IF(_xlpm.office_type="Mixed-use Building",AH43,Data!AF40)))) -> 174.1244661 | P39: =_xlfn.LET(_xlpm.office_type,'Working Values'!$F$13,IF(_xlpm.office_type="Multi-unit Residential",Data!P40,IF(_xlpm.office_type="Education",Data!AX40,IF(_xlpm.office_type="Mixed-use Building",AI43,Data!AG40)))) -> -35.25653762
A40: =_xlfn.LET(_xlpm.office_type,'Working Values'!$F$13,IF(_xlpm.office_type="Multi-unit Residential",Data!A41,IF(_xlpm.office_type="Education",Data!AI41,IF(_xlpm.office_type="Mixed-use Building",T44,Data!R41)))) -> 103900 | B40: =_xlfn.LET(_xlpm.office_type,'Working Values'!$F$13,IF(_xlpm.office_type="Multi-unit Residential",Data!B41,IF(_xlpm.office_type="Education",Data!AJ41,IF(_xlpm.office_type="Mixed-use Building",U44,Data!S41)))) -> Paihia | C40: =_xlfn.LET(_xlpm.office_type,'Working Values'!$F$13,IF(_xlpm.office_type="Multi-unit Residential",Data!C41,IF(_xlpm.office_type="Education",Data!AK41,IF(_xlpm.office_type="Mixed-use Building",V44,Data!T41)))) -> New Zealand | D40: =_xlfn.LET(_xlpm.office_type,'Working Values'!$F$13,IF(_xlpm.office_type="Multi-unit Residential",Data!D41,IF(_xlpm.office_type="Education",Data!AL41,IF(_xlpm.office_type="Mixed-use Building",W44,Data!U41)))) -> 0 | E40: =_xlfn.LET(_xlpm.office_type,'Working Values'!$F$13,IF(_xlpm.office_type="Multi-unit Residential",Data!E41,IF(_xlpm.office_type="Education",Data!AM41,IF(_xlpm.office_type="Mixed-use Building",X44,Data!V41)))) -> 0 | F40: =_xlfn.LET(_xlpm.office_type,'Working Values'!$F$13,IF(_xlpm.office_type="Multi-unit Residential",Data!F41,IF(_xlpm.office_type="Education",Data!AN41,IF(_xlpm.office_type="Mixed-use Building",Y44,Data!W41)))) -> 0 | G40: =_xlfn.LET(_xlpm.office_type,'Working Values'!$F$13,IF(_xlpm.office_type="Multi-unit Residential",Data!G41,IF(_xlpm.office_type="Education",Data!AO41,IF(_xlpm.office_type="Mixed-use Building",Z44,Data!X41)))) -> 0 | H40: =_xlfn.LET(_xlpm.office_type,'Working Values'!$F$13,IF(_xlpm.office_type="Multi-unit Residential",Data!H41,IF(_xlpm.office_type="Education",Data!AP41,IF(_xlpm.office_type="Mixed-use Building",AA44,Data!Y41)))) -> 0.82 | I40: =_xlfn.LET(_xlpm.office_type,'Working Values'!$F$13,IF(_xlpm.office_type="Multi-unit Residential",Data!I41,IF(_xlpm.office_type="Education",Data!AQ41,IF(_xlpm.office_type="Mixed-use Building",AB44,Data!Z41)))) -> 0.01 | J40: =_xlfn.LET(_xlpm.office_type,'Working Values'!$F$13,IF(_xlpm.office_type="Multi-unit Residential",Data!J41,IF(_xlpm.office_type="Education",Data!AR41,IF(_xlpm.office_type="Mixed-use Building",AC44,Data!AA41)))) -> 0.01 | K40: =_xlfn.LET(_xlpm.office_type,'Working Values'!$F$13,IF(_xlpm.office_type="Multi-unit Residential",Data!K41,IF(_xlpm.office_type="Education",Data!AS41,IF(_xlpm.office_type="Mixed-use Building",AD44,Data!AB41)))) -> 0 | L40: =_xlfn.LET(_xlpm.office_type,'Working Values'!$F$13,IF(_xlpm.office_type="Multi-unit Residential",Data!L41,IF(_xlpm.office_type="Education",Data!AT41,IF(_xlpm.office_type="Mixed-use Building",AE44,Data!AC41)))) -> 0.16 | M40: =_xlfn.LET(_xlpm.office_type,'Working Values'!$F$13,IF(_xlpm.office_type="Multi-unit Residential",Data!M41,IF(_xlpm.office_type="Education",Data!AU41,IF(_xlpm.office_type="Mixed-use Building",AF44,Data!AD41)))) -> 0.02 | N40: =_xlfn.LET(_xlpm.office_type,'Working Values'!$F$13,IF(_xlpm.office_type="Multi-unit Residential",Data!N41,IF(_xlpm.office_type="Education",Data!AV41,IF(_xlpm.office_type="Mixed-use Building",AG44,Data!AE41)))) -> 6.94 | O40: =_xlfn.LET(_xlpm.office_type,'Working Values'!$F$13,IF(_xlpm.office_type="Multi-unit Residential",Data!O41,IF(_xlpm.office_type="Education",Data!AW41,IF(_xlpm.office_type="Mixed-use Building",AH44,Data!AF41)))) -> 174.0866639 | P40: =_xlfn.LET(_xlpm.office_type,'Working Values'!$F$13,IF(_xlpm.office_type="Multi-unit Residential",Data!P41,IF(_xlpm.office_type="Education",Data!AX41,IF(_xlpm.office_type="Mixed-use Building",AI44,Data!AG41)))) -> -35.28330128
A41: =_xlfn.LET(_xlpm.office_type,'Working Values'!$F$13,IF(_xlpm.office_type="Multi-unit Residential",Data!A42,IF(_xlpm.office_type="Education",Data!AI42,IF(_xlpm.office_type="Mixed-use Building",T45,Data!R42)))) -> 104000 | B41: =_xlfn.LET(_xlpm.office_type,'Working Values'!$F$13,IF(_xlpm.office_type="Multi-unit Residential",Data!B42,IF(_xlpm.office_type="Education",Data!AJ42,IF(_xlpm.office_type="Mixed-use Building",U45,Data!S42)))) -> Mataraua Forest | C41: =_xlfn.LET(_xlpm.office_type,'Working Values'!$F$13,IF(_xlpm.office_type="Multi-unit Residential",Data!C42,IF(_xlpm.office_type="Education",Data!AK42,IF(_xlpm.office_type="Mixed-use Building",V45,Data!T42)))) -> New Zealand | D41: =_xlfn.LET(_xlpm.office_type,'Working Values'!$F$13,IF(_xlpm.office_type="Multi-unit Residential",Data!D42,IF(_xlpm.office_type="Education",Data!AL42,IF(_xlpm.office_type="Mixed-use Building",W45,Data!U42)))) -> 0 | E41: =_xlfn.LET(_xlpm.office_type,'Working Values'!$F$13,IF(_xlpm.office_type="Multi-unit Residential",Data!E42,IF(_xlpm.office_type="Education",Data!AM42,IF(_xlpm.office_type="Mixed-use Building",X45,Data!V42)))) -> 0 | F41: =_xlfn.LET(_xlpm.office_type,'Working Values'!$F$13,IF(_xlpm.office_type="Multi-unit Residential",Data!F42,IF(_xlpm.office_type="Education",Data!AN42,IF(_xlpm.office_type="Mixed-use Building",Y45,Data!W42)))) -> 0 | G41: =_xlfn.LET(_xlpm.office_type,'Working Values'!$F$13,IF(_xlpm.office_type="Multi-unit Residential",Data!G42,IF(_xlpm.office_type="Education",Data!AO42,IF(_xlpm.office_type="Mixed-use Building",Z45,Data!X42)))) -> 0 | H41: =_xlfn.LET(_xlpm.office_type,'Working Values'!$F$13,IF(_xlpm.office_type="Multi-unit Residential",Data!H42,IF(_xlpm.office_type="Education",Data!AP42,IF(_xlpm.office_type="Mixed-use Building",AA45,Data!Y42)))) -> 0.99 | I41: =_xlfn.LET(_xlpm.office_type,'Working Values'!$F$13,IF(_xlpm.office_type="Multi-unit Residential",Data!I42,IF(_xlpm.office_type="Education",Data!AQ42,IF(_xlpm.office_type="Mixed-use Building",AB45,Data!Z42)))) -> 0 | J41: =_xlfn.LET(_xlpm.office_type,'Working Values'!$F$13,IF(_xlpm.office_type="Multi-unit Residential",Data!J42,IF(_xlpm.office_type="Education",Data!AR42,IF(_xlpm.office_type="Mixed-use Building",AC45,Data!AA42)))) -> 0.01 | K41: =_xlfn.LET(_xlpm.office_type,'Working Values'!$F$13,IF(_xlpm.office_type="Multi-unit Residential",Data!K42,IF(_xlpm.office_type="Education",Data!AS42,IF(_xlpm.office_type="Mixed-use Building",AD45,Data!AB42)))) -> 0 | L41: =_xlfn.LET(_xlpm.office_type,'Working Values'!$F$13,IF(_xlpm.office_type="Multi-unit Residential",Data!L42,IF(_xlpm.office_type="Education",Data!AT42,IF(_xlpm.office_type="Mixed-use Building",AE45,Data!AC42)))) -> 0 | M41: =_xlfn.LET(_xlpm.office_type,'Working Values'!$F$13,IF(_xlpm.office_type="Multi-unit Residential",Data!M42,IF(_xlpm.office_type="Education",Data!AU42,IF(_xlpm.office_type="Mixed-use Building",AF45,Data!AD42)))) -> 0.02 | N41: =_xlfn.LET(_xlpm.office_type,'Working Values'!$F$13,IF(_xlpm.office_type="Multi-unit Residential",Data!N42,IF(_xlpm.office_type="Education",Data!AV42,IF(_xlpm.office_type="Mixed-use Building",AG45,Data!AE42)))) -> 9.32 | O41: =_xlfn.LET(_xlpm.office_type,'Working Values'!$F$13,IF(_xlpm.office_type="Multi-unit Residential",Data!O42,IF(_xlpm.office_type="Education",Data!AW42,IF(_xlpm.office_type="Mixed-use Building",AH45,Data!AF42)))) -> 173.8053652 | P41: =_xlfn.LET(_xlpm.office_type,'Working Values'!$F$13,IF(_xlpm.office_type="Multi-unit Residential",Data!P42,IF(_xlpm.office_type="Education",Data!AX42,IF(_xlpm.office_type="Mixed-use Building",AI45,Data!AG42)))) -> -35.54715526
A42: =_xlfn.LET(_xlpm.office_type,'Working Values'!$F$13,IF(_xlpm.office_type="Multi-unit Residential",Data!A43,IF(_xlpm.office_type="Education",Data!AI43,IF(_xlpm.office_type="Mixed-use Building",T46,Data!R43)))) -> 104100 | B42: =_xlfn.LET(_xlpm.office_type,'Working Values'!$F$13,IF(_xlpm.office_type="Multi-unit Residential",Data!B43,IF(_xlpm.office_type="Education",Data!AJ43,IF(_xlpm.office_type="Mixed-use Building",U46,Data!S43)))) -> Matawaia-Taumarere | C42: =_xlfn.LET(_xlpm.office_type,'Working Values'!$F$13,IF(_xlpm.office_type="Multi-unit Residential",Data!C43,IF(_xlpm.office_type="Education",Data!AK43,IF(_xlpm.office_type="Mixed-use Building",V46,Data!T43)))) -> New Zealand | D42: =_xlfn.LET(_xlpm.office_type,'Working Values'!$F$13,IF(_xlpm.office_type="Multi-unit Residential",Data!D43,IF(_xlpm.office_type="Education",Data!AL43,IF(_xlpm.office_type="Mixed-use Building",W46,Data!U43)))) -> 0 | E42: =_xlfn.LET(_xlpm.office_type,'Working Values'!$F$13,IF(_xlpm.office_type="Multi-unit Residential",Data!E43,IF(_xlpm.office_type="Education",Data!AM43,IF(_xlpm.office_type="Mixed-use Building",X46,Data!V43)))) -> 0 | F42: =_xlfn.LET(_xlpm.office_type,'Working Values'!$F$13,IF(_xlpm.office_type="Multi-unit Residential",Data!F43,IF(_xlpm.office_type="Education",Data!AN43,IF(_xlpm.office_type="Mixed-use Building",Y46,Data!W43)))) -> 0 | G42: =_xlfn.LET(_xlpm.office_type,'Working Values'!$F$13,IF(_xlpm.office_type="Multi-unit Residential",Data!G43,IF(_xlpm.office_type="Education",Data!AO43,IF(_xlpm.office_type="Mixed-use Building",Z46,Data!X43)))) -> 0 | H42: =_xlfn.LET(_xlpm.office_type,'Working Values'!$F$13,IF(_xlpm.office_type="Multi-unit Residential",Data!H43,IF(_xlpm.office_type="Education",Data!AP43,IF(_xlpm.office_type="Mixed-use Building",AA46,Data!Y43)))) -> 0.99 | I42: =_xlfn.LET(_xlpm.office_type,'Working Values'!$F$13,IF(_xlpm.office_type="Multi-unit Residential",Data!I43,IF(_xlpm.office_type="Education",Data!AQ43,IF(_xlpm.office_type="Mixed-use Building",AB46,Data!Z43)))) -> 0 | J42: =_xlfn.LET(_xlpm.office_type,'Working Values'!$F$13,IF(_xlpm.office_type="Multi-unit Residential",Data!J43,IF(_xlpm.office_type="Education",Data!AR43,IF(_xlpm.office_type="Mixed-use Building",AC46,Data!AA43)))) -> 0.01 | K42: =_xlfn.LET(_xlpm.office_type,'Working Values'!$F$13,IF(_xlpm.office_type="Multi-unit Residential",Data!K43,IF(_xlpm.office_type="Education",Data!AS43,IF(_xlpm.office_type="Mixed-use Building",AD46,Data!AB43)))) -> 0 | L42: =_xlfn.LET(_xlpm.office_type,'Working Values'!$F$13,IF(_xlpm.office_type="Multi-unit Residential",Data!L43,IF(_xlpm.office_type="Education",Data!AT43,IF(_xlpm.office_type="Mixed-use Building",AE46,Data!AC43)))) -> 0 | M42: =_xlfn.LET(_xlpm.office_type,'Working Values'!$F$13,IF(_xlpm.office_type="Multi-unit Residential",Data!M43,IF(_xlpm.office_type="Education",Data!AU43,IF(_xlpm.office_type="Mixed-use Building",AF46,Data!AD43)))) -> 0.02 | N42: =_xlfn.LET(_xlpm.office_type,'Working Values'!$F$13,IF(_xlpm.office_type="Multi-unit Residential",Data!N43,IF(_xlpm.office_type="Education",Data!AV43,IF(_xlpm.office_type="Mixed-use Building",AG46,Data!AE43)))) -> 11.19 | O42: =_xlfn.LET(_xlpm.office_type,'Working Values'!$F$13,IF(_xlpm.office_type="Multi-unit Residential",Data!O43,IF(_xlpm.office_type="Education",Data!AW43,IF(_xlpm.office_type="Mixed-use Building",AH46,Data!AF43)))) -> 174.0035121 | P42: =_xlfn.LET(_xlpm.office_type,'Working Values'!$F$13,IF(_xlpm.office_type="Multi-unit Residential",Data!P43,IF(_xlpm.office_type="Education",Data!AX43,IF(_xlpm.office_type="Mixed-use Building",AI46,Data!AG43)))) -> -35.46063564
A43: =_xlfn.LET(_xlpm.office_type,'Working Values'!$F$13,IF(_xlpm.office_type="Multi-unit Residential",Data!A44,IF(_xlpm.office_type="Education",Data!AI44,IF(_xlpm.office_type="Mixed-use Building",T47,Data!R44)))) -> 104200 | B43: =_xlfn.LET(_xlpm.office_type,'Working Values'!$F$13,IF(_xlpm.office_type="Multi-unit Residential",Data!B44,IF(_xlpm.office_type="Education",Data!AJ44,IF(_xlpm.office_type="Mixed-use Building",U47,Data!S44)))) -> Russell Peninsula | C43: =_xlfn.LET(_xlpm.office_type,'Working Values'!$F$13,IF(_xlpm.office_type="Multi-unit Residential",Data!C44,IF(_xlpm.office_type="Education",Data!AK44,IF(_xlpm.office_type="Mixed-use Building",V47,Data!T44)))) -> New Zealand | D43: =_xlfn.LET(_xlpm.office_type,'Working Values'!$F$13,IF(_xlpm.office_type="Multi-unit Residential",Data!D44,IF(_xlpm.office_type="Education",Data!AL44,IF(_xlpm.office_type="Mixed-use Building",W47,Data!U44)))) -> 0 | E43: =_xlfn.LET(_xlpm.office_type,'Working Values'!$F$13,IF(_xlpm.office_type="Multi-unit Residential",Data!E44,IF(_xlpm.office_type="Education",Data!AM44,IF(_xlpm.office_type="Mixed-use Building",X47,Data!V44)))) -> 0 | F43: =_xlfn.LET(_xlpm.office_type,'Working Values'!$F$13,IF(_xlpm.office_type="Multi-unit Residential",Data!F44,IF(_xlpm.office_type="Education",Data!AN44,IF(_xlpm.office_type="Mixed-use Building",Y47,Data!W44)))) -> 0 | G43: =_xlfn.LET(_xlpm.office_type,'Working Values'!$F$13,IF(_xlpm.office_type="Multi-unit Residential",Data!G44,IF(_xlpm.office_type="Education",Data!AO44,IF(_xlpm.office_type="Mixed-use Building",Z47,Data!X44)))) -> 0 | H43: =_xlfn.LET(_xlpm.office_type,'Working Values'!$F$13,IF(_xlpm.office_type="Multi-unit Residential",Data!H44,IF(_xlpm.office_type="Education",Data!AP44,IF(_xlpm.office_type="Mixed-use Building",AA47,Data!Y44)))) -> 0.99 | I43: =_xlfn.LET(_xlpm.office_type,'Working Values'!$F$13,IF(_xlpm.office_type="Multi-unit Residential",Data!I44,IF(_xlpm.office_type="Education",Data!AQ44,IF(_xlpm.office_type="Mixed-use Building",AB47,Data!Z44)))) -> 0 | J43: =_xlfn.LET(_xlpm.office_type,'Working Values'!$F$13,IF(_xlpm.office_type="Multi-unit Residential",Data!J44,IF(_xlpm.office_type="Education",Data!AR44,IF(_xlpm.office_type="Mixed-use Building",AC47,Data!AA44)))) -> 0.01 | K43: =_xlfn.LET(_xlpm.office_type,'Working Values'!$F$13,IF(_xlpm.office_type="Multi-unit Residential",Data!K44,IF(_xlpm.office_type="Education",Data!AS44,IF(_xlpm.office_type="Mixed-use Building",AD47,Data!AB44)))) -> 0 | L43: =_xlfn.LET(_xlpm.office_type,'Working Values'!$F$13,IF(_xlpm.office_type="Multi-unit Residential",Data!L44,IF(_xlpm.office_type="Education",Data!AT44,IF(_xlpm.office_type="Mixed-use Building",AE47,Data!AC44)))) -> 0 | M43: =_xlfn.LET(_xlpm.office_type,'Working Values'!$F$13,IF(_xlpm.office_type="Multi-unit Residential",Data!M44,IF(_xlpm.office_type="Education",Data!AU44,IF(_xlpm.office_type="Mixed-use Building",AF47,Data!AD44)))) -> 0.02 | N43: =_xlfn.LET(_xlpm.office_type,'Working Values'!$F$13,IF(_xlpm.office_type="Multi-unit Residential",Data!N44,IF(_xlpm.office_type="Education",Data!AV44,IF(_xlpm.office_type="Mixed-use Building",AG47,Data!AE44)))) -> 3.98 | O43: =_xlfn.LET(_xlpm.office_type,'Working Values'!$F$13,IF(_xlpm.office_type="Multi-unit Residential",Data!O44,IF(_xlpm.office_type="Education",Data!AW44,IF(_xlpm.office_type="Mixed-use Building",AH47,Data!AF44)))) -> 174.1620881 | P43: =_xlfn.LET(_xlpm.office_type,'Working Values'!$F$13,IF(_xlpm.office_type="Multi-unit Residential",Data!P44,IF(_xlpm.office_type="Education",Data!AX44,IF(_xlpm.office_type="Mixed-use Building",AI47,Data!AG44)))) -> -35.28676755
A44: =_xlfn.LET(_xlpm.office_type,'Working Values'!$F$13,IF(_xlpm.office_type="Multi-unit Residential",Data!A45,IF(_xlpm.office_type="Education",Data!AI45,IF(_xlpm.office_type="Mixed-use Building",T48,Data!R45)))) -> 104300 | B44: =_xlfn.LET(_xlpm.office_type,'Working Values'!$F$13,IF(_xlpm.office_type="Multi-unit Residential",Data!B45,IF(_xlpm.office_type="Education",Data!AJ45,IF(_xlpm.office_type="Mixed-use Building",U48,Data!S45)))) -> Opua (Far North District) | C44: =_xlfn.LET(_xlpm.office_type,'Working Values'!$F$13,IF(_xlpm.office_type="Multi-unit Residential",Data!C45,IF(_xlpm.office_type="Education",Data!AK45,IF(_xlpm.office_type="Mixed-use Building",V48,Data!T45)))) -> New Zealand | D44: =_xlfn.LET(_xlpm.office_type,'Working Values'!$F$13,IF(_xlpm.office_type="Multi-unit Residential",Data!D45,IF(_xlpm.office_type="Education",Data!AL45,IF(_xlpm.office_type="Mixed-use Building",W48,Data!U45)))) -> 0 | E44: =_xlfn.LET(_xlpm.office_type,'Working Values'!$F$13,IF(_xlpm.office_type="Multi-unit Residential",Data!E45,IF(_xlpm.office_type="Education",Data!AM45,IF(_xlpm.office_type="Mixed-use Building",X48,Data!V45)))) -> 0 | F44: =_xlfn.LET(_xlpm.office_type,'Working Values'!$F$13,IF(_xlpm.office_type="Multi-unit Residential",Data!F45,IF(_xlpm.office_type="Education",Data!AN45,IF(_xlpm.office_type="Mixed-use Building",Y48,Data!W45)))) -> 0 | G44: =_xlfn.LET(_xlpm.office_type,'Working Values'!$F$13,IF(_xlpm.office_type="Multi-unit Residential",Data!G45,IF(_xlpm.office_type="Education",Data!AO45,IF(_xlpm.office_type="Mixed-use Building",Z48,Data!X45)))) -> 0 | H44: =_xlfn.LET(_xlpm.office_type,'Working Values'!$F$13,IF(_xlpm.office_type="Multi-unit Residential",Data!H45,IF(_xlpm.office_type="Education",Data!AP45,IF(_xlpm.office_type="Mixed-use Building",AA48,Data!Y45)))) -> 0.99 | I44: =_xlfn.LET(_xlpm.office_type,'Working Values'!$F$13,IF(_xlpm.office_type="Multi-unit Residential",Data!I45,IF(_xlpm.office_type="Education",Data!AQ45,IF(_xlpm.office_type="Mixed-use Building",AB48,Data!Z45)))) -> 0 | J44: =_xlfn.LET(_xlpm.office_type,'Working Values'!$F$13,IF(_xlpm.office_type="Multi-unit Residential",Data!J45,IF(_xlpm.office_type="Education",Data!AR45,IF(_xlpm.office_type="Mixed-use Building",AC48,Data!AA45)))) -> 0.01 | K44: =_xlfn.LET(_xlpm.office_type,'Working Values'!$F$13,IF(_xlpm.office_type="Multi-unit Residential",Data!K45,IF(_xlpm.office_type="Education",Data!AS45,IF(_xlpm.office_type="Mixed-use Building",AD48,Data!AB45)))) -> 0 | L44: =_xlfn.LET(_xlpm.office_type,'Working Values'!$F$13,IF(_xlpm.office_type="Multi-unit Residential",Data!L45,IF(_xlpm.office_type="Education",Data!AT45,IF(_xlpm.office_type="Mixed-use Building",AE48,Data!AC45)))) -> 0 | M44: =_xlfn.LET(_xlpm.office_type,'Working Values'!$F$13,IF(_xlpm.office_type="Multi-unit Residential",Data!M45,IF(_xlpm.office_type="Education",Data!AU45,IF(_xlpm.office_type="Mixed-use Building",AF48,Data!AD45)))) -> 0.02 | N44: =_xlfn.LET(_xlpm.office_type,'Working Values'!$F$13,IF(_xlpm.office_type="Multi-unit Residential",Data!N45,IF(_xlpm.office_type="Education",Data!AV45,IF(_xlpm.office_type="Mixed-use Building",AG48,Data!AE45)))) -> 7.25 | O44: =_xlfn.LET(_xlpm.office_type,'Working Values'!$F$13,IF(_xlpm.office_type="Multi-unit Residential",Data!O45,IF(_xlpm.office_type="Education",Data!AW45,IF(_xlpm.office_type="Mixed-use Building",AH48,Data!AF45)))) -> 174.102073 | P44: =_xlfn.LET(_xlpm.office_type,'Working Values'!$F$13,IF(_xlpm.office_type="Multi-unit Residential",Data!P45,IF(_xlpm.office_type="Education",Data!AX45,IF(_xlpm.office_type="Mixed-use Building",AI48,Data!AG45)))) -> -35.30876255
A45: =_xlfn.LET(_xlpm.office_type,'Working Values'!$F$13,IF(_xlpm.office_type="Multi-unit Residential",Data!A46,IF(_xlpm.office_type="Education",Data!AI46,IF(_xlpm.office_type="Mixed-use Building",T49,Data!R46)))) -> 104400 | B45: =_xlfn.LET(_xlpm.office_type,'Working Values'!$F$13,IF(_xlpm.office_type="Multi-unit Residential",Data!B46,IF(_xlpm.office_type="Education",Data!AJ46,IF(_xlpm.office_type="Mixed-use Building",U49,Data!S46)))) -> Russell Forest-Rawhiti | C45: =_xlfn.LET(_xlpm.office_type,'Working Values'!$F$13,IF(_xlpm.office_type="Multi-unit Residential",Data!C46,IF(_xlpm.office_type="Education",Data!AK46,IF(_xlpm.office_type="Mixed-use Building",V49,Data!T46)))) -> New Zealand | D45: =_xlfn.LET(_xlpm.office_type,'Working Values'!$F$13,IF(_xlpm.office_type="Multi-unit Residential",Data!D46,IF(_xlpm.office_type="Education",Data!AL46,IF(_xlpm.office_type="Mixed-use Building",W49,Data!U46)))) -> 0 | E45: =_xlfn.LET(_xlpm.office_type,'Working Values'!$F$13,IF(_xlpm.office_type="Multi-unit Residential",Data!E46,IF(_xlpm.office_type="Education",Data!AM46,IF(_xlpm.office_type="Mixed-use Building",X49,Data!V46)))) -> 0 | F45: =_xlfn.LET(_xlpm.office_type,'Working Values'!$F$13,IF(_xlpm.office_type="Multi-unit Residential",Data!F46,IF(_xlpm.office_type="Education",Data!AN46,IF(_xlpm.office_type="Mixed-use Building",Y49,Data!W46)))) -> 0 | G45: =_xlfn.LET(_xlpm.office_type,'Working Values'!$F$13,IF(_xlpm.office_type="Multi-unit Residential",Data!G46,IF(_xlpm.office_type="Education",Data!AO46,IF(_xlpm.office_type="Mixed-use Building",Z49,Data!X46)))) -> 0 | H45: =_xlfn.LET(_xlpm.office_type,'Working Values'!$F$13,IF(_xlpm.office_type="Multi-unit Residential",Data!H46,IF(_xlpm.office_type="Education",Data!AP46,IF(_xlpm.office_type="Mixed-use Building",AA49,Data!Y46)))) -> 0.99 | I45: =_xlfn.LET(_xlpm.office_type,'Working Values'!$F$13,IF(_xlpm.office_type="Multi-unit Residential",Data!I46,IF(_xlpm.office_type="Education",Data!AQ46,IF(_xlpm.office_type="Mixed-use Building",AB49,Data!Z46)))) -> 0 | J45: =_xlfn.LET(_xlpm.office_type,'Working Values'!$F$13,IF(_xlpm.office_type="Multi-unit Residential",Data!J46,IF(_xlpm.office_type="Education",Data!AR46,IF(_xlpm.office_type="Mixed-use Building",AC49,Data!AA46)))) -> 0.01 | K45: =_xlfn.LET(_xlpm.office_type,'Working Values'!$F$13,IF(_xlpm.office_type="Multi-unit Residential",Data!K46,IF(_xlpm.office_type="Education",Data!AS46,IF(_xlpm.office_type="Mixed-use Building",AD49,Data!AB46)))) -> 0 | L45: =_xlfn.LET(_xlpm.office_type,'Working Values'!$F$13,IF(_xlpm.office_type="Multi-unit Residential",Data!L46,IF(_xlpm.office_type="Education",Data!AT46,IF(_xlpm.office_type="Mixed-use Building",AE49,Data!AC46)))) -> 0 | M45: =_xlfn.LET(_xlpm.office_type,'Working Values'!$F$13,IF(_xlpm.office_type="Multi-unit Residential",Data!M46,IF(_xlpm.office_type="Education",Data!AU46,IF(_xlpm.office_type="Mixed-use Building",AF49,Data!AD46)))) -> 0.02 | N45: =_xlfn.LET(_xlpm.office_type,'Working Values'!$F$13,IF(_xlpm.office_type="Multi-unit Residential",Data!N46,IF(_xlpm.office_type="Education",Data!AV46,IF(_xlpm.office_type="Mixed-use Building",AG49,Data!AE46)))) -> 7.8 | O45: =_xlfn.LET(_xlpm.office_type,'Working Values'!$F$13,IF(_xlpm.office_type="Multi-unit Residential",Data!O46,IF(_xlpm.office_type="Education",Data!AW46,IF(_xlpm.office_type="Mixed-use Building",AH49,Data!AF46)))) -> 174.2322094 | P45: =_xlfn.LET(_xlpm.office_type,'Working Values'!$F$13,IF(_xlpm.office_type="Multi-unit Residential",Data!P46,IF(_xlpm.office_type="Education",Data!AX46,IF(_xlpm.office_type="Mixed-use Building",AI49,Data!AG46)))) -> -35.315317
